Workbook

Sheet Übergabe VBA (hidden)
A1: Korrekturfaktor KR | B1: 1
A2: Korrekturfaktor VR | B2: 1
A3: ESPS | B3: 0
A4: Exponent VR | B4: 0.6
A6: PD Periodendauer S3 | B6: 60 | C6: =IF(B6<5,5,B6) -> 60
A7: ED Einschaltdauer S3 | B7: 50
A8: Umgebungs-Temperatur | B8: 40
A9: Start-Temperatur | B9: 40
A11: 1-Body-Model = OBM | B11: 0
A12: 3-Body-Model | B12: 1
A14: Periodendauer S3-Betrieb | B14: 0
A16: PM_EIN/AUS | B16: TRUE
A17: Zoom | B17: 1
A18: Zoom ED ON/OFF | B18: 0
A19: Zoom-Faktor ED | B19: =IF(B18=0,1,0.1) -> 1
A20: ED Einschaltdauer S3 | B20: =B7*Zoom_Faktor_ED -> 50
A22: SAT | B22: 4.3
A23: EXP FS | B23: 7
A25: Wellendichtung = WDS | B25: 0

Sheet Eingabetabelle
B2: Motor Typenbezeichnung: | C2: Typenpezeichnung 100x100x250
B4: Beschreibung | C4: Symbol | D4: Einheit | E4: Wert
B5: Isolierstoffklasse F | C5: Iso F | D5: °C | E5: 155
B6: Wicklungstemperatur Kupfer | C6: ϑ CU | D6: °C | E6: 140
B7: Temperatur Eisen | C7: ϑ FE | D7: °C | E7: 128
B8: Temperatur Aluminium | C8: ϑ AL | D8: °C | E8: =T_FE-18 -> 110
B9: Umgebungstemperatur | C9: ϑ U | D9: °C | E9: 40
B10: max. Übertemperatur | D10: K | E10: 100
B12: Widerstand Wicklung phase-phase 25°C | C12: R ph-ph 25°C | D12: Ω | E12: 1.08
B13: Widerstand Wicklung phase 25°C | C13: R ph 25°C | D13: Ω | E13: =R_ph_ph_25/2 -> 0.54
B14: Temperaturkoeffizient Kupfer | C14: α CU | D14: 1/K | E14: 3,93 · 10−3
B15: Widerstand Wicklung phase 70°C (30K) | C15: R ph 70°C | D15: Ω | E15: =R_ph_25*(1+0.00393*(70-25)) -> 0.635499
B16: Widerstand Wicklung phase 100°C (60K) | C16: R ph 100°C | D16: Ω | E16: =R_ph_25*(1+0.00393*(100-25)) -> 0.699165
B17: Widerstand Wicklung phase 140°C (100K) | C17: R ph 140°C | D17: Ω | E17: =R_ph_25*(1+0.00393*(140-25)) -> 0.784053
B19: Stillstandsmoment 100K | C19: M 0 100K | D19: Nm | E19: 14.4
B20: Stillstandsstrom 100K | C20: I 0 100K | D20: A RMS | E20: 9.7
B21: KT hot | C21: KT 100K | D21: Nm/A | E21: =M_0_100K/I_0_100K -> 1.484536082
B22: Gesamtverlustleistung 100K | C22: P V tot 100K | D22: W | E22: =3*I_0_100K^2*R_ph_140 -> 221.3146403
B23: Thermischer Widerstand gesamt | C23: R th CU-U | D23: K/W | E23: =100/P_V_tot_100K -> 0.4518453902
B24: Thermischer Widerstand gesamt aus Datenblatt | C24: R th CU-U DB | D24: K/W | E24: =0.45 -> 0.45
B25: Thermischer Widerstand Kupfer-Eisen | C25: R th CU-FE | D25: K/W | E25: =R_th_CU_U*(T_CU-T_FE)/d_TH -> 0.05422144682
B26: Thermischer Widerstand Eisen-Alu | C26: R th FE-AL | D26: K/W | E26: =R_th_CU_U*(T_FE-T_AL)/d_TH -> 0.08133217023
B27: Thermischer Widerstand Alu-Umgebung | C27: R th AL-U | D27: K/W | E27: =R_th_CU_U*(T_AL-T_U)/d_TH -> 0.3162917731
B28: Thermische Zeitkonstante gesamt | C28: T th | D28: [min] | E28: 24
B29: Thermische Wärmekapazität gesamt | C29: C th | D29: [Ws/K] | E29: =T_th*60/R_th_CU_U -> 3186.93082
B30: Thermische Wärmekapazität CU | C30: C th CU | D30: [Ws/K] | E30: =C_th*0.05 -> 159.346541
B31: Thermische Wärmekapazität FE | C31: C th FE | D31: [Ws/K] | E31: =C_th*0.65 -> 2071.505033
B32: Thermische Wärmekapazität AL | C32: C th AL | D32: [Ws/K] | E32: =C_th*0.3 -> 956.0792461
B33: Motorkonstante | C33: KM 100K | D33: [Nm/√W] | E33: =M_0_100K/SQRT(P_V_tot_100K) -> 0.9679600204
B35: M0 gemessen bei Drehzahl | C35: n0 | D35: RPM | E35: 5
B36: Inneres Moment | C36: MI 0 100K | D36: Nm | E36: =M_0_100K+KR_KL -> 14.47815756
B37: KT Innen 100K | C37: KT I 100K | D37: Nm/A | E37: =M_IO_100K/I_0_100K -> 1.492593563
B39: Nennmoment 100K | C39: M Nenn 100K | D39: Nm | E39: 10
B40: Nennstrom 100K | C40: I Nenn 100K | D40: A RMS | E40: =M_Nenn_100K/KT_hot -> 6.736111111
B41: Nenndrehzahl | C41: n Nenn | D41: 1/min | E41: 3500
B42: Nennleistung 100K | C42: P Nenn 100K | D42: W | E42: =M_Nenn_100K*2*PI()*n_Nenn/60 -> 3665.191429
B43: Kupferverluste 100K | C43: P CU Nenn 100K | D43: W | E43: =3*I_Nenn^2*R_ph_140 -> 106.7296684
B44: Eisenverluste + Reibungsverluste 100K | C44: P FE Nenn 100K | D44: W | E44: =P_V_tot_100K-P_CU_Nenn_100K -> 114.584972
B46: Gesamtverlustleistung 60K | C46: P V tot 60K | D46: W | E46: =60/R_th_CU_U -> 132.7887842
B47: Stillstandsstrom 60K | C47: I 0 60K | D47: A RMS | E47: =SQRT(P_V_tot_60K/(3*R_ph_100)) -> 7.956649552
B48: Stillstandsmoment 60K | C48: M 0 60K | D48: Nm | E48: =I_0_60K*KT_60K-KR_KL -> 12.08891157
B50: Eisenverluste + Reibungsverluste 60K | C50: P FE Nenn 60K | D50: W | E50: =P_FE_Nenn_100K -> 114.584972
B51: Kupferverluste 60K | C51: P CU Nenn 60K | D51: W | E51: =P_V_tot_60K-P_FE_Nenn_60K -> 18.20381224
B52: Nennstrom 60K | C52: I Nenn 60K | D52: A RMS | E52: =SQRT(P_CU_Nenn_60K/(3*R_ph_100)) -> 2.945986189
B53: Nennmoment 60K | C53: M Nenn 60K | D53: Nm | E53: =I_Nenn_60K*KT_60K -> 4.504913455
B54: Nennleistung 60K | C54: P Nenn 60K | D54: W | E54: =M_Nenn_60K*2*PI()*n_Nenn/60 -> 1651.137018
B56: Gesamtverlustleistung 30K | C56: P V tot 30K | D56: W | E56: =30/R_th_CU_U -> 66.39439209
B57: Stillstandsstrom 30K | C57: I 0 30K | D57: A RMS | E57: =SQRT(P_V_TOT_30K/(3*R_ph_70)) -> 5.901299228
B58: Stillstandsmoment 60K | C58: M 0 30K | D58: Nm | E58: =I_0_30K*KT_30K-KR_KL -> 9.107817689
B60: Eisenverluste + Reibungsverluste | C60: P FE Nenn 30K | D60: W | E60: =P_FE_Nenn_100K -> 114.584972
B61: Kupferverluste 30K | C61: P CU Nenn 30K | D61: W | E61: =P_V_TOT_30K-P_FE_NENN_30K -> -48.19057986
B62: Nennstrom 30K | C62: I Nenn 30K | D62: A RMS | E62: =SQRT(P_CU_NENN_30K/(3*R_ph_70)) -> 
B63: Nennmoment 30K | C63: M Nenn 30K | D63: Nm | E63: =I_Nenn_30K*KT_30K -> 
B64: Nennleistung 30K | C64: P Nenn 30K | D64: W | E64: =M_Nenn_30K*2*PI()*n_Nenn/60 -> 
B66: KE cold ph-ph 25°C | C66: KE ph-ph cold | D66: mVRMS /RPM | E66: 96.6
B67: KT cold 25°C | C67: KT cold | D67: Nm/A | E67: =KE_ph_ph_cold/60.46 -> 1.597750579
B68: KE hot ph-ph 140°C (100K) | C68: KE ph-ph hot | D68: mVRMS /RPM | E68: =60.46*KT_I_100K -> 90.24220683
B69: Temperaturkoeffizient KT | C69: KT coeff | D69: Nm/A/K | E69: =(KT_I_100K-KT_cold)/(140-25) -> -0.0009144088322
B70: Temperaturkoeffizient KE | C70: KE coeff | D70: mVRMS /RPM/K | E70: =(KE_ph_ph_HOT-KE_ph_ph_cold)/(140-25) -> -0.055285158
B71: KT 100°C (60K) | C71: KT 60K | D71: Nm/A | E71: =KT_I_100K-KT_COEFF*40 -> 1.529169916
B72: KT 70°C (30K) | C72: KT 30K | D72: Nm/A | E72: =KT_I_100K-KT_COEFF*70 -> 1.556602181
B73: KE 100°C (60K) | C73: KE 60K | D73: mVRMS /RPM | E73: =KE_ph_ph_cold+KE_COEFF*75 -> 92.45361315
B74: KE 70°C (30K) | C74: KE 30K | D74: mVRMS /RPM | E74: =KE_ph_ph_cold+KE_COEFF*45 -> 94.11216789
B76: Konstante Reibung Datenblatt (Static Friction) | C76: KR DB | D76: Nm | E76: =H76 -> 0.07815756296 | H76: =3*(I_0_100K^2-I_Nenn^2)*R_ph_140/(2*PI()*n_Nenn/60)*0.25 -> 0.07815756296 | I76: = Schätzwert Static Friction
B77: Korrekturfaktor für KR | C77: KF KR | D77: 1 | E77: ='Übergabe VBA'!B1 -> 1
B78: Konstante Reibung für Kennlinien | C78: KR KL | D78: Nm | E78: =KR_DB*KF_KR -> 0.07815756296
B79: Variable Reibung Datenblatt (Viscous Damping) | C79: VR DB | D79: Nm/kRPM | E79: =H79 -> 0.06699219682 | H79: =3*(I_0_100K^2-I_Nenn^2)*R_ph_140/(2*PI()*n_Nenn/60)*0.75*1000/n_Nenn -> 0.06699219682 | I79: = Schätzwert Viscous Damping
B80: Korrekturfaktor für VR | C80: KFVR | D80: 1 | E80: ='Übergabe VBA'!B2 -> 1
B81: Variable Reibung für Kennlinien | C81: VR KL | D81: ="Nm/(kRPM^"&EXP_VR&")" -> Nm/(kRPM^0,6) | E81: =VR_DB*KF_VR*1/EXP_VR -> 0.1116536614
B82: Exponent für VR | C82: EXP VR | D82: 1 | E82: ='Übergabe VBA'!B4 -> 0.6
B83: Reibmoment Wellendichtung | C83: MR WD | D83: Nm | E83: 0.04
B85: Netzspannung | C85: U AC | D85: V AC | E85: 400
B86: Zwischenkreisspannung | C86: U DC | D86: V DC | E86: =U_AC*SQRT(2) -> 565.6854249
B87: Einschaltschwelle Bremschopper | C87: U BC | D87: V DC | E87: =U_DC*1.15 -> 650.5382387
B88: Überspannungsschwelle Regler | C88: U ÜS | D88: V DC | E88: =U_AC*2.3 -> 920
B89: Nennstrom Regler | C89: I R NENN | D89: A EFF | E89: =I_0_100K*1 -> 9.7
B90: Maxstrom Regler | C90: I R MAX | D90: A EFF | E90: =I_MAX*1 -> 29.2
B92: Leerlaufdrehzahl cold | C92: n LL cold | D92: RPM | E92: =U_DC/SQRT(2)/KE_ph_ph_cold*1000 -> 4140.786749
B93: Leerlaufdrehzahl hot | C93: n LL hot | D93: RPM | E93: =U_DC/SQRT(2)/KE_ph_ph_HOT*1000 -> 4432.515716
B95: Induktivität ph-ph | C95: L ph-ph | D95: mH | E95: 6.2
B96: Induktivität ph | C96: L ph | D96: mH | E96: =L_ph_ph/2 -> 3.1
B97: Querinduktivität | C97: L q | D97: mH | E97: =L_H*QUOTIENT_LQ_LD -> 3.1
B98: Längsinduktivität | C98: L d | D98: mH | E98: =L_H -> 3.1
B99: Hauptindiktivität | C99: L H | D99: mH | E99: =L_ph-L_S -> 3.1
B100: Streuinduktivität | C100: L S | D100: mH | E100: ='Zeigerdiagramm mit AR'!O30 -> 0
B101: Polpaarzahl | C101: PP | D101: 1 | E101: 5
B103: Maximalstrom | C103: I max | D103: A | E103: 29.2
B104: Maximalmoment | C104: M max | D104: Nm | E104: 38.4
B105: M max / I max | C105: M max / I max | D105: Nm/A | E105: =M_MAX/I_MAX -> 1.315068493
B107: Einsatzpunkt Sättigung ESPS x Io | C107: ESPS | D107: 1 | E107: ='Übergabe VBA'!B3 -> 0
B108: Charakter der Sättigung | C108: SAT | D108: 1 | E108: =SAT -> 3.3
B110: m ESPS*Io < I < Imax | C110: m 1 hot | D110: Nm/A³ | E110: =(M_MAX-KT_hot*I_MAX)/(I_MAX-ESPS*I_0_100K)^3*6 -> -0.001192537924
B111: Amplitude KT' bei Imax | C111: A KT' hot | D111: Nm/A² | E111: =m_1_hot*(I_MAX-ESPS*I_0_100K) -> -0.0348221074
B112: Amplitude KT bei Imax | C112: A KT hot | D112: Nm/A | E112: =KT_hot+m_1_hot/2*(I_MAX-ESPS*I_0_100K)^2 -> 0.9761333145
B113: I Sättigung | C113: I sat hot | D113: A | E113: =2*A_KT_hot/ABS(A_KTS_hot)+I_MAX -> 85.264
B114: m Imax < I < I sat | C114: m 2 hot | D114: Nm/A³ | E114: =ABS(A_KTS_hot)/(I_SAT_hot-I_MAX) -> 0.0006211135023
B115: M Sättigung | C115: M sat hot | D115: Nm | E115: =KT_hot*I_MAX+m_1_hot/6*(I_MAX-ESPS*I_0_100K)^3+m_2_hot/6*(I_SAT_hot-I_MAX)^3 -> 56.64197938
B117: Amplitude KT' bei Imax | C117: A KT' cold | D117: Nm/A² | E117: =-KT_cold/(I_SAT_hot-ESPS*I_0_100K)*2 -> -0.03747772985
B118: m ESPS*Io < I < Imax | C118: m 1 cold | D118: Nm/A³ | E118: =A_KTS_cold/(I_MAX-ESPS*I_0_100K) -> -0.001283483899
B119: Amplitude KT bei Imax | C119: A KT cold | D119: Nm/A | E119: =KT_cold+m_1_cold/2*(I_MAX-ESPS*I_0_100K)^2 -> 1.050575723
B120: I Sättigung | C120: I sat cold | D120: A | E120: =2*A_KT_cold/ABS(A_KTS_cold)+I_MAX -> 85.264
B121: m Imax < I < I sat | C121: m 2 cold | D121: Nm/A³ | E121: =ABS(A_KTS_cold)/(I_SAT_hot-I_MAX) -> 0.0006684811974
B122: M Sättigung | C122: M sat cold | D122: Nm | E122: =KT_cold*I_MAX+m_1_cold/6*(I_MAX-ESPS*I_0_100K)^3+m_2_cold/6*(I_SAT_hot-I_MAX)^3 -> 60.96164075
B123: M Max bei I Max | C123: M Max (I Max) cold | D123: Nm | E123: =KT_cold*I_MAX+m_1_cold/6*(I_MAX-ESPS*I_0_100K)^3 -> 41.32848164
B125: M Sättigung hot | C125: M SAT hot SE | D125: Nm | E125: =I_MAX*KT_I_100K*M_MAX_pro_I_MAX/(KT_I_100K^SAT-M_MAX_pro_I_MAX^SAT)^(1/SAT) -> 53.17512473
B126: M Sättigung cold | C126: M SAT cold SE | D126: Nm | E126: =I_MAX*KT_cold*M_MAX_pro_I_MAX/(KT_I_100K^SAT-M_MAX_pro_I_MAX^SAT)^(1/SAT) -> 56.92144762
B127: äquivalenter Erregerstrom berechnet | C127: I PM B | D127: [A] | E127: =M_MAX/(KT_I_100K^SAT-M_MAX_pro_I_MAX^SAT)^(1/SAT) -> 35.62599092
B128: berechnete Induktivität ungesättigt | C128: L ph B | D128: [mH] | E128: =KE_ph_ph_HOT/SQRT(3)/(2*PI()*PP)*60/I_PM_B -> 2.793080834
B129: berechnete Induktivität gesättigt | C129: L dq SAT | D129: [mH] | E129: ='Sättigung Exakt'!AN57 -> 2.731293368
B130: Streuinduktivität bei Sättigung | C130: L σ | D130: [mH] | E130: ='Sättigung Exakt'!AP57 -> 0.3687066323
B131: P Sättigung bei 1000 RPM | C131: P SAT 1000 | D131: [W] | E131: =M_SAT_hot_SE*2*PI()*1000/60 -> 5568.486041
B133: Knickfrequenz Feldschwächung | C133: f Knick | D133: [Hz]
B134: Eckdrehzahl Feldschwächung bei I Max | C134: n Eck | D134: [RPM] | E134: =P_MAX_FS/(I_MAX*KT_I_100K)/(2*PI())*60 -> 3924.652917 | G134: =(U_AC/SQRT(3)-R_ph_140*I_MAX)/I_PM/(L_ph)*1000/(2*PI()*PP)*60 -> 3993.09635
B135: Exponent Feldschwächung | C135: EXP FS | D135: [1] | E135: =EXP_FS -> 7
B136: maximale Drehzahl Feldschwächung | C136: n Max FS | D136: [RPM] | E136: =U_ÜS/SQRT(2)/KE_ph_ph_cold*1000 -> 6734.350297
B137: maximale Drehzahl Feldschwächung mit I max | C137: n Max FS I Max | D137: [RPM] | E137: =(U_AC/SQRT(3)-R_ph_140*I_MAX)/(KE_ph_ph_HOT/SQRT(3))*1000 -> 3993.09635 | G137: noch falsch
B138: a koeff | E138: =(KE_ph_ph_HOT/SQRT(3)/1000)^2+(I_MAX*2*PI()/60*PP*L_H/1000)^2 -> 0.004960948058
B139: b koeff | E139: =2*KE_ph_ph_HOT/SQRT(3)/1000*I_MAX*R_ph_140 -> 2.385653403
B140: c koeff | E140: =-(U_AC^2)/3+I_MAX^2*R_ph_140^2 -> -52809.18218
B141: maximale Drehzahl ohne Feldschwächung mit I max | C141: n Max I Max | D141: [RPM] | E141: =(-b_koeff+SQRT(b_koeff^2-4*a_koeff*c_koeff))/(2*a_koeff) -> 3031.068713
B142: M Sättigung hot berechnet aus max. Leistung | C142: M SAT hot P MAX | D142: [Nm] | E142: =P_MAX_FS/(2*PI()*N_MAX_IMAX/60) -> 56.43257784
B144: Massenträgheitsmoment | C144: J Mot | D144: [kg*cm²] | E144: 12
B145: Massenträgheitsmoment | C145: J Mot | D145: [kg*m²] | E145: =E144/10000 -> 0.0012

Sheet Drehzahl-Drehmoment-Diagramm
R2: ST | S2: X-Achse | X2: S1 100K Kennlinie aus Datenblatt | AJ2: Kontrolle | AN2: Begrenzung durch Regler | AS2: S1 60K Kennlinie aus Datenblatt | BE2: Kontrolle | BJ2: S1 30K Kennlinie aus Datenblatt | BW2: Kontrolle | BY2: S3 100K Kennlinie M=50%ED n=100%ED | CL2: Kontrolle | CN2: S3 100K Kennlinie M=50%ED n=50%ED | DA2: Kontrolle | DC2: S3 100K Kennlinie M=30%ED n=30%ED | DP2: Kontrolle | DR2: S3 100K Kennlinie M=20%ED n=20%ED | EE2: Kontrolle | EG2: MMax cold 25°C Wicklung motorisch | EV2: MMax hot 140°C Wicklung = 100K motorisch | FK2: MMax hot 140°C Wicklung = 100K genaratorisch | FY2: M Max Minwert | GF2: M 0 30K | GI2: M 0 60K | GL2: M Nenn 60K | GO2: M 0 100K | GR2: M Nenn 100K | GU2: n LL cold | GX2: n LL hot
C3: =Eingabetabelle!C2 -> Typenpezeichnung 100x100x250 | F3: @ | G3: =U_AC -> 400 | H3: VAC | N3: Legende | R3: ST | S3: x^ | T3: 0.5 | U3: n [RPM] | V3: ω [1/s] | X3: P V TOT 100K [W] | Y3: M KR DB [Nm] | Z3: P V KR DB [W] | AA3: M VR DB [Nm] | AB3: P V VR DB [W] | AC3: MR WD [Nm] | AD3: P V WD [W] | AE3: P V CU [W] | AF3: I 100K DB [A] | AG3: M 100K DB [Nm] | AH3: M 100K DB [Nm] | AI3: M 100K DB [Nm] | AJ3: P AUF [W] | AK3: P AB [W] | AL3: P AB + P V [W] | AM3: Übertemperatur CU [K] | AN3: I Regler [A] | AO3: M Regler [Nm] | AP3: M Regler [Nm] | AQ3: M Regler [Nm] | AS3: P V TOT 60K | AT3: M KR DB [Nm] | AU3: P V KR DB [W] | AV3: M VR DB [Nm] | AW3: P V VR DB [W] | AX3: MR WD [Nm] | AY3: P V WD [W] | AZ3: P V CU [W] | BA3: I 60K DB [A] | BB3: M 60K DB [Nm] | BC3: M 60K DB [Nm] | BD3: M 60K DB [Nm] | BE3: P AUF [W] | BF3: P AB [W] | BG3: P AB + P V [W] | BH3: Übertemperatur CU [K] | BJ3: P V TOT 30K | BK3: M KR DB [Nm] | BL3: P V KR DB [W] | BM3: M VR DB [Nm] | BN3: P V VR DB [W] | BO3: MR WD [Nm] | BP3: P V WD [W] | BQ3: P V CU [W] | BR3: I 30K DB [A] | BS3: M 30K DB [Nm] | BT3: M 30K DB [Nm] | BU3: M 30K DB [Nm] | BV3: P AB [Nm] | BW3: Übertemperatur CU [K] | BY3: P V TOT 100K [W] | BZ3: M KR DB [Nm] | CA3: P V KR DB [W] | CB3: M VR DB [Nm] | CC3: P V VR DB [W] | CD3: MR WD [Nm] | CE3: P V WD [W] | CF3: P V CU [W] | CG3: I 100K [A] | CH3: Sättigung | CI3: M 100K [Nm] | CJ3: M 100K [Nm] | CK3: M 100K [Nm] | CL3: Übertemperatur CU [K] | CN3: P V TOT 100K [W] | CO3: M KR DB [Nm] | CP3: P V KR DB [W] | CQ3: M VR DB [Nm] | CR3: P V VR DB [W] | CS3: MR WD [Nm] | CT3: P V WD [W] | CU3: P V CU [W] | CV3: I 100K [A] | CW3: Sättigung | CX3: M 100K [Nm] | CY3: M 100K [Nm] | CZ3: M 100K [Nm] | DA3: Übertemperatur CU [K] | DC3: P V TOT 100K [W] | DD3: M KR DB [Nm] | DE3: P V KR DB [W] | DF3: M VR DB [Nm] | DG3: P V VR DB [W] | DH3: MR WD [Nm] | DI3: P V WD [W] | DJ3: P V CU [W] | DK3: I 100K [A] | DL3: Sättigung | DM3: M 100K [Nm] | DN3: M 100K [Nm] | DO3: M 100K [Nm] | DP3: Übertemperatur CU [K] | DR3: P V TOT 100K [W] | DS3: M KR DB [Nm] | DT3: P V KR DB [W] | DU3: M VR DB [Nm] | DV3: P V VR DB [W] | DW3: MR WD [Nm] | DX3: P V WD [W] | DY3: P V CU [W] | DZ3: I 100K [A] | EA3: Sättigung | EB3: M 100K [Nm] | EC3: M 100K [Nm] | ED3: M 100K [Nm] | EE3: Übertemperatur CU [K] | EG3: EMKph cold DD[Veff] | EH3: XLph [Ohm] | EI3: a | EJ3: b | EK3: c | EL3: Iph [A) | EM3: Imax cold [A] | EN3: Sättigung | EO3: M Max cold [Nm] | EP3: Mmax cold [Nm] | EQ3: I R max cold [A] | ER3: Sättigung | ES3: M R Max cold [Nm] | ET3: M R max cold [Nm] | EV3: EMKph hot DD[Veff] | EW3: XLph [Ohm] | EX3: a | EY3: b | EZ3: c | FA3: Iph [A) | FB3: Imax hot [A] | FC3: Sättigung | FD3: M Max hot [Nm] | FE3: Mmax hot [Nm] | FF3: I R max hot [A] | FG3: Sättigung | FH3: M R Max hot [Nm] | FI3: M R max hot [Nm] | FK3: EMKph hot DD[Veff] | FL3: XLph [Ohm] | FM3: a | FN3: b | FO3: c | FP3: Iph [A) | FQ3: Imax hot [A] | FR3: Sättigung | FS3: M Max hot [Nm] | FT3: Mmax hot [Nm] | FU3: I R max hot [A] | FV3: Sättigung | FW3: M R Max hot [Nm] | FX3: M R max hot [Nm] | FY3: M Max Minwert [Nm] | GA3: n FS [RPM] | GB3: M FS [Nm] | GC3: ="U EMK ph-ph = "&ROUND(KE_ph_ph_cold*GC4/1000,0)&" Veff = "&ROUND(KE_ph_ph_cold*GC4/1000*SQRT(2),0)&" VDC" -> U EMK ph-ph = 514 Veff = 727 VDC | GF3: =n_0 -> 5 | GG3: =M_0_30K -> 9.107817689 | GH3: =M_0_30K -> 9.107817689 | GI3: =n_0 -> 5 | GJ3: =M_0_60K -> 12.08891157 | GK3: =M_0_60K -> 12.08891157 | GL3: =n_Nenn -> 3500 | GM3: =M_Nenn_60K -> 4.504913455 | GN3: =M_Nenn_60K -> 4.504913455 | GO3: =n_0 -> 5 | GP3: =M_0_100K -> 14.4 | GQ3: =M_0_100K -> 14.4 | GR3: =n_Nenn -> 3500 | GS3: =M_Nenn_100K -> 10 | GT3: =M_Nenn_100K -> 10 | GU3: =N_LL_COLD -> 4140.786749 | GV3: 0 | GW3: 0 | GX3: =N_LL_HOT -> 4432.515716 | GY3: 0 | GZ3: 0 | HB3: I [A] | HC3: a_koeff_DD | HD3: b_koeff_DD | HE3: c_koeff_DD | HF3: n [RPM] | HG3: M [Nm]
N4: • | O4: M0 30K | R4: ST | S4: 0 | T4: =S4^T$3 -> 0 | U4: =N_LL_HOT*T4 -> 0 | V4: =2*PI()*U4/60 -> 0 | X4: =P_V_tot_100K -> 221.3146403 | Y4: =KR_KL -> 0.07815756296 | Z4: =Y4*OMEGA_DD -> 0 | AA4: =VR_KL*(DREHZAHL_DD/1000)^EXP_VR -> 0 | AB4: =AA4*OMEGA_DD -> 0 | AC4: =MR_WD*WDS -> 0 | AD4: =AC4*OMEGA_DD -> 0 | AE4: =X4-(Z4+AB4)*(OBM*R_th_CU_FE+R_th_FE_AL+R_th_AL_U)/(R_th_CU_FE+R_th_FE_AL+R_th_AL_U)-AD4*(WDS*R_th_AL_U)/(R_th_CU_FE+R_th_FE_AL+R_th_AL_U) -> 221.3146403 | AF4: =IF(AE4>=0,SQRT(AE4/(3*R_ph_140)),-SQRT(ABS(AE4)/(3*R_ph_140))) -> 9.7 | AG4: =AF4*KT_I_100K-Y4-AA4-WDS*AC4 -> 14.4 | AH4: =IF(AG4<M_MAX_MIN,AG4,#N/A) -> 14.4 | AI4: =IF(ISERROR(AH4),#N/A,AH4) -> 14.4 | AJ4: =AE4+KE_ph_ph_HOT/SQRT(3)*DREHZAHL_DD/1000*AF4*3 -> 221.3146403 | AK4: =AH4*OMEGA_DD -> 0 | AL4: =AK4+Z4+AB4+AD4+AE4 -> 221.3146403 | AM4: =(Z4+AB4+AD4+AE4)*R_th_AL_U+(Z4+AB4+AE4)*R_th_FE_AL+AE4*R_th_CU_FE -> 100 | AN4: =IF(AF4>I_R_NENN,I_R_NENN,AF4) -> 9.7 | AO4: =AN4*KT_I_100K-Y4-AA4-WDS*AC4 -> 14.4 | AP4: =IF(AO4<M_MAX_MIN,AO4,#N/A) -> 14.4 | AQ4: =IF(ISERROR(AP4),#N/A,AP4) -> 14.4 | AS4: =P_V_tot_60K -> 132.7887842 | AT4: =KR_KL -> 0.07815756296 | AU4: =AT4*OMEGA_DD -> 0 | AV4: =VR_KL*(DREHZAHL_DD/1000)^EXP_VR -> 0 | AW4: =AV4*OMEGA_DD -> 0 | AX4: =MR_WD*WDS -> 0 | AY4: =AX4*OMEGA_DD -> 0 | AZ4: =AS4-(AU4+AW4)*(OBM*R_th_CU_FE+R_th_FE_AL+R_th_AL_U)/(R_th_CU_FE+R_th_FE_AL+R_th_AL_U)-AD4*(WDS*R_th_AL_U)/(R_th_CU_FE+R_th_FE_AL+R_th_AL_U) -> 132.7887842 | BA4: =IF(AZ4>=0,SQRT(AZ4/(3*R_ph_100)),-SQRT(ABS(AZ4)/(3*R_ph_100))) -> 7.956649552 | BB4: =BA4*KT_60K-AT4-AV4-WDS*AX4 -> 12.08891157 | BC4: =IF(BB4<M_MAX_MIN,BB4,#N/A) -> 12.08891157 | BD4: =IF(ISERROR(BC4),#N/A,BC4) -> 12.08891157 | BE4: =AZ4+KE_60K/SQRT(3)*DREHZAHL_DD/1000*BA4*3 -> 132.7887842 | BF4: =BC4*OMEGA_DD -> 0 | BG4: =BF4+AU4+AW4+AY4+AZ4 -> 132.7887842 | BH4: =(AU4+AW4+AY4+AZ4)*R_th_AL_U+(AU4+AW4+AZ4)*R_th_FE_AL+AZ4*R_th_CU_FE -> 60 | BJ4: =P_V_TOT_30K -> 66.39439209 | BK4: =KR_KL -> 0.07815756296 | BL4: =BK4*OMEGA_DD -> 0 | BM4: =VR_KL*(DREHZAHL_DD/1000)^EXP_VR -> 0 | BN4: =BM4*OMEGA_DD -> 0 | BO4: =MR_WD*WDS -> 0 | BP4: =BO4*OMEGA_DD -> 0 | BQ4: =BJ4-(BL4+BN4)*(OBM*R_th_CU_FE+R_th_FE_AL+R_th_AL_U)/(R_th_CU_FE+R_th_FE_AL+R_th_AL_U)-BP4*(WDS*R_th_AL_U)/(R_th_CU_FE+R_th_FE_AL+R_th_AL_U) -> 66.39439209 | BR4: =IF(BQ4>=0,SQRT(BQ4/(3*R_ph_70)),-SQRT(ABS(BQ4)/(3*R_ph_70))) -> 5.901299228 | BS4: =BR4*KT_30K-BK4-BM4-WDS*BO4 -> 9.107817689 | BT4: =IF(BS4<M_MAX_MIN,BS4,#N/A) -> 9.107817689 | BU4: =IF(ISERROR(BT4),#N/A,BT4) -> 9.107817689 | BV4: =BT4*OMEGA_DD -> 0 | BW4: =(BL4+BN4+BP4+BQ4)*R_th_AL_U+(BL4+BN4+BQ4)*R_th_FE_AL+BQ4*R_th_CU_FE -> 30 | BY4: =P_V_tot_100K -> 221.3146403 | BZ4: =KR_KL -> 0.07815756296 | CA4: =BZ4*OMEGA_DD -> 0 | CB4: =VR_KL*(DREHZAHL_DD/1000)^EXP_VR -> 0 | CC4: =CB4*OMEGA_DD -> 0 | CD4: =MR_WD*WDS -> 0 | CE4: =CD4*OMEGA_DD -> 0 | CF4: =BY4-(CA4+CC4)*(OBM*R_th_CU_FE+R_th_FE_AL+R_th_AL_U)/(R_th_CU_FE+R_th_FE_AL+R_th_AL_U)-CE4*(WDS*R_th_AL_U)/(R_th_CU_FE+R_th_FE_AL+R_th_AL_U) -> 221.3146403 | CG4: =IF(CF4>=0,SQRT(CF4/(3*R_ph_140))*SQRT(1/0.5^EX_MULT)*SQRT(EX_MULT),-SQRT(ABS(CF4)/(3*R_ph_140))*SQRT(1/0.5^EX_MULT)) -> 13.71787156 | CH4: =IF(CG4<=ESPS*I_0_100K,KT_hot*CG4,IF(CG4<=I_MAX,KT_hot*CG4+m_1_hot/6*(CG4-ESPS*I_0_100K)^3,IF(CG4<=I_SAT_hot,KT_hot*I_MAX+m_1_hot/6*(I_MAX-ESPS*I_0_100K)^3+m_2_hot/6*(I_SAT_hot-I_MAX)^3-m_2_hot/6*(I_SAT_hot-CG4)^3,M_SAT_hot_SN))) -> 19.85159995 | CI4: =CH4-M_KR_DD-M_VR_DD-WDS*MR_WD -> 19.77344239 | CJ4: =IF(CI4<M_MAX_MIN,CI4,#N/A) -> 19.77344239 | CK4: =IF(ISERROR(CJ4),#N/A,CJ4) -> 19.77344239 | CL4: =(CA4+CC4+CE4+CF4)*R_th_AL_U+(CA4+CC4+CF4)*R_th_FE_AL+CF4*R_th_CU_FE -> 100 | CN4: =P_V_tot_100K -> 221.3146403 | CO4: =KR_KL -> 0.07815756296 | CP4: =CO4*OMEGA_DD*0.5 -> 0 | CQ4: =VR_KL*(DREHZAHL_DD/1000)^EXP_VR -> 0 | CR4: =CQ4*OMEGA_DD*0.5 -> 0 | CS4: =MR_WD*WDS -> 0 | CT4: =CS4*OMEGA_DD*0.5 -> 0 | CU4: =(CN4-(CP4+CR4)*(OBM*R_th_CU_FE+R_th_FE_AL+R_th_AL_U)/(R_th_CU_FE+R_th_FE_AL+R_th_AL_U))-CT4*(WDS*R_th_AL_U)/(R_th_CU_FE+R_th_FE_AL+R_th_AL_U) -> 221.3146403 | CV4: =IF(CU4>=0,SQRT(CU4/(3*R_ph_140))*SQRT(1/0.5^EX_MULT)*SQRT(EX_MULT),-SQRT(ABS(CU4)/(3*R_ph_140))*SQRT(1/0.5^EX_MULT)) -> 13.71787156 | CW4: =IF(CV4<=ESPS*I_0_100K,KT_hot*CV4,IF(CV4<=I_MAX,KT_hot*CV4+m_1_hot/6*(CV4-ESPS*I_0_100K)^3,IF(CV4<=I_SAT_hot,KT_hot*I_MAX+m_1_hot/6*(I_MAX-ESPS*I_0_100K)^3+m_2_hot/6*(I_SAT_hot-I_MAX)^3-m_2_hot/6*(I_SAT_hot-CV4)^3,M_SAT_hot_SN))) -> 19.85159995 | CX4: =CW4-CO4-CQ4-WDS*CS4 -> 19.77344239 | CY4: =IF(CX4<M_MAX_MIN,CX4,#N/A) -> 19.77344239 | CZ4: =IF(ISERROR(CY4),#N/A,CY4) -> 19.77344239 | DA4: =(CP4+CR4+CT4+CU4)*R_th_AL_U+(CP4+CR4+CU4)*R_th_FE_AL+3*CV4^2*R_ph_140*0.5*R_th_CU_FE -> 100 | DC4: =P_V_tot_100K -> 221.3146403 | DD4: =KR_KL -> 0.07815756296 | DE4: =DD4*OMEGA_DD*0.3 -> 0 | DF4: =VR_KL*(DREHZAHL_DD/1000)^EXP_VR -> 0 | DG4: =DF4*OMEGA_DD*0.3 -> 0 | DH4: =MR_WD*WDS -> 0 | DI4: =DH4*OMEGA_DD*0.3 -> 0 | DJ4: =(DC4-(DE4+DG4)*(OBM*R_th_CU_FE+R_th_FE_AL+R_th_AL_U)/(R_th_CU_FE+R_th_FE_AL+R_th_AL_U))-DI4*(WDS*R_th_AL_U)/(R_th_CU_FE+R_th_FE_AL+R_th_AL_U) -> 221.3146403 | DK4: =IF(DJ4>=0,SQRT(DJ4/(3*R_ph_140))*SQRT(1/0.3^EX_MULT)*SQRT(EX_MULT),-SQRT(ABS(DJ4)/(3*R_ph_140))*SQRT(1/0.3^EX_MULT)) -> 17.70969603 | DL4: =IF(DK4<=ESPS*I_0_100K,KT_hot*DK4,IF(DK4<=I_MAX,KT_hot*DK4+m_1_hot/6*(DK4-ESPS*I_0_100K)^3,IF(DK4<=I_SAT_hot,KT_hot*I_MAX+m_1_hot/6*(I_MAX-ESPS*I_0_100K)^3+m_2_hot/6*(I_SAT_hot-I_MAX)^3-m_2_hot/6*(I_SAT_hot-DK4)^3,M_SAT_hot_SN))) -> 25.18672039 | DM4: =DL4-DD4-DF4-WDS*DH4 -> 25.10856283 | DN4: =IF(DM4<M_MAX_MIN,DM4,#N/A) -> 25.10856283 | DO4: =IF(ISERROR(DN4),#N/A,DN4) -> 25.10856283 | DP4: =(DE4+DG4+DI4+DJ4)*R_th_AL_U+(DE4+DG4+DJ4)*R_th_FE_AL+3*DK4^2*R_ph_140*0.3*R_th_CU_FE -> 100 | DR4: =P_V_tot_100K -> 221.3146403 | DS4: =KR_KL -> 0.07815756296 | DT4: =DS4*OMEGA_DD*0.2 -> 0 | DU4: =VR_KL*(DREHZAHL_DD/1000)^EXP_VR -> 0 | DV4: =DU4*OMEGA_DD*0.2 -> 0 | DW4: =MR_WD*WDS -> 0 | DX4: =DW4*OMEGA_DD*0.2 -> 0 | DY4: =(DR4-(DT4+DV4)*(OBM*R_th_CU_FE+R_th_FE_AL+R_th_AL_U)/(R_th_CU_FE+R_th_FE_AL+R_th_AL_U))-DX4*(WDS*R_th_AL_U)/(R_th_CU_FE+R_th_FE_AL+R_th_AL_U) -> 221.3146403 | DZ4: =IF(DY4>=0,SQRT(DY4/(3*R_ph_140))*SQRT(1/0.2^EX_MULT)*SQRT(EX_MULT),-SQRT(ABS(DY4)/(3*R_ph_140))*SQRT(1/0.2^EX_MULT)) -> 21.68985938 | EA4: =IF(DZ4<=ESPS*I_0_100K,KT_hot*DZ4,IF(DZ4<=I_MAX,KT_hot*DZ4+m_1_hot/6*(DZ4-ESPS*I_0_100K)^3,IF(DZ4<=I_SAT_hot,KT_hot*I_MAX+m_1_hot/6*(I_MAX-ESPS*I_0_100K)^3+m_2_hot/6*(I_SAT_hot-I_MAX)^3-m_2_hot/6*(I_SAT_hot-DZ4)^3,M_SAT_hot_SN))) -> 30.1712705 | EB4: =EA4-DS4-DU4-WDS*DW4 -> 30.09311294 | EC4: =IF(EB4<M_MAX_MIN,EB4,#N/A) -> 30.09311294 | ED4: =IF(ISERROR(EC4),#N/A,EC4) -> 30.09311294 | EE4: =(DT4+DV4+DX4+DY4)*R_th_AL_U+(DT4+DV4+DY4)*R_th_FE_AL+3*DZ4^2*R_ph_140*0.2*R_th_CU_FE -> 100 | EG4: =KE_ph_ph_cold/SQRT(3)*DREHZAHL_DD/1000 -> 0 | EH4: =OMEGA_DD*PP*L_ph/1000 -> 0 | EI4: =XL_ph_DD^2+R_ph_25^2 -> 0.2916 | EJ4: =2*R_ph_25*EMK_PH_cold_DD -> 0 | EK4: =EMK_PH_cold_DD^2-(U_AC/SQRT(3))^2 -> -53333.33333 | EL4: =(-koeff_b_cold_DD+SQRT(koeff_b_cold_DD^2-4*koeff_a_cold_DD*koeff_c_cold_DD))/(2*koeff_a_cold_DD) -> 427.6668661 | EM4: =IF(EL4>I_MAX,I_MAX,EL4) -> 29.2 | EN4: =IF(EM4<=ESPS*I_0_100K,KT_cold*EM4,IF(EM4<=I_MAX,KT_cold*EM4+m_1_cold/6*(EM4-ESPS*I_0_100K)^3,IF(EM4<=I_SAT_hot,KT_cold*I_MAX+m_1_cold/6*(I_MAX-ESPS*I_0_100K)^3+m_2_cold/6*(I_SAT_hot-I_MAX)^3-m_2_cold/6*(I_SAT_hot-EM4)^3,M_SAT_cold_SN))) -> 41.32848164 | EO4: =EN4-M_KR_DD-M_VR_DD-WDS*MR_WD -> 41.25032408 | EP4: =IF(ISERROR(EO4),#N/A,EO4) -> 41.25032408 | EQ4: =IF(EL4>MIN(I_R_MAX,I_MAX),MIN(I_R_MAX,I_MAX),EL4) -> 29.2 | ER4: =IF(EQ4<=ESPS*I_0_100K,KT_cold*EQ4,IF(EQ4<=I_MAX,KT_cold*EQ4+m_1_cold/6*(EQ4-ESPS*I_0_100K)^3,IF(EQ4<=I_SAT_hot,KT_cold*I_MAX+m_1_cold/6*(I_MAX-ESPS*I_0_100K)^3+m_2_cold/6*(I_SAT_hot-I_MAX)^3-m_2_cold/6*(I_SAT_hot-EQ4)^3,M_SAT_cold_SN))) -> 41.32848164 | ES4: =ER4-M_KR_DD-M_VR_DD-WDS*MR_WD -> 41.25032408 | ET4: =IF(ISERROR(ES4),#N/A,ES4) -> 41.25032408 | EV4: =KE_ph_ph_HOT/SQRT(3)*DREHZAHL_DD/1000 -> 0 | EW4: =OMEGA_DD*PP*L_ph/1000 -> 0 | EX4: =XL_ph_DD^2+R_ph_140^2 -> 0.6147391068 | EY4: =2*R_ph_140*EMK_ph_hot_DD -> 0 | EZ4: =EMK_ph_hot_DD^2-(U_AC/SQRT(3))^2 -> -53333.33333 | FA4: =(-koeff_b_hot_DD+SQRT(koeff_b_hot_DD^2-4*koeff_a_hot_DD*koeff_c_hot_DD))/(2*koeff_a_hot_DD) -> 294.5465519 | FB4: =IF(FA4>I_MAX,I_MAX,FA4) -> 29.2 | FC4: =IF(FB4<=ESPS*I_0_100K,KT_hot*FB4,IF(FB4<=I_MAX,KT_hot*FB4+m_1_hot/6*(FB4-ESPS*I_0_100K)^3,IF(FB4<=I_SAT_hot,KT_hot*I_MAX+m_1_hot/6*(I_MAX-ESPS*I_0_100K)^3+m_2_hot/6*(I_SAT_hot-I_MAX)^3-m_2_hot/6*(I_SAT_hot-FB4)^3,M_SAT_hot_SN))) -> 38.4 | FD4: =FC4-M_KR_DD-M_VR_DD-WDS*MR_WD -> 38.32184244 | FE4: =IF(ISERROR(FD4),#N/A,FD4) -> 38.32184244 | FF4: =IF(FA4>MIN(I_R_MAX,I_MAX),MIN(I_R_MAX,I_MAX),FA4) -> 29.2 | FG4: =IF(FF4<=ESPS*I_0_100K,KT_hot*FF4,IF(FF4<=I_MAX,KT_hot*FF4+m_1_hot/6*(FF4-ESPS*I_0_100K)^3,IF(FF4<=I_SAT_hot,KT_hot*I_MAX+m_1_hot/6*(I_MAX-ESPS*I_0_100K)^3+m_2_hot/6*(I_SAT_hot-I_MAX)^3-m_2_hot/6*(I_SAT_hot-FF4)^3,M_SAT_hot_SN))) -> 38.4 | FH4: =FG4-M_KR_DD-M_VR_DD-WDS*MR_WD -> 38.32184244 | FI4: =IF(ISERROR(FH4),#N/A,FH4) -> 38.32184244 | FK4: =KE_ph_ph_HOT/SQRT(3)*DREHZAHL_DD/1000 -> 0 | FL4: =OMEGA_DD*PP*L_ph/1000 -> 0 | FM4: =XL_ph_DD^2+R_ph_140^2 -> 0.6147391068 | FN4: =2*R_ph_140*EMK_ph_hot_DD -> 0 | FO4: =EMK_ph_hot_DD^2-(U_BC/SQRT(2)/SQRT(3))^2 -> -70533.33333 | FP4: =(-koeff_b_hot_DDG-SQRT(koeff_b_hot_DDG^2-4*koeff_a_hot_DDG*koeff_c_hot_DDG))/(2*koeff_a_hot_DDG) -> -338.7285347 | FQ4: =IF(-FP4>I_MAX,I_MAX,-FP4) -> 29.2 | FR4: =IF(FQ4<=ESPS*I_0_100K,KT_hot*FQ4,IF(FQ4<=I_MAX,KT_hot*FQ4+m_1_hot/6*(FQ4-ESPS*I_0_100K)^3,IF(FQ4<=I_SAT_hot,KT_hot*I_MAX+m_1_hot/6*(I_MAX-ESPS*I_0_100K)^3+m_2_hot/6*(I_SAT_hot-I_MAX)^3-m_2_hot/6*(I_SAT_hot-FQ4)^3,M_SAT_hot_SN))) -> 38.4 | FS4: =FR4+M_KR_DD+M_VR_DD+WDS*MR_WD -> 38.47815756 | FT4: =IF(ISERROR(FS4),#N/A,FS4) -> 38.47815756 | FU4: =IF(-FP4>MIN(I_R_MAX,I_MAX),MIN(I_R_MAX,I_MAX),-FP4) -> 29.2 | FV4: =IF(FU4<=ESPS*I_0_100K,KT_hot*FU4,IF(FU4<=I_MAX,KT_hot*FU4+m_1_hot/6*(FU4-ESPS*I_0_100K)^3,IF(FU4<=I_SAT_hot,KT_hot*I_MAX+m_1_hot/6*(I_MAX-ESPS*I_0_100K)^3+m_2_hot/6*(I_SAT_hot-I_MAX)^3-m_2_hot/6*(I_SAT_hot-FU4)^3,M_SAT_hot_SN))) -> 38.4 | FW4: =FV4+M_KR_DD+M_VR_DD+WDS*MR_WD -> 38.47815756 | FX4: =IF(ISERROR(FW4),#N/A,FW4) -> 38.47815756 | FY4: =MIN(EO4,FD4) -> 38.32184244 | GA4: =IF(Feldschwächung!U4<n_MAX_FS,Feldschwächung!U4,n_MAX_FS) -> 0 | GB4: =IF(Feldschwächung!U4<n_MAX_FS,Feldschwächung!CJ4,GB3) -> 39.97451064 | GC4: =GA104 -> 5319.018859 | GD4: 0 | HB4: =S4*I_MAX -> 0 | HC4: =(KE_ph_ph_HOT/SQRT(3)/1000)^2+(HB4*2*PI()/60*PP*L_H/1000)^2 -> 0.002714551965 | HD4: =2*KE_ph_ph_HOT/SQRT(3)/1000*HB4*R_ph_140 -> 0 | HE4: =-(U_AC^2)/3+HB4^2*R_ph_140^2 -> -53333.33333 | HF4: =(-b_koeff_DD+SQRT(b_koeff_DD^2-4*a_koeff_DD*c_koeff_DD))/(2*a_koeff_DD) -> 4432.515716 | HG4: =IF(HB4<=ESPS*I_0_100K,KT_hot*HB4,IF(HB4<=I_MAX,KT_hot*HB4+m_1_hot/6*(HB4-ESPS*I_0_100K)^3,IF(HB4<=I_SAT_hot,KT_hot*I_MAX+m_1_hot/6*(I_MAX-ESPS*I_0_100K)^3+m_2_hot/6*(I_SAT_hot-I_MAX)^3-m_2_hot/6*(I_SAT_hot-HB4)^3,M_SAT_hot_SN))) -> 0
N5: ― | O5: =BJ2 -> S1 30K Kennlinie aus Datenblatt | R5: ST | S5: 0.01 | T5: =S5^T$3 -> 0.1 | U5: 443.2515716 | V5: =2*PI()*U5/60 -> 46.41719603 | X5: 221.3146403 | Y5: 0.07815756296 | Z5: 3.627854921 | AA5: 0.06852722407 | AB5: 3.180841593 | AC5: 0 | AD5: 0 | AE5: 215.3229874 | AF5: 9.567794977 | AG5: 14.13414441 | AH5: 14.13414441 | AI5: =IF(ISERROR(AH5),#N/A,AH5) -> 14.13414441 | AJ5: 878.199268 | AK5: 656.0673518 | AL5: =AK5+Z5+AB5+AD5+AE5 -> 878.1990357 | AM5: 100 | AN5: 9.567794977 | AO5: 14.13414441 | AP5: 14.13414441 | AQ5: =IF(ISERROR(AP5),#N/A,AP5) -> 14.13414441 | AS5: 132.7887842 | AT5: 0.07815756296 | AU5: 3.627854921 | AV5: 0.06852722407 | AW5: 3.180841593 | AX5: 0 | AY5: 0 | AZ5: 126.7971313 | BA5: 7.77506891 | BB5: 11.74271669 | BC5: 11.74271669 | BD5: =IF(ISERROR(BC5),#N/A,BC5) -> 11.74271669 | BE5: 678.6700037 | BF5: 545.0639825 | BG5: =BF5+AU5+AW5+AY5+AZ5 -> 678.6698102 | BH5: 60 | BJ5: 66.39439209 | BK5: 0.07815756296 | BL5: 3.627854921 | BM5: 0.06852722407 | BN5: 3.180841593 | BO5: 0 | BP5: 0 | BQ5: 60.40273916 | BR5: 5.628727885 | BS5: 8.615005318 | BT5: 8.615005318 | BU5: =IF(ISERROR(BT5),#N/A,BT5) -> 8.615005318 | BV5: 399.8843907 | BW5: 30 | BY5: 221.3146403 | BZ5: 0.07815756296 | CA5: 3.627854921 | CB5: 0.06852722407 | CC5: 3.180841593 | CD5: 0 | CE5: 0 | CF5: 215.3229874 | CG5: =IF(CF5>=0,SQRT(CF5/(3*R_ph_140))*SQRT(1/0.5^EX_MULT),-SQRT(ABS(CF5)/(3*R_ph_140))*SQRT(1/0.5^EX_MULT)) -> 13.53090542 | CH5: 19.59473605 | CI5: 19.44805127 | CJ5: 19.44805127 | CK5: =IF(ISERROR(CJ5),#N/A,CJ5) -> 19.44805127 | CL5: 100 | CN5: 221.3146403 | CO5: 0.07815756296 | CP5: 1.813927461 | CQ5: 0.06852722407 | CR5: 1.590420796 | CS5: 0 | CT5: 0 | CU5: 218.3188138 | CV5: =IF(CU5>=0,SQRT(CU5/(3*R_ph_140))*SQRT(1/0.5^EX_MULT),-SQRT(ABS(CU5)/(3*R_ph_140))*SQRT(1/0.5^EX_MULT)) -> 13.6247092 | CW5: 19.72367961 | CX5: 19.57699482 | CY5: 19.57699482 | CZ5: =IF(ISERROR(CY5),#N/A,CY5) -> 19.57699482 | DA5: 100 | DC5: 221.3146403 | DD5: 0.07815756296 | DE5: 1.088356476 | DF5: 0.06852722407 | DG5: 0.9542524779 | DH5: 0 | DI5: 0 | DJ5: 219.5171444 | DK5: =IF(DJ5>=0,SQRT(DJ5/(3*R_ph_140))*SQRT(1/0.3^EX_MULT),-SQRT(ABS(DJ5)/(3*R_ph_140))*SQRT(1/0.3^EX_MULT)) -> 17.63763119 | DL5: 25.09315961 | DM5: 24.94647482 | DN5: 24.94647482 | DO5: =IF(ISERROR(DN5),#N/A,DN5) -> 24.94647482 | DP5: 100 | DR5: 221.3146403 | DS5: 0.07815756296 | DT5: 0.7255709842 | DU5: 0.06852722407 | DV5: 0.6361683186 | DW5: 0 | DX5: 0 | DY5: 220.1163097 | DZ5: =IF(DY5>=0,SQRT(DY5/(3*R_ph_140))*SQRT(1/0.2^EX_MULT),-SQRT(ABS(DY5)/(3*R_ph_140))*SQRT(1/0.2^EX_MULT)) -> 21.63105871 | EA5: 30.10042856 | EB5: 29.95374377 | EC5: 29.95374377 | ED5: =IF(ISERROR(EC5),#N/A,EC5) -> 29.95374377 | EE5: 100 | EG5: 24.72104261 | EH5: 0.7194665385 | EI5: 0.8092321 | EJ5: 26.69872602 | EK5: -52722.20339 | EL5: 239.2829335 | EM5: 29.2 | EN5: 41.32848164 | EO5: 41.18179685 | EP5: =IF(ISERROR(EO5),#N/A,EO5) -> 41.18179685 | EQ5: 29.2 | ER5: 41.32848164 | ES5: 41.18179685 | ET5: =IF(ISERROR(ES5),#N/A,ES5) -> 41.18179685 | EV5: 23.09401077 | EW5: 0.7194665385 | EX5: 1.132371207 | EY5: 36.21385685 | EZ5: -52800 | FA5: 200.5357227 | FB5: 29.2 | FC5: 38.4 | FD5: 38.25331521 | FE5: =IF(ISERROR(FD5),#N/A,FD5) -> 38.25331521 | FF5: 29.2 | FG5: 38.4 | FH5: 38.25331521 | FI5: =IF(ISERROR(FH5),#N/A,FH5) -> 38.25331521 | FK5: 23.09401077 | FL5: 0.7194665385 | FM5: 1.132371207 | FN5: 36.21385685 | FO5: -70000 | FP5: -265.134559 | FQ5: 29.2 | FR5: 38.4 | FS5: 38.54668479 | FT5: =IF(ISERROR(FS5),#N/A,FS5) -> 38.54668479 | FU5: 29.2 | FV5: 38.4 | FW5: 38.54668479 | FX5: =IF(ISERROR(FW5),#N/A,FW5) -> 38.54668479 | FY5: =MIN(EO5,FD5) -> 38.25331521 | GA5: =IF(Feldschwächung!U5<n_MAX_FS,Feldschwächung!U5,n_MAX_FS) -> 133.607713 | GB5: =IF(Feldschwächung!U5<n_MAX_FS,Feldschwächung!CJ5,GB4) -> 39.94113944 | GC5: =GA104 -> 5319.018859 | GD5: =GB104/2 -> 15.63159831 | HB5: 0.292 | HC5: 0.002714776604 | HD5: 0.02385653403 | HE5: -53333.28092 | HF5: 4427.938493 | HG5: 0.4334795876
N6: • | O6: M0 60K | R6: ST | S6: 0.02 | T6: 0.1414213562 | U6: 626.8523841 | V6: 65.64382816 | X6: 221.3146403 | Y6: 0.07815756296 | Z6: 5.130561632 | AA6: 0.08436690907 | AB6: 5.538166881 | AC6: 0 | AD6: 0 | AE6: 211.9261592 | AF6: 9.492026585 | AG6: 14.00521331 | AH6: 14.00521331 | AI6: 14.00521331 | AJ6: 1141.95103 | AK6: 919.3558158 | AL6: 1141.950704 | AM6: 100 | AN6: 9.492026585 | AO6: 14.00521331 | AP6: 14.00521331 | AQ6: 14.00521331 | AS6: 132.7887842 | AT6: 0.07815756296 | AU6: 5.130561632 | AV6: 0.08436690907 | AW6: 5.538166881 | AX6: 0 | AY6: 0 | AZ6: 123.4003031 | BA6: 7.670216916 | BB6: 11.56654049 | BC6: 11.56654049 | BD6: 11.56654049 | BE6: 893.3412977 | BF6: 759.2719962 | BG6: 893.3410278 | BH6: 60 | BJ6: 66.39439209 | BK6: 0.07815756296 | BL6: 5.130561632 | BM6: 0.08436690907 | BN6: 5.538166881 | BO6: 0 | BP6: 0 | BQ6: 57.005911 | BR6: 5.468168416 | BS6: 8.349238413 | BT6: 8.349238413 | BU6: 8.349238413 | BV6: 548.0759716 | BW6: 30 | BY6: 221.3146403 | BZ6: 0.07815756296 | CA6: 5.130561632 | CB6: 0.08436690907 | CC6: 5.538166881 | CD6: 0 | CE6: 0 | CF6: 211.9261592 | CG6: 13.42375273 | CH6: 19.44726929 | CI6: 19.28474482 | CJ6: 19.28474482 | CK6: 19.28474482 | CL6: 100 | CN6: 221.3146403 | CO6: 0.07815756296 | CP6: 2.565280816 | CQ6: 0.08436690907 | CR6: 2.769083441 | CS6: 0 | CT6: 0 | CU6: 216.6203998 | CV6: 13.57160892 | CW6: 19.65070496 | CX6: 19.48818049 | CY6: 19.48818049 | CZ6: 19.48818049 | DA6: 100 | DC6: 221.3146403 | DD6: 0.07815756296 | DE6: 1.53916849 | DF6: 0.08436690907 | DG6: 1.661450064 | DH6: 0 | DI6: 0 | DJ6: 218.498096 | DK6: 17.59664462 | DL6: 25.03989856 | DM6: 24.87737408 | DN6: 24.87737408 | DO6: 24.87737408 | DP6: 100 | DR6: 221.3146403 | DS6: 0.07815756296 | DT6: 1.026112326 | DU6: 0.08436690907 | DV6: 1.107633376 | DW6: 0 | DX6: 0 | DY6: 219.4369441 | DZ6: 21.59765193 | EA6: 30.06014095 | EB6: 29.89761648 | EC6: 29.89761648 | ED6: 29.89761648 | EE6: 100 | EG6: 34.96083373 | EH6: 1.017479336 | EI6: 1.3268642 | EJ6: 37.75770043 | EK6: -52111.07344 | EL6: 184.4582576 | EM6: 29.2 | EN6: 41.32848164 | EO6: 41.16595717 | EP6: 41.16595717 | EQ6: 29.2 | ER6: 41.32848164 | ES6: 41.16595717 | ET6: 41.16595717 | EV6: 32.65986324 | EW6: 1.017479336 | EX6: 1.650003307 | EY6: 51.2141275 | EZ6: -52266.66667 | FA6: 163.1354502 | FB6: 29.2 | FC6: 38.4 | FD6: 38.23747553 | FE6: 38.23747553 | FF6: 29.2 | FG6: 38.4 | FH6: 38.23747553 | FI6: 38.23747553 | FK6: 32.65986324 | FL6: 1.017479336 | FM6: 1.650003307 | FN6: 51.2141275 | FO6: -69466.66667 | FP6: -221.2905791 | FQ6: 29.2 | FR6: 38.4 | FS6: 38.56252447 | FT6: 38.56252447 | FU6: 29.2 | FV6: 38.4 | FW6: 38.56252447 | FX6: 38.56252447 | FY6: 38.23747553 | GA6: =IF(Feldschwächung!U6<n_MAX_FS,Feldschwächung!U6,n_MAX_FS) -> 232.6245396 | GB6: =IF(Feldschwächung!U6<n_MAX_FS,Feldschwächung!CJ6,GB5) -> 39.92796636 | GC6: =GA104 -> 5319.018859 | GD6: =GB104 -> 31.26319661 | HB6: 0.584 | HC6: 0.002715450523 | HD6: 0.04771306805 | HE6: -53333.12367 | HF6: 4422.9968 | HG6: 0.8669294845
N7: • | O7: MNenn 60K | R7: ST | S7: 0.03 | T7: 0.1732050808 | U7: 767.7342425 | V7: 80.39694187 | X7: 221.3146403 | Y7: 0.07815756296 | Z7: 6.283629046 | AA7: 0.09527951021 | AB7: 7.660181244 | AC7: 0 | AD7: 0 | AE7: 209.0440873 | AF7: 9.427262635 | AG7: 13.89763445 | AH7: 13.89763445 | AI7: 13.89763445 | AJ7: 1340.315603 | AK7: 1117.327309 | AL7: 1340.315207 | AM7: 100 | AN7: 9.427262635 | AO7: 13.89763445 | AP7: 13.89763445 | AQ7: 13.89763445 | AS7: 132.7887842 | AT7: 0.07815756296 | AU7: 6.283629046 | AV7: 0.09527951021 | AW7: 7.660181244 | AX7: 0 | AY7: 0 | AZ7: 120.5182311 | BA7: 7.580116969 | BB7: 11.41784976 | BC7: 11.41784976 | BD7: 11.41784976 | BE7: 1052.422571 | BF7: 917.9602034 | BG7: 1052.422245 | BH7: 60 | BJ7: 66.39439209 | BK7: 0.07815756296 | BL7: 6.283629046 | BM7: 0.09527951021 | BN7: 7.660181244 | BO7: 0 | BP7: 0 | BQ7: 54.12383904 | BR7: 5.328147436 | BS7: 8.120368849 | BT7: 8.120368849 | BU7: 8.120368849 | BV7: 652.8528224 | BW7: 30 | BY7: 221.3146403 | BZ7: 0.07815756296 | CA7: 6.283629046 | CB7: 0.09527951021 | CC7: 7.660181244 | CD7: 0 | CE7: 0 | CF7: 209.0440873 | CG7: 13.33216267 | CH7: 19.32107454 | CI7: 19.14763746 | CJ7: 19.14763746 | CK7: 19.14763746 | CL7: 100 | CN7: 221.3146403 | CO7: 0.07815756296 | CP7: 3.141814523 | CQ7: 0.09527951021 | CR7: 3.830090622 | CS7: 0 | CT7: 0 | CU7: 215.1793638 | CV7: 13.52639201 | CW7: 19.58852829 | CX7: 19.41509122 | CY7: 19.41509122 | CZ7: 19.41509122 | DA7: 100 | DC7: 221.3146403 | DD7: 0.07815756296 | DE7: 1.885088714 | DF7: 0.09527951021 | DG7: 2.298054373 | DH7: 0 | DI7: 0 | DJ7: 217.6334744 | DK7: 17.56179416 | DL7: 24.99458349 | DM7: 24.82114641 | DN7: 24.82114641 | DO7: 24.82114641 | DP7: 100 | DR7: 221.3146403 | DS7: 0.07815756296 | DT7: 1.256725809 | DU7: 0.09527951021 | DV7: 1.532036249 | DW7: 0 | DX7: 0 | DY7: 218.8605297 | DZ7: 21.56926704 | EA7: 30.02588702 | EB7: 29.85244995 | EC7: 29.85244995 | ED7: 29.85244995 | EE7: 100 | EG7: 42.81810181 | EH7: 1.246152599 | EI7: 1.8444963 | EJ7: 46.24354996 | EK7: -51499.94349 | EL7: 155.0293964 | EM7: 29.2 | EN7: 41.32848164 | EO7: 41.15504457 | EP7: 41.15504457 | EQ7: 29.2 | ER7: 41.32848164 | ES7: 41.15504457 | ET7: 41.15504457 | EV7: 40 | EW7: 1.246152599 | EX7: 2.167635407 | EY7: 62.72424 | EZ7: -51733.33333 | FA7: 140.6947377 | FB7: 29.2 | FC7: 38.4 | FD7: 38.22656293 | FE7: 38.22656293 | FF7: 29.2 | FG7: 38.4 | FH7: 38.22656293 | FI7: 38.22656293 | FK7: 40 | FL7: 1.246152599 | FM7: 2.167635407 | FN7: 62.72424 | FO7: -68933.33333 | FP7: -193.3831378 | FQ7: 29.2 | FR7: 38.4 | FS7: 38.57343707 | FT7: 38.57343707 | FU7: 29.2 | FV7: 38.4 | FW7: 38.57343707 | FX7: 38.57343707 | FY7: 38.22656293 | GA7: =IF(Feldschwächung!U7<n_MAX_FS,Feldschwächung!U7,n_MAX_FS) -> 321.7573926 | GB7: =IF(Feldschwächung!U7<n_MAX_FS,Feldschwächung!CJ7,GB6) -> 39.91796612 | HB7: 0.876 | HC7: 0.002716573721 | HD7: 0.07156960208 | HE7: -53332.8616 | HF7: 4417.693218 | HG7: 1.30032
N8: ― | O8: =AS2 -> S1 60K Kennlinie aus Datenblatt | R8: ST | S8: 0.04 | T8: 0.2 | U8: 886.5031431 | V8: 92.83439206 | X8: 221.3146403 | Y8: 0.07815756296 | Z8: 7.255709842 | AA8: 0.1038678488 | AB8: 9.642508596 | AC8: 0 | AD8: 0 | AE8: 206.4442081 | AF8: 9.368455833 | AG8: 13.80127146 | AH8: 13.80127146 | AI8: 13.80127146 | AJ8: 1504.575527 | AK8: 1281.232646 | AL8: 1504.575072 | AM8: 100 | AN8: 9.368455833 | AO8: 13.80127146 | AP8: 13.80127146 | AQ8: 13.80127146 | AS8: 132.7887842 | AT8: 0.07815756296 | AU8: 7.255709842 | AV8: 0.1038678488 | AW8: 9.642508596 | AX8: 0 | AY8: 0 | AZ8: 117.918352 | BA8: 7.497910175 | BB8: 11.28355326 | BC8: 11.28355326 | BD8: 11.28355326 | BE8: 1182.318751 | BF8: 1047.501808 | BG8: 1182.318378 | BH8: 60 | BJ8: 66.39439209 | BK8: 0.07815756296 | BL8: 7.255709842 | BM8: 0.1038678488 | BN8: 9.642508596 | BO8: 0 | BP8: 0 | BQ8: 51.52395987 | BR8: 5.198601808 | BS8: 7.910129504 | BT8: 7.910129504 | BU8: 7.910129504 | BV8: 734.3320636 | BW8: 30 | BY8: 221.3146403 | BZ8: 0.07815756296 | CA8: 7.255709842 | CB8: 0.1038678488 | CC8: 9.642508596 | CD8: 0 | CE8: 0 | CF8: 206.4442081 | CG8: 13.2489973 | CH8: 19.20637193 | CI8: 19.02434652 | CJ8: 19.02434652 | CK8: 19.02434652 | CL8: 100 | CN8: 221.3146403 | CO8: 0.07815756296 | CP8: 3.627854921 | CQ8: 0.1038678488 | CR8: 4.821254298 | CS8: 0 | CT8: 0 | CU8: 213.8794242 | CV8: 13.48547236 | CW8: 19.53223224 | CX8: 19.35020683 | CY8: 19.35020683 | CZ8: 19.35020683 | DA8: 100 | DC8: 221.3146403 | DD8: 0.07815756296 | DE8: 2.176712953 | DF8: 0.1038678488 | DG8: 2.892752579 | DH8: 0 | DI8: 0 | DJ8: 216.8535106 | DK8: 17.53029658 | DL8: 24.95360619 | DM8: 24.77158077 | DN8: 24.77158077 | DO8: 24.77158077 | DP8: 100 | DR8: 221.3146403 | DS8: 0.07815756296 | DT8: 1.451141968 | DU8: 0.1038678488 | DV8: 1.928501719 | DW8: 0 | DX8: 0 | DY8: 218.3405539 | DZ8: 21.54362933 | EA8: 29.99493047 | EB8: 29.81290506 | EC8: 29.81290506 | ED8: 29.81290506 | EE8: 100 | EG8: 49.44208522 | EH8: 1.438933077 | EI8: 2.3621284 | EJ8: 53.39745203 | EK8: -50888.81354 | EL8: 135.9092016 | EM8: 29.2 | EN8: 41.32848164 | EO8: 41.14645623 | EP8: 41.14645623 | EQ8: 29.2 | ER8: 41.32848164 | ES8: 41.14645623 | ET8: 41.14645623 | EV8: 46.18802154 | EW8: 1.438933077 | EX8: 2.685267507 | EY8: 72.4277137 | EZ8: -51200 | FA8: 125.2541968 | FB8: 29.2 | FC8: 38.4 | FD8: 38.21797459 | FE8: 38.21797459 | FF8: 29.2 | FG8: 38.4 | FH8: 38.21797459 | FI8: 38.21797459 | FK8: 46.18802154 | FL8: 1.438933077 | FM8: 2.685267507 | FN8: 72.4277137 | FO8: -68400 | FP8: -173.6554059 | FQ8: 29.2 | FR8: 38.4 | FS8: 38.58202541 | FT8: 38.58202541 | FU8: 29.2 | FV8: 38.4 | FW8: 38.58202541 | FX8: 38.58202541 | FY8: 38.21797459 | GA8: =IF(Feldschwächung!U8<n_MAX_FS,Feldschwächung!U8,n_MAX_FS) -> 405.022848 | GB8: =IF(Feldschwächung!U8<n_MAX_FS,Feldschwächung!CJ8,GB7) -> 39.90959302 | HB8: 1.168 | HC8: 0.002718146198 | HD8: 0.09542613611 | HE8: -53332.49469 | HF8: 4412.030586 | HG8: 1.733621443
N9: • | O9: M0 100K | R9: ST | S9: 0.05 | T9: 0.2236067977 | U9: 991.1406452 | V9: 103.7920057 | X9: 221.3146403 | Y9: 0.07815756296 | Z9: 8.112130216 | AA9: 0.1110590977 | AB9: 11.5270465 | AC9: 0 | AD9: 0 | AE9: 204.0321648 | AF9: 9.313565666 | AG9: 13.7121515 | AH9: 13.7121515 | AI9: 13.7121515 | AJ9: 1646.883554 | AK9: 1423.211706 | AL9: 1646.883048 | AM9: 100 | AN9: 9.313565666 | AO9: 13.7121515 | AP9: 13.7121515 | AQ9: 13.7121515 | AS9: 132.7887842 | AT9: 0.07815756296 | AU9: 8.112130216 | AV9: 0.1110590977 | AW9: 11.5270465 | AX9: 0 | AY9: 0 | AZ9: 115.5063087 | BA9: 7.420828338 | BB9: 11.15849079 | BC9: 11.15849079 | BD9: 11.15849079 | BE9: 1293.308037 | BF9: 1158.162139 | BG9: 1293.307624 | BH9: 60 | BJ9: 66.39439209 | BK9: 0.07815756296 | BL9: 8.112130216 | BM9: 0.1110590977 | BN9: 11.5270465 | BO9: 0 | BP9: 0 | BQ9: 49.11191658 | BR9: 5.075459636 | BS9: 7.71125488 | BT9: 7.71125488 | BU9: 7.71125488 | BV9: 800.3666101 | BW9: 30 | BY9: 221.3146403 | BZ9: 0.07815756296 | CA9: 8.112130216 | CB9: 0.1110590977 | CC9: 11.5270465 | CD9: 0 | CE9: 0 | CF9: 204.0321648 | CG9: 13.17137088 | CH9: 19.09921009 | CI9: 18.90999343 | CJ9: 18.90999343 | CK9: 18.90999343 | CL9: 100 | CN9: 221.3146403 | CO9: 0.07815756296 | CP9: 4.056065108 | CQ9: 0.1110590977 | CR9: 5.76352325 | CS9: 0 | CT9: 0 | CU9: 212.6734026 | CV9: 13.44739772 | CW9: 19.47982609 | CX9: 19.29060943 | CY9: 19.29060943 | CZ9: 19.29060943 | DA9: 100 | DC9: 221.3146403 | DD9: 0.07815756296 | DE9: 2.433639065 | DF9: 0.1110590977 | DG9: 3.45811395 | DH9: 0 | DI9: 0 | DJ9: 216.1298977 | DK9: 17.50102393 | DL9: 24.91550487 | DM9: 24.7262882 | DN9: 24.7262882 | DO9: 24.7262882 | DP9: 100 | DR9: 221.3146403 | DS9: 0.07815756296 | DT9: 1.622426043 | DU9: 0.1110590977 | DV9: 2.3054093 | DW9: 0 | DX9: 0 | DY9: 217.8581452 | DZ9: 21.51981657 | EA9: 29.96616236 | EB9: 29.7769457 | EC9: 29.7769457 | ED9: 29.7769457 | EE9: 100 | EG9: 55.27793175 | EH9: 1.608776088 | EI9: 2.8797605 | EJ9: 59.70016629 | EK9: -50277.6836 | EL9: 122.1729126 | EM9: 29.2 | EN9: 41.32848164 | EO9: 41.13926498 | EP9: 41.13926498 | EQ9: 29.2 | ER9: 41.32848164 | ES9: 41.13926498 | ET9: 41.13926498 | EV9: 51.63977795 | EW9: 1.608776088 | EX9: 3.202899607 | EY9: 80.97664564 | EZ9: -50666.66667 | FA9: 113.7661235 | FB9: 29.2 | FC9: 38.4 | FD9: 38.21078334 | FE9: 38.21078334 | FF9: 29.2 | FG9: 38.4 | FH9: 38.21078334 | FI9: 38.21078334 | FK9: 51.63977795 | FL9: 1.608776088 | FM9: 3.202899607 | FN9: 80.97664564 | FO9: -67866.66667 | FP9: -158.7538832 | FQ9: 29.2 | FR9: 38.4 | FS9: 38.58921666 | FT9: 38.58921666 | FU9: 29.2 | FV9: 38.4 | FW9: 38.58921666 | FX9: 38.58921666 | FY9: 38.21078334 | GA9: =IF(Feldschwächung!U9<n_MAX_FS,Feldschwächung!U9,n_MAX_FS) -> 484.1807665 | GB9: =IF(Feldschwächung!U9<n_MAX_FS,Feldschwächung!CJ9,GB8) -> 39.90225302 | HB9: 1.46 | HC9: 0.002720167955 | HD9: 0.1192826701 | HE9: -53332.02296 | HF9: 4406.012002 | HG9: 2.166804124
N10: • | O10: MNenn 100K | R10: ST | S10: 0.06 | T10: 0.2449489743 | U10: 1085.740178 | V10: 113.6984456 | X10: 221.3146403 | Y10: 0.07815756296 | Z10: 8.886393418 | AA10: 0.1173028367 | AB10: 13.33715019 | AC10: 0 | AD10: 0 | AE10: 201.7579219 | AF10: 9.261513418 | AG10: 13.62821491 | AH10: 13.62821491 | AI10: 13.62821491 | AJ10: 1773.488868 | AK10: 1549.506851 | AL10: 1773.488317 | AM10: 100 | AN10: 9.261513418 | AO10: 13.62821491 | AP10: 13.62821491 | AQ10: 13.62821491 | AS10: 132.7887842 | AT10: 0.07815756296 | AU10: 8.886393418 | AV10: 0.1173028367 | AW10: 13.33715019 | AX10: 0 | AY10: 0 | AZ10: 113.2320658 | BA10: 7.347409547 | BB10: 11.03997724 | BC10: 11.03997724 | BD10: 11.03997724 | BE10: 1390.684309 | BF10: 1255.228252 | BG10: 1390.683861 | BH10: 60 | BJ10: 66.39439209 | BK10: 0.07815756296 | BL10: 8.886393418 | BM10: 0.1173028367 | BN10: 13.33715019 | BO10: 0 | BP10: 0 | BQ10: 46.83767371 | BR10: 4.956551184 | BS10: 7.519917986 | BT10: 7.519917986 | BU10: 7.519917986 | BV10: 855.0029858 | BW10: 30 | BY10: 221.3146403 | BZ10: 0.07815756296 | CA10: 8.886393418 | CB10: 0.1173028367 | CC10: 13.33715019 | CD10: 0 | CE10: 0 | CF10: 201.7579219 | CG10: 13.09775788 | CH10: 18.99750127 | CI10: 18.80204087 | CJ10: 18.80204087 | CK10: 18.80204087 | CL10: 100 | CN10: 221.3146403 | CO10: 0.07815756296 | CP10: 4.443196709 | CQ10: 0.1173028367 | CR10: 6.668575097 | CS10: 0 | CT10: 0 | CU10: 211.5362811 | CV10: 13.41139929 | CW10: 19.43025626 | CX10: 19.23479586 | CY10: 19.23479586 | CZ10: 19.23479586 | DA10: 100 | DC10: 221.3146403 | DD10: 0.07815756296 | DE10: 2.665918025 | DF10: 0.1173028367 | DG10: 4.001145058 | DH10: 0 | DI10: 0 | DJ10: 215.4476248 | DK10: 17.47337873 | DL10: 24.8795054 | DM10: 24.684045 | DN10: 24.684045 | DO10: 24.684045 | DP10: 100 | DR10: 221.3146403 | DS10: 0.07815756296 | DT10: 1.777278684 | DU10: 0.1173028367 | DV10: 2.667430039 | DW10: 0 | DX10: 0 | DY10: 217.4032966 | DZ10: 21.49734009 | EA10: 29.93899523 | EB10: 29.74353484 | EC10: 29.74353484 | ED10: 29.74353484 | EE10: 100 | EG10: 60.5539403 | EH10: 1.762325906 | EI10: 3.3973926 | EJ10: 65.39825552 | EK10: -49666.55365 | EL10: 111.6668489 | EM10: 29.2 | EN10: 41.32848164 | EO10: 41.13302124 | EP10: 41.13302124 | EQ10: 29.2 | ER10: 41.32848164 | ES10: 41.13302124 | ET10: 41.13302124 | EV10: 56.56854249 | EW10: 1.762325906 | EX10: 3.720531707 | EY10: 88.7054709 | EZ10: -50133.33333 | FA10: 104.77035 | FB10: 29.2 | FC10: 38.4 | FD10: 38.2045396 | FE10: 38.2045396 | FF10: 29.2 | FG10: 38.4 | FH10: 38.2045396 | FI10: 38.2045396 | FK10: 56.56854249 | FL10: 1.762325906 | FM10: 3.720531707 | FN10: 88.7054709 | FO10: -67333.33333 | FP10: -146.976188 | FQ10: 29.2 | FR10: 38.4 | FS10: 38.5954604 | FT10: 38.5954604 | FU10: 29.2 | FV10: 38.4 | FW10: 38.5954604 | FX10: 38.5954604 | FY10: 38.2045396 | GA10: =IF(Feldschwächung!U10<n_MAX_FS,Feldschwächung!U10,n_MAX_FS) -> 560.2121588 | GB10: =IF(Feldschwächung!U10<n_MAX_FS,Feldschwächung!CJ10,GB9) -> 39.89564276 | HB10: 1.752 | HC10: 0.00272263899 | HD10: 0.1431392042 | HE10: -53331.44639 | HF10: 4399.64081 | HG10: 2.599838351
N11: ― | O11: =X2 -> S1 100K Kennlinie aus Datenblatt | R11: ST | S11: 0.07 | T11: 0.2645751311 | U11: 1172.733427 | V11: 122.8083573 | X11: 221.3146403 | Y11: 0.07815756296 | Z11: 9.598401914 | AA11: 0.1228549195 | AB11: 15.08761084 | AC11: 0 | AD11: 0 | AE11: 199.5909491 | AF11: 9.211642691 | AG11: 13.54822611 | AH11: 13.54822611 | AI11: 13.54822611 | AJ11: 1888.112945 | AK11: 1663.835392 | AL11: 1888.112354 | AM11: 100 | AN11: 9.211642691 | AO11: 13.54822611 | AP11: 13.54822611 | AQ11: 13.54822611 | AS11: 132.7887842 | AT11: 0.07815756296 | AU11: 9.598401914 | AV11: 0.1228549195 | AW11: 15.08761084 | AX11: 0 | AY11: 0 | AZ11: 111.065093 | BA11: 7.276764586 | BB11: 10.92639701 | BC11: 10.92639701 | BD11: 10.92639701 | BE11: 1477.604453 | BF11: 1341.852868 | BG11: 1477.603974 | BH11: 60 | BJ11: 66.39439209 | BK11: 0.07815756296 | BL11: 9.598401914 | BM11: 0.1228549195 | BN11: 15.08761084 | BO11: 0 | BP11: 0 | BQ11: 44.67070087 | BR11: 4.840534503 | BS11: 7.333774085 | BT11: 7.333774085 | BU11: 7.333774085 | BV11: 900.6487479 | BW11: 30 | BY11: 221.3146403 | BZ11: 0.07815756296 | CA11: 9.598401914 | CB11: 0.1228549195 | CC11: 15.08761084 | CD11: 0 | CE11: 0 | CF11: 199.5909491 | CG11: 13.02723003 | CH11: 18.89997568 | CI11: 18.6989632 | CJ11: 18.6989632 | CK11: 18.6989632 | CL11: 100 | CN11: 221.3146403 | CO11: 0.07815756296 | CP11: 4.799200957 | CQ11: 0.1228549195 | CR11: 7.54380542 | CS11: 0 | CT11: 0 | CU11: 210.4527947 | CV11: 13.37700867 | CW11: 19.38288104 | CX11: 19.18186856 | CY11: 19.18186856 | CZ11: 19.18186856 | DA11: 100 | DC11: 221.3146403 | DD11: 0.07815756296 | DE11: 2.879520574 | DF11: 0.1228549195 | DG11: 4.526283252 | DH11: 0 | DI11: 0 | DJ11: 214.7975329 | DK11: 17.44699672 | DL11: 24.845136 | DM11: 24.64412352 | DN11: 24.64412352 | DO11: 24.64412352 | DP11: 100 | DR11: 221.3146403 | DS11: 0.07815756296 | DT11: 1.919680383 | DU11: 0.1228549195 | DV11: 3.017522168 | DW11: 0 | DX11: 0 | DY11: 216.9699021 | DZ11: 21.47590187 | EA11: 29.91307099 | EB11: 29.71205851 | EC11: 29.71205851 | ED11: 29.71205851 | EE11: 100 | EG11: 65.40573089 | EH11: 1.903529537 | EI11: 3.9150247 | EJ11: 70.63818936 | EK11: -49055.4237 | EL11: 103.2791913 | EM11: 29.2 | EN11: 41.32848164 | EO11: 41.12746916 | EP11: 41.12746916 | EQ11: 29.2 | ER11: 41.32848164 | ES11: 41.12746916 | ET11: 41.12746916 | EV11: 61.10100927 | EW11: 1.903529537 | EX11: 4.238163807 | EY11: 95.81285924 | EZ11: -49600 | FA11: 97.46660013 | FB11: 29.2 | FC11: 38.4 | FD11: 38.19898752 | FE11: 38.19898752 | FF11: 29.2 | FG11: 38.4 | FH11: 38.19898752 | FI11: 38.19898752 | FK11: 61.10100927 | FL11: 1.903529537 | FM11: 4.238163807 | FN11: 95.81285924 | FO11: -66800 | FP11: -137.3564025 | FQ11: 29.2 | FR11: 38.4 | FS11: 38.60101248 | FT11: 38.60101248 | FU11: 29.2 | FV11: 38.4 | FW11: 38.60101248 | FX11: 38.60101248 | FY11: 38.19898752 | GA11: =IF(Feldschwächung!U11<n_MAX_FS,Feldschwächung!U11,n_MAX_FS) -> 633.7383111 | GB11: =IF(Feldschwächung!U11<n_MAX_FS,Feldschwächung!CJ11,GB10) -> 39.88958214 | HB11: 2.044 | HC11: 0.002725559305 | HD11: 0.1669957382 | HE11: -53330.76499 | HF11: 4392.920603 | HG11: 3.032694433
N12: – • – | O12: =BY2 -> S3 100K Kennlinie M=50%ED n=100%ED | R12: ST | S12: 0.08 | T12: 0.2828427125 | U12: 1253.704768 | V12: 131.2876563 | X12: 221.3146403 | Y12: 0.07815756296 | Z12: 10.26112326 | AA12: 0.1278763217 | AB12: 16.78858258 | AC12: 0 | AD12: 0 | AE12: 197.5108992 | AF12: 9.163517113 | AG12: 13.47137278 | AH12: 13.47137278 | AI12: 13.47137278 | AJ12: 1993.186193 | AK12: 1768.624959 | AL12: 1993.185564 | AM12: 100 | AN12: 9.163517113 | AO12: 13.47137278 | AP12: 13.47137278 | AQ12: 13.47137278 | AS12: 132.7887842 | AT12: 0.07815756296 | AU12: 10.26112326 | AV12: 0.1278763217 | AW12: 16.78858258 | AX12: 0 | AY12: 0 | AZ12: 108.985043 | BA12: 7.208302154 | BB12: 10.81668492 | BC12: 10.81668492 | BD12: 10.81668492 | BE12: 1556.132468 | BF12: 1420.097212 | BG12: 1556.131961 | BH12: 60 | BJ12: 66.39439209 | BK12: 0.07815756296 | BL12: 10.26112326 | BM12: 0.1278763217 | BN12: 16.78858258 | BO12: 0 | BP12: 0 | BQ12: 42.59065095 | BR12: 4.726493618 | BS12: 7.151236392 | BT12: 7.151236392 | BU12: 7.151236392 | BV12: 938.8690656 | BW12: 30 | BY12: 221.3146403 | BZ12: 0.07815756296 | CA12: 10.26112326 | CB12: 0.1278763217 | CC12: 16.78858258 | CD12: 0 | CE12: 0 | CF12: 197.5108992 | CG12: 12.95917018 | CH12: 18.80578959 | CI12: 18.5997557 | CJ12: 18.5997557 | CK12: 18.5997557 | CL12: 100 | CN12: 221.3146403 | CO12: 0.07815756296 | CP12: 5.130561632 | CQ12: 0.1278763217 | CR12: 8.39429129 | CS12: 0 | CT12: 0 | CU12: 209.4127697 | CV12: 13.34391419 | CW12: 19.33727351 | CX12: 19.13123962 | CY12: 19.13123962 | CZ12: 19.13123962 | DA12: 100 | DC12: 221.3146403 | DD12: 0.07815756296 | DE12: 3.078336979 | DF12: 0.1278763217 | DG12: 5.036574774 | DH12: 0 | DI12: 0 | DJ12: 214.173518 | DK12: 17.42163538 | DL12: 24.81208265 | DM12: 24.60604877 | DN12: 24.60604877 | DO12: 24.60604877 | DP12: 100 | DR12: 221.3146403 | DS12: 0.07815756296 | DT12: 2.052224653 | DU12: 0.1278763217 | DV12: 3.357716516 | DW12: 0 | DX12: 0 | DY12: 216.5538921 | DZ12: 21.45530344 | EA12: 29.88815118 | EB12: 29.6821173 | EC12: 29.6821173 | ED12: 29.6821173 | EE12: 100 | EG12: 69.92166747 | EH12: 2.034958673 | EI12: 4.4326568 | EJ12: 75.51540086 | EK12: -48444.29375 | EL12: 96.37000724 | EM12: 29.2 | EN12: 41.32848164 | EO12: 41.12244776 | EP12: 41.12244776 | EQ12: 29.2 | ER12: 41.32848164 | ES12: 41.12244776 | ET12: 41.12244776 | EV12: 65.31972647 | EW12: 2.034958673 | EX12: 4.755795907 | EY12: 102.428255 | EZ12: -49066.66667 | FA12: 91.37426623 | FB12: 29.2 | FC12: 38.4 | FD12: 38.19396612 | FE12: 38.19396612 | FF12: 29.2 | FG12: 38.4 | FH12: 38.19396612 | FI12: 38.19396612 | FK12: 65.31972647 | FL12: 2.034958673 | FM12: 4.755795907 | FN12: 102.428255 | FO12: -66266.66667 | FP12: -129.3008105 | FQ12: 29.2 | FR12: 38.4 | FS12: 38.60603388 | FT12: 38.60603388 | FU12: 29.2 | FV12: 38.4 | FW12: 38.60603388 | FX12: 38.60603388 | FY12: 38.19396612 | GA12: =IF(Feldschwächung!U12<n_MAX_FS,Feldschwächung!U12,n_MAX_FS) -> 705.185737 | GB12: =IF(Feldschwächung!U12<n_MAX_FS,Feldschwächung!CJ12,GB11) -> 39.88395334 | HB12: 2.336 | HC12: 0.0027289289 | HD12: 0.1908522722 | HE12: -53329.97877 | HF12: 4385.855208 | HG12: 3.46534268
N13: – – | O13: =CN2 -> S3 100K Kennlinie M=50%ED n=50%ED | R13: ST | S13: 0.09 | T13: 0.3 | U13: 1329.754715 | V13: 139.2515881 | X13: 221.3146403 | Y13: 0.07815756296 | Z13: 10.88356476 | AA13: 0.1324755992 | AB13: 18.44743757 | AC13: 0 | AD13: 0 | AE13: 195.5033583 | AF13: 9.116828247 | AG13: 13.397086 | AH13: 13.397086 | AI13: 13.397086 | AJ13: 2090.400526 | AK13: 1865.565501 | AL13: 2090.399861 | AM13: 100 | AN13: 9.116828247 | AO13: 13.397086 | AP13: 13.397086 | AQ13: 13.397086 | AS13: 132.7887842 | AT13: 0.07815756296 | AU13: 10.88356476 | AV13: 0.1324755992 | AW13: 18.44743757 | AX13: 0 | AY13: 0 | AZ13: 106.9775021 | BA13: 7.141603909 | BB13: 10.71009269 | BC13: 10.71009269 | BD13: 10.71009269 | BE13: 1627.706453 | BF13: 1491.397416 | BG13: 1627.70592 | BH13: 60 | BJ13: 66.39439209 | BK13: 0.07815756296 | BL13: 10.88356476 | BM13: 0.1324755992 | BN13: 18.44743757 | BO13: 0 | BP13: 0 | BQ13: 40.58311004 | BR13: 4.613755753 | BS13: 6.971149107 | BT13: 6.971149107 | BU13: 6.971149107 | BV13: 970.7435841 | BW13: 30 | BY13: 221.3146403 | BZ13: 0.07815756296 | CA13: 10.88356476 | CB13: 0.1324755992 | CC13: 18.44743757 | CD13: 0 | CE13: 0 | CF13: 195.5033583 | CG13: 12.89314215 | CH13: 18.71434684 | CI13: 18.50371368 | CJ13: 18.50371368 | CK13: 18.50371368 | CL13: 100 | CN13: 221.3146403 | CO13: 0.07815756296 | CP13: 5.441782382 | CQ13: 0.1324755992 | CR13: 9.223718783 | CS13: 0 | CT13: 0 | CU13: 208.4089993 | CV13: 13.31189533 | CW13: 19.2931317 | CX13: 19.08249854 | CY13: 19.08249854 | CZ13: 19.08249854 | DA13: 100 | DC13: 221.3146403 | DD13: 0.07815756296 | DE13: 3.265069429 | DF13: 0.1324755992 | DG13: 5.53423127 | DH13: 0 | DI13: 0 | DJ13: 213.5712557 | DK13: 17.39712306 | DL13: 24.78012312 | DM13: 24.56948996 | DN13: 24.56948996 | DO13: 24.56948996 | DP13: 100 | DR13: 221.3146403 | DS13: 0.07815756296 | DT13: 2.176712953 | DU13: 0.1324755992 | DV13: 3.689487513 | DW13: 0 | DX13: 0 | DY13: 216.1523839 | DZ13: 21.43540429 | EA13: 29.86406704 | EB13: 29.65343388 | EC13: 29.65343388 | ED13: 29.65343388 | EE13: 100 | EG13: 74.16312783 | EH13: 2.158399615 | EI13: 4.9502889 | EJ13: 80.09617805 | EK13: -47833.1638 | EL13: 90.54133555 | EM13: 29.2 | EN13: 41.32848164 | EO13: 41.11784848 | EP13: 41.11784848 | EQ13: 29.2 | ER13: 41.32848164 | ES13: 41.11784848 | ET13: 41.11784848 | EV13: 69.2820323 | EW13: 2.158399615 | EX13: 5.273428007 | EY13: 108.6415705 | EZ13: -48533.33333 | FA13: 86.18480845 | FB13: 29.2 | FC13: 38.4 | FD13: 38.18936684 | FE13: 38.18936684 | FF13: 29.2 | FG13: 38.4 | FH13: 38.18936684 | FI13: 38.18936684 | FK13: 69.2820323 | FL13: 2.158399615 | FM13: 5.273428007 | FN13: 108.6415705 | FO13: -65733.33333 | FP13: -122.4218442 | FQ13: 29.2 | FR13: 38.4 | FS13: 38.61063316 | FT13: 38.61063316 | FU13: 29.2 | FV13: 38.4 | FW13: 38.61063316 | FX13: 38.61063316 | FY13: 38.18936684 | GA13: =IF(Feldschwächung!U13<n_MAX_FS,Feldschwächung!U13,n_MAX_FS) -> 774.8640955 | GB13: =IF(Feldschwächung!U13<n_MAX_FS,Feldschwächung!CJ13,GB12) -> 39.87867363 | HB13: 2.628 | HC13: 0.002732747773 | HD13: 0.2147088062 | HE13: -53329.08771 | HF13: 4378.448685 | HG13: 3.897753402
N14: – – | O14: =DC2 -> S3 100K Kennlinie M=30%ED n=30%ED | R14: ST | S14: 0.1 | T14: 0.316227766 | U14: 1401.684543 | V14: 146.7840621 | X14: 221.3146403 | Y14: 0.07815756296 | Z14: 11.47228457 | AA14: 0.1367297877 | AB14: 20.06975365 | AC14: 0 | AD14: 0 | AE14: 193.5576467 | AF14: 9.071348019 | AG14: 13.32494831 | AH14: 13.32494831 | AI14: 13.32494831 | AJ14: 2180.990421 | AK14: 1955.89004 | AL14: 2180.989725 | AM14: 100 | AN14: 9.071348019 | AO14: 13.32494831 | AP14: 13.32494831 | AQ14: 13.32494831 | AS14: 132.7887842 | AT14: 0.07815756296 | AU14: 11.47228457 | AV14: 0.1367297877 | AW14: 20.06975365 | AX14: 0 | AY14: 0 | AZ14: 105.0317906 | BA14: 7.076359977 | BB14: 10.60606944 | BC14: 10.60606944 | BD14: 10.60606944 | BE14: 1693.376341 | BF14: 1556.801956 | BG14: 1693.375784 | BH14: 60 | BJ14: 66.39439209 | BK14: 0.07815756296 | BL14: 11.47228457 | BM14: 0.1367297877 | BN14: 20.06975365 | BO14: 0 | BP14: 0 | BQ14: 38.63739846 | BR14: 4.501796667 | BS14: 6.792619161 | BT14: 6.792619161 | BU14: 6.792619161 | BV14: 997.0482325 | BW14: 30 | BY14: 221.3146403 | BZ14: 0.07815756296 | CA14: 11.47228457 | CB14: 0.1367297877 | CC14: 20.06975365 | CD14: 0 | CE14: 0 | CF14: 193.5576467 | CG14: 12.8288234 | CH14: 18.62520683 | CI14: 18.41031948 | CJ14: 18.41031948 | CK14: 18.41031948 | CL14: 100 | CN14: 221.3146403 | CO14: 0.07815756296 | CP14: 5.736142286 | CQ14: 0.1367297877 | CR14: 10.03487682 | CS14: 0 | CT14: 0 | CU14: 207.4361435 | CV14: 13.28078894 | CW14: 19.25023225 | CX14: 19.0353449 | CY14: 19.0353449 | CZ14: 19.0353449 | DA14: 100 | DC14: 221.3146403 | DD14: 0.07815756296 | DE14: 3.441685371 | DF14: 0.1367297877 | DG14: 6.020926094 | DH14: 0 | DI14: 0 | DJ14: 212.9875422 | DK14: 17.37333267 | DL14: 24.74909294 | DM14: 24.53420559 | DN14: 24.53420559 | DO14: 24.53420559 | DP14: 100 | DR14: 221.3146403 | DS14: 0.07815756296 | DT14: 2.294456914 | DU14: 0.1367297877 | DV14: 4.013950729 | DW14: 0 | DX14: 0 | DY14: 215.7632416 | DZ14: 21.41610037 | EA14: 29.84069363 | EB14: 29.62580628 | EC14: 29.62580628 | ED14: 29.62580628 | EE14: 100 | EG14: 78.17480078 | EH14: 2.275152962 | EI14: 5.467921 | EJ14: 84.42878484 | EK14: -47222.03386 | EL14: 85.5308973 | EM14: 29.2 | EN14: 41.32848164 | EO14: 41.11359429 | EP14: 41.11359429 | EQ14: 29.2 | ER14: 41.32848164 | ES14: 41.11359429 | ET14: 41.11359429 | EV14: 73.02967433 | EW14: 2.275152962 | EX14: 5.791060107 | EY14: 114.5182705 | EZ14: -48000 | FA14: 81.68978815 | FB14: 29.2 | FC14: 38.4 | FD14: 38.18511265 | FE14: 38.18511265 | FF14: 29.2 | FG14: 38.4 | FH14: 38.18511265 | FI14: 38.18511265 | FK14: 73.02967433 | FL14: 2.275152962 | FM14: 5.791060107 | FN14: 114.5182705 | FO14: -65200 | FP14: -116.4543658 | FQ14: 29.2 | FR14: 38.4 | FS14: 38.61488735 | FT14: 38.61488735 | FU14: 29.2 | FV14: 38.4 | FW14: 38.61488735 | FX14: 38.61488735 | FY14: 38.18511265 | GA14: =IF(Feldschwächung!U14<n_MAX_FS,Feldschwächung!U14,n_MAX_FS) -> 843.007678 | GB14: =IF(Feldschwächung!U14<n_MAX_FS,Feldschwächung!CJ14,GB13) -> 39.87368147 | HB14: 2.92 | HC14: 0.002737015925 | HD14: 0.2385653403 | HE14: -53328.09182 | HF14: 4370.705316 | HG14: 4.329896907
N15: – – | O15: =DR2 -> S3 100K Kennlinie M=20%ED n=20%ED | R15: ST | S15: 0.11 | T15: 0.331662479 | U15: 1470.099151 | V15: 153.9484231 | X15: 221.3146403 | Y15: 0.07815756296 | Z15: 12.03223357 | AA15: 0.1406957391 | AB15: 21.65988716 | AC15: 0 | AD15: 0 | AE15: 191.6655741 | AF15: 9.026901828 | AG15: 13.25464226 | AH15: 13.25464226 | AI15: 13.25464226 | AJ15: 2265.889696 | AK15: 2040.531274 | AL15: 2265.888969 | AM15: 100 | AN15: 9.026901828 | AO15: 13.25464226 | AP15: 13.25464226 | AQ15: 13.25464226 | AS15: 132.7887842 | AT15: 0.07815756296 | AU15: 12.03223357 | AV15: 0.1406957391 | AW15: 21.65988716 | AX15: 0 | AY15: 0 | AZ15: 103.1397179 | BA15: 7.012332532 | BB15: 10.50419465 | BC15: 10.50419465 | BD15: 10.50419465 | BE15: 1753.936619 | BF15: 1617.104202 | BG15: 1753.936041 | BH15: 60 | BJ15: 66.39439209 | BK15: 0.07815756296 | BL15: 12.03223357 | BM15: 0.1406957391 | BN15: 21.65988716 | BO15: 0 | BP15: 0 | BQ15: 36.74532585 | BR15: 4.390186687 | BS15: 6.614920871 | BT15: 6.614920871 | BU15: 6.614920871 | BV15: 1018.356637 | BW15: 30 | BY15: 221.3146403 | BZ15: 0.07815756296 | CA15: 12.03223357 | CB15: 0.1406957391 | CC15: 21.65988716 | CD15: 0 | CE15: 0 | CF15: 191.6655741 | CG15: 12.76596699 | CH15: 18.53803236 | CI15: 18.31917905 | CJ15: 18.31917905 | CK15: 18.31917905 | CL15: 100 | CN15: 221.3146403 | CO15: 0.07815756296 | CP15: 6.016116784 | CQ15: 0.1406957391 | CR15: 10.82994358 | CS15: 0 | CT15: 0 | CU15: 206.4901072 | CV15: 13.25047005 | CW15: 19.20840412 | CX15: 18.98955082 | CY15: 18.98955082 | CZ15: 18.98955082 | DA15: 100 | DC15: 221.3146403 | DD15: 0.07815756296 | DE15: 3.60967007 | DF15: 0.1406957391 | DG15: 6.497966148 | DH15: 0 | DI15: 0 | DJ15: 212.4199204 | DK15: 17.35016686 | DL15: 24.71886612 | DM15: 24.50001282 | DN15: 24.50001282 | DO15: 24.50001282 | DP15: 100 | DR15: 221.3146403 | DS15: 0.07815756296 | DT15: 2.406446713 | DU15: 0.1406957391 | DV15: 4.331977432 | DW15: 0 | DX15: 0 | DY15: 215.3848271 | DZ15: 21.3973119 | EA15: 29.81793521 | EB15: 29.59908191 | EC15: 29.59908191 | ED15: 29.59908191 | EE15: 100 | EG15: 81.99042276 | EH15: 2.386200557 | EI15: 5.9855531 | EJ15: 88.54965658 | EK15: -46610.90391 | EL15: 81.15783148 | EM15: 29.2 | EN15: 41.32848164 | EO15: 41.10962834 | EP15: 41.10962834 | EQ15: 29.2 | ER15: 41.32848164 | ES15: 41.10962834 | ET15: 41.10962834 | EV15: 76.59416862 | EW15: 2.386200557 | EX15: 6.308692207 | EY15: 120.1077754 | EZ15: -47466.66667 | FA15: 77.74259665 | FB15: 29.2 | FC15: 38.4 | FD15: 38.1811467 | FE15: 38.1811467 | FF15: 29.2 | FG15: 38.4 | FH15: 38.1811467 | FI15: 38.1811467 | FK15: 76.59416862 | FL15: 2.386200557 | FM15: 6.308692207 | FN15: 120.1077754 | FO15: -64666.66667 | FP15: -111.2100516 | FQ15: 29.2 | FR15: 38.4 | FS15: 38.6188533 | FT15: 38.6188533 | FU15: 29.2 | FV15: 38.4 | FW15: 38.6188533 | FX15: 38.6188533 | FY15: 38.1811467 | GA15: =IF(Feldschwächung!U15<n_MAX_FS,Feldschwächung!U15,n_MAX_FS) -> 909.7994674 | GB15: =IF(Feldschwächung!U15<n_MAX_FS,Feldschwächung!CJ15,GB14) -> 39.86892874 | HB15: 3.212 | HC15: 0.002741733357 | HD15: 0.2624218743 | HE15: -53326.9911 | HF15: 4362.629601 | HG15: 4.761743505
N16: • | O16: n LL cold | R16: ST | S16: 0.12 | T16: 0.3464101615 | U16: 1535.468485 | V16: 160.7938837 | X16: 221.3146403 | Y16: 0.07815756296 | Z16: 12.56725809 | AA16: 0.1444167321 | AB16: 23.22132723 | AC16: 0 | AD16: 0 | AE16: 189.8206852 | AF16: 8.983352277 | AG16: 13.18591949 | AH16: 13.18591949 | AI16: 13.18591949 | AJ16: 2345.825232 | AK16: 2120.215205 | AL16: 2345.824476 | AM16: 100 | AN16: 8.983352277 | AO16: 13.18591949 | AP16: 13.18591949 | AQ16: 13.18591949 | AS16: 132.7887842 | AT16: 0.07815756296 | AU16: 12.56725809 | AV16: 0.1444167321 | AW16: 23.22132723 | AX16: 0 | AY16: 0 | AZ16: 101.2948291 | BA16: 6.94933377 | BB16: 10.40413785 | BC16: 10.40413785 | BD16: 10.40413785 | BE16: 1810.005744 | BF16: 1672.921731 | BG16: 1810.005146 | BH16: 60 | BJ16: 66.39439209 | BK16: 0.07815756296 | BL16: 12.56725809 | BM16: 0.1444167321 | BN16: 23.22132723 | BO16: 0 | BP16: 0 | BQ16: 34.90043701 | BR16: 4.278557466 | BS16: 6.43743759 | BT16: 6.43743759 | BU16: 6.43743759 | BV16: 1035.100591 | BW16: 30 | BY16: 221.3146403 | BZ16: 0.07815756296 | CA16: 12.56725809 | CB16: 0.1444167321 | CC16: 23.22132723 | CD16: 0 | CE16: 0 | CF16: 189.8206852 | CG16: 12.70437863 | CH16: 18.45255816 | CI16: 18.22998386 | CJ16: 18.22998386 | CK16: 18.22998386 | CL16: 100 | CN16: 221.3146403 | CO16: 0.07815756296 | CP16: 6.283629046 | CQ16: 0.1444167321 | CR16: 11.61066361 | CS16: 0 | CT16: 0 | CU16: 205.5676628 | CV16: 13.2208403 | CW16: 19.16751268 | CX16: 18.94493839 | CY16: 18.94493839 | CZ16: 18.94493839 | DA16: 100 | DC16: 221.3146403 | DD16: 0.07815756296 | DE16: 3.770177428 | DF16: 0.1444167321 | DG16: 6.966398169 | DH16: 0 | DI16: 0 | DJ16: 211.8664538 | DK16: 17.32754892 | DL16: 24.68934347 | DM16: 24.46676917 | DN16: 24.46676917 | DO16: 24.46676917 | DP16: 100 | DR16: 221.3146403 | DS16: 0.07815756296 | DT16: 2.513451618 | DU16: 0.1444167321 | DV16: 4.644265446 | DW16: 0 | DX16: 0 | DY16: 215.0158493 | DZ16: 21.37897608 | EA16: 29.79571639 | EB16: 29.57314209 | EC16: 29.57314209 | ED16: 29.57314209 | EE16: 100 | EG16: 85.63620363 | EH16: 2.492305198 | EI16: 6.5031852 | EJ16: 92.48709992 | EK16: -45999.77396 | EL16: 77.29280732 | EM16: 29.2 | EN16: 41.32848164 | EO16: 41.10590735 | EP16: 41.10590735 | EQ16: 29.2 | ER16: 41.32848164 | ES16: 41.10590735 | ET16: 41.10590735 | EV16: 80 | EW16: 2.492305198 | EX16: 6.826324307 | EY16: 125.44848 | EZ16: -46933.33333 | FA16: 74.23668308 | FB16: 29.2 | FC16: 38.4 | FD16: 38.1774257 | FE16: 38.1774257 | FF16: 29.2 | FG16: 38.4 | FH16: 38.1774257 | FI16: 38.1774257 | FK16: 80 | FL16: 2.492305198 | FM16: 6.826324307 | FN16: 125.44848 | FO16: -64133.33333 | FP16: -106.5509589 | FQ16: 29.2 | FR16: 38.4 | FS16: 38.6225743 | FT16: 38.6225743 | FU16: 29.2 | FV16: 38.4 | FW16: 38.6225743 | FX16: 38.6225743 | FY16: 38.1774257 | GA16: =IF(Feldschwächung!U16<n_MAX_FS,Feldschwächung!U16,n_MAX_FS) -> 975.3860207 | GB16: =IF(Feldschwächung!U16<n_MAX_FS,Feldschwächung!CJ16,GB15) -> 39.86437604 | HB16: 3.504 | HC16: 0.002746900068 | HD16: 0.2862784083 | HE16: -53325.78556 | HF16: 4354.226247 | HG16: 5.193263505
N17: • | O17: n LL hot | R17: ST | S17: 0.13 | T17: 0.3605551275 | U17: 1598.166269 | V17: 167.3595804 | X17: 221.3146403 | Y17: 0.07815756296 | Z17: 13.08041694 | AA17: 0.1479265557 | AB17: 24.75692628 | AC17: 0 | AD17: 0 | AE17: 188.0177783 | AF17: 8.940588788 | AG17: 13.11858116 | AH17: 13.11858116 | AI17: 13.11858116 | AJ17: 2421.376142 | AK17: 2195.520237 | AL17: 2421.375359 | AM17: 100 | AN17: 8.940588788 | AO17: 13.11858116 | AP17: 13.11858116 | AQ17: 13.11858116 | AS17: 132.7887842 | AT17: 0.07815756296 | AU17: 13.08041694 | AV17: 0.1479265557 | AW17: 24.75692628 | AX17: 0 | AY17: 0 | AZ17: 99.49192215 | BA17: 6.887211874 | BB17: 10.30563309 | BC17: 10.30563309 | BD17: 10.30563309 | BE17: 1862.076312 | BF17: 1724.746429 | BG17: 1862.075694 | BH17: 60 | BJ17: 66.39439209 | BK17: 0.07815756296 | BL17: 13.08041694 | BM17: 0.1479265557 | BN17: 24.75692628 | BO17: 0 | BP17: 0 | BQ17: 33.09753006 | BR17: 4.166580045 | BS17: 6.259623468 | BT17: 6.259623468 | BU17: 6.259623468 | BV17: 1047.607957 | BW17: 30 | BY17: 221.3146403 | BZ17: 0.07815756296 | CA17: 13.08041694 | CB17: 0.1479265557 | CC17: 24.75692628 | CD17: 0 | CE17: 0 | CF17: 188.0177783 | CG17: 12.64390192 | CH17: 18.36857083 | CI17: 18.14248672 | CJ17: 18.14248672 | CK17: 18.14248672 | CL17: 100 | CN17: 221.3146403 | CO17: 0.07815756296 | CP17: 6.540208469 | CQ17: 0.1479265557 | CR17: 12.37846314 | CS17: 0 | CT17: 0 | CU17: 204.6662093 | CV17: 13.19182049 | CW17: 19.12744961 | CX17: 18.90136549 | CY17: 18.90136549 | CZ17: 18.90136549 | DA17: 100 | DC17: 221.3146403 | DD17: 0.07815756296 | DE17: 3.924125081 | DF17: 0.1479265557 | DG17: 7.427077884 | DH17: 0 | DI17: 0 | DJ17: 211.3255817 | DK17: 17.30541711 | DL17: 24.66044511 | DM17: 24.43436099 | DN17: 24.43436099 | DO17: 24.43436099 | DP17: 100 | DR17: 221.3146403 | DS17: 0.07815756296 | DT17: 2.616083388 | DU17: 0.1479265557 | DV17: 4.951385256 | DW17: 0 | DX17: 0 | DY17: 214.6552679 | DZ17: 21.36104229 | EA17: 29.77397645 | EB17: 29.54789233 | EC17: 29.54789233 | ED17: 29.54789233 | EE17: 100 | EG17: 89.13298671 | EH17: 2.594073496 | EI17: 7.0208173 | EJ17: 96.26362564 | EK17: -45388.64401 | EL17: 73.84054327 | EM17: 29.2 | EN17: 41.32848164 | EO17: 41.10239752 | EP17: 41.10239752 | EQ17: 29.2 | ER17: 41.32848164 | ES17: 41.10239752 | ET17: 41.10239752 | EV17: 83.26663998 | EW17: 2.594073496 | EX17: 7.343956407 | EY17: 130.5709178 | EZ17: -46400 | FA17: 71.09248049 | FB17: 29.2 | FC17: 38.4 | FD17: 38.17391588 | FE17: 38.17391588 | FF17: 29.2 | FG17: 38.4 | FH17: 38.17391588 | FI17: 38.17391588 | FK17: 83.26663998 | FL17: 2.594073496 | FM17: 7.343956407 | FN17: 130.5709178 | FO17: -63600 | FP17: -102.3734195 | FQ17: 29.2 | FR17: 38.4 | FS17: 38.62608412 | FT17: 38.62608412 | FU17: 29.2 | FV17: 38.4 | FW17: 38.62608412 | FX17: 38.62608412 | FY17: 38.17391588 | GA17: =IF(Feldschwächung!U17<n_MAX_FS,Feldschwächung!U17,n_MAX_FS) -> 1039.887151 | GB17: =IF(Feldschwächung!U17<n_MAX_FS,Feldschwächung!CJ17,GB16) -> 39.85998958 | HB17: 3.796 | HC17: 0.002752516059 | HD17: 0.3101349424 | HE17: -53324.47518 | HF17: 4345.500162 | HG17: 5.624427216
N18: ― | O18: MMax cold 25°C Wicklung motorisch | R18: ST | S18: 0.14 | T18: 0.3741657387 | U18: 1658.495517 | V18: 173.6772444 | X18: 221.3146403 | Y18: 0.07815756296 | Z18: 13.57419016 | AA18: 0.1512521478 | AB18: 26.26905623 | AC18: 0 | AD18: 0 | AE18: 186.2525835 | AF18: 8.898520698 | AG18: 13.052465 | AH18: 13.052465 | AI18: 13.052465 | AJ18: 2493.012793 | AK18: 2266.916155 | AL18: 2493.011985 | AM18: 100 | AN18: 8.898520698 | AO18: 13.052465 | AP18: 13.052465 | AQ18: 13.052465 | AS18: 132.7887842 | AT18: 0.07815756296 | AU18: 13.57419016 | AV18: 0.1512521478 | AW18: 26.26905623 | AX18: 0 | AY18: 0 | AZ18: 97.72672736 | BA18: 6.825841675 | BB18: 10.20846203 | BC18: 10.20846203 | BD18: 10.20846203 | BE18: 1910.548165 | BF18: 1772.977556 | BG18: 1910.547529 | BH18: 60 | BJ18: 66.39439209 | BK18: 0.07815756296 | BL18: 13.57419016 | BM18: 0.1512521478 | BN18: 26.26905623 | BO18: 0 | BP18: 0 | BQ18: 31.33233526 | BR18: 4.05394936 | BS18: 6.080976706 | BT18: 6.080976706 | BU18: 6.080976706 | BV18: 1056.127278 | BW18: 30 | BY18: 221.3146403 | BZ18: 0.07815756296 | CA18: 13.57419016 | CB18: 0.1512521478 | CC18: 26.26905623 | CD18: 0 | CE18: 0 | CF18: 186.2525835 | CG18: 12.58440866 | CH18: 18.28589546 | CI18: 18.05648575 | CJ18: 18.05648575 | CK18: 18.05648575 | CL18: 100 | CN18: 221.3146403 | CO18: 0.07815756296 | CP18: 6.787095082 | CQ18: 0.1512521478 | CR18: 13.13452812 | CS18: 0 | CT18: 0 | CU18: 203.7836119 | CV18: 13.16334572 | CW18: 19.0881261 | CX18: 18.85871639 | CY18: 18.85871639 | CZ18: 18.85871639 | DA18: 100 | DC18: 221.3146403 | DD18: 0.07815756296 | DE18: 4.072257049 | DF18: 0.1512521478 | DG18: 7.88071687 | DH18: 0 | DI18: 0 | DJ18: 210.7960233 | DK18: 17.28372078 | DL18: 24.63210557 | DM18: 24.40269586 | DN18: 24.40269586 | DO18: 24.40269586 | DP18: 100 | DR18: 221.3146403 | DS18: 0.07815756296 | DT18: 2.714838033 | DU18: 0.1512521478 | DV18: 5.253811246 | DW18: 0 | DX18: 0 | DY18: 214.3022289 | DZ18: 21.34346904 | EA18: 29.75266561 | EB18: 29.5232559 | EC18: 29.5232559 | ED18: 29.5232559 | EE18: 100 | EG18: 92.49767169 | EH18: 2.691997288 | EI18: 7.5384494 | EJ18: 99.89748542 | EK18: -44777.51407 | EL18: 70.72907063 | EM18: 29.2 | EN18: 41.32848164 | EO18: 41.09907193 | EP18: 41.09907193 | EQ18: 29.2 | ER18: 41.32848164 | ES18: 41.09907193 | ET18: 41.09907193 | EV18: 86.40987598 | EW18: 2.691997288 | EX18: 7.861588507 | EY18: 135.499845 | EZ18: -45866.66667 | FA18: 68.24919877 | FB18: 29.2 | FC18: 38.4 | FD18: 38.17059029 | FE18: 38.17059029 | FF18: 29.2 | FG18: 38.4 | FH18: 38.17059029 | FI18: 38.17059029 | FK18: 86.40987598 | FL18: 2.691997288 | FM18: 7.861588507 | FN18: 135.499845 | FO18: -63066.66667 | FP18: -98.59781054 | FQ18: 29.2 | FR18: 38.4 | FS18: 38.62940971 | FT18: 38.62940971 | FU18: 29.2 | FV18: 38.4 | FW18: 38.62940971 | FX18: 38.62940971 | FY18: 38.17059029 | GA18: =IF(Feldschwächung!U18<n_MAX_FS,Feldschwächung!U18,n_MAX_FS) -> 1103.402487 | GB18: =IF(Feldschwächung!U18<n_MAX_FS,Feldschwächung!CJ18,GB17) -> 39.85573916 | HB18: 4.088 | HC18: 0.002758581328 | HD18: 0.3339914764 | HE18: -53323.05997 | HF18: 4336.456444 | HG18: 6.055204948
N19: ― | O19: MMax hot 140°C Wicklung = 100K motorisch | R19: ST | S19: 0.15 | T19: 0.3872983346 | U19: 1716.705955 | V19: 179.7730272 | X19: 221.3146403 | Y19: 0.07815756296 | Z19: 14.05062169 | AA19: 0.1544153668 | AB19: 27.75971793 | AC19: 0 | AD19: 0 | AE19: 184.5215414 | AF19: 8.85707249 | AG19: 12.98743646 | AH19: 12.98743646 | AI19: 12.98743646 | AJ19: 2561.123482 | AK19: 2334.790768 | AL19: 2561.122649 | AM19: 100 | AN19: 8.85707249 | AO19: 12.98743646 | AP19: 12.98743646 | AQ19: 12.98743646 | AS19: 132.7887842 | AT19: 0.07815756296 | AU19: 14.05062169 | AV19: 0.1544153668 | AW19: 27.75971793 | AX19: 0 | AY19: 0 | AZ19: 95.99568532 | BA19: 6.765118209 | BB19: 10.11244232 | BC19: 10.11244232 | BD19: 10.11244232 | BE19: 1955.751045 | BF19: 1817.944368 | BG19: 1955.750393 | BH19: 60 | BJ19: 66.39439209 | BK19: 0.07815756296 | BL19: 14.05062169 | BM19: 0.1544153668 | BN19: 27.75971793 | BO19: 0 | BP19: 0 | BQ19: 29.60129323 | BR19: 3.940372499 | BS19: 5.901019499 | BT19: 5.901019499 | BU19: 5.901019499 | BV19: 1060.844139 | BW19: 30 | BY19: 221.3146403 | BZ19: 0.07815756296 | CA19: 14.05062169 | CB19: 0.1544153668 | CC19: 27.75971793 | CD19: 0 | CE19: 0 | CF19: 184.5215414 | CG19: 12.52579204 | CH19: 18.20438638 | CI19: 17.97181345 | CJ19: 17.97181345 | CK19: 17.97181345 | CL19: 100 | CN19: 221.3146403 | CO19: 0.07815756296 | CP19: 7.025310846 | CQ19: 0.1544153668 | CR19: 13.87985896 | CS19: 0 | CT19: 0 | CU19: 202.9180909 | CV19: 13.13536193 | CW19: 19.04946824 | CX19: 18.81689531 | CY19: 18.81689531 | CZ19: 18.81689531 | DA19: 100 | DC19: 221.3146403 | DD19: 0.07815756296 | DE19: 4.215186508 | DF19: 0.1544153668 | DG19: 8.327915379 | DH19: 0 | DI19: 0 | DJ19: 210.2767106 | DK19: 17.26241775 | DL19: 24.6042703 | DM19: 24.37169737 | DN19: 24.37169737 | DO19: 24.37169737 | DP19: 100 | DR19: 221.3146403 | DS19: 0.07815756296 | DT19: 2.810124338 | DU19: 0.1544153668 | DV19: 5.551943586 | DW19: 0 | DX19: 0 | DY19: 213.9560205 | DZ19: 21.32622173 | EA19: 29.7317424 | EB19: 29.49916947 | EC19: 29.49916947 | ED19: 29.49916947 | EE19: 100 | EG19: 95.74418632 | EH19: 2.786481922 | EI19: 8.0560815 | EJ19: 103.4037212 | EK19: -44166.38412 | EL19: 67.90286672 | EM19: 29.2 | EN19: 41.32848164 | EO19: 41.09590871 | EP19: 41.09590871 | EQ19: 29.2 | ER19: 41.32848164 | ES19: 41.09590871 | ET19: 41.09590871 | EV19: 89.4427191 | EW19: 2.786481922 | EX19: 8.379220607 | EY19: 140.2556645 | EZ19: -45333.33333 | FA19: 65.65947786 | FB19: 29.2 | FC19: 38.4 | FD19: 38.16742707 | FE19: 38.16742707 | FF19: 29.2 | FG19: 38.4 | FH19: 38.16742707 | FI19: 38.16742707 | FK19: 89.4427191 | FL19: 2.786481922 | FM19: 8.379220607 | FN19: 140.2556645 | FO19: -62533.33333 | FP19: -95.1618244 | FQ19: 29.2 | FR19: 38.4 | FS19: 38.63257293 | FT19: 38.63257293 | FU19: 29.2 | FV19: 38.4 | FW19: 38.63257293 | FX19: 38.63257293 | FY19: 38.16742707 | GA19: =IF(Feldschwächung!U19<n_MAX_FS,Feldschwächung!U19,n_MAX_FS) -> 1166.016074 | GB19: =IF(Feldschwächung!U19<n_MAX_FS,Feldschwächung!CJ19,GB18) -> 39.85159662 | HB19: 4.38 | HC19: 0.002765095877 | HD19: 0.3578480104 | HE19: -53321.53993 | HF19: 4327.100374 | HG19: 6.48556701
N20: – – | O20: MMax hot 140°C Wicklung = 100K generatorisch Betrag | R20: ST | S20: 0.16 | T20: 0.4 | U20: 1773.006286 | V20: 185.6687841 | X20: 221.3146403 | Y20: 0.07815756296 | Z20: 14.51141968 | AA20: 0.1574342191 | AB20: 29.23062004 | AC20: 0 | AD20: 0 | AE20: 182.8216453 | AF20: 8.81618041 | AG20: 12.92338235 | AH20: 12.92338235 | AI20: 12.92338235 | AJ20: 2626.033229 | AK20: 2399.468688 | AL20: 2626.032373 | AM20: 100 | AN20: 8.81618041 | AO20: 12.92338235 | AP20: 12.92338235 | AQ20: 12.92338235 | AS20: 132.7887842 | AT20: 0.07815756296 | AU20: 14.51141968 | AV20: 0.1574342191 | AW20: 29.23062004 | AX20: 0 | AY20: 0 | AZ20: 94.29578923 | BA20: 6.704952149 | BB20: 10.01741934 | BC20: 10.01741934 | BD20: 10.01741934 | BE20: 1997.960564 | BF20: 1859.922068 | BG20: 1997.959897 | BH20: 60 | BJ20: 66.39439209 | BK20: 0.07815756296 | BL20: 14.51141968 | BM20: 0.1574342191 | BN20: 29.23062004 | BO20: 0 | BP20: 0 | BQ20: 27.90139713 | BR20: 3.82555907 | BS20: 5.719281811 | BT20: 5.719281811 | BU20: 5.719281811 | BV20: 1061.8921 | BW20: 30 | BY20: 221.3146403 | BZ20: 0.07815756296 | CA20: 14.51141968 | CB20: 0.1574342191 | CC20: 29.23062004 | CD20: 0 | CE20: 0 | CF20: 182.8216453 | CG20: 12.4679619 | CH20: 18.12392063 | CI20: 17.88832885 | CJ20: 17.88832885 | CK20: 17.88832885 | CL20: 100 | CN20: 221.3146403 | CO20: 0.07815756296 | CP20: 7.255709842 | CQ20: 0.1574342191 | CR20: 14.61531002 | CS20: 0 | CT20: 0 | CU20: 202.0681428 | CV20: 13.1078235 | CW20: 19.01141364 | CX20: 18.77582185 | CY20: 18.77582185 | CZ20: 18.77582185 | DA20: 100 | DC20: 221.3146403 | DD20: 0.07815756296 | DE20: 4.353425905 | DF20: 0.1574342191 | DG20: 8.769186013 | DH20: 0 | DI20: 0 | DJ20: 209.7667418 | DK20: 17.2414724 | DL20: 24.57689329 | DM20: 24.34130151 | DN20: 24.34130151 | DO20: 24.34130151 | DP20: 100 | DR20: 221.3146403 | DS20: 0.07815756296 | DT20: 2.902283937 | DU20: 0.1574342191 | DV20: 5.846124009 | DW20: 0 | DX20: 0 | DY20: 213.6160413 | DZ20: 21.30927115 | EA20: 29.7111718 | EB20: 29.47558001 | EC20: 29.47558001 | ED20: 29.47558001 | EE20: 100 | EG20: 98.88417043 | EH20: 2.877866154 | EI20: 8.5737136 | EJ20: 106.7949041 | EK20: -43555.25417 | EL20: 65.31831002 | EM20: 29.2 | EN20: 41.32848164 | EO20: 41.09288986 | EP20: 41.09288986 | EQ20: 29.2 | ER20: 41.32848164 | ES20: 41.09288986 | ET20: 41.09288986 | EV20: 92.37604307 | EW20: 2.877866154 | EX20: 8.896852707 | EY20: 144.8554274 | EZ20: -44800 | FA20: 63.28579253 | FB20: 29.2 | FC20: 38.4 | FD20: 38.16440822 | FE20: 38.16440822 | FF20: 29.2 | FG20: 38.4 | FH20: 38.16440822 | FI20: 38.16440822 | FK20: 92.37604307 | FL20: 2.877866154 | FM20: 8.896852707 | FN20: 144.8554274 | FO20: -62000 | FP20: -92.01590692 | FQ20: 29.2 | FR20: 38.4 | FS20: 38.63559178 | FT20: 38.63559178 | FU20: 29.2 | FV20: 38.4 | FW20: 38.63559178 | FX20: 38.63559178 | FY20: 38.16440822 | GA20: =IF(Feldschwächung!U20<n_MAX_FS,Feldschwächung!U20,n_MAX_FS) -> 1227.799681 | GB20: =IF(Feldschwächung!U20<n_MAX_FS,Feldschwächung!CJ20,GB19) -> 39.84753474 | HB20: 4.672 | HC20: 0.002772059705 | HD20: 0.3817045444 | HE20: -53319.91506 | HF20: 4317.437406 | HG20: 6.915483711
N21: – – | O21: M Feldschwächung MTPA + MTPV | R21: ST | S21: 0.17 | T21: 0.4123105626 | U21: 1827.573048 | V21: 191.3830021 | X21: 221.3146403 | Y21: 0.07815756296 | Z21: 14.95802903 | AA21: 0.1603237328 | AB21: 30.68323729 | AC21: 0 | AD21: 0 | AE21: 181.1503259 | AF21: 8.775789997 | AG21: 12.86020637 | AH21: 12.86020637 | AI21: 12.86020637 | AJ21: 2688.017373 | AK21: 2461.224902 | AL21: 2688.016494 | AM21: 100 | AN21: 8.775789997 | AO21: 12.86020637 | AP21: 12.86020637 | AQ21: 12.86020637 | AS21: 132.7887842 | AT21: 0.07815756296 | AU21: 14.95802903 | AV21: 0.1603237328 | AW21: 30.68323729 | AX21: 0 | AY21: 0 | AZ21: 92.62446982 | BA21: 6.645266469 | BB21: 9.923260276 | BC21: 9.923260276 | BD21: 9.923260276 | BE21: 2037.40976 | BF21: 1899.143342 | BG21: 2037.409078 | BH21: 60 | BJ21: 66.39439209 | BK21: 0.07815756296 | BL21: 14.95802903 | BM21: 0.1603237328 | BN21: 30.68323729 | BO21: 0 | BP21: 0 | BQ21: 26.23007773 | BR21: 3.709212594 | BS21: 5.535287119 | BT21: 5.535287119 | BU21: 5.535287119 | BV21: 1059.359866 | BW21: 30 | BY21: 221.3146403 | BZ21: 0.07815756296 | CA21: 14.95802903 | CB21: 0.1603237328 | CC21: 30.68323729 | CD21: 0 | CE21: 0 | CF21: 181.1503259 | CG21: 12.41084123 | CH21: 18.04439324 | CI21: 17.80591194 | CJ21: 17.80591194 | CK21: 17.80591194 | CL21: 100 | CN21: 221.3146403 | CO21: 0.07815756296 | CP21: 7.479014517 | CQ21: 0.1603237328 | CR21: 15.34161865 | CS21: 0 | CT21: 0 | CU21: 201.2324831 | CV21: 13.0806915 | CW21: 18.97390906 | CX21: 18.73542777 | CY21: 18.73542777 | CZ21: 18.73542777 | DA21: 100 | DC21: 221.3146403 | DD21: 0.07815756296 | DE21: 4.48740871 | DF21: 0.1603237328 | DG21: 9.204971187 | DH21: 0 | DI21: 0 | DJ21: 209.265346 | DK21: 17.22085432 | DL21: 24.54993523 | DM21: 24.31145394 | DN21: 24.31145394 | DO21: 24.31145394 | DP21: 100 | DR21: 221.3146403 | DS21: 0.07815756296 | DT21: 2.991605807 | DU21: 0.1603237328 | DV21: 6.136647458 | DW21: 0 | DX21: 0 | DY21: 213.2817774 | DZ21: 21.29259238 | EA21: 29.69092391 | EB21: 29.45244261 | EC21: 29.45244261 | ED21: 29.45244261 | EE21: 100 | EG21: 101.9274699 | EH21: 2.966436532 | EI21: 9.0913457 | EJ21: 110.0816674 | EK21: -42944.12422 | EL21: 62.94058257 | EM21: 29.2 | EN21: 41.32848164 | EO21: 41.09000034 | EP21: 41.09000034 | EQ21: 29.2 | ER21: 41.32848164 | ES21: 41.09000034 | ET21: 41.09000034 | EV21: 95.21904571 | EW21: 2.966436532 | EX21: 9.414484807 | EY21: 149.3135569 | EZ21: -44266.66667 | FA21: 61.09796846 | FB21: 29.2 | FC21: 38.4 | FD21: 38.1615187 | FE21: 38.1615187 | FF21: 29.2 | FG21: 38.4 | FH21: 38.1615187 | FI21: 38.1615187 | FK21: 95.21904571 | FL21: 2.966436532 | FM21: 9.414484807 | FN21: 149.3135569 | FO21: -61466.66667 | FP21: -89.12008356 | FQ21: 29.2 | FR21: 38.4 | FS21: 38.6384813 | FT21: 38.6384813 | FU21: 29.2 | FV21: 38.4 | FW21: 38.6384813 | FX21: 38.6384813 | FY21: 38.1615187 | GA21: =IF(Feldschwächung!U21<n_MAX_FS,Feldschwächung!U21,n_MAX_FS) -> 1288.815253 | GB21: =IF(Feldschwächung!U21<n_MAX_FS,Feldschwächung!CJ21,GB20) -> 39.84352637 | HB21: 4.964 | HC21: 0.002779472812 | HD21: 0.4055610785 | HE21: -53318.18537 | HF21: 4307.473158 | HG21: 7.344925361
O22: =IF('Übergabe VBA'!B14=0,"< 5s","60s") -> < 5s | P22: Periodendauer S3-Betrieb | R22: ST | S22: 0.18 | T22: 0.4242640687 | U22: 1880.557152 | V22: 196.9314845 | X22: 221.3146403 | Y22: 0.07815756296 | Z22: 15.3916849 | AA22: 0.1630965938 | AB22: 32.11885433 | AC22: 0 | AD22: 0 | AE22: 179.5053658 | AF22: 8.735854253 | AG22: 12.79782567 | AH22: 12.79782567 | AI22: 12.79782567 | AJ22: 2747.311612 | AK22: 2520.294807 | AL22: 2747.310712 | AM22: 100 | AN22: 8.735854253 | AO22: 12.79782567 | AP22: 12.79782567 | AQ22: 12.79782567 | AS22: 132.7887842 | AT22: 0.07815756296 | AU22: 15.3916849 | AV22: 0.1630965938 | AW22: 32.11885433 | AX22: 0 | AY22: 0 | AZ22: 90.97950967 | BA22: 6.585993971 | BB22: 9.829849694 | BC22: 9.829849694 | BD22: 9.829849694 | BE22: 2074.297636 | BF22: 1935.806892 | BG22: 2074.296941 | BH22: 60 | BJ22: 66.39439209 | BK22: 0.07815756296 | BL22: 15.3916849 | BM22: 0.1630965938 | BN22: 32.11885433 | BO22: 0 | BP22: 0 | BQ22: 24.58511758 | BR22: 3.591022131 | BS22: 5.348538727 | BT22: 5.348538727 | BU22: 5.348538727 | BV22: 1053.295671 | BW22: 30 | BY22: 221.3146403 | BZ22: 0.07815756296 | CA22: 15.3916849 | CB22: 0.1630965938 | CC22: 32.11885433 | CD22: 0 | CE22: 0 | CF22: 179.5053658 | CG22: 12.35436356 | CH22: 17.96571359 | CI22: 17.72445943 | CJ22: 17.72445943 | CK22: 17.72445943 | CL22: 100 | CN22: 221.3146403 | CO22: 0.07815756296 | CP22: 7.695842448 | CQ22: 0.1630965938 | CR22: 16.05942716 | CS22: 0 | CT22: 0 | CU22: 200.4100031 | CV22: 13.05393234 | CW22: 18.93690863 | CX22: 18.69565447 | CY22: 18.69565447 | CZ22: 18.69565447 | DA22: 100 | DC22: 221.3146403 | DD22: 0.07815756296 | DE22: 4.617505469 | DF22: 0.1630965938 | DG22: 9.635656299 | DH22: 0 | DI22: 0 | DJ22: 208.771858 | DK22: 17.20053728 | DL22: 24.52336225 | DM22: 24.2821081 | DN22: 24.2821081 | DO22: 24.2821081 | DP22: 100 | DR22: 221.3146403 | DS22: 0.07815756296 | DT22: 3.078336979 | DU22: 0.1630965938 | DV22: 6.423770866 | DW22: 0 | DX22: 0 | DY22: 212.9527854 | DZ22: 21.27616388 | EA22: 29.67097296 | EB22: 29.4297188 | EC22: 29.4297188 | ED22: 29.4297188 | EE22: 100 | EG22: 104.8825012 | EH22: 3.052438009 | EI22: 9.6089778 | EJ22: 113.2731013 | EK22: -42332.99428 | EL22: 60.74150472 | EM22: 29.2 | EN22: 41.32848164 | EO22: 41.08722748 | EP22: 41.08722748 | EQ22: 29.2 | ER22: 41.32848164 | ES22: 41.08722748 | ET22: 41.08722748 | EV22: 97.97958971 | EW22: 3.052438009 | EX22: 9.932116907 | EY22: 153.6423825 | EZ22: -43733.33333 | FA22: 59.0714249 | FB22: 29.2 | FC22: 38.4 | FD22: 38.15874584 | FE22: 38.15874584 | FF22: 29.2 | FG22: 38.4 | FH22: 38.15874584 | FI22: 38.15874584 | FK22: 97.97958971 | FL22: 3.052438009 | FM22: 9.932116907 | FN22: 153.6423825 | FO22: -60933.33333 | FP22: -86.44170059 | FQ22: 29.2 | FR22: 38.4 | FS22: 38.64125416 | FT22: 38.64125416 | FU22: 29.2 | FV22: 38.4 | FW22: 38.64125416 | FX22: 38.64125416 | FY22: 38.15874584 | GA22: =IF(Feldschwächung!U22<n_MAX_FS,Feldschwächung!U22,n_MAX_FS) -> 1349.11675 | GB22: =IF(Feldschwächung!U22<n_MAX_FS,Feldschwächung!CJ22,GB21) -> 39.83954364 | HB22: 5.256 | HC22: 0.002787335198 | HD22: 0.4294176125 | HE22: -53316.35084 | HF22: 4297.213403 | HG22: 7.773862268
O23: =ESPS -> 0 | P23: ESPS Einsatzpunkt Sättigung | R23: ST | S23: 0.19 | T23: 0.4358898944 | U23: 1932.088807 | V23: 202.3278667 | X23: 221.3146403 | Y23: 0.07815756296 | Z23: 15.81345298 | AA23: 0.165763619 | AB23: 33.53859942 | AC23: 0 | AD23: 0 | AE23: 177.8848342 | AF23: 8.696332248 | AG23: 12.73616836 | AH23: 12.73616836 | AI23: 12.73616836 | AJ23: 2804.119581 | AK23: 2576.881774 | AL23: 2804.11866 | AM23: 100 | AN23: 8.696332248 | AO23: 12.73616836 | AP23: 12.73616836 | AQ23: 12.73616836 | AS23: 132.7887842 | AT23: 0.07815756296 | AU23: 15.81345298 | AV23: 0.165763619 | AW23: 33.53859942 | AX23: 0 | AY23: 0 | AZ23: 89.35897807 | BA23: 6.5270754 | BB23: 9.737086162 | BC23: 9.737086162 | BD23: 9.737086162 | BE23: 2108.79561 | BF23: 1970.083871 | BG23: 2108.794902 | BH23: 60 | BJ23: 66.39439209 | BK23: 0.07815756296 | BL23: 15.81345298 | BM23: 0.165763619 | BN23: 33.53859942 | BO23: 0 | BP23: 0 | BQ23: 22.96458598 | BR23: 3.470653418 | BS23: 5.1585055 | BT23: 5.1585055 | BU23: 5.1585055 | BV23: 1043.709413 | BW23: 30 | BY23: 221.3146403 | BZ23: 0.07815756296 | CA23: 15.81345298 | CB23: 0.165763619 | CC23: 33.53859942 | CD23: 0 | CE23: 0 | CF23: 177.8848342 | CG23: 12.29847101 | CH23: 17.88780281 | CI23: 17.64388162 | CJ23: 17.64388162 | CK23: 17.64388162 | CL23: 100 | CN23: 221.3146403 | CO23: 0.07815756296 | CP23: 7.906726492 | CQ23: 0.165763619 | CR23: 16.76929971 | CS23: 0 | CT23: 0 | CU23: 199.5997373 | CV23: 13.02751682 | CW23: 18.90037242 | CX23: 18.65645124 | CY23: 18.65645124 | CZ23: 18.65645124 | DA23: 100 | DC23: 221.3146403 | DD23: 0.07815756296 | DE23: 4.744035895 | DF23: 0.165763619 | DG23: 10.06157983 | DH23: 0 | DI23: 0 | DJ23: 208.2856985 | DK23: 17.18049848 | DL23: 24.49714487 | DM23: 24.25322369 | DN23: 24.25322369 | DO23: 24.25322369 | DP23: 100 | DR23: 221.3146403 | DS23: 0.07815756296 | DT23: 3.162690597 | DU23: 0.165763619 | DV23: 6.707719884 | DW23: 0 | DX23: 0 | DY23: 212.6286791 | DZ23: 21.25996695 | EA23: 29.65129651 | EB23: 29.40737533 | EC23: 29.40737533 | ED23: 29.40737533 | EE23: 100 | EG23: 107.7565265 | EH23: 3.136081935 | EI23: 10.1266099 | EJ23: 116.3770486 | EK23: -41721.86433 | EL23: 58.6979874 | EM23: 29.2 | EN23: 41.32848164 | EO23: 41.08456046 | EP23: 41.08456046 | EQ23: 29.2 | ER23: 41.32848164 | ES23: 41.08456046 | ET23: 41.08456046 | EV23: 100.6644591 | EW23: 3.136081935 | EX23: 10.44974901 | EY23: 157.8525424 | EZ23: -43200 | FA23: 57.18590539 | FB23: 29.2 | FC23: 38.4 | FD23: 38.15607882 | FE23: 38.15607882 | FF23: 29.2 | FG23: 38.4 | FH23: 38.15607882 | FI23: 38.15607882 | FK23: 100.6644591 | FL23: 3.136081935 | FM23: 10.44974901 | FN23: 157.8525424 | FO23: -60400 | FP23: -83.95378512 | FQ23: 29.2 | FR23: 38.4 | FS23: 38.64392118 | FT23: 38.64392118 | FU23: 29.2 | FV23: 38.4 | FW23: 38.64392118 | FX23: 38.64392118 | FY23: 38.15607882 | GA23: =IF(Feldschwächung!U23<n_MAX_FS,Feldschwächung!U23,n_MAX_FS) -> 1408.751563 | GB23: =IF(Feldschwächung!U23<n_MAX_FS,Feldschwächung!CJ23,GB22) -> 39.83555742 | HB23: 5.548 | HC23: 0.002795646864 | HD23: 0.4532741465 | HE23: -53314.41148 | HF23: 4286.664058 | HG23: 8.202264742
O24: ='Übergabe VBA'!B11 -> 0 | P24: thermisches 1-Körper-Modell | R24: ST | S24: 0.2 | T24: 0.4472135955 | U24: 1982.28129 | V24: 207.5840113 | X24: 221.3146403 | Y24: 0.07815756296 | Z24: 16.22426043 | AA24: 0.1683341143 | AB24: 34.94347069 | AC24: 0 | AD24: 0 | AE24: 176.2870369 | AF24: 8.657188049 | AG24: 12.67517148 | AH24: 12.67517148 | AI24: 12.67517148 | AJ24: 2858.618648 | AK24: 2631.16294 | AL24: 2858.617708 | AM24: 100 | AN24: 8.657188049 | AO24: 12.67517148 | AP24: 12.67517148 | AQ24: 12.67517148 | AS24: 132.7887842 | AT24: 0.07815756296 | AU24: 16.22426043 | AV24: 0.1683341143 | AW24: 34.94347069 | AX24: 0 | AY24: 0 | AZ24: 87.7611808 | BA24: 6.468457989 | BB24: 9.644879685 | BC24: 9.644879685 | BD24: 9.644879685 | BE24: 2141.052445 | BF24: 2002.122814 | BG24: 2141.051725 | BH24: 60 | BJ24: 66.39439209 | BK24: 0.07815756296 | BL24: 16.22426043 | BM24: 0.1683341143 | BN24: 34.94347069 | BO24: 0 | BP24: 0 | BQ24: 21.36678871 | BR24: 3.347738791 | BS24: 4.964605828 | BT24: 4.964605828 | BU24: 4.964605828 | BV24: 1030.572792 | BW24: 30 | BY24: 221.3146403 | BZ24: 0.07815756296 | CA24: 16.22426043 | CB24: 0.1683341143 | CC24: 34.94347069 | CD24: 0 | CE24: 0 | CF24: 176.2870369 | CG24: 12.24311275 | CH24: 17.81059164 | CI24: 17.56409996 | CJ24: 17.56409996 | CK24: 17.56409996 | CL24: 100 | CN24: 221.3146403 | CO24: 0.07815756296 | CP24: 8.112130216 | CQ24: 0.1683341143 | CR24: 17.47173534 | CS24: 0 | CT24: 0 | CU24: 198.8008386 | CV24: 13.00141934 | CW24: 18.86426546 | CX24: 18.61777378 | CY24: 18.61777378 | CZ24: 18.61777378 | DA24: 100 | DC24: 221.3146403 | DD24: 0.07815756296 | DE24: 4.86727813 | DF24: 0.1683341143 | DG24: 10.48304121 | DH24: 0 | DI24: 0 | DJ24: 207.8063593 | DK24: 17.16071788 | DL24: 24.47125726 | DM24: 24.22476558 | DN24: 24.22476558 | DO24: 24.22476558 | DP24: 100 | DR24: 221.3146403 | DS24: 0.07815756296 | DT24: 3.244852086 | DU24: 0.1683341143 | DV24: 6.988694137 | DW24: 0 | DX24: 0 | DY24: 212.3091196 | DZ24: 21.24398515 | EA24: 29.63187489 | EB24: 29.38538322 | EC24: 29.38538322 | ED24: 29.38538322 | EE24: 100 | EG24: 110.5558635 | EH24: 3.217552175 | EI24: 10.644242 | EJ24: 119.4003326 | EK24: -41110.73438 | EL24: 56.79090409 | EM24: 29.2 | EN24: 41.32848164 | EO24: 41.08198996 | EP24: 41.08198996 | EQ24: 29.2 | ER24: 41.32848164 | ES24: 41.08198996 | ET24: 41.08198996 | EV24: 103.2795559 | EW24: 3.217552175 | EX24: 10.96738111 | EY24: 161.9532913 | EZ24: -42666.66667 | FA24: 55.42454387 | FB24: 29.2 | FC24: 38.4 | FD24: 38.15350832 | FE24: 38.15350832 | FF24: 29.2 | FG24: 38.4 | FH24: 38.15350832 | FI24: 38.15350832 | FK24: 103.2795559 | FL24: 3.217552175 | FM24: 10.96738111 | FN24: 161.9532913 | FO24: -59866.66667 | FP24: -81.63383301 | FQ24: 29.2 | FR24: 38.4 | FS24: 38.64649168 | FT24: 38.64649168 | FU24: 29.2 | FV24: 38.4 | FW24: 38.64649168 | FX24: 38.64649168 | FY24: 38.15350832 | GA24: =IF(Feldschwächung!U24<n_MAX_FS,Feldschwächung!U24,n_MAX_FS) -> 1467.761618 | GB24: =IF(Feldschwächung!U24<n_MAX_FS,Feldschwächung!CJ24,GB23) -> 39.83153674 | HB24: 5.84 | HC24: 0.002804407808 | HD24: 0.4771306805 | HE24: -53312.36729 | HF24: 4275.831175 | HG24: 8.630103093
O25: =Three_Body_Model -> 1 | P25: thermisches 3-Körper-Modell | R25: ST | S25: 0.21 | T25: 0.4582575695 | U25: 2031.233879 | V25: =2*PI()*U25/60 -> 212.7103144 | X25: 221.3146403 | Y25: 0.07815756296 | Z25: 16.62491979 | AA25: 0.1708161495 | AB25: 36.33435687 | AC25: 0 | AD25: 0 | AE25: 174.7104769 | AF25: 8.618389877 | AG25: 12.61477954 | AH25: 12.61477954 | AI25: 12.61477954 | AJ25: 2910.964435 | AK25: 2683.293722 | AL25: 2910.963476 | AM25: 100 | AN25: 8.618389877 | AO25: 12.61477954 | AP25: 12.61477954 | AQ25: 12.61477954 | AS25: 132.7887842 | AT25: 0.07815756296 | AU25: 16.62491979 | AV25: 0.1708161495 | AW25: 36.33435687 | AX25: 0 | AY25: 0 | AZ25: 86.18462073 | BA25: 6.410094326 | BB25: 9.553149692 | BC25: 9.553149692 | BD25: 9.553149692 | BE25: 2171.198102 | BF25: 2032.053474 | BG25: 2171.197371 | BH25: 60 | BJ25: 66.39439209 | BK25: 0.07815756296 | BL25: 16.62491979 | BM25: 0.1708161495 | BN25: 36.33435687 | BO25: 0 | BP25: 0 | BQ25: 19.79022864 | BR25: 3.221865028 | BS25: 4.766188418 | BT25: 4.766188418 | BU25: 4.766188418 | BV25: 1013.817437 | BW25: 30 | BY25: 221.3146403 | BZ25: 0.07815756296 | CA25: 16.62491979 | CB25: 0.1708161495 | CC25: 36.33435687 | CD25: 0 | CE25: 0 | CF25: 174.7104769 | CG25: 12.18824385 | CH25: 17.73401885 | CI25: 17.48504514 | CJ25: 17.48504514 | CK25: 17.48504514 | CL25: 100 | CN25: 221.3146403 | CO25: 0.07815756296 | CP25: 8.312459893 | CQ25: 0.1708161495 | CR25: 18.16717843 | CS25: 0 | CT25: 0 | CU25: 198.0125586 | CV25: 12.97561729 | CW25: 18.82855685 | CX25: 18.57958314 | CY25: 18.57958314 | CZ25: 18.57958314 | DA25: 100 | DC25: 221.3146403 | DD25: 0.07815756296 | DE25: 4.987475936 | DF25: 0.1708161495 | DG25: 10.90030706 | DH25: 0 | DI25: 0 | DJ25: 207.3333913 | DK25: 17.14117783 | DL25: 24.44567658 | DM25: 24.19670287 | DN25: 24.19670287 | DO25: 24.19670287 | DP25: 100 | DR25: 221.3146403 | DS25: 0.07815756296 | DT25: 3.324983957 | DU25: 0.1708161495 | DV25: 7.266871374 | DW25: 0 | DX25: 0 | DY25: 211.9938076 | DZ25: 21.22820398 | EA25: 29.61269074 | EB25: 29.36371703 | EC25: 29.36371703 | ED25: 29.36371703 | EE25: 100 | EG25: 113.286049 | EH25: 3.297009873 | EI25: 11.1618741 | EJ25: 122.3489329 | EK25: -40499.60443 | EL25: 55.00425415 | EM25: 29.2 | EN25: 41.32848164 | EO25: 41.07950793 | EP25: 41.07950793 | EQ25: 29.2 | ER25: 41.32848164 | ES25: 41.07950793 | ET25: 41.07950793 | EV25: 105.8300524 | EW25: 3.297009873 | EX25: 11.48501321 | EY25: 165.9527402 | EZ25: -42133.33333 | FA25: 53.77316622 | FB25: 29.2 | FC25: 38.4 | FD25: 38.15102629 | FE25: 38.15102629 | FF25: 29.2 | FG25: 38.4 | FH25: 38.15102629 | FI25: 38.15102629 | FK25: 105.8300524 | FL25: 3.297009873 | FM25: 11.48501321 | FN25: 165.9527402 | FO25: -59333.33333 | FP25: -79.46289864 | FQ25: 29.2 | FR25: 38.4 | FS25: 38.64897371 | FT25: 38.64897371 | FU25: 29.2 | FV25: 38.4 | FW25: 38.64897371 | FX25: 38.64897371 | FY25: 38.15102629 | GA25: =IF(Feldschwächung!U25<n_MAX_FS,Feldschwächung!U25,n_MAX_FS) -> 1526.184245 | GB25: =IF(Feldschwächung!U25<n_MAX_FS,Feldschwächung!CJ25,GB24) -> 39.8274483 | HB25: 6.132 | HC25: 0.002813618032 | HD25: 0.5009872146 | HE25: -53310.21827 | HF25: 4264.720932 | HG25: 9.057347629
O26: =KF_KR -> 1 | P26: Korrekturfaktor konstante Reibung | R26: ST | S26: 0.22 | T26: 0.469041576 | U26: 2079.034157 | V26: 217.7159478 | X26: 221.3146403 | Y26: 0.07815756296 | Z26: 17.0161479 | AA26: 0.1732167731 | AB26: 37.71205393 | AC26: 0 | AD26: 0 | AE26: 173.1538227 | AF26: 8.579909444 | AG26: 12.55494327 | AH26: 12.55494327 | AI26: 12.55494327 | AJ26: 2961.294376 | AK26: 2733.411374 | AL26: 2961.293399 | AM26: 100 | AN26: 8.579909444 | AO26: 12.55494327 | AP26: 12.55494327 | AQ26: 12.55494327 | AS26: 132.7887842 | AT26: 0.07815756296 | AU26: 17.0161479 | AV26: 0.1732167731 | AW26: 37.71205393 | AX26: 0 | AY26: 0 | AZ26: 84.62796658 | BA26: 6.351941443 | BB26: 9.46182343 | BC26: 9.46182343 | BD26: 9.46182343 | BE26: 2199.346766 | BF26: 2059.989856 | BG26: 2199.346024 | BH26: 60 | BJ26: 66.39439209 | BK26: 0.07815756296 | BL26: 17.0161479 | BM26: 0.1732167731 | BN26: 37.71205393 | BO26: 0 | BP26: 0 | BQ26: 18.23357448 | BR26: 3.092557937 | BS26: 4.562508095 | BT26: 4.562508095 | BU26: 4.562508095 | BV26: 993.3307742 | BW26: 30 | BY26: 221.3146403 | BZ26: 0.07815756296 | CA26: 17.0161479 | CB26: 0.1732167731 | CC26: 37.71205393 | CD26: 0 | CE26: 0 | CF26: 173.1538227 | CG26: 12.1338243 | CH26: 17.65802993 | CI26: 17.40665559 | CJ26: 17.40665559 | CK26: 17.40665559 | CL26: 100 | CN26: 221.3146403 | CO26: 0.07815756296 | CP26: 8.508073948 | CQ26: 0.1732167731 | CR26: 18.85602697 | CS26: 0 | CT26: 0 | CU26: 197.2342315 | CV26: 12.95009058 | CW26: 18.79321916 | CX26: 18.54184483 | CY26: 18.54184483 | CZ26: 18.54184483 | DA26: 100 | DC26: 221.3146403 | DD26: 0.07815756296 | DE26: 5.104844369 | DF26: 0.1732167731 | DG26: 11.31361618 | DH26: 0 | DI26: 0 | DJ26: 206.866395 | DK26: 17.12186261 | DL26: 24.42038258 | DM26: 24.16900824 | DN26: 24.16900824 | DO26: 24.16900824 | DP26: 100 | DR26: 221.3146403 | DS26: 0.07815756296 | DT26: 3.403229579 | DU26: 0.1732167731 | DV26: 7.542410787 | DW26: 0 | DX26: 0 | DY26: 211.6824768 | DZ26: 21.21261054 | EA26: 29.59372862 | EB26: 29.34235428 | EC26: 29.34235428 | ED26: 29.34235428 | EE26: 100 | EG26: 115.9519679 | EH26: 3.374597191 | EI26: 11.6795062 | EJ26: 125.2281253 | EK26: -39888.47448 | EL26: 53.32453251 | EM26: 29.2 | EN26: 41.32848164 | EO26: 41.0771073 | EP26: 41.0771073 | EQ26: 29.2 | ER26: 41.32848164 | ES26: 41.0771073 | ET26: 41.0771073 | EV26: 108.3205121 | EW26: 3.374597191 | EX26: 12.00264531 | EY26: 169.8580449 | EZ26: -41600 | FA26: 52.21976011 | FB26: 29.2 | FC26: 38.4 | FD26: 38.14862566 | FE26: 38.14862566 | FF26: 29.2 | FG26: 38.4 | FH26: 38.14862566 | FI26: 38.14862566 | FK26: 108.3205121 | FL26: 3.374597191 | FM26: 12.00264531 | FN26: 169.8580449 | FO26: -58800 | FP26: -77.42490169 | FQ26: 29.2 | FR26: 38.4 | FS26: 38.65137434 | FT26: 38.65137434 | FU26: 29.2 | FV26: 38.4 | FW26: 38.65137434 | FX26: 38.65137434 | FY26: 38.14862566 | GA26: =IF(Feldschwächung!U26<n_MAX_FS,Feldschwächung!U26,n_MAX_FS) -> 1584.052878 | GB26: =IF(Feldschwächung!U26<n_MAX_FS,Feldschwächung!CJ26,GB25) -> 39.82325606 | HB26: 6.424 | HC26: 0.002823277535 | HD26: 0.5248437486 | HE26: -53307.96442 | HF26: 4253.33962 | HG26: 9.48396866
O27: =EXP_VR -> 0.6 | P27: Exponent variable Reibung | R27: ST | S27: 0.23 | T27: 0.4795831523 | U27: 2125.75986 | V27: 222.609052 | X27: 221.3146403 | Y27: 0.07815756296 | Z27: 17.39858099 | AA27: 0.1755421812 | AB27: 39.07727853 | AC27: 0 | AD27: 0 | AE27: 171.6158839 | AF27: 8.541721415 | AG27: 12.49561866 | AH27: 12.49561866 | AI27: 12.49561866 | AJ27: 3009.730561 | AK27: 2781.637823 | AL27: 3009.729567 | AM27: 100 | AN27: 8.541721415 | AO27: 12.49561866 | AP27: 12.49561866 | AQ27: 12.49561866 | AS27: 132.7887842 | AT27: 0.07815756296 | AU27: 17.39858099 | AV27: 0.1755421812 | AW27: 39.07727853 | AX27: 0 | AY27: 0 | AZ27: 83.0900278 | BA27: 6.293960094 | BB27: 9.370834688 | BC27: 9.370834688 | BD27: 9.370834688 | BE27: 2225.599264 | BF27: 2086.032626 | BG27: 2225.598513 | BH27: 60 | BJ27: 66.39439209 | BK27: 0.07815756296 | BL27: 17.39858099 | BM27: 0.1755421812 | BN27: 39.07727853 | BO27: 0 | BP27: 0 | BQ27: 16.69563571 | BR27: 2.959261997 | BS27: 4.352693936 | BT27: 4.352693936 | BU27: 4.352693936 | BV27: 968.9490705 | BW27: 30 | BY27: 221.3146403 | BZ27: 0.07815756296 | CA27: 17.39858099 | CB27: 0.1755421812 | CC27: 39.07727853 | CD27: 0 | CE27: 0 | CF27: 171.6158839 | CG27: 12.07981827 | CH27: 17.58257607 | CI27: 17.32887633 | CJ27: 17.32887633 | CK27: 17.32887633 | CL27: 100 | CN27: 221.3146403 | CO27: 0.07815756296 | CP27: 8.699290496 | CQ27: 0.1755421812 | CR27: 19.53863927 | CS27: 0 | CT27: 0 | CU27: 196.4652621 | CV27: 12.92482126 | CW27: 18.75822789 | CX27: 18.50452814 | CY27: 18.50452814 | CZ27: 18.50452814 | DA27: 100 | DC27: 221.3146403 | DD27: 0.07815756296 | DE27: 5.219574298 | DF27: 0.1755421812 | DG27: 11.72318356 | DH27: 0 | DI27: 0 | DJ27: 206.4050134 | DK27: 17.1027582 | DL27: 24.39535713 | DM27: 24.14165739 | DN27: 24.14165739 | DO27: 24.14165739 | DP27: 100 | DR27: 221.3146403 | DS27: 0.07815756296 | DT27: 3.479716199 | DU27: 0.1755421812 | DV27: 7.815455707 | DW27: 0 | DX27: 0 | DY27: 211.374889 | DZ27: 21.19719332 | EA27: 29.57497472 | EB27: 29.32127498 | EC27: 29.32127498 | ED27: 29.32127498 | EE27: 100 | EG27: 118.5579554 | EH27: 3.450440305 | EI27: 12.1971383 | EJ27: 128.0425919 | EK27: -39277.34454 | EL27: 51.74024814 | EM27: 29.2 | EN27: 41.32848164 | EO27: 41.0747819 | EP27: 41.0747819 | EQ27: 29.2 | ER27: 41.32848164 | ES27: 41.0747819 | ET27: 41.0747819 | EV27: 110.7549848 | EW27: 3.450440305 | EX27: 12.52027741 | EY27: 173.6755563 | EZ27: -41066.66667 | FA27: 50.7540672 | FB27: 29.2 | FC27: 38.4 | FD27: 38.14630026 | FE27: 38.14630026 | FF27: 29.2 | FG27: 38.4 | FH27: 38.14630026 | FI27: 38.14630026 | FK27: 110.7549848 | FL27: 3.450440305 | FM27: 12.52027741 | FN27: 173.6755563 | FO27: -58266.66667 | FP27: -75.50609208 | FQ27: 29.2 | FR27: 38.4 | FS27: 38.65369974 | FT27: 38.65369974 | FU27: 29.2 | FV27: 38.4 | FW27: 38.65369974 | FX27: 38.65369974 | FY27: 38.14630026 | GA27: =IF(Feldschwächung!U27<n_MAX_FS,Feldschwächung!U27,n_MAX_FS) -> 1641.397618 | GB27: =IF(Feldschwächung!U27<n_MAX_FS,Feldschwächung!CJ27,GB26) -> 39.8189208 | HB27: 6.716 | HC27: 0.002833386318 | HD27: 0.5487002826 | HE27: -53305.60574 | HF27: 4241.693638 | HG27: 9.909936495
O28: =KF_VR -> 1 | P28: Korrekturfaktor variable Reibung | R28: ST | S28: 0.24 | T28: 0.4898979486 | U28: 2171.480356 | V28: 227.3968911 | X28: 221.3146403 | Y28: 0.07815756296 | Z28: 17.77278684 | AA28: 0.1777978529 | AB28: 40.430679 | AC28: 0 | AD28: 0 | AE28: 170.0955904 | AF28: 8.503802979 | AG28: 12.43676617 | AH28: 12.43676617 | AI28: 12.43676617 | AJ28: 3056.382032 | AK28: 2828.081964 | AL28: 3056.38102 | AM28: 100 | AN28: 8.503802979 | AO28: 12.43676617 | AP28: 12.43676617 | AQ28: 12.43676617 | AS28: 132.7887842 | AT28: 0.07815756296 | AU28: 17.77278684 | AV28: 0.1777978529 | AW28: 40.430679 | AX28: 0 | AY28: 0 | AZ28: 81.56973425 | BA28: 6.236114156 | BB28: 9.280122747 | BC28: 9.280122747 | BD28: 9.280122747 | BE28: 2250.045022 | BF28: 2110.271062 | BG28: 2250.044262 | BH28: 60 | BJ28: 66.39439209 | BK28: 0.07815756296 | BL28: 17.77278684 | BM28: 0.1777978529 | BN28: 40.430679 | BO28: 0 | BP28: 0 | BQ28: 15.17534216 | BR28: 2.821312434 | BS28: 4.135705673 | BT28: 4.135705673 | BU28: 4.135705673 | BV28: 940.4466127 | BW28: 30 | BY28: 221.3146403 | BZ28: 0.07815756296 | CA28: 17.77278684 | CB28: 0.1777978529 | CC28: 40.430679 | CD28: 0 | CE28: 0 | CF28: 170.0955904 | CG28: 12.02619351 | CH28: 17.50761331 | CI28: 17.2516579 | CJ28: 17.2516579 | CK28: 17.2516579 | CL28: 100 | CN28: 221.3146403 | CO28: 0.07815756296 | CP28: 8.886393418 | CQ28: 0.1777978529 | CR28: 20.2153395 | CS28: 0 | CT28: 0 | CU28: 195.7051153 | CV28: 12.89979322 | CW28: 18.723561 | CX28: 18.46760559 | CY28: 18.46760559 | CZ28: 18.46760559 | DA28: 100 | DC28: 221.3146403 | DD28: 0.07815756296 | DE28: 5.331836051 | DF28: 0.1777978529 | DG28: 12.1292037 | DH28: 0 | DI28: 0 | DJ28: 205.9489253 | DK28: 17.08385198 | DL28: 24.37058398 | DM28: 24.11462856 | DN28: 24.11462856 | DO28: 24.11462856 | DP28: 100 | DR28: 221.3146403 | DS28: 0.07815756296 | DT28: 3.554557367 | DU28: 0.1777978529 | DV28: 8.0861358 | DW28: 0 | DX28: 0 | DY28: 211.0708303 | DZ28: 21.18194196 | EA28: 29.55641667 | EB28: 29.30046125 | EC28: 29.30046125 | ED28: 29.30046125 | EE28: 100 | EG28: 121.1078806 | EH28: 3.524651813 | EI28: 12.7147704 | EJ28: 130.796511 | EK28: -38666.21459 | EL28: 50.24155142 | EM28: 29.2 | EN28: 41.32848164 | EO28: 41.07252622 | EP28: 41.07252622 | EQ28: 29.2 | ER28: 41.32848164 | ES28: 41.07252622 | ET28: 41.07252622 | EV28: 113.137085 | EW28: 3.524651813 | EX28: 13.03790951 | EY28: 177.4109418 | EZ28: -40533.33333 | FA28: 49.36726567 | FB28: 29.2 | FC28: 38.4 | FD28: 38.14404458 | FE28: 38.14404458 | FF28: 29.2 | FG28: 38.4 | FH28: 38.14404458 | FI28: 38.14404458 | FK28: 113.137085 | FL28: 3.524651813 | FM28: 13.03790951 | FN28: 177.4109418 | FO28: -57733.33333 | FP28: -73.69463228 | FQ28: 29.2 | FR28: 38.4 | FS28: 38.65595542 | FT28: 38.65595542 | FU28: 29.2 | FV28: 38.4 | FW28: 38.65595542 | FX28: 38.65595542 | FY28: 38.14404458 | GA28: =IF(Feldschwächung!U28<n_MAX_FS,Feldschwächung!U28,n_MAX_FS) -> 1698.2457 | GB28: =IF(Feldschwächung!U28<n_MAX_FS,Feldschwächung!CJ28,GB27) -> 39.81439972 | HB28: 7.008 | HC28: 0.00284394438 | HD28: 0.5725568166 | HE28: -53303.14223 | HF28: 4229.789479 | HG28: 10.33522144
O29: =WDS -> 0 | P29: Wellendichtung Ein-Aus | R29: ST | S29: 0.25 | T29: 0.5 | U29: 2216.257858 | V29: 232.0859802 | X29: 221.3146403 | Y29: 0.07815756296 | Z29: 18.13927461 | AA29: 0.1799886594 | AB29: 41.77284443 | AC29: 0 | AD29: 0 | AE29: 168.5919756 | AF29: 8.466133493 | AG29: 12.37835013 | AH29: 12.37835013 | AI29: 12.37835013 | AJ29: 3101.346646 | AK29: 2872.841524 | AL29: 3101.345618 | AM29: 100 | AN29: 8.466133493 | AO29: 12.37835013 | AP29: 12.37835013 | AQ29: 12.37835013 | AS29: 132.7887842 | AT29: 0.07815756296 | AU29: 18.13927461 | AV29: 0.1799886594 | AW29: 41.77284443 | AX29: 0 | AY29: 0 | AZ29: 80.06611944 | BA29: 6.17837014 | BB29: 9.189631529 | BC29: 9.189631529 | BD29: 9.189631529 | BE29: 2272.763648 | BF29: 2132.784641 | BG29: 2272.762879 | BH29: 60 | BJ29: 66.39439209 | BK29: 0.07815756296 | BL29: 18.13927461 | BM29: 0.1799886594 | BN29: 41.77284443 | BO29: 0 | BP29: 0 | BQ29: 13.67172734 | BR29: 2.677895536 | BS29: 3.91027181 | BT29: 3.91027181 | BU29: 3.91027181 | BV29: 907.5192657 | BW29: 30 | BY29: 221.3146403 | BZ29: 0.07815756296 | CA29: 18.13927461 | CB29: 0.1799886594 | CC29: 41.77284443 | CD29: 0 | CE29: 0 | CF29: 168.5919756 | CG29: 11.97292081 | CH29: 17.43310188 | CI29: 17.17495566 | CJ29: 17.17495566 | CK29: 17.17495566 | CL29: 100 | CN29: 221.3146403 | CO29: 0.07815756296 | CP29: 9.069637303 | CQ29: 0.1799886594 | CR29: 20.88642221 | CS29: 0 | CT29: 0 | CU29: 194.9533079 | CV29: 12.8749919 | CW29: 18.68919865 | CX29: 18.43105243 | CY29: 18.43105243 | CZ29: 18.43105243 | DA29: 100 | DC29: 221.3146403 | DD29: 0.07815756296 | DE29: 5.441782382 | DF29: 0.1799886594 | DG29: 12.53185333 | DH29: 0 | DI29: 0 | DJ29: 205.4978409 | DK29: 17.06513257 | DL29: 24.34604844 | DM29: 24.08790221 | DN29: 24.08790221 | DO29: 24.08790221 | DP29: 100 | DR29: 221.3146403 | DS29: 0.07815756296 | DT29: 3.627854921 | DU29: 0.1799886594 | DV29: 8.354568885 | DW29: 0 | DX29: 0 | DY29: 210.7701074 | DZ29: 21.1668471 | EA29: 29.53804328 | EB29: 29.27989705 | EC29: 29.27989705 | ED29: 29.27989705 | EE29: 100 | EG29: 123.605213 | EH29: 3.597332692 | EI29: 13.2324025 | EJ29: 133.4936301 | EK29: -38055.08464 | EL29: 48.81994252 | EM29: 29.2 | EN29: 41.32848164 | EO29: 41.07033542 | EP29: 41.07033542 | EQ29: 29.2 | ER29: 41.32848164 | ES29: 41.07033542 | ET29: 41.07033542 | EV29: 115.4700538 | EW29: 3.597332692 | EX29: 13.55554161 | EY29: 181.0692842 | EZ29: -40000 | FA29: 48.0517203 | FB29: 29.2 | FC29: 38.4 | FD29: 38.14185378 | FE29: 38.14185378 | FF29: 29.2 | FG29: 38.4 | FH29: 38.14185378 | FI29: 38.14185378 | FK29: 115.4700538 | FL29: 3.597332692 | FM29: 13.55554161 | FN29: 181.0692842 | FO29: -57200 | FP29: -71.9802677 | FQ29: 29.2 | FR29: 38.4 | FS29: 38.65814622 | FT29: 38.65814622 | FU29: 29.2 | FV29: 38.4 | FW29: 38.65814622 | FX29: 38.65814622 | FY29: 38.14185378 | GA29: =IF(Feldschwächung!U29<n_MAX_FS,Feldschwächung!U29,n_MAX_FS) -> 1754.621865 | GB29: =IF(Feldschwächung!U29<n_MAX_FS,Feldschwächung!CJ29,GB28) -> 39.80964607 | HB29: 7.3 | HC29: 0.00285495172 | HD29: 0.5964133507 | HE29: -53300.57389 | HF29: 4217.633721 | HG29: 10.75979381
R30: ST | S30: 0.26 | T30: 0.5099019514 | U30: 2260.148413 | V30: 236.6821883 | X30: 221.3146403 | Y30: 0.07815756296 | Z30: 18.49850304 | AA30: 0.1821189526 | AB30: 43.10431224 | AC30: 0 | AD30: 0 | AE30: 167.1041629 | AF30: 8.428694184 | AG30: 12.32033817 | AH30: 12.32033817 | AI30: 12.32033817 | AJ30: 3144.712621 | AK30: 2916.004599 | AL30: 3144.711577 | AM30: 100 | AN30: 8.428694184 | AO30: 12.32033817 | AP30: 12.32033817 | AQ30: 12.32033817 | AS30: 132.7887842 | AT30: 0.07815756296 | AU30: 18.49850304 | AV30: 0.1821189526 | AW30: 43.10431224 | AX30: 0 | AY30: 0 | AZ30: 78.57830674 | BA30: 6.120696793 | BB30: 9.099308888 | BC30: 9.099308888 | BD30: 9.099308888 | BE30: 2293.826238 | BF30: 2153.64434 | BG30: 2293.825462 | BH30: 60 | BJ30: 66.39439209 | BK30: 0.07815756296 | BL30: 18.49850304 | BM30: 0.1821189526 | BN30: 43.10431224 | BO30: 0 | BP30: 0 | BQ30: 12.18391465 | BR30: 2.527990054 | BS30: 3.674798317 | BT30: 3.674798317 | BU30: 3.674798317 | BV30: 869.7593073 | BW30: 30 | BY30: 221.3146403 | BZ30: 0.07815756296 | CA30: 18.49850304 | CB30: 0.1821189526 | CC30: 43.10431224 | CD30: 0 | CE30: 0 | CF30: 167.1041629 | CG30: 11.91997363 | CH30: 17.35900559 | CI30: 17.09872908 | CJ30: 17.09872908 | CK30: 17.09872908 | CL30: 100 | CN30: 221.3146403 | CO30: 0.07815756296 | CP30: 9.249251518 | CQ30: 0.1821189526 | CR30: 21.55215612 | CS30: 0 | CT30: 0 | CU30: 194.2094016 | CV30: 12.8504041 | CW30: 18.65512282 | CX30: 18.39484631 | CY30: 18.39484631 | CZ30: 18.39484631 | DA30: 100 | DC30: 221.3146403 | DD30: 0.07815756296 | DE30: 5.549550911 | DF30: 0.1821189526 | DG30: 12.93129367 | DH30: 0 | DI30: 0 | DJ30: 205.0514971 | DK30: 17.04658966 | DL30: 24.32173719 | DM30: 24.06146068 | DN30: 24.06146068 | DO30: 24.06146068 | DP30: 100 | DR30: 221.3146403 | DS30: 0.07815756296 | DT30: 3.699700607 | DU30: 0.1821189526 | DV30: 8.620862448 | DW30: 0 | DX30: 0 | DY30: 210.4725448 | DZ30: 21.15190028 | EA30: 29.5198444 | EB30: 29.25956789 | EC30: 29.25956789 | ED30: 29.25956789 | EE30: 100 | EG30: 126.0530787 | EH30: 3.668573919 | EI30: 13.7500346 | EJ30: 136.137325 | EK30: -37443.95469 | EL30: 47.46804066 | EM30: 29.2 | EN30: 41.32848164 | EO30: 41.06820513 | EP30: 41.06820513 | EQ30: 29.2 | ER30: 41.32848164 | ES30: 41.06820513 | ET30: 41.06820513 | EV30: 117.7568116 | EW30: 3.668573919 | EX30: 14.07317371 | EY30: 184.6551627 | EZ30: -39466.66667 | FA30: 46.80078371 | FB30: 29.2 | FC30: 38.4 | FD30: 38.13972348 | FE30: 38.13972348 | FF30: 29.2 | FG30: 38.4 | FH30: 38.13972348 | FI30: 38.13972348 | FK30: 117.7568116 | FL30: 3.668573919 | FM30: 14.07317371 | FN30: 184.6551627 | FO30: -56666.66667 | FP30: -70.3540639 | FQ30: 29.2 | FR30: 38.4 | FS30: 38.66027652 | FT30: 38.66027652 | FU30: 29.2 | FV30: 38.4 | FW30: 38.66027652 | FX30: 38.66027652 | FY30: 38.13972348 | GA30: =IF(Feldschwächung!U30<n_MAX_FS,Feldschwächung!U30,n_MAX_FS) -> 1810.54869 | GB30: =IF(Feldschwächung!U30<n_MAX_FS,Feldschwächung!CJ30,GB29) -> 39.80460881 | HB30: 7.592 | HC30: 0.00286640834 | HD30: 0.6202698847 | HE30: -53297.90072 | HF30: 4205.233017 | HG30: 11.18362392
R31: ST | S31: 0.27 | T31: 0.5196152423 | U31: 2303.202728 | V31: 241.1908256 | X31: 221.3146403 | Y31: 0.07815756296 | Z31: 18.85088714 | AA31: 0.1841926384 | AB31: 44.42557453 | AC31: 0 | AD31: 0 | AE31: 165.631354 | AF31: 8.391467914 | AG31: 12.26270079 | AH31: 12.26270079 | AI31: 12.26270079 | AJ31: 3186.559803 | AK31: 2957.650929 | AL31: 3186.558744 | AM31: 100 | AN31: 8.391467914 | AO31: 12.26270079 | AP31: 12.26270079 | AQ31: 12.26270079 | AS31: 132.7887842 | AT31: 0.07815756296 | AU31: 18.85088714 | AV31: 0.1841926384 | AW31: 44.42557453 | AX31: 0 | AY31: 0 | AZ31: 77.10549792 | BA31: 6.063064745 | BB31: 9.009106008 | BC31: 9.009106008 | BD31: 9.009106008 | BE31: 2313.29646 | BF31: 2172.913716 | BG31: 2313.295676 | BH31: 60 | BJ31: 66.39439209 | BK31: 0.07815756296 | BL31: 18.85088714 | BM31: 0.1841926384 | BN31: 44.42557453 | BO31: 0 | BP31: 0 | BQ31: 10.71110583 | BR31: 2.370276944 | BS31: 3.42722806 | BT31: 3.42722806 | BU31: 3.42722806 | BV31: 826.6159653 | BW31: 30 | BY31: 221.3146403 | BZ31: 0.07815756296 | CA31: 18.85088714 | CB31: 0.1841926384 | CC31: 44.42557453 | CD31: 0 | CE31: 0 | CF31: 165.631354 | CG31: 11.86732773 | CH31: 17.28529142 | CI31: 17.02294122 | CJ31: 17.02294122 | CK31: 17.02294122 | CL31: 100 | CN31: 221.3146403 | CO31: 0.07815756296 | CP31: 9.425443569 | CQ31: 0.1841926384 | CR31: 22.21278726 | CS31: 0 | CT31: 0 | CU31: 193.4729972 | CV31: 12.82601784 | CW31: 18.62131715 | CX31: 18.35896694 | CY31: 18.35896694 | CZ31: 18.35896694 | DA31: 100 | DC31: 221.3146403 | DD31: 0.07815756296 | DE31: 5.655266141 | DF31: 0.1841926384 | DG31: 13.32767236 | DH31: 0 | DI31: 0 | DJ31: 204.6096544 | DK31: 17.02821385 | DL31: 24.29763815 | DM31: 24.03528795 | DN31: 24.03528795 | DO31: 24.03528795 | DP31: 100 | DR31: 221.3146403 | DS31: 0.07815756296 | DT31: 3.770177428 | DU31: 0.1841926384 | DV31: 8.885114905 | DW31: 0 | DX31: 0 | DY31: 210.1779831 | DZ31: 21.13709379 | EA31: 29.50181082 | EB31: 29.23946062 | EC31: 29.23946062 | ED31: 29.23946062 | EE31: 100 | EG31: 128.4543054 | EH31: 3.738457797 | EI31: 14.2676667 | EJ31: 138.7306499 | EK31: -36832.82475 | EL31: 46.17939976 | EM31: 29.2 | EN31: 41.32848164 | EO31: 41.06613144 | EP31: 41.06613144 | EQ31: 29.2 | ER31: 41.32848164 | ES31: 41.06613144 | ET31: 41.06613144 | EV31: 120 | EW31: 3.738457797 | EX31: 14.59080581 | EY31: 188.17272 | EZ31: -38933.33333 | FA31: 45.60863694 | FB31: 29.2 | FC31: 38.4 | FD31: 38.1376498 | FE31: 38.1376498 | FF31: 29.2 | FG31: 38.4 | FH31: 38.1376498 | FI31: 38.1376498 | FK31: 120 | FL31: 3.738457797 | FM31: 14.59080581 | FN31: 188.17272 | FO31: -56133.33333 | FP31: -68.80819537 | FQ31: 29.2 | FR31: 38.4 | FS31: 38.6623502 | FT31: 38.6623502 | FU31: 29.2 | FV31: 38.4 | FW31: 38.6623502 | FX31: 38.6623502 | FY31: 38.1376498 | GA31: =IF(Feldschwächung!U31<n_MAX_FS,Feldschwächung!U31,n_MAX_FS) -> 1866.046843 | GB31: =IF(Feldschwächung!U31<n_MAX_FS,Feldschwächung!CJ31,GB30) -> 39.79923224 | HB31: 7.884 | HC31: 0.00287831424 | HD31: 0.6441264187 | HE31: -53295.12271 | HF31: 4192.594088 | HG31: 11.60668206
R32: ST | S32: 0.28 | T32: 0.5291502622 | U32: 2345.466853 | V32: 245.6167145 | X32: 221.3146403 | Y32: 0.07815756296 | Z32: 19.19680383 | AA32: 0.1862132367 | AB32: 45.7370834 | AC32: 0 | AD32: 0 | AE32: 164.1728195 | AF32: 8.354438967 | AG32: 12.20541103 | AH32: 12.20541103 | AI32: 12.20541103 | AJ32: 3226.960736 | AK32: 2997.852956 | AL32: 3226.959663 | AM32: 100 | AN32: 8.354438967 | AO32: 12.20541103 | AP32: 12.20541103 | AQ32: 12.20541103 | AS32: 132.7887842 | AT32: 0.07815756296 | AU32: 19.19680383 | AV32: 0.1862132367 | AW32: 45.7370834 | AX32: 0 | AY32: 0 | AZ32: 75.64696343 | BA32: 6.005446227 | BB32: 8.918976906 | BC32: 8.918976906 | BD32: 8.918976906 | BE32: 2331.231446 | BF32: 2190.649804 | BG32: 2331.230655 | BH32: 60 | BJ32: 66.39439209 | BK32: 0.07815756296 | BL32: 19.19680383 | BM32: 0.1862132367 | BN32: 45.7370834 | BO32: 0 | BP32: 0 | BQ32: 9.252571333 | BR32: 2.202993206 | BS32: 3.164813231 | BT32: 3.164813231 | BU32: 3.164813231 | BV32: 777.3310279 | BW32: 30 | BY32: 221.3146403 | BZ32: 0.07815756296 | CA32: 19.19680383 | CB32: 0.1862132367 | CC32: 45.7370834 | CD32: 0 | CE32: 0 | CF32: 164.1728195 | CG32: 11.81496089 | CH32: 17.21192907 | CI32: 16.94755827 | CJ32: 16.94755827 | CK32: 16.94755827 | CL32: 100 | CN32: 221.3146403 | CO32: 0.07815756296 | CP32: 9.598401914 | CQ32: 0.1862132367 | CR32: 22.8685417 | CS32: 0 | CT32: 0 | CU32: 192.7437299 | CV32: 12.80182215 | CW32: 18.58776666 | CX32: 18.32339586 | CY32: 18.32339586 | CZ32: 18.32339586 | DA32: 100 | DC32: 221.3146403 | DD32: 0.07815756296 | DE32: 5.759041148 | DF32: 0.1862132367 | DG32: 13.72112502 | DH32: 0 | DI32: 0 | DJ32: 204.1720941 | DK32: 17.00999658 | DL32: 24.27374025 | DM32: 24.00936945 | DN32: 24.00936945 | DO32: 24.00936945 | DP32: 100 | DR32: 221.3146403 | DS32: 0.07815756296 | DT32: 3.839360766 | DU32: 0.1862132367 | DV32: 9.14741668 | DW32: 0 | DX32: 0 | DY32: 209.8862762 | DZ32: 21.12242056 | EA32: 29.48393411 | EB32: 29.21956331 | EC32: 29.21956331 | ED32: 29.21956331 | EE32: 100 | EG32: 130.8114618 | EH32: 3.807059075 | EI32: 14.7852988 | EJ32: 141.2763787 | EK32: -36221.6948 | EL32: 44.94835995 | EM32: 29.2 | EN32: 41.32848164 | EO32: 41.06411084 | EP32: 41.06411084 | EQ32: 29.2 | ER32: 41.32848164 | ES32: 41.06411084 | ET32: 41.06411084 | EV32: 122.2020185 | EW32: 3.807059075 | EX32: 15.10843791 | EY32: 191.6257185 | EZ32: -38400 | FA32: 44.47016026 | FB32: 29.2 | FC32: 38.4 | FD32: 38.1356292 | FE32: 38.1356292 | FF32: 29.2 | FG32: 38.4 | FH32: 38.1356292 | FI32: 38.1356292 | FK32: 122.2020185 | FL32: 3.807059075 | FM32: 15.10843791 | FN32: 191.6257185 | FO32: -55600 | FP32: -67.33577408 | FQ32: 29.2 | FR32: 38.4 | FS32: 38.6643708 | FT32: 38.6643708 | FU32: 29.2 | FV32: 38.4 | FW32: 38.6643708 | FX32: 38.6643708 | FY32: 38.1356292 | GA32: =IF(Feldschwächung!U32<n_MAX_FS,Feldschwächung!U32,n_MAX_FS) -> 1921.135314 | GB32: =IF(Feldschwächung!U32<n_MAX_FS,Feldschwächung!CJ32,GB31) -> 39.79345565 | HB32: 8.176 | HC32: 0.002890669418 | HD32: 0.6679829528 | HE32: -53292.23988 | HF32: 4179.723708 | HG32: 12.02893856
R33: ST | S33: 0.29 | T33: 0.5385164807 | U33: 2386.982764 | V33: 249.9642505 | X33: 221.3146403 | Y33: 0.07815756296 | Z33: 19.53659665 | AA33: 0.1881839321 | AB33: 47.03925555 | AC33: 0 | AD33: 0 | AE33: 162.7278904 | AF33: 8.317592882 | AG33: 12.1484441 | AH33: 12.1484441 | AI33: 12.1484441 | AJ33: 3265.981555 | AK33: 3036.676725 | AL33: 3265.980467 | AM33: 100 | AN33: 8.317592882 | AO33: 12.1484441 | AP33: 12.1484441 | AQ33: 12.1484441 | AS33: 132.7887842 | AT33: 0.07815756296 | AU33: 19.53659665 | AV33: 0.1881839321 | AW33: 47.03925555 | AX33: 0 | AY33: 0 | AZ33: 74.20203425 | BA33: 5.94781482 | BB33: 8.828877997 | BC33: 8.828877997 | BD33: 8.828877997 | BE33: 2347.682555 | BF33: 2206.903871 | BG33: 2347.681758 | BH33: 60 | BJ33: 66.39439209 | BK33: 0.07815756296 | BL33: 19.53659665 | BM33: 0.1881839321 | BN33: 47.03925555 | BO33: 0 | BP33: 0 | BQ33: 7.807642157 | BR33: 2.023680221 | BS33: 2.883723552 | BT33: 2.883723552 | BU33: 2.883723552 | BV33: 720.8277963 | BW33: 30 | BY33: 221.3146403 | BZ33: 0.07815756296 | CA33: 19.53659665 | CB33: 0.1881839321 | CC33: 47.03925555 | CD33: 0 | CE33: 0 | CF33: 162.7278904 | CG33: 11.76285266 | CH33: 17.13889065 | CI33: 16.87254916 | CJ33: 16.87254916 | CK33: 16.87254916 | CL33: 100 | CN33: 221.3146403 | CO33: 0.07815756296 | CP33: 9.768298323 | CQ33: 0.1881839321 | CR33: 23.51962778 | CS33: 0 | CT33: 0 | CU33: 192.0212653 | CV33: 12.77780699 | CW33: 18.55445765 | CX33: 18.28811615 | CY33: 18.28811615 | CZ33: 18.28811615 | DA33: 100 | DC33: 221.3146403 | DD33: 0.07815756296 | DE33: 5.860978994 | DF33: 0.1881839321 | DG33: 14.11177667 | DH33: 0 | DI33: 0 | DJ33: 203.7386153 | DK33: 16.99192999 | DL33: 24.25003335 | DM33: 23.98369186 | DN33: 23.98369186 | DO33: 23.98369186 | DP33: 100 | DR33: 221.3146403 | DS33: 0.07815756296 | DT33: 3.907319329 | DU33: 0.1881839321 | DV33: 9.407851111 | DW33: 0 | DX33: 0 | DY33: 209.5972903 | DZ33: 21.10787416 | EA33: 29.46620655 | EB33: 29.19986506 | EC33: 29.19986506 | ED33: 29.19986506 | EE33: 100 | EG33: 133.1268887 | EH33: 3.874445883 | EI33: 15.3029309 | EJ33: 143.7770397 | EK33: -35610.56485 | EL33: 43.76992679 | EM33: 29.2 | EN33: 41.32848164 | EO33: 41.06214015 | EP33: 41.06214015 | EQ33: 29.2 | ER33: 41.32848164 | ES33: 41.06214015 | ET33: 41.06214015 | EV33: 124.365054 | EW33: 3.874445883 | EX33: 15.62607001 | EY33: 195.0175874 | EZ33: -37866.66667 | FA33: 43.38082793 | FB33: 29.2 | FC33: 38.4 | FD33: 38.1336585 | FE33: 38.1336585 | FF33: 29.2 | FG33: 38.4 | FH33: 38.1336585 | FI33: 38.1336585 | FK33: 124.365054 | FL33: 3.874445883 | FM33: 15.62607001 | FN33: 195.0175874 | FO33: -55066.66667 | FP33: -65.93070952 | FQ33: 29.2 | FR33: 38.4 | FS33: 38.6663415 | FT33: 38.6663415 | FU33: 29.2 | FV33: 38.4 | FW33: 38.6663415 | FX33: 38.6663415 | FY33: 38.1336585 | GA33: =IF(Feldschwächung!U33<n_MAX_FS,Feldschwächung!U33,n_MAX_FS) -> 1975.831607 | GB33: =IF(Feldschwächung!U33<n_MAX_FS,Feldschwächung!CJ33,GB32) -> 39.78721304 | HB33: 8.468 | HC33: 0.002903473876 | HD33: 0.6918394868 | HE33: -53289.25222 | HF33: 4166.628701 | HG33: 12.45036371
R34: ST | S34: 0.3 | T34: 0.5477225575 | U34: 2427.788844 | V34: 254.2374532 | X34: 221.3146403 | Y34: 0.07815756296 | Z34: 19.87057976 | AA34: 0.1901076161 | AB34: 48.33247616 | AC34: 0 | AD34: 0 | AE34: 161.2959511 | AF34: 8.280916301 | AG34: 12.09177719 | AH34: 12.09177719 | AI34: 12.09177719 | AJ34: 3303.682746 | AK34: 3074.182638 | AL34: 3303.681645 | AM34: 100 | AN34: 8.280916301 | AO34: 12.09177719 | AP34: 12.09177719 | AQ34: 12.09177719 | AS34: 132.7887842 | AT34: 0.07815756296 | AU34: 19.87057976 | AV34: 0.1901076161 | AW34: 48.33247616 | AX34: 0 | AY34: 0 | AZ34: 72.77009498 | BA34: 5.890145239 | BB34: 8.738767725 | BC34: 8.738767725 | BD34: 8.738767725 | BE34: 2362.696004 | BF34: 2221.722051 | BG34: 2362.695202 | BH34: 60 | BJ34: 66.39439209 | BK34: 0.07815756296 | BL34: 19.87057976 | BM34: 0.1901076161 | BN34: 48.33247616 | BO34: 0 | BP34: 0 | BQ34: 6.375702886 | BR34: 1.828714768 | BS34: 2.578316218 | BT34: 2.578316218 | BU34: 2.578316218 | BV34: 655.5045488 | BW34: 30 | BY34: 221.3146403 | BZ34: 0.07815756296 | CA34: 19.87057976 | CB34: 0.1901076161 | CC34: 48.33247616 | CD34: 0 | CE34: 0 | CF34: 161.2959511 | CG34: 11.71098414 | CH34: 17.06615041 | CI34: 16.79788523 | CJ34: 16.79788523 | CK34: 16.79788523 | CL34: 100 | CN34: 221.3146403 | CO34: 0.07815756296 | CP34: 9.935289878 | CQ34: 0.1901076161 | CR34: 24.16623808 | CS34: 0 | CT34: 0 | CU34: 191.3052957 | CV34: 12.7539631 | CW34: 18.52137752 | CX34: 18.25311234 | CY34: 18.25311234 | CZ34: 18.25311234 | DA34: 100 | DC34: 221.3146403 | DD34: 0.07815756296 | DE34: 5.961173927 | DF34: 0.1901076161 | DG34: 14.49974285 | DH34: 0 | DI34: 0 | DJ34: 203.3090335 | DK34: 16.97400684 | DL34: 24.22650815 | DM34: 23.95824297 | DN34: 23.95824297 | DO34: 23.95824297 | DP34: 100 | DR34: 221.3146403 | DS34: 0.07815756296 | DT34: 3.974115951 | DU34: 0.1901076161 | DV34: 9.666495232 | DW34: 0 | DX34: 0 | DY34: 209.3109025 | DZ34: 21.09344862 | EA34: 29.44862104 | EB34: 29.18035586 | EC34: 29.18035586 | ED34: 29.18035586 | EE34: 100 | EG34: 135.4027268 | EH34: 3.940680525 | EI34: 15.820563 | EJ34: 146.234945 | EK34: -34999.4349 | EL34: 42.63967243 | EM34: 29.2 | EN34: 41.32848164 | EO34: 41.06021646 | EP34: 41.06021646 | EQ34: 29.2 | ER34: 41.32848164 | ES34: 41.06021646 | ET34: 41.06021646 | EV34: 126.4911064 | EW34: 3.940680525 | EX34: 16.14370211 | EY34: 198.3514629 | EZ34: -37333.33333 | FA34: 42.33662153 | FB34: 29.2 | FC34: 38.4 | FD34: 38.13173482 | FE34: 38.13173482 | FF34: 29.2 | FG34: 38.4 | FH34: 38.13173482 | FI34: 38.13173482 | FK34: 126.4911064 | FL34: 3.940680525 | FM34: 16.14370211 | FN34: 198.3514629 | FO34: -54533.33333 | FP34: -64.58759333 | FQ34: 29.2 | FR34: 38.4 | FS34: 38.66826518 | FT34: 38.66826518 | FU34: 29.2 | FV34: 38.4 | FW34: 38.66826518 | FX34: 38.66826518 | FY34: 38.13173482 | GA34: =IF(Feldschwächung!U34<n_MAX_FS,Feldschwächung!U34,n_MAX_FS) -> 2030.1519 | GB34: =IF(Feldschwächung!U34<n_MAX_FS,Feldschwächung!CJ34,GB33) -> 39.78043277 | HB34: 8.76 | HC34: 0.002916727613 | HD34: 0.7156960208 | HE34: -53286.15973 | HF34: 4153.315924 | HG34: 12.87092784
R35: ST | S35: 0.31 | T35: 0.5567764363 | U35: 2467.920304 | V35: 258.4400099 | X35: 221.3146403 | Y35: 0.07815756296 | Z35: 20.19904134 | AA35: 0.1919869228 | AB35: 49.61710223 | AC35: 0 | AD35: 0 | AE35: 159.876434 | AF35: 8.244396848 | AG35: 12.03538918 | AH35: 12.03538918 | AI35: 12.03538918 | AJ35: 3340.119792 | AK35: 3110.426099 | AL35: 3340.118677 | AM35: 100 | AN35: 8.244396848 | AO35: 12.03538918 | AP35: 12.03538918 | AQ35: 12.03538918 | AS35: 132.7887842 | AT35: 0.07815756296 | AU35: 20.19904134 | AV35: 0.1919869228 | AW35: 49.61710223 | AX35: 0 | AY35: 0 | AZ35: 71.35057784 | BA35: 5.832413147 | BB35: 8.648606239 | BC35: 8.648606239 | BD35: 8.648606239 | BE35: 2376.313411 | BF35: 2235.145882 | BG35: 2376.312603 | BH35: 60 | BJ35: 66.39439209 | BK35: 0.07815756296 | BL35: 20.19904134 | BM35: 0.1919869228 | BN35: 49.61710223 | BO35: 0 | BP35: 0 | BQ35: 4.956185752 | BR35: 1.612336644 | BS35: 2.239622251 | BT35: 2.239622251 | BU35: 2.239622251 | BV35: 578.8079967 | BW35: 30 | BY35: 221.3146403 | BZ35: 0.07815756296 | CA35: 20.19904134 | CB35: 0.1919869228 | CC35: 49.61710223 | CD35: 0 | CE35: 0 | CF35: 159.876434 | CG35: 11.65933784 | CH35: 16.99368447 | CI35: 16.72353998 | CJ35: 16.72353998 | CK35: 16.72353998 | CL35: 100 | CN35: 221.3146403 | CO35: 0.07815756296 | CP35: 10.09952067 | CQ35: 0.1919869228 | CR35: 24.80855111 | CS35: 0 | CT35: 0 | CU35: 190.5955371 | CV35: 12.73028198 | CW35: 18.48851464 | CX35: 18.21837016 | CY35: 18.21837016 | CZ35: 18.21837016 | DA35: 100 | DC35: 221.3146403 | DD35: 0.07815756296 | DE35: 6.059712403 | DF35: 0.1919869228 | DG35: 14.88513067 | DH35: 0 | DI35: 0 | DJ35: 202.8831784 | DK35: 16.95622047 | DL35: 24.20315606 | DM35: 23.93301158 | DN35: 23.93301158 | DO35: 23.93301158 | DP35: 100 | DR35: 221.3146403 | DS35: 0.07815756296 | DT35: 4.039808269 | DU35: 0.1919869228 | DV35: 9.923420445 | DW35: 0 | DX35: 0 | DY35: 209.026999 | DZ35: 21.07913849 | EA35: 29.43117104 | EB35: 29.16102655 | EC35: 29.16102655 | ED35: 29.16102655 | EE35: 100 | EG35: 137.64094 | EH35: 4.005820153 | EI35: 16.3381951 | EJ35: 148.6522153 | EK35: -34388.30496 | EL35: 41.55365407 | EM35: 29.2 | EN35: 41.32848164 | EO35: 41.05833716 | EP35: 41.05833716 | EQ35: 29.2 | ER35: 41.32848164 | ES35: 41.05833716 | ET35: 41.05833716 | EV35: 128.5820101 | EW35: 4.005820153 | EX35: 16.66133421 | EY35: 201.6302216 | EZ35: -36800 | FA35: 41.33395841 | FB35: 29.2 | FC35: 38.4 | FD35: 38.12985551 | FE35: 38.12985551 | FF35: 29.2 | FG35: 38.4 | FH35: 38.12985551 | FI35: 38.12985551 | FK35: 128.5820101 | FL35: 4.005820153 | FM35: 16.66133421 | FN35: 201.6302216 | FO35: -54000 | FP35: -63.3016038 | FQ35: 29.2 | FR35: 38.4 | FS35: 38.67014449 | FT35: 38.67014449 | FU35: 29.2 | FV35: 38.4 | FW35: 38.67014449 | FX35: 38.67014449 | FY35: 38.12985551 | GA35: =IF(Feldschwächung!U35<n_MAX_FS,Feldschwächung!U35,n_MAX_FS) -> 2084.111189 | GB35: =IF(Feldschwächung!U35<n_MAX_FS,Feldschwächung!CJ35,GB34) -> 39.77303729 | HB35: 9.052 | HC35: 0.002930430629 | HD35: 0.7395525548 | HE35: -53282.96241 | HF35: 4139.792265 | HG35: 13.29060124
B36: Nennpunkte anderer Wicklungen gleicher Baugrösse | R36: ST | S36: 0.32 | T36: 0.5656854249 | U36: =N_LL_HOT*T36 -> 2507.409536 | V36: 262.5753126 | X36: 221.3146403 | Y36: 0.07815756296 | Z36: =Y36*OMEGA_DD -> 20.52224653 | AA36: =VR_KL*(DREHZAHL_DD/1000)^EXP_VR -> 0.1938242593 | AB36: =AA36*OMEGA_DD -> 50.89346549 | AC36: =MR_WD*WDS -> 0 | AD36: =AC36*OMEGA_DD -> 0 | AE36: =X36-(Z36+AB36)*(OBM*R_th_CU_FE+R_th_FE_AL+R_th_AL_U)/(R_th_CU_FE+R_th_FE_AL+R_th_AL_U)-AD36*(WDS*R_th_AL_U)/(R_th_CU_FE+R_th_FE_AL+R_th_AL_U) -> 158.4688137 | AF36: 8.208023018 | AG36: =AF36*KT_I_100K-Y36-AA36-WDS*AC36 -> 11.9792605 | AH36: =IF(AG36<M_MAX_MIN,AG36,#N/A) -> 11.9792605 | AI36: 11.9792605 | AJ36: =AE36+KE_ph_ph_HOT/SQRT(3)*DREHZAHL_DD/1000*AF36*3 -> 3375.343724 | AK36: =AH36*OMEGA_DD -> 3145.458071 | AL36: 3375.342597 | AM36: =(Z36+AB36+AD36+AE36)*R_th_AL_U+(Z36+AB36+AE36)*R_th_FE_AL+AE36*R_th_CU_FE -> 100 | AN36: =IF(AF36>I_R_NENN,I_R_NENN,AF36) -> 8.208023018 | AO36: =AN36*KT_I_100K-Y36-AA36-WDS*AC36 -> 11.9792605 | AP36: 11.9792605 | AQ36: 11.9792605 | AS36: 132.7887842 | AT36: 0.07815756296 | AU36: =AT36*OMEGA_DD -> 20.52224653 | AV36: =VR_KL*(DREHZAHL_DD/1000)^EXP_VR -> 0.1938242593 | AW36: =AV36*OMEGA_DD -> 50.89346549 | AX36: =MR_WD*WDS -> 0 | AY36: =AX36*OMEGA_DD -> 0 | AZ36: =AS36-(AU36+AW36)*(OBM*R_th_CU_FE+R_th_FE_AL+R_th_AL_U)/(R_th_CU_FE+R_th_FE_AL+R_th_AL_U)-AD36*(WDS*R_th_AL_U)/(R_th_CU_FE+R_th_FE_AL+R_th_AL_U) -> 69.94295761 | BA36: =IF(AZ36>=0,SQRT(AZ36/(3*R_ph_100)),-SQRT(ABS(AZ36)/(3*R_ph_100))) -> 5.774594985 | BB36: =BA36*KT_60K-AT36-AV36-WDS*AX36 -> 8.558355109 | BC36: =IF(BB36<M_MAX_MIN,BB36,#N/A) -> 8.558355109 | BD36: 8.558355109 | BE36: =AZ36+KE_60K/SQRT(3)*DREHZAHL_DD/1000*BA36*3 -> 2388.572251 | BF36: =BC36*OMEGA_DD -> 2247.212768 | BG36: 2388.571438 | BH36: =(AU36+AW36+AY36+AZ36)*R_th_AL_U+(AU36+AW36+AZ36)*R_th_FE_AL+AZ36*R_th_CU_FE -> 60 | BJ36: =P_V_TOT_30K -> 66.39439209 | BK36: 0.07815756296 | BL36: =BK36*OMEGA_DD -> 20.52224653 | BM36: =VR_KL*(DREHZAHL_DD/1000)^EXP_VR -> 0.1938242593 | BN36: =BM36*OMEGA_DD -> 50.89346549 | BO36: =MR_WD*WDS -> 0 | BP36: =BO36*OMEGA_DD -> 0 | BQ36: =BJ36-(BL36+BN36)*(OBM*R_th_CU_FE+R_th_FE_AL+R_th_AL_U)/(R_th_CU_FE+R_th_FE_AL+R_th_AL_U)-BP36*(WDS*R_th_AL_U)/(R_th_CU_FE+R_th_FE_AL+R_th_AL_U) -> 3.54856552 | BR36: =IF(BQ36>=0,SQRT(BQ36/(3*R_ph_70)),-SQRT(ABS(BQ36)/(3*R_ph_70))) -> 1.3642952 | BS36: =BR36*KT_30K-BK36-BM36-WDS*BO36 -> 1.851683062 | BT36: =IF(BS36<M_MAX_MIN,BS36,#N/A) -> 1.851683062 | BU36: 1.851683062 | BV36: =BT36*OMEGA_DD -> 486.2062588 | BW36: =(BL36+BN36+BP36+BQ36)*R_th_AL_U+(BL36+BN36+BQ36)*R_th_FE_AL+BQ36*R_th_CU_FE -> 30 | BY36: 221.3146403 | BZ36: 0.07815756296 | CA36: 20.52224653 | CB36: =VR_KL*(DREHZAHL_DD/1000)^EXP_VR -> 0.1938242593 | CC36: 50.89346549 | CD36: =MR_WD*WDS -> 0 | CE36: =CD36*OMEGA_DD -> 0 | CF36: =BY36-(CA36+CC36)*(OBM*R_th_CU_FE+R_th_FE_AL+R_th_AL_U)/(R_th_CU_FE+R_th_FE_AL+R_th_AL_U)-CE36*(WDS*R_th_AL_U)/(R_th_CU_FE+R_th_FE_AL+R_th_AL_U) -> 158.4688137 | CG36: =IF(CF36>=0,SQRT(CF36/(3*R_ph_140))*SQRT(1/0.5^EX_MULT),-SQRT(ABS(CF36)/(3*R_ph_140))*SQRT(1/0.5^EX_MULT)) -> 11.60789747 | CH36: =IF(CG36<=ESPS*I_0_100K,KT_hot*CG36,IF(CG36<=I_MAX,KT_hot*CG36+m_1_hot/6*(CG36-ESPS*I_0_100K)^3,IF(CG36<=I_SAT_hot,KT_hot*I_MAX+m_1_hot/6*(I_MAX-ESPS*I_0_100K)^3+m_2_hot/6*(I_SAT_hot-I_MAX)^3-m_2_hot/6*(I_SAT_hot-CG36)^3,M_SAT_hot_SN))) -> 16.92147062 | CI36: =CH36-M_KR_DD-M_VR_DD-WDS*MR_WD -> 16.64948879 | CJ36: =IF(CI36<M_MAX_MIN,CI36,#N/A) -> 16.64948879 | CK36: 16.64948879 | CL36: =(CA36+CC36+CE36+CF36)*R_th_AL_U+(CA36+CC36+CF36)*R_th_FE_AL+CF36*R_th_CU_FE -> 100 | CN36: 221.3146403 | CO36: 0.07815756296 | CP36: =CO36*OMEGA_DD*0.5 -> 10.26112326 | CQ36: =VR_KL*(DREHZAHL_DD/1000)^EXP_VR -> 0.1938242593 | CR36: =CQ36*OMEGA_DD*0.5 -> 25.44673274 | CS36: =MR_WD*WDS -> 0 | CT36: =CS36*OMEGA_DD*0.5 -> 0 | CU36: =(CN36-(CP36+CR36)*(OBM*R_th_CU_FE+R_th_FE_AL+R_th_AL_U)/(R_th_CU_FE+R_th_FE_AL+R_th_AL_U))-CT36*(WDS*R_th_AL_U)/(R_th_CU_FE+R_th_FE_AL+R_th_AL_U) -> 189.891727 | CV36: =IF(CU36>=0,SQRT(CU36/(3*R_ph_140))*SQRT(1/0.5^EX_MULT),-SQRT(ABS(CU36)/(3*R_ph_140))*SQRT(1/0.5^EX_MULT)) -> 12.70675576 | CW36: =IF(CV36<=ESPS*I_0_100K,KT_hot*CV36,IF(CV36<=I_MAX,KT_hot*CV36+m_1_hot/6*(CV36-ESPS*I_0_100K)^3,IF(CV36<=I_SAT_hot,KT_hot*I_MAX+m_1_hot/6*(I_MAX-ESPS*I_0_100K)^3+m_2_hot/6*(I_SAT_hot-I_MAX)^3-m_2_hot/6*(I_SAT_hot-CV36)^3,M_SAT_hot_SN))) -> 18.45585828 | CX36: =CW36-CO36-CQ36-WDS*CS36 -> 18.18387646 | CY36: =IF(CX36<M_MAX_MIN,CX36,#N/A) -> 18.18387646 | CZ36: 18.18387646 | DA36: =(CP36+CR36+CT36+CU36)*R_th_AL_U+(CP36+CR36+CU36)*R_th_FE_AL+3*CV36^2*R_ph_140*0.5*R_th_CU_FE -> 100 | DC36: 221.3146403 | DD36: 0.07815756296 | DE36: =DD36*OMEGA_DD*0.3 -> 6.156673958 | DF36: =VR_KL*(DREHZAHL_DD/1000)^EXP_VR -> 0.1938242593 | DG36: =DF36*OMEGA_DD*0.3 -> 15.26803965 | DH36: =MR_WD*WDS -> 0 | DI36: =DH36*OMEGA_DD*0.3 -> 0 | DJ36: =(DC36-(DE36+DG36)*(OBM*R_th_CU_FE+R_th_FE_AL+R_th_AL_U)/(R_th_CU_FE+R_th_FE_AL+R_th_AL_U))-DI36*(WDS*R_th_AL_U)/(R_th_CU_FE+R_th_FE_AL+R_th_AL_U) -> 202.4608923 | DK36: =IF(DJ36>=0,SQRT(DJ36/(3*R_ph_140))*SQRT(1/0.3^EX_MULT),-SQRT(ABS(DJ36)/(3*R_ph_140))*SQRT(1/0.3^EX_MULT)) -> 16.93856473 | DL36: =IF(DK36<=ESPS*I_0_100K,KT_hot*DK36,IF(DK36<=I_MAX,KT_hot*DK36+m_1_hot/6*(DK36-ESPS*I_0_100K)^3,IF(DK36<=I_SAT_hot,KT_hot*I_MAX+m_1_hot/6*(I_MAX-ESPS*I_0_100K)^3+m_2_hot/6*(I_SAT_hot-I_MAX)^3-m_2_hot/6*(I_SAT_hot-DK36)^3,M_SAT_hot_SN))) -> 24.17996915 | DM36: =DL36-DD36-DF36-WDS*DH36 -> 23.90798732 | DN36: =IF(DM36<M_MAX_MIN,DM36,#N/A) -> 23.90798732 | DO36: 23.90798732 | DP36: =(DE36+DG36+DI36+DJ36)*R_th_AL_U+(DE36+DG36+DJ36)*R_th_FE_AL+3*DK36^2*R_ph_140*0.3*R_th_CU_FE -> 100 | DR36: 221.3146403 | DS36: 0.07815756296 | DT36: =DS36*OMEGA_DD*0.2 -> 4.104449305 | DU36: =VR_KL*(DREHZAHL_DD/1000)^EXP_VR -> 0.1938242593 | DV36: =DU36*OMEGA_DD*0.2 -> 10.1786931 | DW36: =MR_WD*WDS -> 0 | DX36: =DW36*OMEGA_DD*0.2 -> 0 | DY36: =(DR36-(DT36+DV36)*(OBM*R_th_CU_FE+R_th_FE_AL+R_th_AL_U)/(R_th_CU_FE+R_th_FE_AL+R_th_AL_U))-DX36*(WDS*R_th_AL_U)/(R_th_CU_FE+R_th_FE_AL+R_th_AL_U) -> 208.745475 | DZ36: =IF(DY36>=0,SQRT(DY36/(3*R_ph_140))*SQRT(1/0.2^EX_MULT),-SQRT(ABS(DY36)/(3*R_ph_140))*SQRT(1/0.2^EX_MULT)) -> 21.06493869 | EA36: =IF(DZ36<=ESPS*I_0_100K,KT_hot*DZ36,IF(DZ36<=I_MAX,KT_hot*DZ36+m_1_hot/6*(DZ36-ESPS*I_0_100K)^3,IF(DZ36<=I_SAT_hot,KT_hot*I_MAX+m_1_hot/6*(I_MAX-ESPS*I_0_100K)^3+m_2_hot/6*(I_SAT_hot-I_MAX)^3-m_2_hot/6*(I_SAT_hot-DZ36)^3,M_SAT_hot_SN))) -> 29.41385048 | EB36: =EA36-DS36-DU36-WDS*DW36 -> 29.14186866 | EC36: =IF(EB36<M_MAX_MIN,EB36,#N/A) -> 29.14186866 | ED36: 29.14186866 | EE36: =(DT36+DV36+DX36+DY36)*R_th_AL_U+(DT36+DV36+DY36)*R_th_FE_AL+3*DZ36^2*R_ph_140*0.2*R_th_CU_FE -> 100 | EG36: 139.8433349 | EH36: =OMEGA_DD*PP*L_ph/1000 -> 4.069917346 | EI36: =XL_ph_DD^2+R_ph_25^2 -> 16.8558272 | EJ36: =2*R_ph_25*EMK_PH_cold_DD -> 151.0308017 | EK36: =EMK_PH_cold_DD^2-(U_AC/SQRT(3))^2 -> -33777.17501 | EL36: =(-koeff_b_cold_DD+SQRT(koeff_b_cold_DD^2-4*koeff_a_cold_DD*koeff_c_cold_DD))/(2*koeff_a_cold_DD) -> 40.50834621 | EM36: =IF(EL36>I_MAX,I_MAX,EL36) -> 29.2 | EN36: =IF(EM36<=ESPS*I_0_100K,KT_cold*EM36,IF(EM36<=I_MAX,KT_cold*EM36+m_1_cold/6*(EM36-ESPS*I_0_100K)^3,IF(EM36<=I_SAT_hot,KT_cold*I_MAX+m_1_cold/6*(I_MAX-ESPS*I_0_100K)^3+m_2_cold/6*(I_SAT_hot-I_MAX)^3-m_2_cold/6*(I_SAT_hot-EM36)^3,M_SAT_cold_SN))) -> 41.32848164 | EO36: =EN36-M_KR_DD-M_VR_DD-WDS*MR_WD -> 41.05649982 | EP36: 41.05649982 | EQ36: =IF(EL36>MIN(I_R_MAX,I_MAX),MIN(I_R_MAX,I_MAX),EL36) -> 29.2 | ER36: 41.32848164 | ES36: 41.05649982 | ET36: 41.05649982 | EV36: 130.6394529 | EW36: 4.069917346 | EX36: 17.17896631 | EY36: 204.85651 | EZ36: -36266.66667 | FA36: 40.36963192 | FB36: 29.2 | FC36: 38.4 | FD36: 38.12801818 | FE36: 38.12801818 | FF36: =IF(FA36>MIN(I_R_MAX,I_MAX),MIN(I_R_MAX,I_MAX),FA36) -> 29.2 | FG36: 38.4 | FH36: 38.12801818 | FI36: 38.12801818 | FK36: 130.6394529 | FL36: 4.069917346 | FM36: 17.17896631 | FN36: 204.85651 | FO36: =EMK_ph_hot_DD^2-(U_BC/SQRT(2)/SQRT(3))^2 -> -53466.66667 | FP36: =(-koeff_b_hot_DDG-SQRT(koeff_b_hot_DDG^2-4*koeff_a_hot_DDG*koeff_c_hot_DDG))/(2*koeff_a_hot_DDG) -> -62.06842619 | FQ36: =IF(-FP36>I_MAX,I_MAX,-FP36) -> 29.2 | FR36: 38.4 | FS36: =FR36+M_KR_DD+M_VR_DD+WDS*MR_WD -> 38.67198182 | FT36: 38.67198182 | FU36: =IF(-FP36>MIN(I_R_MAX,I_MAX),MIN(I_R_MAX,I_MAX),-FP36) -> 29.2 | FV36: 38.4 | FW36: 38.67198182 | FX36: 38.67198182 | FY36: 38.12801818 | GA36: =IF(Feldschwächung!U36<n_MAX_FS,Feldschwächung!U36,n_MAX_FS) -> 2137.723408 | GB36: =IF(Feldschwächung!U36<n_MAX_FS,Feldschwächung!CJ36,GB35) -> 39.76494289 | HB36: =S36*I_MAX -> 9.344 | HC36: =(KE_ph_ph_HOT/SQRT(3)/1000)^2+(HB36*2*PI()/60*PP*L_H/1000)^2 -> 0.002944582925 | HD36: =2*KE_ph_ph_HOT/SQRT(3)/1000*HB36*R_ph_140 -> 0.7634090889 | HE36: =-(U_AC^2)/3+HB36^2*R_ph_140^2 -> -53279.66026 | HF36: =(-b_koeff_DD+SQRT(b_koeff_DD^2-4*a_koeff_DD*c_koeff_DD))/(2*a_koeff_DD) -> 4126.06463 | HG36: =IF(HB36<=ESPS*I_0_100K,KT_hot*HB36,IF(HB36<=I_MAX,KT_hot*HB36+m_1_hot/6*(HB36-ESPS*I_0_100K)^3,IF(HB36<=I_SAT_hot,KT_hot*I_MAX+m_1_hot/6*(I_MAX-ESPS*I_0_100K)^3+m_2_hot/6*(I_SAT_hot-I_MAX)^3-m_2_hot/6*(I_SAT_hot-HB36)^3,M_SAT_hot_SN))) -> 13.70935423
B37: n [RPM] | C37: M N [Nm] | D37: P N [W] | R37: ST | S37: 0.33 | T37: 0.5744562647 | U37: 2546.286421 | V37: 266.6464905 | X37: 221.3146403 | Y37: 0.07815756296 | Z37: 20.84043987 | AA37: 0.1956218319 | AB37: 52.16187494 | AC37: 0 | AD37: 0 | AE37: 157.0726033 | AF37: 8.171784082 | AG37: 11.92337293 | AH37: 11.92337293 | AI37: 11.92337293 | AJ37: 3409.401604 | AK37: 3179.325546 | AL37: 3409.400464 | AM37: 100 | AN37: 8.171784082 | AO37: 11.92337293 | AP37: 11.92337293 | AQ37: 11.92337293 | AS37: 132.7887842 | AT37: 0.07815756296 | AU37: 20.84043987 | AV37: 0.1956218319 | AW37: 52.16187494 | AX37: 0 | AY37: 0 | AZ37: 68.54674716 | BA37: 5.716667831 | BB37: 8.467977075 | BC37: 8.467977075 | BD37: 8.467977075 | BE37: 2399.506247 | BF37: 2257.956368 | BG37: 2399.50543 | BH37: 60 | BJ37: 66.39439209 | BK37: 0.07815756296 | BL37: 20.84043987 | BM37: 0.1956218319 | BN37: 52.16187494 | BO37: 0 | BP37: 0 | BQ37: 2.152355067 | BR37: 1.062524359 | BS37: 1.38014834 | BT37: 1.38014834 | BU37: 1.38014834 | BV37: 368.0117113 | BW37: 30 | BY37: 221.3146403 | BZ37: 0.07815756296 | CA37: 20.84043987 | CB37: 0.1956218319 | CC37: 52.16187494 | CD37: 0 | CE37: 0 | CF37: 157.0726033 | CG37: 11.55664788 | CH37: 16.84948815 | CI37: 16.57570876 | CJ37: 16.57570876 | CK37: 16.57570876 | CL37: 100 | CN37: 221.3146403 | CO37: 0.07815756296 | CP37: 10.42021993 | CQ37: 0.1956218319 | CR37: 26.08093747 | CS37: 0 | CT37: 0 | CU37: 189.1936218 | CV37: 12.68337712 | CW37: 18.42339848 | CX37: 18.14961908 | CY37: 18.14961908 | CZ37: 18.14961908 | DA37: 100 | DC37: 221.3146403 | DD37: 0.07815756296 | DE37: 6.25213196 | DF37: 0.1956218319 | DG37: 15.64856248 | DH37: 0 | DI37: 0 | DJ37: 202.0420292 | DK37: 16.92103391 | DL37: 24.15694005 | DM37: 23.88316065 | DN37: 23.88316065 | DO37: 23.88316065 | DP37: 100 | DR37: 221.3146403 | DS37: 0.07815756296 | DT37: 4.168087973 | DU37: 0.1956218319 | DV37: 10.43237499 | DW37: 0 | DX37: 0 | DY37: 208.4662329 | DZ37: 21.05084452 | EA37: 29.39665377 | EB37: 29.12287438 | EC37: 29.12287438 | ED37: 29.12287438 | EE37: 100 | EG37: 142.011578 | EH37: 4.133020602 | EI37: 17.3734593 | EJ37: 153.3725042 | EK37: -33166.04506 | EL37: 39.5005841 | EM37: 29.2 | EN37: 41.32848164 | EO37: 41.05470225 | EP37: 41.05470225 | EQ37: 29.2 | ER37: 41.32848164 | ES37: 41.05470225 | ET37: 41.05470225 | EV37: 132.6649916 | EW37: 4.133020602 | EX37: 17.69659841 | EY37: 208.0327693 | EZ37: -35733.33333 | FA37: 39.4407615 | FB37: 29.2 | FC37: 38.4 | FD37: 38.12622061 | FE37: 38.12622061 | FF37: 29.2 | FG37: 38.4 | FH37: 38.12622061 | FI37: 38.12622061 | FK37: 132.6649916 | FL37: 4.133020602 | FM37: 17.69659841 | FN37: 208.0327693 | FO37: -52933.33333 | FP37: -60.8841859 | FQ37: 29.2 | FR37: 38.4 | FS37: 38.67377939 | FT37: 38.67377939 | FU37: 29.2 | FV37: 38.4 | FW37: 38.67377939 | FX37: 38.67377939 | FY37: 38.12622061 | GA37: =IF(Feldschwächung!U37<n_MAX_FS,Feldschwächung!U37,n_MAX_FS) -> 2191.001536 | GB37: =IF(Feldschwächung!U37<n_MAX_FS,Feldschwächung!CJ37,GB36) -> 39.75605941 | HB37: 9.636 | HC37: 0.002959184499 | HD37: 0.7872656229 | HE37: -53276.25327 | HF37: 4112.139935 | HG37: 14.12715711
B38: 0 | C38: 0 | D38: =2*PI()*C38*B38/60 -> 0 | R38: ST | S38: 0.34 | T38: 0.5830951895 | U38: 2584.578591 | V38: 270.6564372 | X38: 221.3146403 | Y38: 0.07815756296 | Z38: 21.15384753 | AA38: 0.197381668 | AB38: 53.42261902 | AC38: 0 | AD38: 0 | AE38: 155.6873498 | AF38: 8.135670013 | AG38: 11.86770946 | AH38: 11.86770946 | AI38: 11.86770946 | AJ38: 3442.336929 | AK38: 3212.07196 | AL38: 3442.335777 | AM38: 100 | AN38: 8.135670013 | AO38: 11.86770946 | AP38: 11.86770946 | AQ38: 11.86770946 | AS38: 132.7887842 | AT38: 0.07815756296 | AU38: 21.15384753 | AV38: 0.197381668 | AW38: 53.42261902 | AX38: 0 | AY38: 0 | AZ38: 67.16149363 | BA38: 5.658609259 | BB38: 8.377435818 | BC38: 8.377435818 | BD38: 8.377435818 | BE38: 2409.145712 | BF38: 2267.406931 | BG38: 2409.144891 | BH38: 60 | BJ38: 66.39439209 | BK38: 0.07815756296 | BL38: 21.15384753 | BM38: 0.197381668 | BN38: 53.42261902 | BO38: 0 | BP38: 0 | BQ38: 0.7671015362 | BR38: 0.6343199391 | BS38: 0.7118445699 | BT38: 0.7118445699 | BU38: 0.7118445699 | BV38: 192.6653151 | BW38: 30 | BY38: 221.3146403 | BZ38: 0.07815756296 | CA38: 21.15384753 | CB38: 0.197381668 | CC38: 53.42261902 | CD38: 0 | CE38: 0 | CF38: 155.6873498 | CG38: 11.50557487 | CH38: 16.7777177 | CI38: 16.50217847 | CJ38: 16.50217847 | CK38: 16.50217847 | CL38: 100 | CN38: 221.3146403 | CO38: 0.07815756296 | CP38: 10.57692376 | CQ38: 0.197381668 | CR38: 26.71130951 | CS38: 0 | CT38: 0 | CU38: 188.500995 | CV38: 12.66013928 | CW38: 18.39112598 | CX38: 18.11558674 | CY38: 18.11558674 | CZ38: 18.11558674 | DA38: 100 | DC38: 221.3146403 | DD38: 0.07815756296 | DE38: 6.346154258 | DF38: 0.197381668 | DG38: 16.0267857 | DH38: 0 | DI38: 0 | DJ38: 201.6264531 | DK38: 16.90362269 | DL38: 24.13406193 | DM38: 23.8585227 | DN38: 23.8585227 | DO38: 23.8585227 | DP38: 100 | DR38: 221.3146403 | DS38: 0.07815756296 | DT38: 4.230769505 | DU38: 0.197381668 | DV38: 10.6845238 | DW38: 0 | DX38: 0 | DY38: 208.1891822 | DZ38: 21.03685163 | EA38: 29.3795757 | EB38: 29.10403647 | EC38: 29.10403647 | ED38: 29.10403647 | EE38: 100 | EG38: 144.1472102 | EH38: 4.195174776 | EI38: 17.8910914 | EJ38: 155.6789871 | EK38: -32554.91511 | EL38: 38.52751616 | EM38: 29.2 | EN38: 41.32848164 | EO38: 41.05294241 | EP38: 41.05294241 | EQ38: 29.2 | ER38: 41.32848164 | ES38: 41.05294241 | ET38: 41.05294241 | EV38: 134.6600658 | EW38: 4.195174776 | EX38: 18.21423051 | EY38: 211.1612572 | EZ38: -35200 | FA38: 38.5447505 | FB38: 29.2 | FC38: 38.4 | FD38: 38.12446077 | FE38: 38.12446077 | FF38: 29.2 | FG38: 38.4 | FH38: 38.12446077 | FI38: 38.12446077 | FK38: 134.6600658 | FL38: 4.195174776 | FM38: 18.21423051 | FN38: 211.1612572 | FO38: -52400 | FP38: -59.74539209 | FQ38: 29.2 | FR38: 38.4 | FS38: 38.67553923 | FT38: 38.67553923 | FU38: 29.2 | FV38: 38.4 | FW38: 38.67553923 | FX38: 38.67553923 | FY38: 38.12446077 | GA38: =IF(Feldschwächung!U38<n_MAX_FS,Feldschwächung!U38,n_MAX_FS) -> 2243.957689 | GB38: =IF(Feldschwächung!U38<n_MAX_FS,Feldschwächung!CJ38,GB37) -> 39.74629004 | HB38: 9.928 | HC38: 0.002974235353 | HD38: 0.8111221569 | HE38: -53272.74146 | HF38: 4098.025097 | HG38: 14.54398021
B39: 0 | C39: 0 | D39: =2*PI()*C39*B39/60 -> 0 | R39: ST | S39: 0.35 | T39: 0.5916079783 | U39: 2622.311661 | V39: 274.607835 | X39: 221.3146403 | Y39: 0.07815756296 | Z39: 21.46267915 | AA39: 0.1991056357 | AB39: 54.67596755 | AC39: 0 | AD39: 0 | AE39: 154.3126312 | AF39: 8.099671407 | AG39: 11.81225421 | AH39: 11.81225421 | AI39: 11.81225421 | AJ39: 3474.189996 | AK39: 3243.737555 | AL39: 3474.188833 | AM39: 100 | AN39: 8.099671407 | AO39: 11.81225421 | AP39: 11.81225421 | AQ39: 11.81225421 | AS39: 132.7887842 | AT39: 0.07815756296 | AU39: 21.46267915 | AV39: 0.1991056357 | AW39: 54.67596755 | AX39: 0 | AY39: 0 | AZ39: 65.78677508 | BA39: 5.600397223 | BB39: 8.286695756 | BC39: 8.286695756 | BD39: 8.286695756 | BE39: 2417.517827 | BF39: 2275.591581 | BG39: 2417.517003 | BH39: 60 | BJ39: 66.39439209 | BK39: 0.07815756296 | BL39: 21.46267915 | BM39: 0.1991056357 | BN39: 54.67596755 | BO39: 0 | BP39: 0 | BQ39: -0.6076170098 | BR39: -0.5645428332 | BS39: -1.156031804 | BT39: -1.156031804 | BU39: -1.156031804 | BV39: -317.455391 | BW39: 30 | BY39: 221.3146403 | BZ39: 0.07815756296 | CA39: 21.46267915 | CB39: 0.1991056357 | CC39: 54.67596755 | CD39: 0 | CE39: 0 | CF39: 154.3126312 | CG39: 11.45466515 | CH39: 16.70614109 | CI39: 16.42887789 | CJ39: 16.42887789 | CK39: 16.42887789 | CL39: 100 | CN39: 221.3146403 | CO39: 0.07815756296 | CP39: 10.73133958 | CQ39: 0.1991056357 | CR39: 27.33798378 | CS39: 0 | CT39: 0 | CU39: 187.8136358 | CV39: 12.63703592 | CW39: 18.35903216 | CX39: 18.08176896 | CY39: 18.08176896 | CZ39: 18.08176896 | DA39: 100 | DC39: 221.3146403 | DD39: 0.07815756296 | DE39: 6.438803746 | DF39: 0.1991056357 | DG39: 16.40279027 | DH39: 0 | DI39: 0 | DJ39: 201.2140376 | DK39: 16.88632613 | DL39: 24.11132843 | DM39: 23.83406523 | DN39: 23.83406523 | DO39: 23.83406523 | DP39: 100 | DR39: 221.3146403 | DS39: 0.07815756296 | DT39: 4.292535831 | DU39: 0.1991056357 | DV39: 10.93519351 | DW39: 0 | DX39: 0 | DY39: 207.9142385 | DZ39: 21.02295595 | EA39: 29.36261141 | EB39: 29.08534821 | EC39: 29.08534821 | ED39: 29.08534821 | EE39: 100 | EG39: 146.2516604 | EH39: 4.256421443 | EI39: 18.4087235 | EJ39: 157.9517932 | EK39: -31943.78517 | EL39: 37.58656378 | EM39: 29.2 | EN39: 41.32848164 | EO39: 41.05121844 | EP39: 41.05121844 | EQ39: 29.2 | ER39: 41.32848164 | ES39: 41.05121844 | ET39: 41.05121844 | EV39: 136.6260102 | EW39: 4.256421443 | EX39: 18.73186261 | EY39: 214.2440664 | EZ39: -34666.66667 | FA39: 37.67925049 | FB39: 29.2 | FC39: 38.4 | FD39: 38.1227368 | FE39: 38.1227368 | FF39: 29.2 | FG39: 38.4 | FH39: 38.1227368 | FI39: 38.1227368 | FK39: 136.6260102 | FL39: 4.256421443 | FM39: 18.73186261 | FN39: 214.2440664 | FO39: -51866.66667 | FP39: -58.6488899 | FQ39: 29.2 | FR39: 38.4 | FS39: 38.6772632 | FT39: 38.6772632 | FU39: 29.2 | FV39: 38.4 | FW39: 38.6772632 | FX39: 38.6772632 | FY39: 38.1227368 | GA39: =IF(Feldschwächung!U39<n_MAX_FS,Feldschwächung!U39,n_MAX_FS) -> 2296.6032 | GB39: =IF(Feldschwächung!U39<n_MAX_FS,Feldschwächung!CJ39,GB38) -> 39.73553115 | HB39: 10.22 | HC39: 0.002989735486 | HD39: 0.8349786909 | HE39: -53269.12482 | HF39: 4083.727027 | HG39: 14.95979381
B40: 0 | C40: 0 | D40: 0 | R40: ST | S40: 0.36 | T40: 0.6 | U40: 2659.509429 | V40: 278.5031762 | X40: 221.3146403 | Y40: 0.07815756296 | Z40: 21.76712953 | AA40: 0.2007954603 | AB40: 55.92217346 | AC40: 0 | AD40: 0 | AE40: 152.9480537 | AF40: 8.063779424 | AG40: 11.75699224 | AH40: 11.75699224 | AI40: 11.75699224 | AJ40: 3504.998213 | AK40: 3274.359681 | AL40: 3504.997038 | AM40: 100 | AN40: 8.063779424 | AO40: 11.75699224 | AP40: 11.75699224 | AQ40: 11.75699224 | AS40: 132.7887842 | AT40: 0.07815756296 | AU40: 21.76712953 | AV40: 0.2007954603 | AW40: 55.92217346 | AX40: 0 | AY40: 0 | AZ40: 64.42219756 | BA40: 5.542009942 | BB40: 8.195721857 | BC40: 8.195721857 | BD40: 8.195721857 | BE40: 2424.646896 | BF40: 2282.534568 | BG40: 2424.646069 | BH40: 60 | BJ40: 66.39439209 | BK40: 0.07815756296 | BL40: 21.76712953 | BM40: 0.2007954603 | BN40: 55.92217346 | BO40: 0 | BP40: 0 | BQ40: -1.972194532 | BR40: -1.017083976 | BS40: -1.862148159 | BT40: -1.862148159 | BU40: -1.862148159 | BV40: -518.6141768 | BW40: 30 | BY40: 221.3146403 | BZ40: 0.07815756296 | CA40: 21.76712953 | CB40: 0.2007954603 | CC40: 55.92217346 | CD40: 0 | CE40: 0 | CF40: 152.9480537 | CG40: 11.40390623 | CH40: 16.63474124 | CI40: 16.35578821 | CJ40: 16.35578821 | CK40: 16.35578821 | CL40: 100 | CN40: 221.3146403 | CO40: 0.07815756296 | CP40: 10.88356476 | CQ40: 0.2007954603 | CR40: 27.96108673 | CS40: 0 | CT40: 0 | CU40: 187.131347 | CV40: 12.61406115 | CW40: 18.32710898 | CX40: 18.04815596 | CY40: 18.04815596 | CZ40: 18.04815596 | DA40: 100 | DC40: 221.3146403 | DD40: 0.07815756296 | DE40: 6.530138858 | DF40: 0.2007954603 | DG40: 16.77665204 | DH40: 0 | DI40: 0 | DJ40: 200.8046643 | DK40: 16.86913963 | DL40: 24.08873361 | DM40: 23.80978058 | DN40: 23.80978058 | DO40: 23.80978058 | DP40: 100 | DR40: 221.3146403 | DS40: 0.07815756296 | DT40: 4.353425905 | DU40: 0.2007954603 | DV40: 11.18443469 | DW40: 0 | DX40: 0 | DY40: 207.641323 | DZ40: 21.00915369 | EA40: 29.34575637 | EB40: 29.06680335 | EC40: 29.06680335 | ED40: 29.06680335 | EE40: 100 | EG40: 148.3262557 | EH40: 4.316799231 | EI40: 18.9263556 | EJ40: 160.1923561 | EK40: -31332.65522 | EL40: 36.67538716 | EM40: 29.2 | EN40: 41.32848164 | EO40: 41.04952862 | EP40: 41.04952862 | EQ40: 29.2 | ER40: 41.32848164 | ES40: 41.04952862 | ET40: 41.04952862 | EV40: 138.5640646 | EW40: 4.316799231 | EX40: 19.24949471 | EY40: 217.2831411 | EZ40: -34133.33333 | FA40: 36.84213092 | FB40: 29.2 | FC40: 38.4 | FD40: 38.12104698 | FE40: 38.12104698 | FF40: 29.2 | FG40: 38.4 | FH40: 38.12104698 | FI40: 38.12104698 | FK40: 138.5640646 | FL40: 4.316799231 | FM40: 19.24949471 | FN40: 217.2831411 | FO40: -51333.33333 | FP40: -57.59181976 | FQ40: 29.2 | FR40: 38.4 | FS40: 38.67895302 | FT40: 38.67895302 | FU40: 29.2 | FV40: 38.4 | FW40: 38.67895302 | FX40: 38.67895302 | FY40: 38.12104698 | GA40: =IF(Feldschwächung!U40<n_MAX_FS,Feldschwächung!U40,n_MAX_FS) -> 2348.948693 | GB40: =IF(Feldschwächung!U40<n_MAX_FS,Feldschwächung!CJ40,GB39) -> 39.72367213 | HB40: 10.512 | HC40: 0.003005684898 | HD40: 0.858835225 | HE40: -53265.40334 | HF40: 4069.25262 | HG40: 15.37456825
B41: 0 | C41: 0 | D41: 0 | R41: ST | S41: 0.37 | T41: 0.608276253 | U41: 2696.194051 | V41: 282.3447808 | X41: 221.3146403 | Y41: 0.07815756296 | Z41: 22.06737998 | AA41: 0.202452739 | AB41: 57.16147422 | AC41: 0 | AD41: 0 | AE41: 151.5932486 | AF41: 8.027985736 | AG41: 11.70190953 | AH41: 11.70190953 | AI41: 11.70190953 | AJ41: 3534.79637 | AK41: 3303.973082 | AL41: 3534.795185 | AM41: 100 | AN41: 8.027985736 | AO41: 11.70190953 | AP41: 11.70190953 | AQ41: 11.70190953 | AS41: 132.7887842 | AT41: 0.07815756296 | AU41: 22.06737998 | AV41: 0.202452739 | AW41: 57.16147422 | AX41: 0 | AY41: 0 | AZ41: 63.06739249 | BA41: 5.483425794 | BB41: 8.104479462 | BC41: 8.104479462 | BD41: 8.104479462 | BE41: 2430.554554 | BF41: 2288.257477 | BG41: 2430.553724 | BH41: 60 | BJ41: 66.39439209 | BK41: 0.07815756296 | BL41: 22.06737998 | BM41: 0.202452739 | BN41: 57.16147422 | BO41: 0 | BP41: 0 | BQ41: -3.326999599 | BR41: -1.32101671 | BS41: -2.336907794 | BT41: -2.336907794 | BU41: -2.336907794 | BV41: -659.8137189 | BW41: 30 | BY41: 221.3146403 | BZ41: 0.07815756296 | CA41: 22.06737998 | CB41: 0.202452739 | CC41: 57.16147422 | CD41: 0 | CE41: 0 | CF41: 151.5932486 | CG41: 11.35328631 | CH41: 16.56350202 | CI41: 16.28289172 | CJ41: 16.28289172 | CK41: 16.28289172 | CL41: 100 | CN41: 221.3146403 | CO41: 0.07815756296 | CP41: 11.03368999 | CQ41: 0.202452739 | CR41: 28.58073711 | CS41: 0 | CT41: 0 | CU41: 186.4539445 | CV41: 12.59120943 | CW41: 18.29534892 | CX41: 18.01473862 | CY41: 18.01473862 | CZ41: 18.01473862 | DA41: 100 | DC41: 221.3146403 | DD41: 0.07815756296 | DE41: 6.620213994 | DF41: 0.202452739 | DG41: 17.14844226 | DH41: 0 | DI41: 0 | DJ41: 200.3982228 | DK41: 16.85205887 | DL41: 24.06627192 | DM41: 23.78566162 | DN41: 23.78566162 | DO41: 23.78566162 | DP41: 100 | DR41: 221.3146403 | DS41: 0.07815756296 | DT41: 4.413475996 | DU41: 0.202452739 | DV41: 11.43229484 | DW41: 0 | DX41: 0 | DY41: 207.370362 | DZ41: 20.99544129 | EA41: 29.32900635 | EB41: 29.04839605 | EC41: 29.04839605 | ED41: 29.04839605 | EE41: 100 | EG41: 150.3722317 | EH41: 4.376344102 | EI41: 19.4439877 | EJ41: 162.4020102 | EK41: -30721.52527 | EL41: 35.79185614 | EM41: 29.2 | EN41: 41.32848164 | EO41: 41.04787134 | EP41: 41.04787134 | EQ41: 29.2 | ER41: 41.32848164 | ES41: 41.04787134 | ET41: 41.04787134 | EV41: 140.4753834 | EW41: 4.376344102 | EX41: 19.76712681 | EY41: 220.2802915 | EZ41: -33600 | FA41: 36.03145311 | FB41: 29.2 | FC41: 38.4 | FD41: 38.1193897 | FE41: 38.1193897 | FF41: 29.2 | FG41: 38.4 | FH41: 38.1193897 | FI41: 38.1193897 | FK41: 140.4753834 | FL41: 4.376344102 | FM41: 19.76712681 | FN41: 220.2802915 | FO41: -50800 | FP41: -56.57158253 | FQ41: 29.2 | FR41: 38.4 | FS41: 38.6806103 | FT41: 38.6806103 | FU41: 29.2 | FV41: 38.4 | FW41: 38.6806103 | FX41: 38.6806103 | FY41: 38.1193897 | GA41: =IF(Feldschwächung!U41<n_MAX_FS,Feldschwächung!U41,n_MAX_FS) -> 2401.004143 | GB41: =IF(Feldschwächung!U41<n_MAX_FS,Feldschwächung!CJ41,GB40) -> 39.71059524 | HB41: 10.804 | HC41: 0.00302208359 | HD41: 0.882691759 | HE41: -53261.57704 | HF41: 4054.608751 | HG41: 15.78827381
B42: 0 | C42: 0 | D42: 0 | R42: ST | S42: 0.38 | T42: 0.6164414003 | U42: 2732.386195 | V42: 286.1348132 | X42: 221.3146403 | Y42: 0.07815756296 | Z42: 22.36359968 | AA42: 0.2040789535 | AB42: 58.39409323 | AC42: 0 | AD42: 0 | AE42: 150.2478706 | AF42: 7.992282475 | AG42: 11.64699286 | AH42: 11.64699286 | AI42: 11.64699286 | AJ42: 3563.616886 | AK42: 3332.610126 | AL42: 3563.61569 | AM42: 100 | AN42: 7.992282475 | AO42: 11.64699286 | AP42: 11.64699286 | AQ42: 11.64699286 | AS42: 132.7887842 | AT42: 0.07815756296 | AU42: 22.36359968 | AV42: 0.2040789535 | AW42: 58.39409323 | AX42: 0 | AY42: 0 | AZ42: 61.72201443 | BA42: 5.424623222 | BB42: 8.012934122 | BC42: 8.012934122 | BD42: 8.012934122 | BE42: 2435.259948 | BF42: 2292.779408 | BG42: 2435.259116 | BH42: 60 | BJ42: 66.39439209 | BK42: 0.07815756296 | BL42: 22.36359968 | BM42: 0.2040789535 | BN42: 58.39409323 | BO42: 0 | BP42: 0 | BQ42: -4.672377667 | BR42: -1.565492195 | BS42: -2.719085082 | BT42: -2.719085082 | BU42: -2.719085082 | BV42: -778.0249019 | BW42: 30 | BY42: 221.3146403 | BZ42: 0.07815756296 | CA42: 22.36359968 | CB42: 0.2040789535 | CC42: 58.39409323 | CD42: 0 | CE42: 0 | CF42: 150.2478706 | CG42: 11.30279427 | CH42: 16.49240823 | CI42: 16.21017171 | CJ42: 16.21017171 | CK42: 16.21017171 | CL42: 100 | CN42: 221.3146403 | CO42: 0.07815756296 | CP42: 11.18179984 | CQ42: 0.2040789535 | CR42: 29.19704662 | CS42: 0 | CT42: 0 | CU42: 185.7812554 | CV42: 12.56847561 | CW42: 18.26374492 | CX42: 17.98150841 | CY42: 17.98150841 | CZ42: 17.98150841 | DA42: 100 | DC42: 221.3146403 | DD42: 0.07815756296 | DE42: 6.709079903 | DF42: 0.2040789535 | DG42: 17.51822797 | DH42: 0 | DI42: 0 | DJ42: 199.9946094 | DK42: 16.83507982 | DL42: 24.04393816 | DM42: 23.76170164 | DN42: 23.76170164 | DO42: 23.76170164 | DP42: 100 | DR42: 221.3146403 | DS42: 0.07815756296 | DT42: 4.472719935 | DU42: 0.2040789535 | DV42: 11.67881865 | DW42: 0 | DX42: 0 | DY42: 207.1012864 | DZ42: 20.98181544 | EA42: 29.31235738 | EB42: 29.03012087 | EC42: 29.03012087 | ED42: 29.03012087 | EE42: 100 | EG42: 152.3907412 | EH42: 4.435089605 | EI42: 19.9616198 | EJ42: 164.5820005 | EK42: -30110.39532 | EL42: 34.93402513 | EM42: 29.2 | EN42: 41.32848164 | EO42: 41.04624512 | EP42: 41.04624512 | EQ42: 29.2 | ER42: 41.32848164 | ES42: 41.04624512 | ET42: 41.04624512 | EV42: 142.3610434 | EW42: 4.435089605 | EX42: 20.28475891 | EY42: 223.2372063 | EZ42: -33066.66667 | FA42: 35.24544792 | FB42: 29.2 | FC42: 38.4 | FD42: 38.11776348 | FE42: 38.11776348 | FF42: 29.2 | FG42: 38.4 | FH42: 38.11776348 | FI42: 38.11776348 | FK42: 142.3610434 | FL42: 4.435089605 | FM42: 20.28475891 | FN42: 223.2372063 | FO42: -50266.66667 | FP42: -55.58580956 | FQ42: 29.2 | FR42: 38.4 | FS42: 38.68223652 | FT42: 38.68223652 | FU42: 29.2 | FV42: 38.4 | FW42: 38.68223652 | FX42: 38.68223652 | FY42: 38.11776348 | GA42: =IF(Feldschwächung!U42<n_MAX_FS,Feldschwächung!U42,n_MAX_FS) -> 2452.778933 | GB42: =IF(Feldschwächung!U42<n_MAX_FS,Feldschwächung!CJ42,GB41) -> 39.69617565 | HB42: 11.096 | HC42: 0.00303893156 | HD42: 0.906548293 | HE42: -53257.64591 | HF42: 4039.80226 | HG42: 16.20088082
B43: 0 | C43: 0 | D43: 0 | R43: ST | S43: 0.39 | T43: 0.6244997998 | U43: 2768.105177 | V43: 289.8752963 | X43: 221.3146403 | Y43: 0.07815756296 | Z43: 22.65594672 | AA43: 0.205675481 | AB43: 59.620241 | AC43: 0 | AD43: 0 | AE43: 148.9115951 | AF43: 7.956662192 | AG43: 11.59222973 | AH43: 11.59222973 | AI43: 11.59222973 | AJ43: 3591.490017 | AK43: 3360.301028 | AL43: 3591.48881 | AM43: 100 | AN43: 7.956662192 | AO43: 11.59222973 | AP43: 11.59222973 | AQ43: 11.59222973 | AS43: 132.7887842 | AT43: 0.07815756296 | AU43: 22.65594672 | AV43: 0.205675481 | AW43: 59.620241 | AX43: 0 | AY43: 0 | AZ43: 60.38573899 | BA43: 5.365580631 | BB43: 7.921051442 | BC43: 7.921051442 | BD43: 7.921051442 | BE43: 2438.779894 | BF43: 2296.117134 | BG43: 2438.779061 | BH43: 60 | BJ43: 66.39439209 | BK43: 0.07815756296 | BL43: 22.65594672 | BM43: 0.205675481 | BN43: 59.620241 | BO43: 0 | BP43: 0 | BQ43: -6.008653104 | BR43: -1.775294889 | BS43: -3.047260941 | BT43: -3.047260941 | BU43: -3.047260941 | BV43: -883.3256682 | BW43: 30 | BY43: 221.3146403 | BZ43: 0.07815756296 | CA43: 22.65594672 | CB43: 0.205675481 | CC43: 59.620241 | CD43: 0 | CE43: 0 | CF43: 148.9115951 | CG43: 11.25241958 | CH43: 16.42144541 | CI43: 16.13761237 | CJ43: 16.13761237 | CK43: 16.13761237 | CL43: 100 | CN43: 221.3146403 | CO43: 0.07815756296 | CP43: 11.32797336 | CQ43: 0.205675481 | CR43: 29.8101205 | CS43: 0 | CT43: 0 | CU43: 185.1131177 | CV43: 12.54585482 | CW43: 18.23229038 | CX43: 17.94845734 | CY43: 17.94845734 | CZ43: 17.94845734 | DA43: 100 | DC43: 221.3146403 | DD43: 0.07815756296 | DE43: 6.796784016 | DF43: 0.205675481 | DG43: 17.8860723 | DH43: 0 | DI43: 0 | DJ43: 199.5937268 | DK43: 16.81819867 | DL43: 24.02172745 | DM43: 23.73789441 | DN43: 23.73789441 | DO43: 23.73789441 | DP43: 100 | DR43: 221.3146403 | DS43: 0.07815756296 | DT43: 4.531189344 | DU43: 0.205675481 | DV43: 11.9240482 | DW43: 0 | DX43: 0 | DY43: 206.8340313 | DZ43: 20.96827302 | EA43: 29.29580575 | EB43: 29.01197271 | EC43: 29.01197271 | ED43: 29.01197271 | EE43: 100 | EG43: 154.3828616 | EH43: 4.493067093 | EI43: 20.4792519 | EJ43: 166.7334905 | EK43: -29499.26537 | EL43: 34.10011158 | EM43: 29.2 | EN43: 41.32848164 | EO43: 41.0446486 | EP43: 41.0446486 | EQ43: 29.2 | ER43: 41.32848164 | ES43: 41.0446486 | ET43: 41.0446486 | EV43: 144.222051 | EW43: 4.493067093 | EX43: 20.80239101 | EY43: 226.1554635 | EZ43: -32533.33333 | FA43: 34.4824965 | FB43: 29.2 | FC43: 38.4 | FD43: 38.11616696 | FE43: 38.11616696 | FF43: 29.2 | FG43: 38.4 | FH43: 38.11616696 | FI43: 38.11616696 | FK43: 144.222051 | FL43: 4.493067093 | FM43: 20.80239101 | FN43: 226.1554635 | FO43: -49733.33333 | FP43: -54.63233685 | FQ43: 29.2 | FR43: 38.4 | FS43: 38.68383304 | FT43: 38.68383304 | FU43: 29.2 | FV43: 38.4 | FW43: 38.68383304 | FX43: 38.68383304 | FY43: 38.11616696 | GA43: =IF(Feldschwächung!U43<n_MAX_FS,Feldschwächung!U43,n_MAX_FS) -> 2504.281907 | GB43: =IF(Feldschwächung!U43<n_MAX_FS,Feldschwächung!CJ43,GB42) -> 39.68028133 | HB43: 11.388 | HC43: 0.00305622881 | HD43: 0.9304048271 | HE43: -53253.60994 | HF43: 4024.839955 | HG43: 16.61235959
B44: 0 | C44: 0 | D44: 0 | R44: ST | S44: 0.4 | T44: 0.632455532 | U44: 2803.369085 | V44: 293.5681241 | X44: 221.3146403 | Y44: 0.07815756296 | Z44: 22.94456914 | AA44: 0.2072436044 | AB44: 60.84011618 | AC44: 0 | AD44: 0 | AE44: 147.5841172 | AF44: 7.921117821 | AG44: 11.53760831 | AH44: 11.53760831 | AI44: 11.53760831 | AJ44: 3618.444046 | AK44: 3387.074027 | AL44: 3618.44283 | AM44: 100 | AN44: 7.921117821 | AO44: 11.53760831 | AP44: 11.53760831 | AQ44: 11.53760831 | AS44: 132.7887842 | AT44: 0.07815756296 | AU44: 22.94456914 | AV44: 0.2072436044 | AW44: 60.84011618 | AX44: 0 | AY44: 0 | AZ44: 59.0582611 | BA44: 5.306276307 | BB44: 7.828796929 | BC44: 7.828796929 | BD44: 7.828796929 | BE44: 2441.12901 | BF44: 2298.285229 | BG44: 2441.128175 | BH44: 60 | BJ44: 66.39439209 | BK44: 0.07815756296 | BL44: 22.94456914 | BM44: 0.2072436044 | BN44: 60.84011618 | BO44: 0 | BP44: 0 | BQ44: -7.336130989 | BR44: -1.961622686 | BS44: -3.33886732 | BT44: -3.33886732 | BU44: -3.33886732 | BV44: -980.1850158 | BW44: 30 | BY44: 221.3146403 | BZ44: 0.07815756296 | CA44: 22.94456914 | CB44: 0.2072436044 | CC44: 60.84011618 | CD44: 0 | CE44: 0 | CF44: 147.5841172 | CG44: 11.20215225 | CH44: 16.35059989 | CI44: 16.06519872 | CJ44: 16.06519872 | CK44: 16.06519872 | CL44: 100 | CN44: 221.3146403 | CO44: 0.07815756296 | CP44: 11.47228457 | CQ44: 0.2072436044 | CR44: 30.42005809 | CS44: 0 | CT44: 0 | CU44: 184.4493788 | CV44: 12.52334251 | CW44: 18.20097907 | CX44: 17.9155779 | CY44: 17.9155779 | CZ44: 17.9155779 | DA44: 100 | DC44: 221.3146403 | DD44: 0.07815756296 | DE44: 6.883370743 | DF44: 0.2072436044 | DG44: 18.25203485 | DH44: 0 | DI44: 0 | DJ44: 199.1954834 | DK44: 16.80141187 | DL44: 23.9996352 | DM44: 23.71423404 | DN44: 23.71423404 | DO44: 23.71423404 | DP44: 100 | DR44: 221.3146403 | DS44: 0.07815756296 | DT44: 4.588913829 | DU44: 0.2072436044 | DV44: 12.16802324 | DW44: 0 | DX44: 0 | DY44: 206.5685357 | DZ44: 20.95481108 | EA44: 29.27934795 | EB44: 28.99394678 | EC44: 28.99394678 | ED44: 28.99394678 | EE44: 100 | EG44: 156.3496016 | EH44: 4.550305924 | EI44: 20.996884 | EJ44: 168.8575697 | EK44: -28888.13543 | EL44: 33.28847719 | EM44: 29.2 | EN44: 41.32848164 | EO44: 41.04308047 | EP44: 41.04308047 | EQ44: 29.2 | ER44: 41.32848164 | ES44: 41.04308047 | ET44: 41.04308047 | EV44: 146.0593487 | EW44: 4.550305924 | EX44: 21.32002311 | EY44: 229.036541 | EZ44: -32000 | FA44: 33.74111359 | FB44: 29.2 | FC44: 38.4 | FD44: 38.11459883 | FE44: 38.11459883 | FF44: 29.2 | FG44: 38.4 | FH44: 38.11459883 | FI44: 38.11459883 | FK44: 146.0593487 | FL44: 4.550305924 | FM44: 21.32002311 | FN44: 229.036541 | FO44: -49200 | FP44: -53.70918266 | FQ44: 29.2 | FR44: 38.4 | FS44: 38.68540117 | FT44: 38.68540117 | FU44: 29.2 | FV44: 38.4 | FW44: 38.68540117 | FX44: 38.68540117 | FY44: 38.11459883 | GA44: =IF(Feldschwächung!U44<n_MAX_FS,Feldschwächung!U44,n_MAX_FS) -> 2555.521406 | GB44: =IF(Feldschwächung!U44<n_MAX_FS,Feldschwächung!CJ44,GB43) -> 39.6627732 | HB44: 11.68 | HC44: 0.003073975339 | HD44: 0.9542613611 | HE44: -53249.46915 | HF44: 4009.728596 | HG44: 17.02268041
B45: 0 | C45: 0 | D45: 0 | R45: ST | S45: 0.41 | T45: 0.6403124237 | U45: 2838.194881 | V45: 297.2150729 | X45: 221.3146403 | Y45: 0.07815756296 | Z45: 23.22960578 | AA45: 0.2087845205 | AB45: 62.0539065 | AC45: 0 | AD45: 0 | AE45: 146.2651495 | AF45: 7.88564264 | AG45: 11.48311736 | AH45: 11.48311736 | AI45: 11.48311736 | AJ45: 3644.505452 | AK45: 3412.955564 | AL45: 3644.504226 | AM45: 100 | AN45: 7.88564264 | AO45: 11.48311736 | AP45: 11.48311736 | AQ45: 11.48311736 | AS45: 132.7887842 | AT45: 0.07815756296 | AU45: 23.22960578 | AV45: 0.2087845205 | AW45: 62.0539065 | AX45: 0 | AY45: 0 | AZ45: 57.73929338 | BA45: 5.246688314 | BB45: 7.736135848 | BC45: 7.736135848 | BD45: 7.736135848 | BE45: 2442.319822 | BF45: 2299.29618 | BG45: 2442.318986 | BH45: 60 | BJ45: 66.39439209 | BK45: 0.07815756296 | BL45: 23.22960578 | BM45: 0.2087845205 | BN45: 62.0539065 | BO45: 0 | BP45: 0 | BQ45: -8.655098712 | BR45: -2.130678628 | BS45: -3.603561083 | BT45: -3.603561083 | BU45: -3.603561083 | BV45: -1071.03267 | BW45: 30 | BY45: 221.3146403 | BZ45: 0.07815756296 | CA45: 23.22960578 | CB45: 0.2087845205 | CC45: 62.0539065 | CD45: 0 | CE45: 0 | CF45: 146.2651495 | CG45: 11.15198277 | CH45: 16.27985861 | CI45: 15.99291653 | CJ45: 15.99291653 | CK45: 15.99291653 | CL45: 100 | CN45: 221.3146403 | CO45: 0.07815756296 | CP45: 11.61480289 | CQ45: 0.2087845205 | CR45: 31.02695325 | CS45: 0 | CT45: 0 | CU45: 183.7898949 | CV45: 12.50093436 | CW45: 18.16980512 | CX45: 17.88286304 | CY45: 17.88286304 | CZ45: 17.88286304 | DA45: 100 | DC45: 221.3146403 | DD45: 0.07815756296 | DE45: 6.968881733 | DF45: 0.2087845205 | DG45: 18.61617195 | DH45: 0 | DI45: 0 | DJ45: 198.7997931 | DK45: 16.78471606 | DL45: 23.9776571 | DM45: 23.69071502 | DN45: 23.69071502 | DO45: 23.69071502 | DP45: 100 | DR45: 221.3146403 | DS45: 0.07815756296 | DT45: 4.645921155 | DU45: 0.2087845205 | DV45: 12.4107813 | DW45: 0 | DX45: 0 | DY45: 206.3047421 | DZ45: 20.94142688 | EA45: 29.26298069 | EB45: 28.97603861 | EC45: 28.97603861 | ED45: 28.97603861 | EE45: 100 | EG45: 158.2919071 | EH45: 4.606833631 | EI45: 21.5145161 | EJ45: 170.9552597 | EK45: -28277.00548 | EL45: 32.49761169 | EM45: 29.2 | EN45: 41.32848164 | EO45: 41.04153956 | EP45: 41.04153956 | EQ45: 29.2 | ER45: 41.32848164 | ES45: 41.04153956 | ET45: 41.04153956 | EV45: 147.8738201 | EW45: 4.606833631 | EX45: 21.83765521 | EY45: 231.8818245 | EZ45: -31466.66667 | FA45: 33.01993301 | FB45: 29.2 | FC45: 38.4 | FD45: 38.11305792 | FE45: 38.11305792 | FF45: 29.2 | FG45: 38.4 | FH45: 38.11305792 | FI45: 38.11305792 | FK45: 147.8738201 | FL45: 4.606833631 | FM45: 21.83765521 | FN45: 231.8818245 | FO45: -48666.66667 | FP45: -52.81452804 | FQ45: 29.2 | FR45: 38.4 | FS45: 38.68694208 | FT45: 38.68694208 | FU45: 29.2 | FV45: 38.4 | FW45: 38.68694208 | FX45: 38.68694208 | FY45: 38.11305792 | GA45: =IF(Feldschwächung!U45<n_MAX_FS,Feldschwächung!U45,n_MAX_FS) -> 2606.505319 | GB45: =IF(Feldschwächung!U45<n_MAX_FS,Feldschwächung!CJ45,GB44) -> 39.64350523 | HB45: 11.972 | HC45: 0.003092171148 | HD45: 0.9781178951 | HE45: -53245.22352 | HF45: 3994.474893 | HG45: 17.43181361
R46: ST | S46: 0.42 | T46: 0.6480740698 | U46: 2872.5985 | V46: 300.8178114 | X46: 221.3146403 | Y46: 0.07815756296 | Z46: 23.51118704 | AA46: 0.2102993482 | AB46: 63.26178968 | AC46: 0 | AD46: 0 | AE46: 144.9544208 | AF46: 7.850230245 | AG46: 11.42874622 | AH46: 11.42874622 | AI46: 11.42874622 | AJ46: 3669.699059 | AK46: 3437.970426 | AL46: 3669.697824 | AM46: 100 | AN46: 7.850230245 | AO46: 11.42874622 | AP46: 11.42874622 | AQ46: 11.42874622 | AS46: 132.7887842 | AT46: 0.07815756296 | AU46: 23.51118704 | AV46: 0.2102993482 | AW46: 63.26178968 | AX46: 0 | AY46: 0 | AZ46: 56.42856468 | BA46: 5.186794417 | BB46: 7.643033075 | BC46: 7.643033075 | BD46: 7.643033075 | BE46: 2442.36286 | BF46: 2299.160482 | BG46: 2442.362024 | BH46: 60 | BJ46: 66.39439209 | BK46: 0.07815756296 | BL46: 23.51118704 | BM46: 0.2102993482 | BN46: 63.26178968 | BO46: 0 | BP46: 0 | BQ46: -9.965827413 | BR46: -2.286328436 | BS46: -3.847360742 | BT46: -3.847360742 | BU46: -3.847360742 | BV46: -1157.354638 | BW46: 30 | BY46: 221.3146403 | BZ46: 0.07815756296 | CA46: 23.51118704 | CB46: 0.2102993482 | CC46: 63.26178968 | CD46: 0 | CE46: 0 | CF46: 144.9544208 | CG46: 11.10190208 | CH46: 16.20920915 | CI46: 15.92075224 | CJ46: 15.92075224 | CK46: 15.92075224 | CL46: 100 | CN46: 221.3146403 | CO46: 0.07815756296 | CP46: 11.75559352 | CQ46: 0.2102993482 | CR46: 31.63089484 | CS46: 0 | CT46: 0 | CU46: 183.1345306 | CV46: 12.47862632 | CW46: 18.13876302 | CX46: 17.8503061 | CY46: 17.8503061 | CZ46: 17.8503061 | DA46: 100 | DC46: 221.3146403 | DD46: 0.07815756296 | DE46: 7.053356111 | DF46: 0.2102993482 | DG46: 18.9785369 | DH46: 0 | DI46: 0 | DJ46: 198.4065745 | DK46: 16.76810807 | DL46: 23.95578907 | DM46: 23.66733216 | DN46: 23.66733216 | DO46: 23.66733216 | DP46: 100 | DR46: 221.3146403 | DS46: 0.07815756296 | DT46: 4.702237407 | DU46: 0.2102993482 | DV46: 12.65235794 | DW46: 0 | DX46: 0 | DY46: 206.0425964 | DZ46: 20.92811781 | EA46: 29.24670086 | EB46: 28.95824395 | EC46: 28.95824395 | ED46: 28.95824395 | EE46: 100 | EG46: 160.2106669 | EH46: 4.662676077 | EI46: 22.0321482 | EJ46: 173.0275203 | EK46: -27665.87553 | EL46: 31.72611861 | EM46: 29.2 | EN46: 41.32848164 | EO46: 41.04002473 | EP46: 41.04002473 | EQ46: 29.2 | ER46: 41.32848164 | ES46: 41.04002473 | ET46: 41.04002473 | EV46: 149.6662955 | EW46: 4.662676077 | EX46: 22.35528731 | EY46: 234.6926159 | EZ46: -30933.33333 | FA46: 32.317695 | FB46: 29.2 | FC46: 38.4 | FD46: 38.11154309 | FE46: 38.11154309 | FF46: 29.2 | FG46: 38.4 | FH46: 38.11154309 | FI46: 38.11154309 | FK46: 149.6662955 | FL46: 4.662676077 | FM46: 22.35528731 | FN46: 234.6926159 | FO46: -48133.33333 | FP46: -51.94669985 | FQ46: 29.2 | FR46: 38.4 | FS46: 38.68845691 | FT46: 38.68845691 | FU46: 29.2 | FV46: 38.4 | FW46: 38.68845691 | FX46: 38.68845691 | FY46: 38.11154309 | GA46: =IF(Feldschwächung!U46<n_MAX_FS,Feldschwächung!U46,n_MAX_FS) -> 2657.241108 | GB46: =IF(Feldschwächung!U46<n_MAX_FS,Feldschwächung!CJ46,GB45) -> 39.62232464 | HB46: 12.264 | HC46: 0.003110816235 | HD46: 1.001974429 | HE46: -53240.87307 | HF46: 3979.0855 | HG46: 17.83972948
R47: ST | S47: 0.43 | T47: 0.6557438524 | U47: 2906.594931 | V47: 304.3779094 | X47: 221.3146403 | Y47: 0.07815756296 | Z47: 23.78943562 | AA47: 0.2117891348 | AB47: 64.4639341 | AC47: 0 | AD47: 0 | AE47: 143.651675 | AF47: 7.814874523 | AG47: 11.37448471 | AH47: 11.37448471 | AI47: 11.37448471 | AJ47: 3694.048167 | AK47: 3462.141878 | AL47: 3694.046922 | AM47: 100 | AN47: 7.814874523 | AO47: 11.37448471 | AP47: 11.37448471 | AQ47: 11.37448471 | AS47: 132.7887842 | AT47: 0.07815756296 | AU47: 23.78943562 | AV47: 0.2117891348 | AW47: 64.4639341 | AX47: 0 | AY47: 0 | AZ47: 55.12581883 | BA47: 5.126571981 | BB47: 7.549452951 | BC47: 7.549452951 | BD47: 7.549452951 | BE47: 2441.266732 | BF47: 2297.886707 | BG47: 2441.265895 | BH47: 60 | BJ47: 66.39439209 | BK47: 0.07815756296 | BL47: 23.78943562 | BM47: 0.2117891348 | BN47: 64.4639341 | BO47: 0 | BP47: 0 | BQ47: -11.26857326 | BR47: -2.431176019 | BS47: -4.074320592 | BT47: -4.074320592 | BU47: -4.074320592 | BV47: -1240.133184 | BW47: 30 | BY47: 221.3146403 | BZ47: 0.07815756296 | CA47: 23.78943562 | CB47: 0.2117891348 | CC47: 64.4639341 | CD47: 0 | CE47: 0 | CF47: 143.651675 | CG47: 11.05190154 | CH47: 16.13863963 | CI47: 15.84869294 | CJ47: 15.84869294 | CK47: 15.84869294 | CL47: 100 | CN47: 221.3146403 | CO47: 0.07815756296 | CP47: 11.89471781 | CQ47: 0.2117891348 | CR47: 32.23196705 | CS47: 0 | CT47: 0 | CU47: 182.4831576 | CV47: 12.45641456 | CW47: 18.10784752 | CX47: 17.81790083 | CY47: 17.81790083 | CZ47: 17.81790083 | DA47: 100 | DC47: 221.3146403 | DD47: 0.07815756296 | DE47: 7.136830686 | DF47: 0.2117891348 | DG47: 19.33918023 | DH47: 0 | DI47: 0 | DJ47: 198.0157507 | DK47: 16.75158491 | DL47: 23.93402728 | DM47: 23.64408058 | DN47: 23.64408058 | DO47: 23.64408058 | DP47: 100 | DR47: 221.3146403 | DS47: 0.07815756296 | DT47: 4.757887124 | DU47: 0.2117891348 | DV47: 12.89278682 | DW47: 0 | DX47: 0 | DY47: 205.7820472 | DZ47: 20.9148814 | EA47: 29.23050554 | EB47: 28.94055884 | EC47: 28.94055884 | ED47: 28.94055884 | EE47: 100 | EG47: 162.1067172 | EH47: 4.717857596 | EI47: 22.5497803 | EJ47: 175.0752545 | EK47: -27054.74558 | EL47: 30.97270276 | EM47: 29.2 | EN47: 41.32848164 | EO47: 41.03853494 | EP47: 41.03853494 | EQ47: 29.2 | ER47: 41.32848164 | ES47: 41.03853494 | ET47: 41.03853494 | EV47: 151.4375559 | EW47: 4.717857596 | EX47: 22.87291941 | EY47: 237.47014 | EZ47: -30400 | FA47: 31.63323507 | FB47: 29.2 | FC47: 38.4 | FD47: 38.1100533 | FE47: 38.1100533 | FF47: 29.2 | FG47: 38.4 | FH47: 38.1100533 | FI47: 38.1100533 | FK47: 151.4375559 | FL47: 4.717857596 | FM47: 22.87291941 | FN47: 237.47014 | FO47: -47600 | FP47: -51.10415585 | FQ47: 29.2 | FR47: 38.4 | FS47: 38.6899467 | FT47: 38.6899467 | FU47: 29.2 | FV47: 38.4 | FW47: 38.6899467 | FX47: 38.6899467 | FY47: 38.1100533 | GA47: =IF(Feldschwächung!U47<n_MAX_FS,Feldschwächung!U47,n_MAX_FS) -> 2707.735848 | GB47: =IF(Feldschwächung!U47<n_MAX_FS,Feldschwächung!CJ47,GB46) -> 39.59907225 | HB47: 12.556 | HC47: 0.003129910602 | HD47: 1.025830963 | HE47: -53236.41779 | HF47: 3963.567005 | HG47: 18.24639835
R48: ST | S48: 0.44 | T48: 0.6633249581 | U48: 2940.198301 | V48: 307.8968461 | X48: 221.3146403 | Y48: 0.07815756296 | Z48: 24.06446713 | AA48: 0.2132548625 | AB48: 65.66049959 | AC48: 0 | AD48: 0 | AE48: 142.3566696 | AF48: 7.779569622 | AG48: 11.32032312 | AH48: 11.32032312 | AI48: 11.32032312 | AJ48: 3717.574674 | AK48: 3485.491785 | AL48: 3717.573421 | AM48: 100 | AN48: 7.779569622 | AO48: 11.32032312 | AP48: 11.32032312 | AQ48: 11.32032312 | AS48: 132.7887842 | AT48: 0.07815756296 | AU48: 24.06446713 | AV48: 0.2132548625 | AW48: 65.66049959 | AX48: 0 | AY48: 0 | AZ48: 53.83081347 | BA48: 5.065997886 | BB48: 7.455359139 | BC48: 7.455359139 | BD48: 7.455359139 | BE48: 2439.038182 | BF48: 2295.481566 | BG48: 2439.037346 | BH48: 60 | BJ48: 66.39439209 | BK48: 0.07815756296 | BL48: 24.06446713 | BM48: 0.2132548625 | BN48: 65.66049959 | BO48: 0 | BP48: 0 | BQ48: -12.56357862 | BR48: -2.567075358 | BS48: -4.287327528 | BT48: -4.287327528 | BU48: -4.287327528 | BV48: -1320.054624 | BW48: 30 | BY48: 221.3146403 | BZ48: 0.07815756296 | CA48: 24.06446713 | CB48: 0.2132548625 | CC48: 65.66049959 | CD48: 0 | CE48: 0 | CF48: 142.3566696 | CG48: 11.00197287 | CH48: 16.06813867 | CI48: 15.77672625 | CJ48: 15.77672625 | CK48: 15.77672625 | CL48: 100 | CN48: 221.3146403 | CO48: 0.07815756296 | CP48: 12.03223357 | CQ48: 0.2132548625 | CR48: 32.8302498 | CS48: 0 | CT48: 0 | CU48: 181.835655 | CV48: 12.43429546 | CW48: 18.0770537 | CX48: 17.78564128 | CY48: 17.78564128 | CZ48: 17.78564128 | DA48: 100 | DC48: 221.3146403 | DD48: 0.07815756296 | DE48: 7.21934014 | DF48: 0.2132548625 | DG48: 19.69814988 | DH48: 0 | DI48: 0 | DJ48: 197.6272491 | DK48: 16.73514377 | DL48: 23.91236807 | DM48: 23.62095564 | DN48: 23.62095564 | DO48: 23.62095564 | DP48: 100 | DR48: 221.3146403 | DS48: 0.07815756296 | DT48: 4.812893427 | DU48: 0.2132548625 | DV48: 13.13209992 | DW48: 0 | DX48: 0 | DY48: 205.5230462 | DZ48: 20.90171532 | EA48: 29.21439194 | EB48: 28.92297951 | EC48: 28.92297951 | ED48: 28.92297951 | EE48: 100 | EG48: 163.9808455 | EH48: 4.772401115 | EI48: 23.0674124 | EJ48: 177.0993132 | EK48: -26443.61564 | EL48: 30.23615923 | EM48: 29.2 | EN48: 41.32848164 | EO48: 41.03706922 | EP48: 41.03706922 | EQ48: 29.2 | ER48: 41.32848164 | ES48: 41.03706922 | ET48: 41.03706922 | EV48: 153.1883372 | EW48: 4.772401115 | EX48: 23.39055151 | EY48: 240.2155508 | EZ48: -29866.66667 | FA48: 30.96547429 | FB48: 29.2 | FC48: 38.4 | FD48: 38.10858757 | FE48: 38.10858757 | FF48: 29.2 | FG48: 38.4 | FH48: 38.10858757 | FI48: 38.10858757 | FK48: 153.1883372 | FL48: 4.772401115 | FM48: 23.39055151 | FN48: 240.2155508 | FO48: -47066.66667 | FP48: -50.28547167 | FQ48: 29.2 | FR48: 38.4 | FS48: 38.69141243 | FT48: 38.69141243 | FU48: 29.2 | FV48: 38.4 | FW48: 38.69141243 | FX48: 38.69141243 | FY48: 38.10858757 | GA48: =IF(Feldschwächung!U48<n_MAX_FS,Feldschwächung!U48,n_MAX_FS) -> 2757.99625 | GB48: =IF(Feldschwächung!U48<n_MAX_FS,Feldschwächung!CJ48,GB47) -> 39.57358282 | HB48: 12.848 | HC48: 0.003149454248 | HD48: 1.049687497 | HE48: -53231.85767 | HF48: 3947.925931 | HG48: 18.65179052
R49: ST | S49: 0.45 | T49: 0.6708203932 | U49: 2973.421936 | V49: 311.376017 | X49: 221.3146403 | Y49: 0.07815756296 | Z49: 24.33639065 | AA49: 0.2146974537 | AB49: 66.85163797 | AC49: 0 | AD49: 0 | AE49: 141.0691751 | AF49: 7.744309937 | AG49: 11.26625215 | AH49: 11.26625215 | AI49: 11.26625215 | AJ49: 3740.299185 | AK49: 3508.040719 | AL49: 3740.297923 | AM49: 100 | AN49: 7.744309937 | AO49: 11.26625215 | AP49: 11.26625215 | AQ49: 11.26625215 | AS49: 132.7887842 | AT49: 0.07815756296 | AU49: 24.33639065 | AV49: 0.2146974537 | AW49: 66.85163797 | AX49: 0 | AY49: 0 | AZ49: 52.543319 | BA49: 5.005048429 | BB49: 7.360714471 | BC49: 7.360714471 | BD49: 7.360714471 | BE49: 2435.682137 | BF49: 2291.949954 | BG49: 2435.681302 | BH49: 60 | BJ49: 66.39439209 | BK49: 0.07815756296 | BL49: 24.33639065 | BM49: 0.2146974537 | BN49: 66.85163797 | BO49: 0 | BP49: 0 | BQ49: -13.85107309 | BR49: -2.695402628 | BS49: -4.488524627 | BT49: -4.488524627 | BU49: -4.488524627 | BV49: -1397.61892 | BW49: 30 | BY49: 221.3146403 | BZ49: 0.07815756296 | CA49: 24.33639065 | CB49: 0.2146974537 | CC49: 66.85163797 | CD49: 0 | CE49: 0 | CF49: 141.0691751 | CG49: 10.95210814 | CH49: 15.99769536 | CI49: 15.70484034 | CJ49: 15.70484034 | CK49: 15.70484034 | CL49: 100 | CN49: 221.3146403 | CO49: 0.07815756296 | CP49: 12.16819532 | CQ49: 0.2146974537 | CR49: 33.42581899 | CS49: 0 | CT49: 0 | CU49: 181.1919077 | CV49: 12.41226556 | CW49: 18.04637687 | CX49: 17.75352186 | CY49: 17.75352186 | CZ49: 17.75352186 | DA49: 100 | DC49: 221.3146403 | DD49: 0.07815756296 | DE49: 7.300917195 | DF49: 0.2146974537 | DG49: 20.05549139 | DH49: 0 | DI49: 0 | DJ49: 197.2410008 | DK49: 16.71878195 | DL49: 23.89080801 | DM49: 23.597953 | DN49: 23.597953 | DO49: 23.597953 | DP49: 100 | DR49: 221.3146403 | DS49: 0.07815756296 | DT49: 4.86727813 | DU49: 0.2146974537 | DV49: 13.37032759 | DW49: 0 | DX49: 0 | DY49: 205.2655473 | DZ49: 20.88861739 | EA49: 29.19835744 | EB49: 28.90550242 | EC49: 28.90550242 | ED49: 28.90550242 | EE49: 100 | EG49: 165.8337952 | EH49: 4.826328263 | EI49: 23.5850445 | EJ49: 179.1004989 | EK49: -25832.48569 | EL49: 29.51536365 | EM49: 29.2 | EN49: 41.32848164 | EO49: 41.03562662 | EP49: 41.03562662 | EQ49: 29.2 | ER49: 41.32848164 | ES49: 41.03562662 | ET49: 41.03562662 | EV49: 154.9193338 | EW49: 4.826328263 | EX49: 23.90818361 | EY49: 242.9299369 | EZ49: -29333.33333 | FA49: 30.31341064 | FB49: 29.2 | FC49: 38.4 | FD49: 38.10714498 | FE49: 38.10714498 | FF49: 29.2 | FG49: 38.4 | FH49: 38.10714498 | FI49: 38.10714498 | FK49: 154.9193338 | FL49: 4.826328263 | FM49: 23.90818361 | FN49: 242.9299369 | FO49: -46533.33333 | FP49: -49.48932928 | FQ49: 29.2 | FR49: 38.4 | FS49: 38.69285502 | FT49: 38.69285502 | FU49: 29.2 | FV49: 38.4 | FW49: 38.69285502 | FX49: 38.69285502 | FY49: 38.10714498 | GA49: =IF(Feldschwächung!U49<n_MAX_FS,Feldschwächung!U49,n_MAX_FS) -> 2808.028693 | GB49: =IF(Feldschwächung!U49<n_MAX_FS,Feldschwächung!CJ49,GB48) -> 39.54568561 | HB49: 13.14 | HC49: 0.003169447173 | HD49: 1.073544031 | HE49: -53227.19273 | HF49: 3932.168723 | HG49: 19.05587629
R50: ST | S50: 0.46 | T50: 0.6782329983 | U50: 3006.278424 | V50: 314.8167404 | X50: 221.3146403 | Y50: 0.07815756296 | Z50: 24.60530921 | AA50: 0.2161177757 | AB50: 68.03749368 | AC50: 0 | AD50: 0 | AE50: 139.7889738 | AF50: 7.709090082 | AG50: 11.2122629 | AH50: 11.2122629 | AI50: 11.2122629 | AJ50: 3762.241104 | AK50: 3529.808057 | AL50: 3762.239834 | AM50: 100 | AN50: 7.709090082 | AO50: 11.2122629 | AP50: 11.2122629 | AQ50: 11.2122629 | AS50: 132.7887842 | AT50: 0.07815756296 | AU50: 24.60530921 | AV50: 0.2161177757 | AW50: 68.03749368 | AX50: 0 | AY50: 0 | AZ50: 51.26311765 | BA50: 4.943699225 | BB50: 7.265480792 | BC50: 7.265480792 | BD50: 7.265480792 | BE50: 2431.201735 | BF50: 2287.29498 | BG50: 2431.200901 | BH50: 60 | BJ50: 66.39439209 | BK50: 0.07815756296 | BL50: 24.60530921 | BM50: 0.2161177757 | BN50: 68.03749368 | BO50: 0 | BP50: 0 | BQ50: -15.13127445 | BR50: -2.817213047 | BS50: -4.679555314 | BT50: -4.679555314 | BU50: -4.679555314 | BV50: -1473.20235 | BW50: 30 | BY50: 221.3146403 | BZ50: 0.07815756296 | CA50: 24.60530921 | CB50: 0.2161177757 | CC50: 68.03749368 | CD50: 0 | CE50: 0 | CF50: 139.7889738 | CG50: 10.90229975 | CH50: 15.9272992 | CI50: 15.63302386 | CJ50: 15.63302386 | CK50: 15.63302386 | CL50: 100 | CN50: 221.3146403 | CO50: 0.07815756296 | CP50: 12.3026546 | CQ50: 0.2161177757 | CR50: 34.01874684 | CS50: 0 | CT50: 0 | CU50: 180.551807 | CV50: 12.39032162 | CW50: 18.01581259 | CX50: 17.72153725 | CY50: 17.72153725 | CZ50: 17.72153725 | DA50: 100 | DC50: 221.3146403 | DD50: 0.07815756296 | DE50: 7.381592762 | DF50: 0.2161177757 | DG50: 20.4112481 | DH50: 0 | DI50: 0 | DJ50: 196.8569403 | DK50: 16.70249692 | DL50: 23.86934385 | DM50: 23.57506851 | DN50: 23.57506851 | DO50: 23.57506851 | DP50: 100 | DR50: 221.3146403 | DS50: 0.07815756296 | DT50: 4.921061841 | DU50: 0.2161177757 | DV50: 13.60749874 | DW50: 0 | DX50: 0 | DY50: 205.009507 | DZ50: 20.8755855 | EA50: 29.18239956 | EB50: 28.88812422 | EC50: 28.88812422 | ED50: 28.88812422 | EE50: 100 | EG50: 167.6662685 | EH50: 4.879659476 | EI50: 24.1026766 | EJ50: 181.07957 | EK50: -25221.35574 | EL50: 28.80926344 | EM50: 28.80926344 | EN50: 40.9151351 | EO50: 40.62085976 | EP50: 40.62085976 | EQ50: 28.80926344 | ER50: 40.9151351 | ES50: 40.62085976 | ET50: 40.62085976 | EV50: 156.6312017 | EW50: 4.879659476 | EX50: 24.42581571 | EY50: 245.6143271 | EZ50: -28800 | FA50: 29.67611138 | FB50: 29.2 | FC50: 38.4 | FD50: 38.10572466 | FE50: 38.10572466 | FF50: 29.2 | FG50: 38.4 | FH50: 38.10572466 | FI50: 38.10572466 | FK50: 156.6312017 | FL50: 4.879659476 | FM50: 24.42581571 | FN50: 245.6143271 | FO50: -46000 | FP50: -48.71450683 | FQ50: 29.2 | FR50: 38.4 | FS50: 38.69427534 | FT50: 38.69427534 | FU50: 29.2 | FV50: 38.4 | FW50: 38.69427534 | FX50: 38.69427534 | FY50: 38.10572466 | GA50: =IF(Feldschwächung!U50<n_MAX_FS,Feldschwächung!U50,n_MAX_FS) -> 2857.839243 | GB50: =IF(Feldschwächung!U50<n_MAX_FS,Feldschwächung!CJ50,GB49) -> 39.51520492 | HB50: 13.432 | HC50: 0.003189889378 | HD50: 1.097400565 | HE50: -53222.42295 | HF50: 3916.301749 | HG50: 19.45862598
R51: ST | S51: 0.47 | T51: 0.68556546 | U51: 3038.779676 | V51: 318.2202635 | X51: 221.3146403 | Y51: 0.07815756296 | Z51: 24.87132028 | AA51: 0.2175166455 | AB51: 69.21820424 | AC51: 0 | AD51: 0 | AE51: 138.5158587 | AF51: 7.673904878 | AG51: 11.15834682 | AH51: 11.15834682 | AI51: 11.15834682 | AJ51: 3783.418725 | AK51: 3550.812065 | AL51: 3783.417448 | AM51: 100 | AN51: 7.673904878 | AO51: 11.15834682 | AP51: 11.15834682 | AQ51: 11.15834682 | AS51: 132.7887842 | AT51: 0.07815756296 | AU51: 24.87132028 | AV51: 0.2175166455 | AW51: 69.21820424 | AX51: 0 | AY51: 0 | AZ51: 49.99000261 | BA51: 4.881925106 | BB51: 7.169618799 | BC51: 7.169618799 | BD51: 7.169618799 | BE51: 2425.598343 | BF51: 2281.517983 | BG51: 2425.59751 | BH51: 60 | BJ51: 66.39439209 | BK51: 0.07815756296 | BL51: 24.87132028 | BM51: 0.2175166455 | BN51: 69.21820424 | BO51: 0 | BP51: 0 | BQ51: -16.40438948 | BR51: -2.933337085 | BS51: -4.861713114 | BT51: -4.861713114 | BU51: -4.861713114 | BV51: -1547.095628 | BW51: 30 | BY51: 221.3146403 | BZ51: 0.07815756296 | CA51: 24.87132028 | CB51: 0.2175166455 | CC51: 69.21820424 | CD51: 0 | CE51: 0 | CF51: 138.5158587 | CG51: 10.85254035 | CH51: 15.8569401 | CI51: 15.56126589 | CJ51: 15.56126589 | CK51: 15.56126589 | CL51: 100 | CN51: 221.3146403 | CO51: 0.07815756296 | CP51: 12.43566014 | CQ51: 0.2175166455 | CR51: 34.60910212 | CS51: 0 | CT51: 0 | CU51: 179.9152495 | CV51: 12.36846054 | CW51: 17.98535664 | CX51: 17.68968244 | CY51: 17.68968244 | CZ51: 17.68968244 | DA51: 100 | DC51: 221.3146403 | DD51: 0.07815756296 | DE51: 7.461396084 | DF51: 0.2175166455 | DG51: 20.76546127 | DH51: 0 | DI51: 0 | DJ51: 196.4750058 | DK51: 16.68628627 | DL51: 23.84797247 | DM51: 23.55229826 | DN51: 23.55229826 | DO51: 23.55229826 | DP51: 100 | DR51: 221.3146403 | DS51: 0.07815756296 | DT51: 4.974264056 | DU51: 0.2175166455 | DV51: 13.84364085 | DW51: 0 | DX51: 0 | DY51: 204.754884 | DZ51: 20.86261767 | EA51: 29.16651592 | EB51: 28.87084171 | EC51: 28.87084171 | ED51: 28.87084171 | EE51: 100 | EG51: 169.4789295 | EH51: 4.932414084 | EI51: 24.6203087 | EJ51: 183.0372438 | EK51: -24610.22579 | EL51: 28.11687005 | EM51: 28.11687005 | EN51: 40.16885955 | EO51: 39.87318534 | EP51: 39.87318534 | EQ51: 28.11687005 | ER51: 40.16885955 | ES51: 39.87318534 | ET51: 39.87318534 | EV51: 158.3245612 | EW51: 4.932414084 | EX51: 24.94344781 | EY51: 248.2696943 | EZ51: -28266.66667 | FA51: 29.0527063 | FB51: 29.0527063 | FC51: 38.25584461 | FD51: 37.9601704 | FE51: 37.9601704 | FF51: 29.0527063 | FG51: 38.25584461 | FH51: 37.9601704 | FI51: 37.9601704 | FK51: 158.3245612 | FL51: 4.932414084 | FM51: 24.94344781 | FN51: 248.2696943 | FO51: -45466.66667 | FP51: -47.9598696 | FQ51: 29.2 | FR51: 38.4 | FS51: 38.69567421 | FT51: 38.69567421 | FU51: 29.2 | FV51: 38.4 | FW51: 38.69567421 | FX51: 38.69567421 | FY51: 37.9601704 | GA51: =IF(Feldschwächung!U51<n_MAX_FS,Feldschwächung!U51,n_MAX_FS) -> 2907.433676 | GB51: =IF(Feldschwächung!U51<n_MAX_FS,Feldschwächung!CJ51,GB50) -> 39.48196087 | HB51: 13.724 | HC51: 0.003210780862 | HD51: 1.121257099 | HE51: -53217.54834 | HF51: 3900.331293 | HG51: 19.8600099
R52: ST | S52: 0.48 | T52: 0.692820323 | U52: 3070.93697 | V52: =2*PI()*U52/60 -> 321.5877675 | X52: 221.3146403 | Y52: 0.07815756296 | Z52: 25.13451618 | AA52: 0.2188948333 | AB52: 70.39390075 | AC52: 0 | AD52: 0 | AE52: 137.2496334 | AF52: 7.638749332 | AG52: 11.10449569 | AH52: 11.10449569 | AI52: 11.10449569 | AJ52: 3803.849313 | AK52: 3571.069977 | AL52: 3803.848028 | AM52: 100 | AN52: 7.638749332 | AO52: 11.10449569 | AP52: 11.10449569 | AQ52: 11.10449569 | AS52: 132.7887842 | AT52: 0.07815756296 | AU52: 25.13451618 | AV52: 0.2188948333 | AW52: 70.39390075 | AX52: 0 | AY52: 0 | AZ52: 48.72377728 | BA52: 4.81970001 | BB52: 7.073087866 | BC52: 7.073087866 | BD52: 7.073087866 | BE52: 2418.871561 | BF52: 2274.618536 | BG52: 2418.87073 | BH52: 60 | BJ52: 66.39439209 | BK52: 0.07815756296 | BL52: 25.13451618 | BM52: 0.2188948333 | BN52: 70.39390075 | BO52: 0 | BP52: 0 | BQ52: -17.67061481 | BR52: -3.044442437 | BS52: -5.036038134 | BT52: -5.036038134 | BU52: -5.036038134 | BV52: -1619.528261 | BW52: 30 | BY52: 221.3146403 | BZ52: 0.07815756296 | CA52: 25.13451618 | CB52: 0.2188948333 | CC52: 70.39390075 | CD52: 0 | CE52: 0 | CF52: 137.2496334 | CG52: 10.80282291 | CH52: 15.78660829 | CI52: 15.4895559 | CJ52: 15.4895559 | CK52: 15.4895559 | CL52: 100 | CN52: 221.3146403 | CO52: 0.07815756296 | CP52: 12.56725809 | CQ52: 0.2188948333 | CR52: 35.19695038 | CS52: 0 | CT52: 0 | CU52: 179.2821369 | CV52: 12.34667937 | CW52: 17.95500501 | CX52: 17.65795262 | CY52: 17.65795262 | CZ52: 17.65795262 | DA52: 100 | DC52: 221.3146403 | DD52: 0.07815756296 | DE52: 7.540354855 | DF52: 0.2188948333 | DG52: 21.11817023 | DH52: 0 | DI52: 0 | DJ52: 196.0951382 | DK52: 16.67014771 | DL52: 23.82669094 | DM52: 23.52963854 | DN52: 23.52963854 | DO52: 23.52963854 | DP52: 100 | DR52: 221.3146403 | DS52: 0.07815756296 | DT52: 5.026903237 | DU52: 0.2188948333 | DV52: 14.07878015 | DW52: 0 | DX52: 0 | DY52: 204.5016389 | DZ52: 20.84971202 | EA52: 29.15070429 | EB52: 28.85365189 | EC52: 28.85365189 | ED52: 28.85365189 | EE52: 100 | EG52: 171.2724073 | EH52: 4.984610396 | EI52: 25.1379408 | EJ52: 184.9741998 | EK52: -23999.09585 | EL52: 27.43725197 | EM52: 27.43725197 | EN52: 39.41952613 | EO52: 39.12247373 | EP52: 39.12247373 | EQ52: 27.43725197 | ER52: 39.41952613 | ES52: 39.12247373 | ET52: 39.12247373 | EV52: 160 | EW52: 4.984610396 | EX52: 25.46107991 | EY52: 250.89696 | EZ52: -27733.33333 | FA52: 28.44238166 | FB52: 28.44238166 | FC52: 37.65055623 | FD52: 37.35350384 | FE52: 37.35350384 | FF52: 28.44238166 | FG52: 37.65055623 | FH52: 37.35350384 | FI52: 37.35350384 | FK52: 160 | FL52: 4.984610396 | FM52: 25.46107991 | FN52: 250.89696 | FO52: -44933.33333 | FP52: -47.22436206 | FQ52: 29.2 | FR52: 38.4 | FS52: 38.6970524 | FT52: 38.6970524 | FU52: 29.2 | FV52: 38.4 | FW52: 38.6970524 | FX52: 38.6970524 | FY52: 37.35350384 | GA52: =IF(Feldschwächung!U52<n_MAX_FS,Feldschwächung!U52,n_MAX_FS) -> 2956.817501 | GB52: =IF(Feldschwächung!U52<n_MAX_FS,Feldschwächung!CJ52,GB51) -> 39.44577018 | HB52: 14.016 | HC52: 0.003232121624 | HD52: 1.145113633 | HE52: -53212.56891 | HF52: 3884.26355 | HG52: 20.25999835
R53: ST | S53: 0.49 | T53: 0.7 | U53: 3102.761001 | V53: 324.9203722 | X53: 221.3146403 | Y53: 0.07815756296 | Z53: 25.39498445 | AA53: 0.2202530665 | AB53: 71.56470834 | AC53: 0 | AD53: 0 | AE53: 135.9901107 | AF53: 7.603618624 | AG53: 11.05070159 | AH53: 11.05070159 | AI53: 11.05070159 | AJ53: 3823.549169 | AK53: 3590.598073 | AL53: 3823.547876 | AM53: 100 | AN53: 7.603618624 | AO53: 11.05070159 | AP53: 11.05070159 | AQ53: 11.05070159 | AS53: 132.7887842 | AT53: 0.07815756296 | AU53: 25.39498445 | AV53: 0.2202530665 | AW53: 71.56470834 | AX53: 0 | AY53: 0 | AZ53: 47.46425453 | BA53: 4.756996863 | BB53: 6.975845866 | BC53: 6.975845866 | BD53: 6.975845866 | BE53: 2411.019211 | BF53: 2266.594436 | BG53: 2411.018383 | BH53: 60 | BJ53: 66.39439209 | BK53: 0.07815756296 | BL53: 25.39498445 | BM53: 0.2202530665 | BN53: 71.56470834 | BO53: 0 | BP53: 0 | BQ53: -18.93013756 | BR53: -3.151075593 | BS53: -5.203381771 | BT53: -5.203381771 | BU53: -5.203381771 | BV53: -1690.684742 | BW53: 30 | BY53: 221.3146403 | BZ53: 0.07815756296 | CA53: 25.39498445 | CB53: 0.2202530665 | CC53: 71.56470834 | CD53: 0 | CE53: 0 | CF53: 135.9901107 | CG53: 10.75314058 | CH53: 15.71629437 | CI53: 15.41788374 | CJ53: 15.41788374 | CK53: 15.41788374 | CL53: 100 | CN53: 221.3146403 | CO53: 0.07815756296 | CP53: 12.69749222 | CQ53: 0.2202530665 | CR53: 35.78235417 | CS53: 0 | CT53: 0 | CU53: 178.6523755 | CV53: 12.3249753 | CW53: 17.92475388 | CX53: 17.62634326 | CY53: 17.62634326 | CZ53: 17.62634326 | DA53: 100 | DC53: 221.3146403 | DD53: 0.07815756296 | DE53: 7.618495334 | DF53: 0.2202530665 | DG53: 21.4694125 | DH53: 0 | DI53: 0 | DJ53: 195.7172814 | DK53: 16.65407907 | DL53: 23.80549646 | DM53: 23.50708583 | DN53: 23.50708583 | DO53: 23.50708583 | DP53: 100 | DR53: 221.3146403 | DS53: 0.07815756296 | DT53: 5.07899689 | DU53: 0.2202530665 | DV53: 14.31294167 | DW53: 0 | DX53: 0 | DY53: 204.2497344 | DZ53: 20.83686676 | EA53: 29.13496253 | EB53: 28.8365519 | EC53: 28.8365519 | ED53: 28.8365519 | EE53: 100 | EG53: 173.0472983 | EH53: 5.036265769 | EI53: 25.6555729 | EJ53: 186.8910821 | EK53: -23387.9659 | EL53: 26.76952836 | EM53: 26.76952836 | EN53: 38.66746428 | EO53: 38.36905365 | EP53: 38.36905365 | EQ53: 26.76952836 | ER53: 38.66746428 | ES53: 38.36905365 | ET53: 38.36905365 | EV53: 161.6580754 | EW53: 5.036265769 | EX53: 25.97871201 | EY53: 253.4969979 | EZ53: -27200 | FA53: 27.84437477 | FB53: 27.84437477 | FC53: 37.04522757 | FD53: 36.74681694 | FE53: 36.74681694 | FF53: 27.84437477 | FG53: 37.04522757 | FH53: 36.74681694 | FI53: 36.74681694 | FK53: 161.6580754 | FL53: 5.036265769 | FM53: 25.97871201 | FN53: 253.4969979 | FO53: -44400 | FP53: -46.50700066 | FQ53: 29.2 | FR53: 38.4 | FS53: 38.69841063 | FT53: 38.69841063 | FU53: 29.2 | FV53: 38.4 | FW53: 38.69841063 | FX53: 38.69841063 | FY53: 36.74681694 | GA53: =IF(Feldschwächung!U53<n_MAX_FS,Feldschwächung!U53,n_MAX_FS) -> 3005.995971 | GB53: =IF(Feldschwächung!U53<n_MAX_FS,Feldschwächung!CJ53,GB52) -> 39.40644718 | HB53: 14.308 | HC53: 0.003253911667 | HD53: 1.168970167 | HE53: -53207.48464 | HF53: 3868.104623 | HG53: 20.65856165
R54: ST | S54: 0.5 | T54: 0.7071067812 | U54: 3134.26192 | V54: 328.2191408 | X54: 221.3146403 | Y54: 0.07815756296 | Z54: 25.65280816 | AA54: 0.2215920324 | AB54: 72.73074649 | AC54: 0 | AD54: 0 | AE54: 134.7371122 | AF54: 7.568508094 | AG54: 10.99695687 | AH54: 10.99695687 | AI54: 10.99695687 | AJ54: 3842.533701 | AK54: 3609.411734 | AL54: 3842.532401 | AM54: 100 | AN54: 7.568508094 | AO54: 10.99695687 | AP54: 10.99695687 | AQ54: 10.99695687 | AS54: 132.7887842 | AT54: 0.07815756296 | AU54: 25.65280816 | AV54: 0.2215920324 | AW54: 72.73074649 | AX54: 0 | AY54: 0 | AZ54: 46.21125609 | BA54: 4.693787452 | BB54: 6.87784897 | BC54: 6.87784897 | BD54: 6.87784897 | BE54: 2402.037316 | BF54: 2257.441679 | BG54: 2402.03649 | BH54: 60 | BJ54: 66.39439209 | BK54: 0.07815756296 | BL54: 25.65280816 | BM54: 0.2215920324 | BN54: 72.73074649 | BO54: 0 | BP54: 0 | BQ54: -20.183136 | BR54: -3.253690657 | BS54: -5.364451569 | BT54: -5.364451569 | BU54: -5.364451569 | BV54: -1760.715685 | BW54: 30 | BY54: 221.3146403 | BZ54: 0.07815756296 | CA54: 25.65280816 | CB54: 0.2215920324 | CC54: 72.73074649 | CD54: 0 | CE54: 0 | CF54: 134.7371122 | CG54: 10.70348679 | CH54: 15.6459892 | CI54: 15.34623961 | CJ54: 15.34623961 | CK54: 15.34623961 | CL54: 100 | CN54: 221.3146403 | CO54: 0.07815756296 | CP54: 12.82640408 | CQ54: 0.2215920324 | CR54: 36.36537325 | CS54: 0 | CT54: 0 | CU54: 178.0258763 | CV54: 12.30334567 | CW54: 17.89459962 | CX54: 17.59485002 | CY54: 17.59485002 | CZ54: 17.59485002 | DA54: 100 | DC54: 221.3146403 | DD54: 0.07815756296 | DE54: 7.695842448 | DF54: 0.2215920324 | DG54: 21.81922395 | DH54: 0 | DI54: 0 | DJ54: 195.3413819 | DK54: 16.63807826 | DL54: 23.78438635 | DM54: 23.48463676 | DN54: 23.48463676 | DO54: 23.48463676 | DP54: 100 | DR54: 221.3146403 | DS54: 0.07815756296 | DT54: 5.130561632 | DU54: 0.2215920324 | DV54: 14.5461493 | DW54: 0 | DX54: 0 | DY54: 203.9991347 | DZ54: 20.82408017 | EA54: 29.1192886 | EB54: 28.81953901 | EC54: 28.81953901 | ED54: 28.81953901 | EE54: 100 | EG54: 174.8041687 | EH54: 5.087396682 | EI54: 26.173205 | EJ54: 188.7885022 | EK54: -22776.83595 | EL54: 26.11286325 | EM54: 26.11286325 | EN54: 37.9129153 | EO54: 37.6131657 | EP54: 37.6131657 | EQ54: 26.11286325 | ER54: 37.9129153 | ES54: 37.6131657 | ET54: 37.6131657 | EV54: 163.2993162 | EW54: 5.087396682 | EX54: 26.49634411 | EY54: 256.0706375 | EZ54: -26666.66667 | FA54: 27.25796919 | FB54: 27.25796919 | FC54: 36.44010928 | FD54: 36.14035969 | FE54: 36.14035969 | FF54: 27.25796919 | FG54: 36.44010928 | FH54: 36.14035969 | FI54: 36.14035969 | FK54: 163.2993162 | FL54: 5.087396682 | FM54: 26.49634411 | FN54: 256.0706375 | FO54: -43866.66667 | FP54: -45.80686753 | FQ54: 29.2 | FR54: 38.4 | FS54: 38.6997496 | FT54: 38.6997496 | FU54: 29.2 | FV54: 38.4 | FW54: 38.6997496 | FX54: 38.6997496 | FY54: 36.14035969 | GA54: =IF(Feldschwächung!U54<n_MAX_FS,Feldschwächung!U54,n_MAX_FS) -> 3054.974107 | GB54: =IF(Feldschwächung!U54<n_MAX_FS,Feldschwächung!CJ54,GB53) -> 39.36380485 | HB54: 14.6 | HC54: 0.003276150988 | HD54: 1.192826701 | HE54: -53202.29555 | HF54: 3851.860518 | HG54: 21.0556701
R55: ST | S55: 0.51 | T55: 0.7141428429 | U55: 3165.449374 | V55: 331.4850833 | X55: 221.3146403 | Y55: 0.07815756296 | Z55: 25.90806627 | AA55: 0.2229123818 | AB55: 73.89212947 | AC55: 0 | AD55: 0 | AE55: 133.4904681 | AF55: 7.533413225 | AG55: 10.94325414 | AH55: 10.94325414 | AI55: 10.94325414 | AJ55: 3860.817482 | AK55: 3627.525511 | AL55: 3860.816175 | AM55: 100 | AN55: 7.533413225 | AO55: 10.94325414 | AP55: 10.94325414 | AQ55: 10.94325414 | AS55: 132.7887842 | AT55: 0.07815756296 | AU55: 25.90806627 | AV55: 0.2229123818 | AW55: 73.89212947 | AX55: 0 | AY55: 0 | AZ55: 44.96461194 | BA55: 4.630042289 | BB55: 6.779051435 | BC55: 6.779051435 | BD55: 6.779051435 | BE55: 2391.92006 | BF55: 2247.15443 | BG55: 2391.919237 | BH55: 60 | BJ55: 66.39439209 | BK55: 0.07815756296 | BL55: 25.90806627 | BM55: 0.2229123818 | BN55: 73.89212947 | BO55: 0 | BP55: 0 | BQ55: -21.42978016 | BR55: -3.352669895 | BS55: -5.519843217 | BT55: -5.519843217 | BU55: -5.519843217 | BV55: -1829.745689 | BW55: 30 | BY55: 221.3146403 | BZ55: 0.07815756296 | CA55: 25.90806627 | CB55: 0.2229123818 | CC55: 73.89212947 | CD55: 0 | CE55: 0 | CF55: 133.4904681 | CG55: 10.65385515 | CH55: 15.57568395 | CI55: 15.27461401 | CJ55: 15.27461401 | CK55: 15.27461401 | CL55: 100 | CN55: 221.3146403 | CO55: 0.07815756296 | CP55: 12.95403313 | CQ55: 0.2229123818 | CR55: 36.94606473 | CS55: 0 | CT55: 0 | CU55: 177.4025542 | CV55: 12.28178793 | CW55: 17.86453874 | CX55: 17.56346879 | CY55: 17.56346879 | CZ55: 17.56346879 | DA55: 100 | DC55: 221.3146403 | DD55: 0.07815756296 | DE55: 7.772419881 | DF55: 0.2229123818 | DG55: 22.16763884 | DH55: 0 | DI55: 0 | DJ55: 194.9673886 | DK55: 16.62214331 | DL55: 23.76335809 | DM55: 23.46228815 | DN55: 23.46228815 | DO55: 23.46228815 | DP55: 100 | DR55: 221.3146403 | DS55: 0.07815756296 | DT55: 5.181613254 | DU55: 0.2229123818 | DV55: 14.77842589 | DW55: 0 | DX55: 0 | DY55: 203.7498059 | DZ55: 20.81135062 | EA55: 29.10368057 | EB55: 28.80261063 | EC55: 28.80261063 | ED55: 28.80261063 | EE55: 100 | EG55: 176.5435565 | EH55: 5.138018791 | EI55: 26.6908371 | EJ55: 190.667041 | EK55: -22165.706 | EL55: 25.46646021 | EM55: 25.46646021 | EN55: 37.15604108 | EO55: 36.85497113 | EP55: 36.85497113 | EQ55: 25.46646021 | ER55: 37.15604108 | ES55: 36.85497113 | ET55: 36.85497113 | EV55: 164.924225 | EW55: 5.138018791 | EX55: 27.01397621 | EY55: 258.6186668 | EZ55: -26133.33333 | FA55: 26.68249032 | FB55: 26.68249032 | FC55: 35.83539748 | FD55: 35.53432753 | FE55: 35.53432753 | FF55: 26.68249032 | FG55: 35.83539748 | FH55: 35.53432753 | FI55: 35.53432753 | FK55: 164.924225 | FL55: 5.138018791 | FM55: 27.01397621 | FN55: 258.6186668 | FO55: -43333.33333 | FP55: -45.12310472 | FQ55: 29.2 | FR55: 38.4 | FS55: 38.70106994 | FT55: 38.70106994 | FU55: 29.2 | FV55: 38.4 | FW55: 38.70106994 | FX55: 38.70106994 | FY55: 35.53432753 | GA55: =IF(Feldschwächung!U55<n_MAX_FS,Feldschwächung!U55,n_MAX_FS) -> 3103.756707 | GB55: =IF(Feldschwächung!U55<n_MAX_FS,Feldschwächung!CJ55,GB54) -> 39.31765599 | HB55: 14.892 | HC55: 0.003298839588 | HD55: 1.216683235 | HE55: -53197.00162 | HF55: 3835.537144 | HG55: 21.45129402
R56: ST | S56: 0.52 | T56: 0.7211102551 | U56: 3196.332538 | V56: 334.7191607 | X56: 221.3146403 | Y56: 0.07815756296 | Z56: 26.16083388 | AA56: 0.2242147311 | AB56: 75.0489666 | AC56: 0 | AD56: 0 | AE56: 132.2500159 | AF56: 7.498329636 | AG56: 10.88958626 | AH56: 10.88958626 | AI56: 10.88958626 | AJ56: 3878.414301 | AK56: 3644.953172 | AL56: 3878.412988 | AM56: 100 | AN56: 7.498329636 | AO56: 10.88958626 | AP56: 10.88958626 | AQ56: 10.88958626 | AS56: 132.7887842 | AT56: 0.07815756296 | AU56: 26.16083388 | AV56: 0.2242147311 | AW56: 75.0489666 | AX56: 0 | AY56: 0 | AZ56: 43.72415977 | BA56: 4.56573046 | BB56: 6.679405372 | BC56: 6.679405372 | BD56: 6.679405372 | BE56: 2380.65974 | BF56: 2235.72496 | BG56: 2380.658921 | BH56: 60 | BJ56: 66.39439209 | BK56: 0.07815756296 | BL56: 26.16083388 | BM56: 0.2242147311 | BN56: 75.0489666 | BO56: 0 | BP56: 0 | BQ56: -22.67023233 | BR56: -3.448338749 | BS56: -5.670063913 | BT56: -5.670063913 | BU56: -5.670063913 | BV56: -1897.879034 | BW56: 30 | BY56: 221.3146403 | BZ56: 0.07815756296 | CA56: 26.16083388 | CB56: 0.2242147311 | CC56: 75.0489666 | CD56: 0 | CE56: 0 | CF56: 132.2500159 | CG56: 10.60423947 | CH56: 15.50537001 | CI56: 15.20299772 | CJ56: 15.20299772 | CK56: 15.20299772 | CL56: 100 | CN56: 221.3146403 | CO56: 0.07815756296 | CP56: 13.08041694 | CQ56: 0.2242147311 | CR56: 37.5244833 | CS56: 0 | CT56: 0 | CU56: 176.7823281 | CV56: 12.26029964 | CW56: 17.83456793 | CX56: 17.53219563 | CY56: 17.53219563 | CZ56: 17.53219563 | DA56: 100 | DC56: 221.3146403 | DD56: 0.07815756296 | DE56: 7.848250163 | DF56: 0.2242147311 | DG56: 22.51468998 | DH56: 0 | DI56: 0 | DJ56: 194.595253 | DK56: 16.60627233 | DL56: 23.74240924 | DM56: 23.44003695 | DN56: 23.44003695 | DO56: 23.44003695 | DP56: 100 | DR56: 221.3146403 | DS56: 0.07815756296 | DT56: 5.232166775 | DU56: 0.2242147311 | DV56: 15.00979332 | DW56: 0 | DX56: 0 | DY56: 203.5017154 | DZ56: 20.79867658 | EA56: 29.08813659 | EB56: 28.78576429 | EC56: 28.78576429 | ED56: 28.78576429 | EE56: 100 | EG56: 178.2659734 | EH56: 5.188146991 | EI56: 27.2084692 | EJ56: 192.5272513 | EK56: -21554.57606 | EL56: 24.82955744 | EM56: 24.82955744 | EN56: 36.39693135 | EO56: 36.09455906 | EP56: 36.09455906 | EQ56: 24.82955744 | ER56: 36.39693135 | ES56: 36.09455906 | ET56: 36.09455906 | EV56: 166.53328 | EW56: 5.188146991 | EX56: 27.53160831 | EY56: 261.1418355 | EZ56: -25600 | FA56: 26.11730148 | FB56: 26.11730148 | FC56: 35.23124007 | FD56: 34.92886777 | FE56: 34.92886777 | FF56: 26.11730148 | FG56: 35.23124007 | FH56: 34.92886777 | FI56: 34.92886777 | FK56: 166.53328 | FL56: 5.188146991 | FM56: 27.53160831 | FN56: 261.1418355 | FO56: -42800 | FP56: -44.45490913 | FQ56: 29.2 | FR56: 38.4 | FS56: 38.70237229 | FT56: 38.70237229 | FU56: 29.2 | FV56: 38.4 | FW56: 38.70237229 | FX56: 38.70237229 | FY56: 34.92886777 | GA56: =IF(Feldschwächung!U56<n_MAX_FS,Feldschwächung!U56,n_MAX_FS) -> 3152.348364 | GB56: =IF(Feldschwächung!U56<n_MAX_FS,Feldschwächung!CJ56,GB55) -> 39.26781459 | HB56: 15.184 | HC56: 0.003321977468 | HD56: 1.240539769 | HE56: -53191.60286 | HF56: 3819.140303 | HG56: 21.84540371
R57: ST | S57: 0.53 | T57: 0.7280109889 | U57: 3226.92015 | V57: 337.9222879 | X57: 221.3146403 | Y57: 0.07815756296 | Z57: 26.41118249 | AA57: 0.2254996647 | AB57: 76.20136261 | AC57: 0 | AD57: 0 | AE57: 131.0156006 | AF57: 7.46325307 | AG57: 10.83594627 | AH57: 10.83594627 | AI57: 10.83594627 | AJ57: 3895.337218 | AK57: 3661.707753 | AL57: 3895.335899 | AM57: 100 | AN57: 7.46325307 | AO57: 10.83594627 | AP57: 10.83594627 | AQ57: 10.83594627 | AS57: 132.7887842 | AT57: 0.07815756296 | AU57: 26.41118249 | AV57: 0.2254996647 | AW57: 76.20136261 | AX57: 0 | AY57: 0 | AZ57: 42.4897445 | BA57: 4.500819461 | BB57: 6.578860492 | BC57: 6.578860492 | BD57: 6.578860492 | BE57: 2368.246694 | BF57: 2223.143589 | BG57: 2368.245879 | BH57: 60 | BJ57: 66.39439209 | BK57: 0.07815756296 | BL57: 26.41118249 | BM57: 0.2254996647 | BN57: 76.20136261 | BO57: 0 | BP57: 0 | BQ57: -23.90464759 | BR57: -3.540977031 | BS57: -5.815549799 | BT57: -5.815549799 | BU57: -5.815549799 | BV57: -1965.203893 | BW57: 30 | BY57: 221.3146403 | BZ57: 0.07815756296 | CA57: 26.41118249 | CB57: 0.2254996647 | CC57: 76.20136261 | CD57: 0 | CE57: 0 | CF57: 131.0156006 | CG57: 10.55463371 | CH57: 15.43503903 | CI57: 15.1313818 | CJ57: 15.1313818 | CK57: 15.1313818 | CL57: 100 | CN57: 221.3146403 | CO57: 0.07815756296 | CP57: 13.20559124 | CQ57: 0.2254996647 | CR57: 38.1006813 | CS57: 0 | CT57: 0 | CU57: 176.1651205 | CV57: 12.23887848 | CW57: 17.80468402 | CX57: 17.50102679 | CY57: 17.50102679 | CZ57: 17.50102679 | DA57: 100 | DC57: 221.3146403 | DD57: 0.07815756296 | DE57: 7.923354746 | DF57: 0.2254996647 | DG57: 22.86040878 | DH57: 0 | DI57: 0 | DJ57: 194.2249284 | DK57: 16.59046352 | DL57: 23.72153749 | DM57: 23.41788027 | DN57: 23.41788027 | DO57: 23.41788027 | DP57: 100 | DR57: 221.3146403 | DS57: 0.07815756296 | DT57: 5.282236498 | DU57: 0.2254996647 | DV57: 15.24027252 | DW57: 0 | DX57: 0 | DY57: 203.2548324 | DZ57: 20.78605654 | EA57: 29.07265488 | EB57: 28.76899766 | EC57: 28.76899766 | ED57: 28.76899766 | EE57: 100 | EG57: 179.9719068 | EH57: 5.237795462 | EI57: 27.7261013 | EJ57: 194.3696593 | EK57: -20943.44611 | EL57: 24.2014231 | EM57: 24.2014231 | EN57: 35.63560954 | EO57: 35.33195231 | EP57: 35.33195231 | EQ57: 24.2014231 | ER57: 35.63560954 | ES57: 35.33195231 | ET57: 35.33195231 | EV57: 168.1269362 | EW57: 5.237795462 | EX57: 28.04924041 | EY57: 263.6408574 | EZ57: -25066.66667 | FA57: 25.5618003 | FB57: 25.5618003 | FC57: 34.62774221 | FD57: 34.32408499 | FE57: 34.32408499 | FF57: 25.5618003 | FG57: 34.62774221 | FH57: 34.32408499 | FI57: 34.32408499 | FK57: 168.1269362 | FL57: 5.237795462 | FM57: 28.04924041 | FN57: 263.6408574 | FO57: -42266.66667 | FP57: -43.80152789 | FQ57: 29.2 | FR57: 38.4 | FS57: 38.70365723 | FT57: 38.70365723 | FU57: 29.2 | FV57: 38.4 | FW57: 38.70365723 | FX57: 38.70365723 | FY57: 34.32408499 | GA57: =IF(Feldschwächung!U57<n_MAX_FS,Feldschwächung!U57,n_MAX_FS) -> 3200.753476 | GB57: =IF(Feldschwächung!U57<n_MAX_FS,Feldschwächung!CJ57,GB56) -> 39.21409715 | HB57: 15.476 | HC57: 0.003345564627 | HD57: 1.264396303 | HE57: -53186.09927 | HF57: 3802.675696 | HG57: 22.23796948
R58: ST | S58: 0.54 | T58: 0.7348469228 | U58: 3257.220534 | V58: 341.0953367 | X58: 221.3146403 | Y58: 0.07815756296 | Z58: 26.65918025 | AA58: 0.2267677377 | AB58: 77.34941786 | AC58: 0 | AD58: 0 | AE58: 129.787074 | AF58: 7.428179382 | AG58: 10.78232743 | AH58: 10.78232743 | AI58: 10.78232743 | AJ58: 3911.598603 | AK58: 3677.801606 | AL58: 3911.597278 | AM58: 100 | AN58: 7.428179382 | AO58: 10.78232743 | AP58: 10.78232743 | AQ58: 10.78232743 | AS58: 132.7887842 | AT58: 0.07815756296 | AU58: 26.65918025 | AV58: 0.2267677377 | AW58: 77.34941786 | AX58: 0 | AY58: 0 | AZ58: 41.26121785 | BA58: 4.435275015 | BB58: 6.477363824 | BC58: 6.477363824 | BD58: 6.477363824 | BE58: 2354.669221 | BF58: 2209.398595 | BG58: 2354.66841 | BH58: 60 | BJ58: 66.39439209 | BK58: 0.07815756296 | BL58: 26.65918025 | BM58: 0.2267677377 | BN58: 77.34941786 | BO58: 0 | BP58: 0 | BQ58: -25.13317424 | BR58: -3.630827432 | BS58: -5.956679201 | BT58: -5.956679201 | BU58: -5.956679201 | BV58: -2031.795498 | BW58: 30 | BY58: 221.3146403 | BZ58: 0.07815756296 | CA58: 26.65918025 | CB58: 0.2267677377 | CC58: 77.34941786 | CD58: 0 | CE58: 0 | CF58: 129.787074 | CG58: 10.50503203 | CH58: 15.36468285 | CI58: 15.05975755 | CJ58: 15.05975755 | CK58: 15.05975755 | CL58: 100 | CN58: 221.3146403 | CO58: 0.07815756296 | CP58: 13.32959013 | CQ58: 0.2267677377 | CR58: 38.67470893 | CS58: 0 | CT58: 0 | CU58: 175.5508571 | CV58: 12.21752221 | CW58: 17.77488398 | CX58: 17.46995868 | CY58: 17.46995868 | CZ58: 17.46995868 | DA58: 100 | DC58: 221.3146403 | DD58: 0.07815756296 | DE58: 7.997754076 | DF58: 0.2267677377 | DG58: 23.20482536 | DH58: 0 | DI58: 0 | DJ58: 193.8563704 | DK58: 16.57471515 | DL58: 23.70074063 | DM58: 23.39581533 | DN58: 23.39581533 | DO58: 23.39581533 | DP58: 100 | DR58: 221.3146403 | DS58: 0.07815756296 | DT58: 5.331836051 | DU58: 0.2267677377 | DV58: 15.46988357 | DW58: 0 | DX58: 0 | DY58: 203.009127 | DZ58: 20.77348909 | EA58: 29.05723377 | EB58: 28.75230847 | EC58: 28.75230847 | ED58: 28.75230847 | EE58: 100 | EG58: 181.6618209 | EH58: 5.286977719 | EI58: 28.2437334 | EJ58: 196.1947666 | EK58: -20332.31616 | EL58: 23.58135099 | EM58: 23.58135099 | EN58: 34.87203739 | EO58: 34.56711209 | EP58: 34.56711209 | EQ58: 23.58135099 | ER58: 34.87203739 | ES58: 34.56711209 | ET58: 34.56711209 | EV58: 169.7056275 | EW58: 5.286977719 | EX58: 28.56687251 | EY58: 266.1164127 | EZ58: -24533.33333 | FA58: 25.01541548 | FB58: 25.01541548 | FC58: 34.02497098 | FD58: 33.72004568 | FE58: 33.72004568 | FF58: 25.01541548 | FG58: 34.02497098 | FH58: 33.72004568 | FI58: 33.72004568 | FK58: 169.7056275 | FL58: 5.286977719 | FM58: 28.56687251 | FN58: 266.1164127 | FO58: -41733.33333 | FP58: -43.16225424 | FQ58: 29.2 | FR58: 38.4 | FS58: 38.7049253 | FT58: 38.7049253 | FU58: 29.2 | FV58: 38.4 | FW58: 38.7049253 | FX58: 38.7049253 | FY58: 33.72004568 | GA58: =IF(Feldschwächung!U58<n_MAX_FS,Feldschwächung!U58,n_MAX_FS) -> 3248.97626 | GB58: =IF(Feldschwächung!U58<n_MAX_FS,Feldschwächung!CJ58,GB57) -> 39.15632423 | HB58: 15.768 | HC58: 0.003369601065 | HD58: 1.288252837 | HE58: -53180.49086 | HF58: 3786.148912 | HG58: 22.62896165
R59: ST | S59: 0.55 | T59: 0.7416198487 | U59: 3287.241635 | V59: 344.239139 | X59: 221.3146403 | Y59: 0.07815756296 | Z59: 26.90489218 | AA59: 0.2280194776 | AB59: 78.49322865 | AC59: 0 | AD59: 0 | AE59: 128.564294 | AF59: 7.393104532 | AG59: 10.7287232 | AH59: 10.7287232 | AI59: 10.7287232 | AJ59: 3927.210182 | AK59: 3693.246436 | AL59: 3927.20885 | AM59: 100 | AN59: 7.393104532 | AO59: 10.7287232 | AP59: 10.7287232 | AQ59: 10.7287232 | AS59: 132.7887842 | AT59: 0.07815756296 | AU59: 26.90489218 | AV59: 0.2280194776 | AW59: 78.49322865 | AX59: 0 | AY59: 0 | AZ59: 40.03843786 | BA59: 4.369060869 | BB59: 6.374859403 | BC59: 6.374859403 | BD59: 6.374859403 | BE59: 2339.913477 | BF59: 2194.476112 | BG59: 2339.912671 | BH59: 60 | BJ59: 66.39439209 | BK59: 0.07815756296 | BL59: 26.90489218 | BM59: 0.2280194776 | BN59: 78.49322865 | BO59: 0 | BP59: 0 | BQ59: -26.35595424 | BR59: -3.718102082 | BS59: -6.093782852 | BT59: -6.093782852 | BU59: -6.093782852 | BV59: -2097.718562 | BW59: 30 | BY59: 221.3146403 | BZ59: 0.07815756296 | CA59: 26.90489218 | CB59: 0.2280194776 | CC59: 78.49322865 | CD59: 0 | CE59: 0 | CF59: 128.564294 | CG59: 10.4554287 | CH59: 15.29429351 | CI59: 14.98811647 | CJ59: 14.98811647 | CK59: 14.98811647 | CL59: 100 | CN59: 221.3146403 | CO59: 0.07815756296 | CP59: 13.45244609 | CQ59: 0.2280194776 | CR59: 39.24661433 | CS59: 0 | CT59: 0 | CU59: 174.9394671 | CV59: 12.19622871 | CW59: 17.74516491 | CX59: 17.43898787 | CY59: 17.43898787 | CZ59: 17.43898787 | DA59: 100 | DC59: 221.3146403 | DD59: 0.07815756296 | DE59: 8.071467653 | DF59: 0.2280194776 | DG59: 23.5479686 | DH59: 0 | DI59: 0 | DJ59: 193.4895364 | DK59: 16.55902557 | DL59: 23.68001653 | DM59: 23.37383949 | DN59: 23.37383949 | DO59: 23.37383949 | DP59: 100 | DR59: 221.3146403 | DS59: 0.07815756296 | DT59: 5.380978436 | DU59: 0.2280194776 | DV59: 15.69864573 | DW59: 0 | DX59: 0 | DY59: 202.764571 | DZ59: 20.76097287 | EA59: 29.04187164 | EB59: 28.7356946 | EC59: 28.7356946 | ED59: 28.7356946 | EE59: 100 | EG59: 183.3361588 | EH59: 5.335706654 | EI59: 28.7613655 | EJ59: 198.0030515 | EK59: -19721.18621 | EL59: 22.9686563 | EM59: 22.9686563 | EN59: 34.10611858 | EO59: 33.79994154 | EP59: 33.79994154 | EQ59: 22.9686563 | ER59: 34.10611858 | ES59: 33.79994154 | ET59: 33.79994154 | EV59: 171.2697677 | EW59: 5.335706654 | EX59: 29.08450461 | EY59: 268.5691504 | EZ59: -24000 | FA59: 24.4776038 | FB59: 24.4776038 | FC59: 33.42295927 | FD59: 33.11678223 | FE59: 33.11678223 | FF59: 24.4776038 | FG59: 33.42295927 | FH59: 33.11678223 | FI59: 33.11678223 | FK59: 171.2697677 | FL59: 5.335706654 | FM59: 29.08450461 | FN59: 268.5691504 | FO59: -41200 | FP59: -42.53642374 | FQ59: 29.2 | FR59: 38.4 | FS59: 38.70617704 | FT59: 38.70617704 | FU59: 29.2 | FV59: 38.4 | FW59: 38.70617704 | FX59: 38.70617704 | FY59: 33.11678223 | GA59: =IF(Feldschwächung!U59<n_MAX_FS,Feldschwächung!U59,n_MAX_FS) -> 3297.02076 | GB59: =IF(Feldschwächung!U59<n_MAX_FS,Feldschwächung!CJ59,GB58) -> 39.09432202 | HB59: 16.06 | HC59: 0.003394086783 | HD59: 1.312109371 | HE59: -53174.77761 | HF59: 3769.565433 | HG59: 23.01835052
R60: ST | S60: 0.56 | T60: 0.7483314774 | U60: 3316.991034 | V60: 347.3544888 | X60: 221.3146403 | Y60: 0.07815756296 | Z60: 27.14838033 | AA60: 0.2292553861 | AB60: 79.63288743 | AC60: 0 | AD60: 0 | AE60: 127.3471247 | AF60: 7.358024575 | AG60: 10.67512717 | AH60: 10.67512717 | AI60: 10.67512717 | AJ60: 3942.183071 | AK60: 3708.053341 | AL60: 3942.181734 | AM60: 100 | AN60: 7.358024575 | AO60: 10.67512717 | AP60: 10.67512717 | AQ60: 10.67512717 | AS60: 132.7887842 | AT60: 0.07815756296 | AU60: 27.14838033 | AV60: 0.2292553861 | AW60: 79.63288743 | AX60: 0 | AY60: 0 | AZ60: 38.82126856 | BA60: 4.302138565 | BB60: 6.271287921 | BC60: 6.271287921 | BD60: 6.271287921 | BE60: 2323.963347 | BF60: 2178.36001 | BG60: 2323.962546 | BH60: 60 | BJ60: 66.39439209 | BK60: 0.07815756296 | BL60: 27.14838033 | BM60: 0.2292553861 | BN60: 79.63288743 | BO60: 0 | BP60: 0 | BQ60: -27.57312354 | BR60: -3.802987695 | BS60: -6.227151891 | BT60: -6.227151891 | BU60: -6.227151891 | BV60: -2163.029162 | BW60: 30 | BY60: 221.3146403 | BZ60: 0.07815756296 | CA60: 27.14838033 | CB60: 0.2292553861 | CC60: 79.63288743 | CD60: 0 | CE60: 0 | CF60: 127.3471247 | CG60: 10.40581815 | CH60: 15.22386324 | CI60: 14.91645029 | CJ60: 14.91645029 | CK60: 14.91645029 | CL60: 100 | CN60: 221.3146403 | CO60: 0.07815756296 | CP60: 13.57419016 | CQ60: 0.2292553861 | CR60: 39.81644372 | CS60: 0 | CT60: 0 | CU60: 174.3308825 | CV60: 12.17499592 | CW60: 17.71552401 | CX60: 17.40811106 | CY60: 17.40811106 | CZ60: 17.40811106 | DA60: 100 | DC60: 221.3146403 | DD60: 0.07815756296 | DE60: 8.144514098 | DF60: 0.2292553861 | DG60: 23.88986623 | DH60: 0 | DI60: 0 | DJ60: 193.1243856 | DK60: 16.54339321 | DL60: 23.65936317 | DM60: 23.35195022 | DN60: 23.35195022 | DO60: 23.35195022 | DP60: 100 | DR60: 221.3146403 | DS60: 0.07815756296 | DT60: 5.429676066 | DU60: 0.2292553861 | DV60: 15.92657749 | DW60: 0 | DX60: 0 | DY60: 202.5211372 | DZ60: 20.74850659 | EA60: 29.02656693 | EB60: 28.71915399 | EC60: 28.71915399 | ED60: 28.71915399 | EE60: 100 | EG60: 184.9953434 | EH60: 5.383994577 | EI60: 29.2789976 | EJ60: 199.7949708 | EK60: -19110.05626 | EL60: 22.36267156 | EM60: 22.36267156 | EN60: 33.33770123 | EO60: 33.03028828 | EP60: 33.03028828 | EQ60: 22.36267156 | ER60: 33.33770123 | ES60: 33.03028828 | ET60: 33.03028828 | EV60: 172.819752 | EW60: 5.383994577 | EX60: 29.60213671 | EY60: 270.99969 | EZ60: -23466.66667 | FA60: 23.94784737 | FB60: 23.94784737 | FC60: 32.82170912 | FD60: 32.51429617 | FE60: 32.51429617 | FF60: 23.94784737 | FG60: 32.82170912 | FH60: 32.51429617 | FI60: 32.51429617 | FK60: 172.819752 | FL60: 5.383994577 | FM60: 29.60213671 | FN60: 270.99969 | FO60: -40666.66667 | FP60: -41.92341095 | FQ60: 29.2 | FR60: 38.4 | FS60: 38.70741295 | FT60: 38.70741295 | FU60: 29.2 | FV60: 38.4 | FW60: 38.70741295 | FX60: 38.70741295 | FY60: 32.51429617 | GA60: =IF(Feldschwächung!U60<n_MAX_FS,Feldschwächung!U60,n_MAX_FS) -> 3344.89086 | GB60: =IF(Feldschwächung!U60<n_MAX_FS,Feldschwächung!CJ60,GB59) -> 39.02792395 | HB60: 16.352 | HC60: 0.003419021779 | HD60: 1.335965906 | HE60: -53168.95953 | HF60: 3752.930625 | HG60: 23.40610639
R61: ST | S61: 0.57 | T61: 0.7549834435 | U61: 3346.475979 | V61: 350.442145 | X61: 221.3146403 | Y61: 0.07815756296 | Z61: 27.38970401 | AA61: 0.2304759407 | AB61: 80.76848303 | AC61: 0 | AD61: 0 | AE61: 126.1354357 | AF61: 7.322935654 | AG61: 10.62153312 | AH61: 10.62153312 | AI61: 10.62153312 | AJ61: 3956.527814 | AK61: 3722.232849 | AL61: 3956.526472 | AM61: 100 | AN61: 7.322935654 | AO61: 10.62153312 | AP61: 10.62153312 | AQ61: 10.62153312 | AS61: 132.7887842 | AT61: 0.07815756296 | AU61: 27.38970401 | AV61: 0.2304759407 | AW61: 80.76848303 | AX61: 0 | AY61: 0 | AZ61: 37.60957959 | BA61: 4.234467191 | BB61: 6.166586337 | BC61: 6.166586337 | BD61: 6.166586337 | BE61: 2306.800305 | BF61: 2161.031743 | BG61: 2306.79951 | BH61: 60 | BJ61: 66.39439209 | BK61: 0.07815756296 | BL61: 27.38970401 | BM61: 0.2304759407 | BN61: 80.76848303 | BO61: 0 | BP61: 0 | BQ61: -28.7848125 | BR61: -3.885649646 | BS61: -6.357044218 | BT61: -6.357044218 | BU61: -6.357044218 | BV61: -2227.776212 | BW61: 30 | BY61: 221.3146403 | BZ61: 0.07815756296 | CA61: 27.38970401 | CB61: 0.2304759407 | CC61: 80.76848303 | CD61: 0 | CE61: 0 | CF61: 126.1354357 | CG61: 10.35619492 | CH61: 15.15338442 | CI61: 14.84475091 | CJ61: 14.84475091 | CK61: 14.84475091 | CL61: 100 | CN61: 221.3146403 | CO61: 0.07815756296 | CP61: 13.694852 | CQ61: 0.2304759407 | CR61: 40.38424151 | CS61: 0 | CT61: 0 | CU61: 173.725038 | CV61: 12.15382189 | CW61: 17.68595863 | CX61: 17.37732512 | CY61: 17.37732512 | CZ61: 17.37732512 | DA61: 100 | DC61: 221.3146403 | DD61: 0.07815756296 | DE61: 8.216911203 | DF61: 0.2304759407 | DG61: 24.23054491 | DH61: 0 | DI61: 0 | DJ61: 192.7608789 | DK61: 16.52781655 | DL61: 23.6387786 | DM61: 23.3301451 | DN61: 23.3301451 | DO61: 23.3301451 | DP61: 100 | DR61: 221.3146403 | DS61: 0.07815756296 | DT61: 5.477940802 | DU61: 0.2304759407 | DV61: 16.15369661 | DW61: 0 | DX61: 0 | DY61: 202.2787994 | DZ61: 20.73608899 | EA61: 29.01131818 | EB61: 28.70268467 | EC61: 28.70268467 | ED61: 28.70268467 | EE61: 100 | EG61: 186.6397788 | EH61: 5.431853247 | EI61: 29.7966297 | EJ61: 201.5709611 | EK61: -18498.92632 | EL61: 21.76274262 | EM61: 21.76274262 | EN61: 32.56657953 | EO61: 32.25794603 | EP61: 32.25794603 | EQ61: 21.76274262 | ER61: 32.56657953 | ES61: 32.25794603 | ET61: 32.25794603 | EV61: 174.3559577 | EW61: 5.431853247 | EX61: 30.11976881 | EY61: 273.4086235 | EZ61: -22933.33333 | FA61: 23.42565108 | FB61: 23.42565108 | FC61: 32.22119454 | FD61: 31.91256104 | FE61: 31.91256104 | FF61: 23.42565108 | FG61: 32.22119454 | FH61: 31.91256104 | FI61: 31.91256104 | FK61: 174.3559577 | FL61: 5.431853247 | FM61: 30.11976881 | FN61: 273.4086235 | FO61: -40133.33333 | FP61: -41.32262631 | FQ61: 29.2 | FR61: 38.4 | FS61: 38.7086335 | FT61: 38.7086335 | FU61: 29.2 | FV61: 38.4 | FW61: 38.7086335 | FX61: 38.7086335 | FY61: 31.91256104 | GA61: =IF(Feldschwächung!U61<n_MAX_FS,Feldschwächung!U61,n_MAX_FS) -> 3392.590289 | GB61: =IF(Feldschwächung!U61<n_MAX_FS,Feldschwächung!CJ61,GB60) -> 38.95697236 | HB61: 16.644 | HC61: 0.003444406055 | HD61: 1.35982244 | HE61: -53163.03662 | HF61: 3736.249743 | HG61: 23.79219959
R62: ST | S62: 0.58 | T62: 0.7615773106 | U62: 3375.703398 | V62: 353.5028332 | X62: 221.3146403 | Y62: 0.07815756296 | Z62: 27.62891994 | AA62: 0.2316815967 | AB62: 81.90010084 | AC62: 0 | AD62: 0 | AE62: 124.929102 | AF62: 7.287833992 | AG62: 10.56793495 | AH62: 10.56793495 | AI62: 10.56793495 | AJ62: 3970.254415 | AK62: 3735.794944 | AL62: 3970.253067 | AM62: 100 | AN62: 7.287833992 | AO62: 10.56793495 | AP62: 10.56793495 | AQ62: 10.56793495 | AS62: 132.7887842 | AT62: 0.07815756296 | AU62: 27.62891994 | AV62: 0.2316815967 | AW62: 81.90010084 | AX62: 0 | AY62: 0 | AZ62: 36.4032459 | BA62: 4.166003088 | BB62: 6.060687435 | BC62: 6.060687435 | BD62: 6.060687435 | BE62: 2288.403235 | BF62: 2142.470179 | BG62: 2288.402446 | BH62: 60 | BJ62: 66.39439209 | BK62: 0.07815756296 | BL62: 27.62891994 | BM62: 0.2316815967 | BN62: 81.90010084 | BO62: 0 | BP62: 0 | BQ62: -29.99114619 | BR62: -3.966235239 | BS62: -6.483689585 | BT62: -6.483689585 | BU62: -6.483689585 | BV62: -2292.002638 | BW62: 30 | BY62: 221.3146403 | BZ62: 0.07815756296 | CA62: 27.62891994 | CB62: 0.2316815967 | CC62: 81.90010084 | CD62: 0 | CE62: 0 | CF62: 124.929102 | CG62: 10.30655367 | CH62: 15.08284958 | CI62: 14.77301042 | CJ62: 14.77301042 | CK62: 14.77301042 | CL62: 100 | CN62: 221.3146403 | CO62: 0.07815756296 | CP62: 13.81445997 | CQ62: 0.2316815967 | CR62: 40.95005042 | CS62: 0 | CT62: 0 | CU62: 173.1218712 | CV62: 12.13270474 | CW62: 17.65646618 | CX62: 17.34662702 | CY62: 17.34662702 | CZ62: 17.34662702 | DA62: 100 | DC62: 221.3146403 | DD62: 0.07815756296 | DE62: 8.288675982 | DF62: 0.2316815967 | DG62: 24.57003025 | DH62: 0 | DI62: 0 | DJ62: 192.3989788 | DK62: 16.51229414 | DL62: 23.61826097 | DM62: 23.30842181 | DN62: 23.30842181 | DO62: 23.30842181 | DP62: 100 | DR62: 221.3146403 | DS62: 0.07815756296 | DT62: 5.525783988 | DU62: 0.2316815967 | DV62: 16.38002017 | DW62: 0 | DX62: 0 | DY62: 202.0375327 | DZ62: 20.72371888 | EA62: 28.99612395 | EB62: 28.68628479 | EC62: 28.68628479 | ED62: 28.68628479 | EE62: 100 | EG62: 188.2698514 | EH62: 5.479293914 | EI62: 30.3142618 | EJ62: 203.3314396 | EK62: -17887.79637 | EL62: 21.16822464 | EM62: 21.16822464 | EN62: 31.79249443 | EO62: 31.48265527 | EP62: 31.48265527 | EQ62: 21.16822464 | ER62: 31.79249443 | ES62: 31.48265527 | ET62: 31.48265527 | EV62: 175.8787461 | EW62: 5.479293914 | EX62: 30.63740091 | EY62: 275.796517 | EZ62: -22400 | FA62: 22.91054024 | FB62: 22.91054024 | FC62: 31.62136384 | FD62: 31.31152468 | FE62: 31.31152468 | FF62: 22.91054024 | FG62: 31.62136384 | FH62: 31.31152468 | FI62: 31.31152468 | FK62: 175.8787461 | FL62: 5.479293914 | FM62: 30.63740091 | FN62: 275.796517 | FO62: -39600 | FP62: -40.73351337 | FQ62: 29.2 | FR62: 38.4 | FS62: 38.70983916 | FT62: 38.70983916 | FU62: 29.2 | FV62: 38.4 | FW62: 38.70983916 | FX62: 38.70983916 | FY62: 31.31152468 | GA62: =IF(Feldschwächung!U62<n_MAX_FS,Feldschwächung!U62,n_MAX_FS) -> 3440.122637 | GB62: =IF(Feldschwächung!U62<n_MAX_FS,Feldschwächung!CJ62,GB61) -> 38.88132021 | HB62: 16.936 | HC62: 0.00347023961 | HD62: 1.383678974 | HE62: -53157.00889 | HF62: 3719.527926 | HG62: 24.17660041
R63: ST | S63: 0.59 | T63: 0.7681145748 | U63: 3404.679924 | V63: 356.5372479 | X63: 221.3146403 | Y63: 0.07815756296 | Z63: 27.8660824 | AA63: 0.2328727882 | AB63: 83.02782302 | AC63: 0 | AD63: 0 | AE63: 123.7280035 | AF63: 7.252715883 | AG63: 10.51432669 | AH63: 10.51432669 | AI63: 10.51432669 | AJ63: 3983.372364 | AK63: 3748.749103 | AL63: 3983.371012 | AM63: 100 | AN63: 7.252715883 | AO63: 10.51432669 | AP63: 10.51432669 | AQ63: 10.51432669 | AS63: 132.7887842 | AT63: 0.07815756296 | AU63: 27.8660824 | AV63: 0.2328727882 | AW63: 83.02782302 | AX63: 0 | AY63: 0 | AZ63: 35.20214741 | BA63: 4.096699525 | BB63: 5.953519319 | BC63: 5.953519319 | BD63: 5.953519319 | BE63: 2268.748229 | BF63: 2122.651394 | BG63: 2268.747446 | BH63: 60 | BJ63: 66.39439209 | BK63: 0.07815756296 | BL63: 27.8660824 | BM63: 0.2328727882 | BN63: 83.02782302 | BO63: 0 | BP63: 0 | BQ63: -31.19224468 | BR63: -4.044876363 | BS63: -6.607293721 | BT63: -6.607293721 | BU63: -6.607293721 | BV63: -2355.74632 | BW63: 30 | BY63: 221.3146403 | BZ63: 0.07815756296 | CA63: 27.8660824 | CB63: 0.2328727882 | CC63: 83.02782302 | CD63: 0 | CE63: 0 | CF63: 123.7280035 | CG63: 10.25688917 | CH63: 15.01225138 | CI63: 14.70122103 | CJ63: 14.70122103 | CK63: 14.70122103 | CL63: 100 | CN63: 221.3146403 | CO63: 0.07815756296 | CP63: 13.9330412 | CQ63: 0.2328727882 | CR63: 41.51391151 | CS63: 0 | CT63: 0 | CU63: 172.5213219 | CV63: 12.11164265 | CW63: 17.62704421 | CX63: 17.31601386 | CY63: 17.31601386 | CZ63: 17.31601386 | DA63: 100 | DC63: 221.3146403 | DD63: 0.07815756296 | DE63: 8.35982472 | DF63: 0.2328727882 | DG63: 24.90834691 | DH63: 0 | DI63: 0 | DJ63: 192.0386493 | DK63: 16.49682457 | DL63: 23.59780847 | DM63: 23.28677812 | DN63: 23.28677812 | DO63: 23.28677812 | DP63: 100 | DR63: 221.3146403 | DS63: 0.07815756296 | DT63: 5.57321648 | DU63: 0.2328727882 | DV63: 16.6055646 | DW63: 0 | DX63: 0 | DY63: 201.797313 | DZ63: 20.71139512 | EA63: 28.98098288 | EB63: 28.66995253 | EC63: 28.66995253 | ED63: 28.66995253 | EE63: 100 | EG63: 189.8859313 | EH63: 5.526327343 | EI63: 30.8318939 | EJ63: 205.0768058 | EK63: -17276.66642 | EL63: 20.57847796 | EM63: 20.57847796 | EN63: 31.01513336 | EO63: 30.70410301 | EP63: 30.70410301 | EQ63: 20.57847796 | ER63: 31.01513336 | ES63: 30.70410301 | ET63: 30.70410301 | EV63: 177.3884626 | EW63: 5.526327343 | EX63: 31.15503301 | EY63: 278.1639125 | EZ63: -21866.66667 | FA63: 22.40205837 | FB63: 22.40205837 | FC63: 31.02214153 | FD63: 30.71111118 | FE63: 30.71111118 | FF63: 22.40205837 | FG63: 31.02214153 | FH63: 30.71111118 | FI63: 30.71111118 | FK63: 177.3884626 | FL63: 5.526327343 | FM63: 31.15503301 | FN63: 278.1639125 | FO63: -39066.66667 | FP63: -40.15554627 | FQ63: 29.2 | FR63: 38.4 | FS63: 38.71103035 | FT63: 38.71103035 | FU63: 29.2 | FV63: 38.4 | FW63: 38.71103035 | FX63: 38.71103035 | FY63: 30.70410301 | GA63: =IF(Feldschwächung!U63<n_MAX_FS,Feldschwächung!U63,n_MAX_FS) -> 3487.491353 | GB63: =IF(Feldschwächung!U63<n_MAX_FS,Feldschwächung!CJ63,GB62) -> 38.80083271 | HB63: 17.228 | HC63: 0.003496522445 | HD63: 1.407535508 | HE63: -53150.87632 | HF63: 3702.770192 | HG63: 24.55927918
R64: ST | S64: 0.6 | T64: 0.7745966692 | U64: 3433.41191 | V64: 359.5460544 | X64: 221.3146403 | Y64: 0.07815756296 | Z64: 28.10124338 | AA64: 0.2340499295 | AB64: 84.15172869 | AC64: 0 | AD64: 0 | AE64: 122.5320249 | AF64: 7.217577691 | AG64: 10.46070251 | AH64: 10.46070251 | AI64: 10.46070251 | AJ64: 3995.890669 | AK64: 3761.104314 | AL64: 3995.889311 | AM64: 100 | AN64: 7.217577691 | AO64: 10.46070251 | AP64: 10.46070251 | AQ64: 10.46070251 | AS64: 132.7887842 | AT64: 0.07815756296 | AU64: 28.10124338 | AV64: 0.2340499295 | AW64: 84.15172869 | AX64: 0 | AY64: 0 | AZ64: 34.00616876 | BA64: 4.026506326 | BB64: 5.84500485 | BC64: 5.84500485 | BD64: 5.84500485 | BE64: 2247.808349 | BF64: 2101.548432 | BG64: 2247.807573 | BH64: 60 | BJ64: 66.39439209 | BK64: 0.07815756296 | BL64: 28.10124338 | BM64: 0.2340499295 | BN64: 84.15172869 | BO64: 0 | BP64: 0 | BQ64: -32.38822334 | BR64: -4.121691661 | BS64: -6.728041723 | BT64: -6.728041723 | BU64: -6.728041723 | BV64: -2419.040855 | BW64: 30 | BY64: 221.3146403 | BZ64: 0.07815756296 | CA64: 28.10124338 | CB64: 0.2340499295 | CC64: 84.15172869 | CD64: 0 | CE64: 0 | CF64: 122.5320249 | CG64: 10.20719626 | CH64: 14.94158261 | CI64: 14.62937512 | CJ64: 14.62937512 | CK64: 14.62937512 | CL64: 100 | CN64: 221.3146403 | CO64: 0.07815756296 | CP64: 14.05062169 | CQ64: 0.2340499295 | CR64: 42.07586435 | CS64: 0 | CT64: 0 | CU64: 171.9233326 | CV64: 12.09063388 | CW64: 17.59769034 | CX64: 17.28548285 | CY64: 17.28548285 | CZ64: 17.28548285 | DA64: 100 | DC64: 221.3146403 | DD64: 0.07815756296 | DE64: 8.430373015 | DF64: 0.2340499295 | DG64: 25.24551861 | DH64: 0 | DI64: 0 | DJ64: 191.6798557 | DK64: 16.48140653 | DL64: 23.5774194 | DM64: 23.2652119 | DN64: 23.2652119 | DO64: 23.2652119 | DP64: 100 | DR64: 221.3146403 | DS64: 0.07815756296 | DT64: 5.620248677 | DU64: 0.2340499295 | DV64: 16.83034574 | DW64: 0 | DX64: 0 | DY64: 201.5581172 | DZ64: 20.69911659 | EA64: 28.96589367 | EB64: 28.65368618 | EC64: 28.65368618 | ED64: 28.65368618 | EE64: 100 | EG64: 191.4883726 | EH64: 5.572963843 | EI64: 31.349526 | EJ64: 206.8074425 | EK64: -16665.53647 | EL64: 19.99286387 | EM64: 19.99286387 | EN64: 30.23412913 | EO64: 29.92192164 | EP64: 29.92192164 | EQ64: 19.99286387 | ER64: 30.23412913 | ES64: 29.92192164 | ET64: 29.92192164 | EV64: 178.8854382 | EW64: 5.572963843 | EX64: 31.67266511 | EY64: 280.511329 | EZ64: -21333.33333 | FA64: 21.89976515 | FB64: 21.89976515 | FC64: 30.42342985 | FD64: 30.11122236 | FE64: 30.11122236 | FF64: 21.89976515 | FG64: 30.42342985 | FH64: 30.11122236 | FI64: 30.11122236 | FK64: 178.8854382 | FL64: 5.572963843 | FM64: 31.67266511 | FN64: 280.511329 | FO64: -38533.33333 | FP64: -39.58822739 | FQ64: 29.2 | FR64: 38.4 | FS64: 38.71220749 | FT64: 38.71220749 | FU64: 29.2 | FV64: 38.4 | FW64: 38.71220749 | FX64: 38.71220749 | FY64: 29.92192164 | GA64: =IF(Feldschwächung!U64<n_MAX_FS,Feldschwächung!U64,n_MAX_FS) -> 3534.69976 | GB64: =IF(Feldschwächung!U64<n_MAX_FS,Feldschwächung!CJ64,GB63) -> 38.71538896 | HB64: 17.52 | HC64: 0.003523254558 | HD64: 1.431392042 | HE64: -53144.63892 | HF64: 3685.981447 | HG64: 24.94020619
R65: ST | S65: 0.61 | T65: 0.7810249676 | U65: 3461.905443 | V65: 362.5298903 | X65: 221.3146403 | Y65: 0.07815756296 | Z65: 28.33445272 | AA65: 0.2352134165 | AB65: 85.27189406 | AC65: 0 | AD65: 0 | AE65: 121.3410551 | AF65: 7.182415838 | AG65: 10.40705667 | AH65: 10.40705667 | AI65: 10.40705667 | AJ65: 4007.817876 | AK65: 3772.869112 | AL65: 4007.816514 | AM65: 100 | AN65: 7.182415838 | AO65: 10.40705667 | AP65: 10.40705667 | AQ65: 10.40705667 | AS65: 132.7887842 | AT65: 0.07815756296 | AU65: 28.33445272 | AV65: 0.2352134165 | AW65: 85.27189406 | AX65: 0 | AY65: 0 | AZ65: 32.81519902 | BA65: 3.955369443 | BB65: 5.735060982 | BC65: 5.735060982 | BD65: 5.735060982 | BE65: 2225.553343 | BF65: 2079.131028 | BG65: 2225.552574 | BH65: 60 | BJ65: 66.39439209 | BK65: 0.07815756296 | BL65: 28.33445272 | BM65: 0.2352134165 | BN65: 85.27189406 | BO65: 0 | BP65: 0 | BQ65: -33.57919307 | BR65: -4.196788321 | BS65: -6.846100835 | BT65: -6.846100835 | BU65: -6.846100835 | BV65: -2481.916185 | BW65: 30 | BY65: 221.3146403 | BZ65: 0.07815756296 | CA65: 28.33445272 | CB65: 0.2352134165 | CC65: 85.27189406 | CD65: 0 | CE65: 0 | CF65: 121.3410551 | CG65: 10.15746989 | CH65: 14.87083616 | CI65: 14.55746518 | CJ65: 14.55746518 | CK65: 14.55746518 | CL65: 100 | CN65: 221.3146403 | CO65: 0.07815756296 | CP65: 14.16722636 | CQ65: 0.2352134165 | CR65: 42.63594703 | CS65: 0 | CT65: 0 | CU65: 171.3278477 | CV65: 12.06967677 | CW65: 17.5684023 | CX65: 17.25503132 | CY65: 17.25503132 | CZ65: 17.25503132 | DA65: 100 | DC65: 221.3146403 | DD65: 0.07815756296 | DE65: 8.500335817 | DF65: 0.2352134165 | DG65: 25.58156822 | DH65: 0 | DI65: 0 | DJ65: 191.3225648 | DK65: 16.4660387 | DL65: 23.5570921 | DM65: 23.24372112 | DN65: 23.24372112 | DO65: 23.24372112 | DP65: 100 | DR65: 221.3146403 | DS65: 0.07815756296 | DT65: 5.666890544 | DU65: 0.2352134165 | DV65: 17.05437881 | DW65: 0 | DX65: 0 | DY65: 201.3199233 | DZ65: 20.68688225 | EA65: 28.95085505 | EB65: 28.63748407 | EC65: 28.63748407 | ED65: 28.63748407 | EE65: 100 | EG65: 193.077515 | EH65: 5.619213299 | EI65: 31.8671581 | EJ65: 208.5237162 | EK65: -16054.40653 | EL65: 19.41074011 | EM65: 19.41074011 | EN65: 29.44905766 | EO65: 29.13568668 | EP65: 29.13568668 | EQ65: 19.41074011 | ER65: 29.44905766 | ES65: 29.13568668 | ET65: 29.13568668 | EV65: 180.3699901 | EW65: 5.619213299 | EX65: 32.19029721 | EY65: 282.8392637 | EZ65: -20800 | FA65: 21.40323435 | FB65: 21.40323435 | FC65: 29.82511003 | FD65: 29.51173905 | FE65: 29.51173905 | FF65: 21.40323435 | FG65: 29.82511003 | FH65: 29.51173905 | FI65: 29.51173905 | FK65: 180.3699901 | FL65: 5.619213299 | FM65: 32.19029721 | FN65: 282.8392637 | FO65: -38000 | FP65: -39.03108528 | FQ65: 29.2 | FR65: 38.4 | FS65: 38.71337098 | FT65: 38.71337098 | FU65: 29.2 | FV65: 38.4 | FW65: 38.71337098 | FX65: 38.71337098 | FY65: 29.13568668 | GA65: =IF(Feldschwächung!U65<n_MAX_FS,Feldschwächung!U65,n_MAX_FS) -> 3581.75106 | GB65: =IF(Feldschwächung!U65<n_MAX_FS,Feldschwächung!CJ65,GB64) -> 38.62488349 | HB65: 17.812 | HC65: 0.003550435951 | HD65: 1.455248576 | HE65: -53138.29669 | HF65: 3669.166474 | HG65: 25.31935175
R66: ST | S66: 0.62 | T66: 0.7874007874 | U66: 3490.166365 | V66: 365.489367 | X66: 221.3146403 | Y66: 0.07815756296 | Z66: 28.56575821 | AA66: 0.2363636274 | AB66: 86.38839258 | AC66: 0 | AD66: 0 | AE66: 120.1549876 | AF66: 7.147226801 | AG66: 10.35338353 | AH66: 10.35338353 | AI66: 10.35338353 | AJ66: 4019.162097 | AK66: 3784.051592 | AL66: 4019.160731 | AM66: 100 | AN66: 7.147226801 | AO66: 10.35338353 | AP66: 10.35338353 | AQ66: 10.35338353 | AS66: 132.7887842 | AT66: 0.07815756296 | AU66: 28.56575821 | AV66: 0.2363636274 | AW66: 86.38839258 | AX66: 0 | AY66: 0 | AZ66: 31.62913148 | BA66: 3.883230465 | BB66: 5.623598016 | BC66: 5.623598016 | BD66: 5.623598016 | BE66: 2201.949322 | BF66: 2055.365279 | BG66: 2201.948562 | BH66: 60 | BJ66: 66.39439209 | BK66: 0.07815756296 | BL66: 28.56575821 | BM66: 0.2363636274 | BN66: 86.38839258 | BO66: 0 | BP66: 0 | BQ66: -34.76526061 | BR66: -4.270263571 | BS66: -6.96162278 | BT66: -6.96162278 | BU66: -6.96162278 | BV66: -2544.399104 | BW66: 30 | BY66: 221.3146403 | BZ66: 0.07815756296 | CA66: 28.56575821 | CB66: 0.2363636274 | CC66: 86.38839258 | CD66: 0 | CE66: 0 | CF66: 120.1549876 | CG66: 10.10770508 | CH66: 14.80000504 | CI66: 14.48548385 | CJ66: 14.48548385 | CK66: 14.48548385 | CL66: 100 | CN66: 221.3146403 | CO66: 0.07815756296 | CP66: 14.28287911 | CQ66: 0.2363636274 | CR66: 43.19419629 | CS66: 0 | CT66: 0 | CU66: 170.734814 | CV66: 12.04876969 | CW66: 17.53917789 | CX66: 17.2246567 | CY66: 17.2246567 | CZ66: 17.2246567 | DA66: 100 | DC66: 221.3146403 | DD66: 0.07815756296 | DE66: 8.569727464 | DF66: 0.2363636274 | DG66: 25.91651778 | DH66: 0 | DI66: 0 | DJ66: 190.9667445 | DK66: 16.45071987 | DL66: 23.53682498 | DM66: 23.22230379 | DN66: 23.22230379 | DO66: 23.22230379 | DP66: 100 | DR66: 221.3146403 | DS66: 0.07815756296 | DT66: 5.713151643 | DU66: 0.2363636274 | DV66: 17.27767852 | DW66: 0 | DX66: 0 | DY66: 201.0827098 | DZ66: 20.67469107 | EA66: 28.93586582 | EB66: 28.62134463 | EE66: 100 | EG66: 194.6536842 | EH66: 5.665085189 | EI66: 32.3847902 | EJ66: 210.2259789 | EK66: -15443.27658 | EL66: 18.83145603 | EM66: 18.83145603 | EN66: 28.65943481 | EO66: 28.34491362 | EP66: 28.34491362 | EQ66: 18.83145603 | ER66: 28.65943481 | ES66: 28.34491362 | ET66: 28.34491362 | EV66: 181.8424226 | EW66: 5.665085189 | EX66: 32.70792931 | EY66: 285.148194 | EZ66: -20266.66667 | FA66: 20.91205204 | FB66: 20.91205204 | FC66: 29.22704313 | FD66: 28.91252194 | FE66: 28.91252194 | FF66: 20.91205204 | FG66: 29.22704313 | FH66: 28.91252194 | FI66: 28.91252194 | FK66: 181.8424226 | FL66: 5.665085189 | FM66: 32.70792931 | FN66: 285.148194 | FO66: -37466.66667 | FP66: -38.48367269 | FQ66: 29.2 | FR66: 38.4 | FS66: 38.71452119 | FT66: 38.71452119 | FU66: 29.2 | FV66: 38.4 | FW66: 38.71452119 | FX66: 38.71452119 | FY66: 28.34491362 | GA66: =IF(Feldschwächung!U66<n_MAX_FS,Feldschwächung!U66,n_MAX_FS) -> 3628.648339 | GB66: =IF(Feldschwächung!U66<n_MAX_FS,Feldschwächung!CJ66,GB65) -> 38.52922773 | HB66: 18.104 | HC66: 0.003578066623 | HD66: 1.47910511 | HE66: -53131.84963 | HF66: 3652.329939 | HG66: 25.69668619
R67: ST | S67: 0.63 | T67: 0.7937253933 | U67: 3518.20028 | V67: 368.4250718 | X67: 221.3146403 | Y67: 0.07815756296 | Z67: 28.79520574 | AA67: 0.2375009244 | AB67: 87.50129513 | AC67: 0 | AD67: 0 | AE67: 118.9737195 | AF67: 7.112007106 | AG67: 10.29967754 | AH67: 10.29967754 | AI67: 10.29967754 | AJ67: 4029.931028 | AK67: 3794.659437 | AL67: 4029.929657 | AM67: 100 | AN67: 7.112007106 | AO67: 10.29967754 | AP67: 10.29967754 | AQ67: 10.29967754 | AS67: 132.7887842 | AT67: 0.07815756296 | AU67: 28.79520574 | AV67: 0.2375009244 | AW67: 87.50129513 | AX67: 0 | AY67: 0 | AZ67: 30.44786342 | BA67: 3.810026043 | BB67: 5.510518719 | BC67: 5.510518719 | BD67: 5.510518719 | BE67: 2176.958371 | BF67: 2030.213254 | BG67: 2176.957619 | BH67: 60 | BJ67: 66.39439209 | BK67: 0.07815756296 | BL67: 28.79520574 | BM67: 0.2375009244 | BN67: 87.50129513 | BO67: 0 | BP67: 0 | BQ67: -35.94652868 | BR67: -4.342205924 | BS67: -7.074745702 | BT67: -7.074745702 | BU67: -7.074745702 | BV67: -2606.513693 | BW67: 30 | BY67: 221.3146403 | BZ67: 0.07815756296 | CA67: 28.79520574 | CB67: 0.2375009244 | CC67: 87.50129513 | CD67: 0 | CE67: 0 | CF67: 118.9737195 | CG67: 10.0578969 | CH67: 14.72908231 | CI67: 14.41342382 | CJ67: 14.41342382 | CK67: 14.41342382 | CL67: 100 | CN67: 221.3146403 | CO67: 0.07815756296 | CP67: 14.39760287 | CQ67: 0.2375009244 | CR67: 43.75064757 | CS67: 0 | CT67: 0 | CU67: 170.1441799 | CV67: 12.02791109 | CW67: 17.51001498 | CX67: 17.19435649 | CY67: 17.19435649 | CZ67: 17.19435649 | DA67: 100 | DC67: 221.3146403 | DD67: 0.07815756296 | DE67: 8.638561723 | DF67: 0.2375009244 | DG67: 26.25038854 | DH67: 0 | DI67: 0 | DJ67: 190.6123641 | DK67: 16.43544884 | DL67: 23.51661651 | DM67: 23.20095802 | DN67: 23.20095802 | DO67: 23.20095802 | DP67: 100 | DR67: 221.3146403 | DS67: 0.07815756296 | DT67: 5.759041148 | DU67: 0.2375009244 | DV67: 17.50025903 | DW67: 0 | DX67: 0 | DY67: 200.8464562 | DZ67: 20.66254208 | EA67: 28.9209248 | EB67: 28.60526631 | EE67: 100 | EG67: 196.2171927 | EH67: 5.710588612 | EI67: 32.9024223 | EJ67: 211.9145681 | EK67: -14832.14663 | EL67: 18.25434731 | EM67: 18.25434731 | EN67: 27.86471182 | EO67: 27.54905333 | EP67: 27.54905333 | EQ67: 18.25434731 | ER67: 27.86471182 | ES67: 27.54905333 | ET67: 27.54905333 | EV67: 183.3030278 | EW67: 5.710588612 | EX67: 33.22556141 | EY67: 287.4385777 | EZ67: -19733.33333 | FA67: 20.42581467 | FB67: 20.42581467 | FC67: 28.62907066 | FD67: 28.31341217 | FE67: 28.31341217 | FF67: 20.42581467 | FG67: 28.62907066 | FH67: 28.31341217 | FI67: 28.31341217 | FK67: 183.3030278 | FL67: 5.710588612 | FM67: 33.22556141 | FN67: 287.4385777 | FO67: -36933.33333 | FP67: -37.94556481 | FQ67: 29.2 | FR67: 38.4 | FS67: 38.71565849 | FT67: 38.71565849 | FU67: 29.2 | FV67: 38.4 | FW67: 38.71565849 | FX67: 38.71565849 | FY67: 27.54905333 | GA67: =IF(Feldschwächung!U67<n_MAX_FS,Feldschwächung!U67,n_MAX_FS) -> 3675.394573 | GB67: =IF(Feldschwächung!U67<n_MAX_FS,Feldschwächung!CJ67,GB66) -> 38.42835126 | HB67: 18.396 | HC67: 0.003606146574 | HD67: 1.502961644 | HE67: -53125.29774 | HF67: 3635.476387 | HG67: 26.07217979
R68: ST | S68: 0.64 | T68: 0.8 | U68: =N_LL_HOT*T68 -> 3546.012573 | V68: 371.3375683 | X68: 221.3146403 | Y68: 0.07815756296 | Z68: =Y68*OMEGA_DD -> 29.02283937 | AA68: =VR_KL*(DREHZAHL_DD/1000)^EXP_VR -> 0.238625654 | AB68: =AA68*OMEGA_DD -> 88.6106701 | AC68: =MR_WD*WDS -> 0 | AD68: =AC68*OMEGA_DD -> 0 | AE68: =X68-(Z68+AB68)*(OBM*R_th_CU_FE+R_th_FE_AL+R_th_AL_U)/(R_th_CU_FE+R_th_FE_AL+R_th_AL_U)-AD68*(WDS*R_th_AL_U)/(R_th_CU_FE+R_th_FE_AL+R_th_AL_U) -> 117.797152 | AF68: =IF(AE68>=0,SQRT(AE68/(3*R_ph_140)),-SQRT(ABS(AE68)/(3*R_ph_140))) -> 7.076753322 | AG68: =AF68*KT_I_100K-Y68-AA68-WDS*AC68 -> 10.24593324 | AH68: =IF(AG68<M_MAX_MIN,AG68,#N/A) -> 10.24593324 | AI68: 10.24593324 | AJ68: =AE68+KE_ph_ph_HOT/SQRT(3)*DREHZAHL_DD/1000*AF68*3 -> 4040.13197 | AK68: =AH68*OMEGA_DD -> 3804.699934 | AL68: 4040.130595 | AM68: =(Z68+AB68+AD68+AE68)*R_th_AL_U+(Z68+AB68+AE68)*R_th_FE_AL+AE68*R_th_CU_FE -> 100 | AN68: =IF(AF68>I_R_NENN,I_R_NENN,AF68) -> 7.076753322 | AO68: =AN68*KT_I_100K-Y68-AA68-WDS*AC68 -> 10.24593324 | AP68: =IF(AO68<M_MAX_MIN,AO68,#N/A) -> 10.24593324 | AQ68: 10.24593324 | AS68: 132.7887842 | AT68: 0.07815756296 | AU68: =AT68*OMEGA_DD -> 29.02283937 | AV68: =VR_KL*(DREHZAHL_DD/1000)^EXP_VR -> 0.238625654 | AW68: =AV68*OMEGA_DD -> 88.6106701 | AX68: =MR_WD*WDS -> 0 | AY68: =AX68*OMEGA_DD -> 0 | AZ68: =AS68-(AU68+AW68)*(OBM*R_th_CU_FE+R_th_FE_AL+R_th_AL_U)/(R_th_CU_FE+R_th_FE_AL+R_th_AL_U)-AD68*(WDS*R_th_AL_U)/(R_th_CU_FE+R_th_FE_AL+R_th_AL_U) -> 29.27129586 | BA68: =IF(AZ68>=0,SQRT(AZ68/(3*R_ph_100)),-SQRT(ABS(AZ68)/(3*R_ph_100))) -> 3.735687228 | BB68: =BA68*KT_60K-AT68-AV68-WDS*AX68 -> 5.395717309 | BC68: =IF(BB68<M_MAX_MIN,BB68,#N/A) -> 5.395717309 | BD68: 5.395717309 | BE68: =AZ68+KE_60K/SQRT(3)*DREHZAHL_DD/1000*BA68*3 -> 2150.538093 | BF68: =BC68*OMEGA_DD -> 2003.632544 | BG68: 2150.53735 | BH68: =(AU68+AW68+AY68+AZ68)*R_th_AL_U+(AU68+AW68+AZ68)*R_th_FE_AL+AZ68*R_th_CU_FE -> 60 | BJ68: =P_V_TOT_30K -> 66.39439209 | BK68: 0.07815756296 | BL68: =BK68*OMEGA_DD -> 29.02283937 | BM68: =VR_KL*(DREHZAHL_DD/1000)^EXP_VR -> 0.238625654 | BN68: =BM68*OMEGA_DD -> 88.6106701 | BO68: =MR_WD*WDS -> 0 | BP68: =BO68*OMEGA_DD -> 0 | BQ68: =BJ68-(BL68+BN68)*(OBM*R_th_CU_FE+R_th_FE_AL+R_th_AL_U)/(R_th_CU_FE+R_th_FE_AL+R_th_AL_U)-BP68*(WDS*R_th_AL_U)/(R_th_CU_FE+R_th_FE_AL+R_th_AL_U) -> -37.12309624 | BR68: =IF(BQ68>=0,SQRT(BQ68/(3*R_ph_70)),-SQRT(ABS(BQ68)/(3*R_ph_70))) -> -4.412696239 | BS68: =BR68*KT_30K-BK68-BM68-WDS*BO68 -> -7.185595808 | BT68: =IF(BS68<M_MAX_MIN,BS68,#N/A) -> -7.185595808 | BU68: -7.185595808 | BV68: =BT68*OMEGA_DD -> -2668.281674 | BW68: =(BL68+BN68+BP68+BQ68)*R_th_AL_U+(BL68+BN68+BQ68)*R_th_FE_AL+BQ68*R_th_CU_FE -> 30 | BY68: 221.3146403 | BZ68: 0.07815756296 | CA68: 29.02283937 | CB68: =VR_KL*(DREHZAHL_DD/1000)^EXP_VR -> 0.238625654 | CC68: 88.6106701 | CD68: =MR_WD*WDS -> 0 | CE68: =CD68*OMEGA_DD -> 0 | CF68: =BY68-(CA68+CC68)*(OBM*R_th_CU_FE+R_th_FE_AL+R_th_AL_U)/(R_th_CU_FE+R_th_FE_AL+R_th_AL_U)-CE68*(WDS*R_th_AL_U)/(R_th_CU_FE+R_th_FE_AL+R_th_AL_U) -> 117.797152 | CG68: =IF(CF68>=0,SQRT(CF68/(3*R_ph_140))*SQRT(1/0.5^EX_MULT),-SQRT(ABS(CF68)/(3*R_ph_140))*SQRT(1/0.5^EX_MULT)) -> 10.00804053 | CH68: =IF(CG68<=ESPS*I_0_100K,KT_hot*CG68,IF(CG68<=I_MAX,KT_hot*CG68+m_1_hot/6*(CG68-ESPS*I_0_100K)^3,IF(CG68<=I_SAT_hot,KT_hot*I_MAX+m_1_hot/6*(I_MAX-ESPS*I_0_100K)^3+m_2_hot/6*(I_SAT_hot-I_MAX)^3-m_2_hot/6*(I_SAT_hot-CG68)^3,M_SAT_hot_SN))) -> 14.65806114 | CI68: =CH68-M_KR_DD-M_VR_DD-WDS*MR_WD -> 14.34127792 | CJ68: =IF(CI68<M_MAX_MIN,CI68,#N/A) -> 14.34127792 | CK68: 14.34127792 | CL68: =(CA68+CC68+CE68+CF68)*R_th_AL_U+(CA68+CC68+CF68)*R_th_FE_AL+CF68*R_th_CU_FE -> 100 | CN68: 221.3146403 | CO68: 0.07815756296 | CP68: =CO68*OMEGA_DD*0.5 -> 14.51141968 | CQ68: =VR_KL*(DREHZAHL_DD/1000)^EXP_VR -> 0.238625654 | CR68: =CQ68*OMEGA_DD*0.5 -> 44.30533505 | CS68: =MR_WD*WDS -> 0 | CT68: =CS68*OMEGA_DD*0.5 -> 0 | CU68: =(CN68-(CP68+CR68)*(OBM*R_th_CU_FE+R_th_FE_AL+R_th_AL_U)/(R_th_CU_FE+R_th_FE_AL+R_th_AL_U))-CT68*(WDS*R_th_AL_U)/(R_th_CU_FE+R_th_FE_AL+R_th_AL_U) -> 169.5558961 | CV68: =IF(CU68>=0,SQRT(CU68/(3*R_ph_140))*SQRT(1/0.5^EX_MULT),-SQRT(ABS(CU68)/(3*R_ph_140))*SQRT(1/0.5^EX_MULT)) -> 12.00709947 | CW68: =IF(CV68<=ESPS*I_0_100K,KT_hot*CV68,IF(CV68<=I_MAX,KT_hot*CV68+m_1_hot/6*(CV68-ESPS*I_0_100K)^3,IF(CV68<=I_SAT_hot,KT_hot*I_MAX+m_1_hot/6*(I_MAX-ESPS*I_0_100K)^3+m_2_hot/6*(I_SAT_hot-I_MAX)^3-m_2_hot/6*(I_SAT_hot-CV68)^3,M_SAT_hot_SN))) -> 17.48091154 | CX68: =CW68-CO68-CQ68-WDS*CS68 -> 17.16412832 | CY68: =IF(CX68<M_MAX_MIN,CX68,#N/A) -> 17.16412832 | CZ68: 17.16412832 | DA68: =(CP68+CR68+CT68+CU68)*R_th_AL_U+(CP68+CR68+CU68)*R_th_FE_AL+3*CV68^2*R_ph_140*0.5*R_th_CU_FE -> 100 | DC68: 221.3146403 | DD68: 0.07815756296 | DE68: =DD68*OMEGA_DD*0.3 -> 8.706851811 | DF68: =VR_KL*(DREHZAHL_DD/1000)^EXP_VR -> 0.238625654 | DG68: =DF68*OMEGA_DD*0.3 -> 26.58320103 | DH68: =MR_WD*WDS -> 0 | DI68: =DH68*OMEGA_DD*0.3 -> 0 | DJ68: =(DC68-(DE68+DG68)*(OBM*R_th_CU_FE+R_th_FE_AL+R_th_AL_U)/(R_th_CU_FE+R_th_FE_AL+R_th_AL_U))-DI68*(WDS*R_th_AL_U)/(R_th_CU_FE+R_th_FE_AL+R_th_AL_U) -> 190.2593938 | DK68: =IF(DJ68>=0,SQRT(DJ68/(3*R_ph_140))*SQRT(1/0.3^EX_MULT),-SQRT(ABS(DJ68)/(3*R_ph_140))*SQRT(1/0.3^EX_MULT)) -> 16.42022445 | DL68: =IF(DK68<=ESPS*I_0_100K,KT_hot*DK68,IF(DK68<=I_MAX,KT_hot*DK68+m_1_hot/6*(DK68-ESPS*I_0_100K)^3,IF(DK68<=I_SAT_hot,KT_hot*I_MAX+m_1_hot/6*(I_MAX-ESPS*I_0_100K)^3+m_2_hot/6*(I_SAT_hot-I_MAX)^3-m_2_hot/6*(I_SAT_hot-DK68)^3,M_SAT_hot_SN))) -> 23.49646523 | DM68: =DL68-DD68-DF68-WDS*DH68 -> 23.17968201 | DN68: =IF(DM68<M_MAX_MIN,DM68,#N/A) -> 23.17968201 | DO68: 23.17968201 | DP68: =(DE68+DG68+DI68+DJ68)*R_th_AL_U+(DE68+DG68+DJ68)*R_th_FE_AL+3*DK68^2*R_ph_140*0.3*R_th_CU_FE -> 100 | DR68: 221.3146403 | DS68: 0.07815756296 | DT68: =DS68*OMEGA_DD*0.2 -> 5.804567874 | DU68: =VR_KL*(DREHZAHL_DD/1000)^EXP_VR -> 0.238625654 | DV68: =DU68*OMEGA_DD*0.2 -> 17.72213402 | DW68: =MR_WD*WDS -> 0 | DX68: =DW68*OMEGA_DD*0.2 -> 0 | DY68: =(DR68-(DT68+DV68)*(OBM*R_th_CU_FE+R_th_FE_AL+R_th_AL_U)/(R_th_CU_FE+R_th_FE_AL+R_th_AL_U))-DX68*(WDS*R_th_AL_U)/(R_th_CU_FE+R_th_FE_AL+R_th_AL_U) -> 200.6111426 | DZ68: =IF(DY68>=0,SQRT(DY68/(3*R_ph_140))*SQRT(1/0.2^EX_MULT),-SQRT(ABS(DY68)/(3*R_ph_140))*SQRT(1/0.2^EX_MULT)) -> 20.65043432 | EA68: =IF(DZ68<=ESPS*I_0_100K,KT_hot*DZ68,IF(DZ68<=I_MAX,KT_hot*DZ68+m_1_hot/6*(DZ68-ESPS*I_0_100K)^3,IF(DZ68<=I_SAT_hot,KT_hot*I_MAX+m_1_hot/6*(I_MAX-ESPS*I_0_100K)^3+m_2_hot/6*(I_SAT_hot-I_MAX)^3-m_2_hot/6*(I_SAT_hot-DZ68)^3,M_SAT_hot_SN))) -> 28.90603088 | EB68: =EA68-DS68-DU68-WDS*DW68 -> 28.58924766 | EC68: =IF(EB68<M_MAX_MIN,EB68,#N/A) ->  | EE68: =(DT68+DV68+DX68+DY68)*R_th_AL_U+(DT68+DV68+DY68)*R_th_FE_AL+3*DZ68^2*R_ph_140*0.2*R_th_CU_FE -> 100 | EG68: =KE_ph_ph_cold/SQRT(3)*DREHZAHL_DD/1000 -> 197.7683409 | EH68: =OMEGA_DD*PP*L_ph/1000 -> 5.755732308 | EI68: =XL_ph_DD^2+R_ph_25^2 -> 33.4200544 | EJ68: =2*R_ph_25*EMK_PH_cold_DD -> 213.5898081 | EK68: =EMK_PH_cold_DD^2-(U_AC/SQRT(3))^2 -> -14221.01668 | EL68: =(-koeff_b_cold_DD+SQRT(koeff_b_cold_DD^2-4*koeff_a_cold_DD*koeff_c_cold_DD))/(2*koeff_a_cold_DD) -> 17.67873005 | EM68: =IF(EL68>I_MAX,I_MAX,EL68) -> 17.67873005 | EN68: =IF(EM68<=ESPS*I_0_100K,KT_cold*EM68,IF(EM68<=I_MAX,KT_cold*EM68+m_1_cold/6*(EM68-ESPS*I_0_100K)^3,IF(EM68<=I_SAT_hot,KT_cold*I_MAX+m_1_cold/6*(I_MAX-ESPS*I_0_100K)^3+m_2_cold/6*(I_SAT_hot-I_MAX)^3-m_2_cold/6*(I_SAT_hot-EM68)^3,M_SAT_cold_SN))) -> 27.06426951 | EO68: =EN68-M_KR_DD-M_VR_DD-WDS*MR_WD -> 26.74748629 | EP68: 26.74748629 | EQ68: =IF(EL68>MIN(I_R_MAX,I_MAX),MIN(I_R_MAX,I_MAX),EL68) -> 17.67873005 | ER68: =IF(EQ68<=ESPS*I_0_100K,KT_cold*EQ68,IF(EQ68<=I_MAX,KT_cold*EQ68+m_1_cold/6*(EQ68-ESPS*I_0_100K)^3,IF(EQ68<=I_SAT_hot,KT_cold*I_MAX+m_1_cold/6*(I_MAX-ESPS*I_0_100K)^3+m_2_cold/6*(I_SAT_hot-I_MAX)^3-m_2_cold/6*(I_SAT_hot-EQ68)^3,M_SAT_cold_SN))) -> 27.06426951 | ES68: =ER68-M_KR_DD-M_VR_DD-WDS*MR_WD -> 26.74748629 | ET68: 26.74748629 | EV68: =KE_ph_ph_HOT/SQRT(3)*DREHZAHL_DD/1000 -> 184.7520861 | EW68: =OMEGA_DD*PP*L_ph/1000 -> 5.755732308 | EX68: =XL_ph_DD^2+R_ph_140^2 -> 33.74319351 | EY68: =2*R_ph_140*EMK_ph_hot_DD -> 289.7108548 | EZ68: =EMK_ph_hot_DD^2-(U_AC/SQRT(3))^2 -> -19200 | FA68: =(-koeff_b_hot_DD+SQRT(koeff_b_hot_DD^2-4*koeff_a_hot_DD*koeff_c_hot_DD))/(2*koeff_a_hot_DD) -> 19.94412731 | FB68: =IF(FA68>I_MAX,I_MAX,FA68) -> 19.94412731 | FC68: =IF(FB68<=ESPS*I_0_100K,KT_hot*FB68,IF(FB68<=I_MAX,KT_hot*FB68+m_1_hot/6*(FB68-ESPS*I_0_100K)^3,IF(FB68<=I_SAT_hot,KT_hot*I_MAX+m_1_hot/6*(I_MAX-ESPS*I_0_100K)^3+m_2_hot/6*(I_SAT_hot-I_MAX)^3-m_2_hot/6*(I_SAT_hot-FB68)^3,M_SAT_hot_SN))) -> 28.03101493 | FD68: =FC68-M_KR_DD-M_VR_DD-WDS*MR_WD -> 27.71423171 | FE68: 27.71423171 | FF68: =IF(FA68>MIN(I_R_MAX,I_MAX),MIN(I_R_MAX,I_MAX),FA68) -> 19.94412731 | FG68: =IF(FF68<=ESPS*I_0_100K,KT_hot*FF68,IF(FF68<=I_MAX,KT_hot*FF68+m_1_hot/6*(FF68-ESPS*I_0_100K)^3,IF(FF68<=I_SAT_hot,KT_hot*I_MAX+m_1_hot/6*(I_MAX-ESPS*I_0_100K)^3+m_2_hot/6*(I_SAT_hot-I_MAX)^3-m_2_hot/6*(I_SAT_hot-FF68)^3,M_SAT_hot_SN))) -> 28.03101493 | FH68: =FG68-M_KR_DD-M_VR_DD-WDS*MR_WD -> 27.71423171 | FI68: 27.71423171 | FK68: =KE_ph_ph_HOT/SQRT(3)*DREHZAHL_DD/1000 -> 184.7520861 | FL68: =OMEGA_DD*PP*L_ph/1000 -> 5.755732308 | FM68: =XL_ph_DD^2+R_ph_140^2 -> 33.74319351 | FN68: =2*R_ph_140*EMK_ph_hot_DD -> 289.7108548 | FO68: =EMK_ph_hot_DD^2-(U_BC/SQRT(2)/SQRT(3))^2 -> -36400 | FP68: =(-koeff_b_hot_DDG-SQRT(koeff_b_hot_DDG^2-4*koeff_a_hot_DDG*koeff_c_hot_DDG))/(2*koeff_a_hot_DDG) -> -37.41635766 | FQ68: =IF(-FP68>I_MAX,I_MAX,-FP68) -> 29.2 | FR68: =IF(FQ68<=ESPS*I_0_100K,KT_hot*FQ68,IF(FQ68<=I_MAX,KT_hot*FQ68+m_1_hot/6*(FQ68-ESPS*I_0_100K)^3,IF(FQ68<=I_SAT_hot,KT_hot*I_MAX+m_1_hot/6*(I_MAX-ESPS*I_0_100K)^3+m_2_hot/6*(I_SAT_hot-I_MAX)^3-m_2_hot/6*(I_SAT_hot-FQ68)^3,M_SAT_hot_SN))) -> 38.4 | FS68: =FR68+M_KR_DD+M_VR_DD+WDS*MR_WD -> 38.71678322 | FT68: 38.71678322 | FU68: =IF(-FP68>MIN(I_R_MAX,I_MAX),MIN(I_R_MAX,I_MAX),-FP68) -> 29.2 | FV68: =IF(FU68<=ESPS*I_0_100K,KT_hot*FU68,IF(FU68<=I_MAX,KT_hot*FU68+m_1_hot/6*(FU68-ESPS*I_0_100K)^3,IF(FU68<=I_SAT_hot,KT_hot*I_MAX+m_1_hot/6*(I_MAX-ESPS*I_0_100K)^3+m_2_hot/6*(I_SAT_hot-I_MAX)^3-m_2_hot/6*(I_SAT_hot-FU68)^3,M_SAT_hot_SN))) -> 38.4 | FW68: =FV68+M_KR_DD+M_VR_DD+WDS*MR_WD -> 38.71678322 | FX68: 38.71678322 | FY68: 26.74748629 | GA68: =IF(Feldschwächung!U68<n_MAX_FS,Feldschwächung!U68,n_MAX_FS) -> 3721.992634 | GB68: =IF(Feldschwächung!U68<n_MAX_FS,Feldschwächung!CJ68,GB67) -> 38.32220301 | HB68: =S68*I_MAX -> 18.688 | HC68: =(KE_ph_ph_HOT/SQRT(3)/1000)^2+(HB68*2*PI()/60*PP*L_H/1000)^2 -> 0.003634675804 | HD68: =2*KE_ph_ph_HOT/SQRT(3)/1000*HB68*R_ph_140 -> 1.526818178 | HE68: =-(U_AC^2)/3+HB68^2*R_ph_140^2 -> -53118.64102 | HF68: =(-b_koeff_DD+SQRT(b_koeff_DD^2-4*a_koeff_DD*c_koeff_DD))/(2*a_koeff_DD) -> 3618.610244 | HG68: =IF(HB68<=ESPS*I_0_100K,KT_hot*HB68,IF(HB68<=I_MAX,KT_hot*HB68+m_1_hot/6*(HB68-ESPS*I_0_100K)^3,IF(HB68<=I_SAT_hot,KT_hot*I_MAX+m_1_hot/6*(I_MAX-ESPS*I_0_100K)^3+m_2_hot/6*(I_SAT_hot-I_MAX)^3-m_2_hot/6*(I_SAT_hot-HB68)^3,M_SAT_hot_SN))) -> 26.44580289
R69: ST | S69: 0.65 | T69: =S69^T$3 -> 0.8062257748 | U69: 3573.608417 | V69: 374.2273984 | X69: 221.3146403 | Y69: 0.07815756296 | Z69: 29.24870145 | AA69: 0.2397381483 | AB69: 89.71658352 | AC69: 0 | AD69: 0 | AE69: 116.6251895 | AF69: 7.041462058 | AG69: 10.19214523 | AH69: 10.19214523 | AI69: =IF(ISERROR(AH69),#N/A,AH69) -> 10.19214523 | AJ69: 4049.771847 | AK69: 3814.179994 | AL69: =AK69+Z69+AB69+AD69+AE69 -> 4049.770468 | AM69: 100 | AN69: 7.041462058 | AO69: 10.19214523 | AP69: 10.19214523 | AQ69: =IF(ISERROR(AP69),#N/A,AP69) -> 10.19214523 | AS69: 132.7887842 | AT69: 0.07815756296 | AU69: 29.24870145 | AV69: 0.2397381483 | AW69: 89.71658352 | AX69: 0 | AY69: 0 | AZ69: 28.09933341 | BA69: 3.660138687 | BB69: 5.279078259 | BC69: 5.279078259 | BD69: =IF(ISERROR(BC69),#N/A,BC69) -> 5.279078259 | BE69: 2122.641075 | BF69: 1975.575723 | BG69: =BF69+AU69+AW69+AY69+AZ69 -> 2122.640341 | BH69: 60 | BJ69: 66.39439209 | BK69: 0.07815756296 | BL69: 29.24870145 | BM69: 0.2397381483 | BN69: 89.71658352 | BO69: 0 | BP69: 0 | BQ69: -38.29505868 | BR69: -4.48180861 | BS69: -7.29428877 | BT69: -7.29428877 | BU69: =IF(ISERROR(BT69),#N/A,BT69) -> -7.29428877 | BV69: -2729.722709 | BW69: 30 | BY69: 221.3146403 | BZ69: 0.07815756296 | CA69: 29.24870145 | CB69: 0.2397381483 | CC69: 89.71658352 | CD69: 0 | CE69: 0 | CF69: 116.6251895 | CG69: 9.958131141 | CH69: 14.58693474 | CI69: 14.26903903 | CJ69: 14.26903903 | CK69: =IF(ISERROR(CJ69),#N/A,CJ69) -> 14.26903903 | CL69: 100 | CN69: 221.3146403 | CO69: 0.07815756296 | CP69: 14.62435072 | CQ69: 0.2397381483 | CR69: 44.85829176 | CS69: 0 | CT69: 0 | CU69: 168.9699149 | CV69: 11.98633338 | CW69: 17.4518656 | CX69: 17.13396988 | CY69: 17.13396988 | CZ69: =IF(ISERROR(CY69),#N/A,CY69) -> 17.13396988 | DA69: 100 | DC69: 221.3146403 | DD69: 0.07815756296 | DE69: 8.774610434 | DF69: 0.2397381483 | DG69: 26.91497506 | DH69: 0 | DI69: 0 | DJ69: 189.9078051 | DK69: 16.4050456 | DL69: 23.47636971 | DM69: 23.158474 | DN69: 23.158474 | DO69: =IF(ISERROR(DN69),#N/A,DN69) -> 23.158474 | DP69: 100 | DR69: 221.3146403 | DS69: 0.07815756296 | DT69: 5.84974029 | DU69: 0.2397381483 | DV69: 17.9433167 | DW69: 0 | DX69: 0 | DY69: 200.3767502 | DZ69: 20.63836689 | EA69: 28.89118298 | EB69: 28.57328727 | ED69: =IF(ISERROR(EC69),#N/A,EC69) ->  | EE69: 100 | EG69: 199.3074173 | EH69: 5.800524675 | EI69: 33.9376865 | EJ69: 215.2520107 | EK69: -13609.88674 | EL69: 17.10389407 | EM69: 17.10389407 | EN69: 26.2574107 | EO69: 25.93951499 | EP69: =IF(ISERROR(EO69),#N/A,EO69) -> 25.93951499 | EQ69: 17.10389407 | ER69: 26.2574107 | ES69: 25.93951499 | ET69: =IF(ISERROR(ES69),#N/A,ES69) -> 25.93951499 | EV69: 186.1898673 | EW69: 5.800524675 | EX69: 34.26082561 | EY69: 291.965448 | EZ69: -18666.66667 | FA69: 19.46660189 | FB69: 19.46660189 | FC69: 27.43267907 | FD69: 27.11478336 | FE69: =IF(ISERROR(FD69),#N/A,FD69) -> 27.11478336 | FF69: 19.46660189 | FG69: 27.43267907 | FH69: 27.11478336 | FI69: =IF(ISERROR(FH69),#N/A,FH69) -> 27.11478336 | FK69: 186.1898673 | FL69: 5.800524675 | FM69: 34.26082561 | FN69: 291.965448 | FO69: -35866.66667 | FP69: -36.89566654 | FQ69: 29.2 | FR69: 38.4 | FS69: 38.71789571 | FT69: =IF(ISERROR(FS69),#N/A,FS69) -> 38.71789571 | FU69: 29.2 | FV69: 38.4 | FW69: 38.71789571 | FX69: =IF(ISERROR(FW69),#N/A,FW69) -> 38.71789571 | FY69: =MIN(EO69,FD69) -> 25.93951499 | GA69: =IF(Feldschwächung!U69<n_MAX_FS,Feldschwächung!U69,n_MAX_FS) -> 3768.445297 | GB69: =IF(Feldschwächung!U69<n_MAX_FS,Feldschwächung!CJ69,GB68) -> 38.21075216 | HB69: 18.98 | HC69: 0.003663654314 | HD69: 1.550674712 | HE69: -53111.87947 | HF69: 3601.735815 | HG69: 26.81752577
R70: ST | S70: 0.66 | T70: 0.8124038405 | U70: 3600.99279 | V70: 377.0950832 | X70: 221.3146403 | Y70: 0.07815756296 | Z70: 29.47283271 | AA70: 0.2408387255 | AB70: 90.81909922 | AC70: 0 | AD70: 0 | AE70: 115.4577402 | AF70: 7.006129956 | AG70: 10.13830819 | AH70: 10.13830819 | AI70: 10.13830819 | AJ70: 4058.857223 | AK70: 3823.106169 | AL70: 4058.855841 | AM70: 100 | AN70: 7.006129956 | AO70: 10.13830819 | AP70: 10.13830819 | AQ70: 10.13830819 | AS70: 132.7887842 | AT70: 0.07815756296 | AU70: 29.47283271 | AV70: 0.2408387255 | AW70: 90.81909922 | AX70: 0 | AY70: 0 | AZ70: 26.93188409 | BA70: 3.583297786 | BB70: 5.160474888 | BC70: 5.160474888 | BD70: 5.160474888 | BE70: 2093.214248 | BF70: 1945.989707 | BG70: 2093.213523 | BH70: 60 | BJ70: 66.39439209 | BK70: 0.07815756296 | BL70: 29.47283271 | BM70: 0.2408387255 | BN70: 90.81909922 | BO70: 0 | BP70: 0 | BQ70: -39.462508 | BR70: -4.549611137 | BS70: -7.400930909 | BT70: -7.400930909 | BU70: -7.400930909 | BV70: -2790.854657 | BW70: 30 | BY70: 221.3146403 | BZ70: 0.07815756296 | CA70: 29.47283271 | CB70: 0.2408387255 | CC70: 90.81909922 | CD70: 0 | CE70: 0 | CF70: 115.4577402 | CG70: 9.908164003 | CH70: 14.51569641 | CI70: 14.19670013 | CJ70: 14.19670013 | CK70: 14.19670013 | CL70: 100 | CN70: 221.3146403 | CO70: 0.07815756296 | CP70: 14.73641635 | CQ70: 0.2408387255 | CR70: 45.40954961 | CS70: 0 | CT70: 0 | CU70: 168.3861903 | CV70: 11.96561143 | CW70: 17.42287524 | CX70: 17.10387895 | CY70: 17.10387895 | CZ70: 17.10387895 | DA70: 100 | DC70: 221.3146403 | DD70: 0.07815756296 | DE70: 8.841849812 | DF70: 0.2408387255 | DG70: 27.24572976 | DH70: 0 | DI70: 0 | DJ70: 189.5575703 | DK70: 16.38991124 | DL70: 23.45632858 | DM70: 23.13733229 | DN70: 23.13733229 | DO70: 23.13733229 | DP70: 100 | DR70: 221.3146403 | DS70: 0.07815756296 | DT70: 5.894566541 | DU70: 0.2408387255 | DV70: 18.16381984 | DW70: 0 | DX70: 0 | DY70: 200.1432603 | DZ70: 20.62633891 | EA70: 28.87638005 | EB70: 28.55738376 | EE70: 100 | EG70: 200.8346996 | EH70: 5.84497379 | EI70: 34.4553186 | EJ70: 216.9014755 | EK70: -12998.75679 | EL70: 16.52909521 | EM70: 16.52909521 | EN70: 25.44335077 | EO70: 25.12435448 | EP70: 25.12435448 | EQ70: 16.52909521 | ER70: 25.44335077 | ES70: 25.12435448 | ET70: 25.12435448 | EV70: 187.6166304 | EW70: 5.84497379 | EX70: 34.77845771 | EY70: 294.2027638 | EZ70: -18133.33333 | FA70: 18.99285537 | FB70: 18.99285537 | FC70: 26.83384682 | FD70: 26.51485053 | FE70: 26.51485053 | FF70: 18.99285537 | FG70: 26.83384682 | FH70: 26.51485053 | FI70: 26.51485053 | FK70: 187.6166304 | FL70: 5.84497379 | FM70: 34.77845771 | FN70: 294.2027638 | FO70: -35333.33333 | FP70: -36.38312472 | FQ70: 29.2 | FR70: 38.4 | FS70: 38.71899629 | FT70: 38.71899629 | FU70: 29.2 | FV70: 38.4 | FW70: 38.71899629 | FX70: 38.71899629 | FY70: 25.12435448 | GA70: =IF(Feldschwächung!U70<n_MAX_FS,Feldschwächung!U70,n_MAX_FS) -> 3814.755243 | GB70: =IF(Feldschwächung!U70<n_MAX_FS,Feldschwächung!CJ70,GB69) -> 38.09398889 | HB70: 19.272 | HC70: 0.003693082103 | HD70: 1.574531246 | HE70: -53105.01309 | HF70: 3584.857288 | HG70: 27.18731876
R71: ST | S71: 0.67 | T71: 0.8185352772 | U71: 3628.17048 | V71: 379.9411242 | X71: 221.3146403 | Y71: 0.07815756296 | Z71: 29.69527233 | AA71: 0.2419276909 | AB71: 91.91827887 | AC71: 0 | AD71: 0 | AE71: 114.2947152 | AF71: 6.970753688 | AG71: 10.08441683 | AH71: 10.08441683 | AI71: 10.08441683 | AJ71: 4067.39432 | AK71: 3831.484668 | AL71: 4067.392934 | AM71: 100 | AN71: 6.970753688 | AO71: 10.08441683 | AP71: 10.08441683 | AQ71: 10.08441683 | AS71: 132.7887842 | AT71: 0.07815756296 | AU71: 29.69527233 | AV71: 0.2419276909 | AW71: 91.91827887 | AX71: 0 | AY71: 0 | AZ71: 25.76885912 | BA71: 3.505073493 | BB71: 5.039767687 | BC71: 5.039767687 | BD71: 5.039767687 | BE71: 2062.198125 | BF71: 1914.815001 | BG71: 2062.197411 | BH71: 60 | BJ71: 66.39439209 | BK71: 0.07815756296 | BL71: 29.69527233 | BM71: 0.2419276909 | BN71: 91.91827887 | BO71: 0 | BP71: 0 | BQ71: -40.62553297 | BR71: -4.616166582 | BS71: -7.505620225 | BT71: -7.505620225 | BU71: -7.505620225 | BV71: -2851.693786 | BW71: 30 | BY71: 221.3146403 | BZ71: 0.07815756296 | CA71: 29.69527233 | CB71: 0.2419276909 | CC71: 91.91827887 | CD71: 0 | CE71: 0 | CF71: 114.2947152 | CG71: 9.858134406 | CH71: 14.44433948 | CI71: 14.12425422 | CJ71: 14.12425422 | CK71: 14.12425422 | CL71: 100 | CN71: 221.3146403 | CO71: 0.07815756296 | CP71: 14.84763617 | CQ71: 0.2419276909 | CR71: 45.95913944 | CS71: 0 | CT71: 0 | CU71: 167.8046778 | CV71: 11.94493227 | CW71: 17.39393864 | CX71: 17.07385338 | CY71: 17.07385338 | CZ71: 17.07385338 | DA71: 100 | DC71: 221.3146403 | DD71: 0.07815756296 | DE71: 8.9085817 | DF71: 0.2419276909 | DG71: 27.57548366 | DH71: 0 | DI71: 0 | DJ71: 189.2086628 | DK71: 16.37482031 | DL71: 23.43634053 | DM71: 23.11625528 | DN71: 23.11625528 | DO71: 23.11625528 | DP71: 100 | DR71: 221.3146403 | DS71: 0.07815756296 | DT71: 5.939054467 | DU71: 0.2419276909 | DV71: 18.38365577 | DW71: 0 | DX71: 0 | DY71: 199.9106553 | DZ71: 20.61434954 | EA71: 28.86162109 | EB71: 28.54153584 | EE71: 100 | EG71: 202.3504546 | EH71: 5.889087425 | EI71: 34.9729507 | EJ71: 218.538491 | EK71: -12387.62684 | EL71: 15.95354629 | EM71: 15.95354629 | EN71: 24.62120571 | EO71: 24.30112045 | EP71: 24.30112045 | EQ71: 15.95354629 | ER71: 24.62120571 | ES71: 24.30112045 | ET71: 24.30112045 | EV71: 189.0326251 | EW71: 5.889087425 | EX71: 35.29608981 | EY71: 296.4231935 | EZ71: -17600 | FA71: 18.52250798 | FB71: 18.52250798 | FC71: 26.23428208 | FD71: 25.91419683 | FE71: 25.91419683 | FF71: 18.52250798 | FG71: 26.23428208 | FH71: 25.91419683 | FI71: 25.91419683 | FK71: 189.0326251 | FL71: 5.889087425 | FM71: 35.29608981 | FN71: 296.4231935 | FO71: -34800 | FP71: -35.87838208 | FQ71: 29.2 | FR71: 38.4 | FS71: 38.72008525 | FT71: 38.72008525 | FU71: 29.2 | FV71: 38.4 | FW71: 38.72008525 | FX71: 38.72008525 | FY71: 24.30112045 | GA71: =IF(Feldschwächung!U71<n_MAX_FS,Feldschwächung!U71,n_MAX_FS) -> 3860.925062 | GB71: =IF(Feldschwächung!U71<n_MAX_FS,Feldschwächung!CJ71,GB70) -> 37.97192485 | HB71: 19.564 | HC71: 0.003722959171 | HD71: 1.59838778 | HE71: -53098.04188 | HF71: 3567.97873 | HG71: 27.55515216
R72: ST | S72: 0.68 | T72: 0.8246211251 | U72: 3655.146097 | V72: 382.7660042 | X72: 221.3146403 | Y72: 0.07815756296 | Z72: 29.91605807 | AA72: 0.2430053378 | AB72: 93.01418215 | AC72: 0 | AD72: 0 | AE72: 113.1360289 | AF72: 6.935329951 | AG72: 10.03046594 | AH72: 10.03046594 | AI72: 10.03046594 | AJ72: 4075.389027 | AK72: 3839.321369 | AL72: 4075.387638 | AM72: 100 | AN72: 6.935329951 | AO72: 10.03046594 | AP72: 10.03046594 | AQ72: 10.03046594 | AS72: 132.7887842 | AT72: 0.07815756296 | AU72: 29.91605807 | AV72: 0.2430053378 | AW72: 93.01418215 | AX72: 0 | AY72: 0 | AZ72: 24.61017279 | BA72: 3.425365067 | BB72: 4.916802313 | BC72: 4.916802313 | BD72: 4.916802313 | BE72: 2029.52589 | BF72: 1881.984775 | BG72: 2029.525188 | BH72: 60 | BJ72: 66.39439209 | BK72: 0.07815756296 | BL72: 29.91605807 | BM72: 0.2430053378 | BN72: 93.01418215 | BO72: 0 | BP72: 0 | BQ72: -41.7842193 | BR72: -4.681532935 | BS72: -7.608447279 | BT72: -7.608447279 | BU72: -7.608447279 | BV72: -2912.254963 | BW72: 30 | BY72: 221.3146403 | BZ72: 0.07815756296 | CA72: 29.91605807 | CB72: 0.2430053378 | CC72: 93.01418215 | CD72: 0 | CE72: 0 | CF72: 113.1360289 | CG72: 9.808037677 | CH72: 14.37285731 | CI72: 14.05169441 | CJ72: 14.05169441 | CK72: 14.05169441 | CL72: 100 | CN72: 221.3146403 | CO72: 0.07815756296 | CP72: 14.95802903 | CQ72: 0.2430053378 | CR72: 46.50709108 | CS72: 0 | CT72: 0 | CU72: 167.2253346 | CV72: 11.92429459 | CW72: 17.36505401 | CX72: 17.04389111 | CY72: 17.04389111 | CZ72: 17.04389111 | DA72: 100 | DC72: 221.3146403 | DD72: 0.07815756296 | DE72: 8.974817421 | DF72: 0.2430053378 | DG72: 27.90425465 | DH72: 0 | DI72: 0 | DJ72: 188.8610569 | DK72: 16.35977185 | DL72: 23.41640428 | DM72: 23.09524138 | DN72: 23.09524138 | DO72: 23.09524138 | DP72: 100 | DR72: 221.3146403 | DS72: 0.07815756296 | DT72: 5.983211614 | DU72: 0.2430053378 | DV72: 18.60283643 | DW72: 0 | DX72: 0 | DY72: 199.678918 | DZ72: 20.60239796 | EA72: 28.84690513 | EB72: 28.52574223 | EE72: 100 | EG72: 203.8549397 | EH72: 5.932873065 | EI72: 35.4905828 | EJ72: 220.1633349 | EK72: -11776.49689 | EL72: 15.37640641 | EM72: 15.37640641 | EN72: 23.78997724 | EO72: 23.46881434 | EP72: 23.46881434 | EQ72: 15.37640641 | ER72: 23.78997724 | ES72: 23.46881434 | ET72: 23.46881434 | EV72: 190.4380914 | EW72: 5.932873065 | EX72: 35.81372191 | EY72: 298.6271138 | EZ72: -17066.66667 | FA72: 18.05518137 | FB72: 18.05518137 | FC72: 25.6337281 | FD72: 25.31256519 | FE72: 25.31256519 | FF72: 18.05518137 | FG72: 25.6337281 | FH72: 25.31256519 | FI72: 25.31256519 | FK72: 190.4380914 | FL72: 5.932873065 | FM72: 35.81372191 | FN72: 298.6271138 | FO72: -34266.66667 | FP72: -35.38110401 | FQ72: 29.2 | FR72: 38.4 | FS72: 38.7211629 | FT72: 38.7211629 | FU72: 29.2 | FV72: 38.4 | FW72: 38.7211629 | FX72: 38.7211629 | FY72: 23.46881434 | GA72: =IF(Feldschwächung!U72<n_MAX_FS,Feldschwächung!U72,n_MAX_FS) -> 3906.95726 | GB72: =IF(Feldschwächung!U72<n_MAX_FS,Feldschwächung!CJ72,GB71) -> 37.84459345 | HB72: 19.856 | HC72: 0.003753285518 | HD72: 1.622244314 | HE72: -53090.96584 | HF72: 3551.104088 | HG72: 27.92099629
R73: ST | S73: 0.69 | T73: 0.8306623863 | U73: 3681.924082 | V73: 385.5701882 | X73: 221.3146403 | Y73: 0.07815756296 | Z73: 30.13522626 | AA73: 0.2440719477 | AB73: 94.1068668 | AC73: 0 | AD73: 0 | AE73: 111.9815984 | AF73: 6.899855464 | AG73: 9.976450341 | AH73: 9.976450341 | AI73: 9.976450341 | AJ73: 4082.846919 | AK73: 3846.621836 | AL73: 4082.845527 | AM73: 100 | AN73: 6.899855464 | AO73: 9.976450341 | AP73: 9.976450341 | AQ73: 9.976450341 | AS73: 132.7887842 | AT73: 0.07815756296 | AU73: 30.13522626 | AV73: 0.2440719477 | AW73: 94.1068668 | AX73: 0 | AY73: 0 | AZ73: 23.4557423 | BA73: 3.344060482 | BB73: 4.791407177 | BC73: 4.791407177 | BD73: 4.791407177 | BE73: 1995.122293 | BF73: 1847.423767 | BG73: 1995.121602 | BH73: 60 | BJ73: 66.39439209 | BK73: 0.07815756296 | BL73: 30.13522626 | BM73: 0.2440719477 | BN73: 94.1068668 | BO73: 0 | BP73: 0 | BQ73: -42.9386498 | BR73: -4.745763905 | BS73: -7.709495957 | BT73: -7.709495957 | BU73: -7.709495957 | BV73: -2972.551807 | BW73: 30 | BY73: 221.3146403 | BZ73: 0.07815756296 | CA73: 30.13522626 | CB73: 0.2440719477 | CC73: 94.1068668 | CD73: 0 | CE73: 0 | CF73: 111.9815984 | CG73: 9.757869175 | CH73: 14.30124331 | CI73: 13.9790138 | CJ73: 13.9790138 | CK73: 13.9790138 | CL73: 100 | CN73: 221.3146403 | CO73: 0.07815756296 | CP73: 15.06761313 | CQ73: 0.2440719477 | CR73: 47.0534334 | CS73: 0 | CT73: 0 | CU73: 166.6481194 | CV73: 11.90369713 | CW73: 17.33621963 | CX73: 17.01399012 | CY73: 17.01399012 | CZ73: 17.01399012 | DA73: 100 | DC73: 221.3146403 | DD73: 0.07815756296 | DE73: 9.040567878 | DF73: 0.2440719477 | DG73: 28.23206004 | DH73: 0 | DI73: 0 | DJ73: 188.5147277 | DK73: 16.34476487 | DL73: 23.39651861 | DM73: 23.0742891 | DP73: 100 | DR73: 221.3146403 | DS73: 0.07815756296 | DT73: 6.027045252 | DU73: 0.2440719477 | DV73: 18.82137336 | DW73: 0 | DX73: 0 | DY73: 199.4480319 | DZ73: 20.59048337 | EA73: 28.83223124 | EB73: 28.51000173 | EE73: 100 | EG73: 205.3484024 | EH73: 5.976337917 | EI73: 36.0082149 | EJ73: 221.7762746 | EK73: -11165.36695 | EL73: 14.79676792 | EM73: 14.79676792 | EN73: 22.9485341 | EO73: 22.62630459 | EP73: 22.62630459 | EQ73: 14.79676792 | ER73: 22.9485341 | ES73: 22.62630459 | ET73: 22.62630459 | EV73: 191.8332609 | EW73: 5.976337917 | EX73: 36.33135401 | EY73: 300.8148875 | EZ73: -16533.33333 | FA73: 17.59049668 | FB73: 17.59049668 | FC73: 25.03190641 | FD73: 24.7096769 | FE73: 24.7096769 | FF73: 17.59049668 | FG73: 25.03190641 | FH73: 24.7096769 | FI73: 24.7096769 | FK73: 191.8332609 | FL73: 5.976337917 | FM73: 36.33135401 | FN73: 300.8148875 | FO73: -33733.33333 | FP73: -34.89097023 | FQ73: 29.2 | FR73: 38.4 | FS73: 38.72222951 | FT73: 38.72222951 | FU73: 29.2 | FV73: 38.4 | FW73: 38.72222951 | FX73: 38.72222951 | FY73: 22.62630459 | GA73: =IF(Feldschwächung!U73<n_MAX_FS,Feldschwächung!U73,n_MAX_FS) -> 3952.854263 | GB73: =IF(Feldschwächung!U73<n_MAX_FS,Feldschwächung!CJ73,GB72) -> 37.71204977 | HB73: 20.148 | HC73: 0.003784061145 | HD73: 1.646100848 | HE73: -53083.78497 | HF73: 3534.237195 | HG73: 28.28482144
R74: ST | S74: 0.7 | T74: 0.8366600265 | U74: 3708.508716 | V74: 388.3541246 | X74: 221.3146403 | Y74: 0.07815756296 | Z74: 30.35281195 | AA74: 0.245127791 | AB74: 95.1963887 | AC74: 0 | AD74: 0 | AE74: 110.8313437 | AF74: 6.86432696 | AG74: 9.922364883 | AH74: 9.922364883 | AI74: 9.922364883 | AJ74: 4089.773267 | AK74: 3853.391328 | AL74: 4089.771873 | AM74: 100 | AN74: 6.86432696 | AO74: 9.922364883 | AP74: 9.922364883 | AQ74: 9.922364883 | AS74: 132.7887842 | AT74: 0.07815756296 | AU74: 30.35281195 | AV74: 0.245127791 | AW74: 95.1963887 | AX74: 0 | AY74: 0 | AZ74: 22.30548761 | BA74: 3.261034502 | BB74: 4.663390503 | BC74: 4.663390503 | BD74: 4.663390503 | BE74: 1958.902304 | BF74: 1811.046937 | BG74: 1958.901625 | BH74: 60 | BJ74: 66.39439209 | BK74: 0.07815756296 | BL74: 30.35281195 | BM74: 0.245127791 | BN74: 95.1963887 | BO74: 0 | BP74: 0 | BQ74: -44.08890448 | BR74: -4.808909352 | BS74: -7.808844142 | BT74: -7.808844142 | BU74: -7.808844142 | BV74: -3032.596831 | BW74: 30 | BY74: 221.3146403 | BZ74: 0.07815756296 | CA74: 30.35281195 | CB74: 0.245127791 | CC74: 95.1963887 | CD74: 0 | CE74: 0 | CF74: 110.8313437 | CG74: 9.707624284 | CH74: 14.22949092 | CI74: 13.90620556 | CJ74: 13.90620556 | CK74: 13.90620556 | CL74: 100 | CN74: 221.3146403 | CO74: 0.07815756296 | CP74: 15.17640597 | CQ74: 0.245127791 | CR74: 47.59819435 | CS74: 0 | CT74: 0 | CU74: 166.072992 | CV74: 11.88313867 | CW74: 17.30743384 | CX74: 16.98414848 | CY74: 16.98414848 | CZ74: 16.98414848 | DA74: 100 | DC74: 221.3146403 | DD74: 0.07815756296 | DE74: 9.105843584 | DF74: 0.245127791 | DG74: 28.55891661 | DH74: 0 | DI74: 0 | DJ74: 188.1696513 | DK74: 16.32979847 | DL74: 23.37668231 | DM74: 23.05339696 | DP74: 100 | DR74: 221.3146403 | DS74: 0.07815756296 | DT74: 6.070562389 | DU74: 0.245127791 | DV74: 19.03927774 | DW74: 0 | DX74: 0 | DY74: 199.217981 | DZ74: 20.57860502 | EA74: 28.8175985 | EB74: 28.49431315 | EE74: 100 | EG74: 206.8310816 | EH74: 6.019488932 | EI74: 36.525847 | EJ74: 223.3775682 | EK74: -10554.237 | EL74: 14.21364066 | EM74: 14.21364066 | EN74: 22.09558845 | EO74: 21.77230309 | EP74: 21.77230309 | EQ74: 14.21364066 | ER74: 22.09558845 | ES74: 21.77230309 | ET74: 21.77230309 | EV74: 193.2183566 | EW74: 6.019488932 | EX74: 36.84898611 | EY74: 302.9868643 | EZ74: -16000 | FA74: 17.1280725 | FB74: 17.1280725 | FC74: 24.42851549 | FD74: 24.10523013 | FE74: 24.10523013 | FF74: 17.1280725 | FG74: 24.42851549 | FH74: 24.10523013 | FI74: 24.10523013 | FK74: 193.2183566 | FL74: 6.019488932 | FM74: 36.84898611 | FN74: 302.9868643 | FO74: -33200 | FP74: -34.40767386 | FQ74: 29.2 | FR74: 38.4 | FS74: 38.72328535 | FT74: 38.72328535 | FU74: 29.2 | FV74: 38.4 | FW74: 38.72328535 | FX74: 38.72328535 | FY74: 21.77230309 | GA74: =IF(Feldschwächung!U74<n_MAX_FS,Feldschwächung!U74,n_MAX_FS) -> 3998.618419 | GB74: =IF(Feldschwächung!U74<n_MAX_FS,Feldschwächung!CJ74,GB73) -> 37.57437035 | HB74: 20.44 | HC74: 0.00381528605 | HD74: 1.669957382 | HE74: -53076.49927 | HF74: 3517.381764 | HG74: 28.64659794
R75: ST | S75: 0.71 | T75: 0.8426149773 | U75: 3734.904129 | V75: 391.1182458 | X75: 221.3146403 | Y75: 0.07815756296 | Z75: 30.56884892 | AA75: 0.2461731281 | AB75: 96.28280202 | AC75: 0 | AD75: 0 | AE75: 109.6851875 | AF75: 6.828741189 | AG75: 9.868204452 | AH75: 9.868204452 | AI75: 9.868204452 | AJ75: 4096.17305 | AK75: 3859.634815 | AL75: 4096.171653 | AM75: 100 | AN75: 6.828741189 | AO75: 9.868204452 | AP75: 9.868204452 | AQ75: 9.868204452 | AS75: 132.7887842 | AT75: 0.07815756296 | AU75: 30.56884892 | AV75: 0.2461731281 | AW75: 96.28280202 | AX75: 0 | AY75: 0 | AZ75: 21.15933136 | BA75: 3.17614633 | BB75: 4.532536726 | BC75: 4.532536726 | BD75: 4.532536726 | BE75: 1920.769462 | BF75: 1772.757814 | BG75: 1920.768796 | BH75: 60 | BJ75: 66.39439209 | BK75: 0.07815756296 | BL75: 30.56884892 | BM75: 0.2461731281 | BN75: 96.28280202 | BO75: 0 | BP75: 0 | BQ75: -45.23506073 | BR75: -4.87101566 | BS75: -7.906564292 | BT75: -7.906564292 | BU75: -7.906564292 | BV75: -3092.401556 | BW75: 30 | BY75: 221.3146403 | BZ75: 0.07815756296 | CA75: 30.56884892 | CB75: 0.2461731281 | CC75: 96.28280202 | CD75: 0 | CE75: 0 | CF75: 109.6851875 | CG75: 9.657298403 | CH75: 14.15759357 | CI75: 13.83326287 | CJ75: 13.83326287 | CK75: 13.83326287 | CL75: 100 | CN75: 221.3146403 | CO75: 0.07815756296 | CP75: 15.28442446 | CQ75: 0.2461731281 | CR75: 48.14140101 | CS75: 0 | CT75: 0 | CU75: 165.4999139 | CV75: 11.86261802 | CW75: 17.27869502 | CX75: 16.95436433 | CY75: 16.95436433 | CZ75: 16.95436433 | DA75: 100 | DC75: 221.3146403 | DD75: 0.07815756296 | DE75: 9.170654676 | DF75: 0.2461731281 | DG75: 28.88484061 | DH75: 0 | DI75: 0 | DJ75: 187.8258045 | DK75: 16.31487173 | DL75: 23.35689425 | DM75: 23.03256356 | DP75: 100 | DR75: 221.3146403 | DS75: 0.07815756296 | DT75: 6.113769784 | DU75: 0.2461731281 | DV75: 19.2565604 | DW75: 0 | DX75: 0 | DY75: 198.9887497 | DZ75: 20.56676217 | EA75: 28.80300605 | EB75: 28.47867536 | EE75: 100 | EG75: 208.3032076 | EH75: 6.06233281 | EI75: 37.0434791 | EJ75: 224.9674642 | EK75: -9943.10705 | EL75: 13.6259322 | EM75: 13.6259322 | EN75: 21.22966591 | EO75: 20.90533522 | EP75: 20.90533522 | EQ75: 13.6259322 | ER75: 21.22966591 | ES75: 20.90533522 | ET75: 20.90533522 | EV75: 194.5935936 | EW75: 6.06233281 | EX75: 37.36661821 | EY75: 305.1433817 | EZ75: -15466.66667 | FA75: 16.6675227 | FB75: 16.6675227 | FC75: 23.8232289 | FD75: 23.49889821 | FE75: 23.49889821 | FF75: 16.6675227 | FG75: 23.8232289 | FH75: 23.49889821 | FI75: 23.49889821 | FK75: 194.5935936 | FL75: 6.06233281 | FM75: 37.36661821 | FN75: 305.1433817 | FO75: -32666.66667 | FP75: -33.93092037 | FQ75: 29.2 | FR75: 38.4 | FS75: 38.72433069 | FT75: 38.72433069 | FU75: 29.2 | FV75: 38.4 | FW75: 38.72433069 | FX75: 38.72433069 | FY75: 20.90533522 | GA75: =IF(Feldschwächung!U75<n_MAX_FS,Feldschwächung!U75,n_MAX_FS) -> 4044.252002 | GB75: =IF(Feldschwächung!U75<n_MAX_FS,Feldschwächung!CJ75,GB74) -> 37.43165262 | HB75: 20.732 | HC75: 0.003846960235 | HD75: 1.693813916 | HE75: -53069.10874 | HF75: 3500.541392 | HG75: 29.00629608
R76: ST | S76: 0.72 | T76: 0.8485281374 | U76: 3761.114304 | V76: 393.8629689 | X76: 221.3146403 | Y76: 0.07815756296 | Z76: 30.78336979 | AA76: 0.2472082092 | AB76: 97.36615921 | AC76: 0 | AD76: 0 | AE76: 108.5430548 | AF76: 6.793094907 | AG76: 9.81396396 | AH76: 9.81396396 | AI76: 9.81396396 | AJ76: 4102.050966 | AK76: 3865.356982 | AL76: 4102.049566 | AM76: 100 | AN76: 6.793094907 | AO76: 9.81396396 | AP76: 9.81396396 | AQ76: 9.81396396 | AS76: 132.7887842 | AT76: 0.07815756296 | AU76: 30.78336979 | AV76: 0.2472082092 | AW76: 97.36615921 | AX76: 0 | AY76: 0 | AZ76: 20.01719867 | BA76: 3.089236679 | BB76: 4.398602022 | BC76: 4.398602022 | BD76: 4.398602022 | BE76: 1880.613831 | BF76: 1732.446452 | BG76: 1880.613179 | BH76: 60 | BJ76: 66.39439209 | BK76: 0.07815756296 | BL76: 30.78336979 | BM76: 0.2472082092 | BN76: 97.36615921 | BO76: 0 | BP76: 0 | BQ76: -46.37719342 | BR76: -4.932126064 | BS76: -8.002723962 | BT76: -8.002723962 | BU76: -8.002723962 | BV76: -3151.976619 | BW76: 30 | BY76: 221.3146403 | BZ76: 0.07815756296 | CA76: 30.78336979 | CB76: 0.2472082092 | CC76: 97.36615921 | CD76: 0 | CE76: 0 | CF76: 108.5430548 | CG76: 9.606886948 | CH76: 14.08554472 | CI76: 13.76017895 | CJ76: 13.76017895 | CK76: 13.76017895 | CL76: 100 | CN76: 221.3146403 | CO76: 0.07815756296 | CP76: 15.3916849 | CQ76: 0.2472082092 | CR76: 48.6830796 | CS76: 0 | CT76: 0 | CU76: 164.9288476 | CV76: 11.84213403 | CW76: 17.25000161 | CX76: 16.92463583 | CY76: 16.92463583 | CZ76: 16.92463583 | DA76: 100 | DC76: 221.3146403 | DD76: 0.07815756296 | DE76: 9.235010937 | DF76: 0.2472082092 | DG76: 29.20984776 | DH76: 0 | DI76: 0 | DJ76: 187.4831647 | DK76: 16.2999838 | DL76: 23.33715332 | DM76: 23.01178754 | DP76: 100 | DR76: 221.3146403 | DS76: 0.07815756296 | DT76: 6.156673958 | DU76: 0.2472082092 | DV76: 19.47323184 | DW76: 0 | DX76: 0 | DY76: 198.7603232 | DZ76: 20.55495411 | EA76: 28.78845304 | EB76: 28.46308727 | EE76: 100 | EG76: 209.7650024 | EH76: 6.104876018 | EI76: 37.5611112 | EJ76: 226.5462026 | EK76: -9331.977102 | EL76: 13.03242295 | EM76: 13.03242295 | EN76: 20.3490671 | EO76: 20.02370133 | EP76: 20.02370133 | EQ76: 13.03242295 | ER76: 20.3490671 | ES76: 20.02370133 | ET76: 20.02370133 | EV76: 195.9591794 | EW76: 6.104876018 | EX76: 37.88425031 | EY76: 307.284765 | EZ76: -14933.33333 | FA76: 16.20845409 | FB76: 16.20845409 | FC76: 23.21569325 | FD76: 22.89032747 | FE76: 22.89032747 | FF76: 16.20845409 | FG76: 23.21569325 | FH76: 22.89032747 | FI76: 22.89032747 | FK76: 195.9591794 | FL76: 6.104876018 | FM76: 37.88425031 | FN76: 307.284765 | FO76: -32133.33333 | FP76: -33.46042678 | FQ76: 29.2 | FR76: 38.4 | FS76: 38.72536577 | FT76: 38.72536577 | FU76: 29.2 | FV76: 38.4 | FW76: 38.72536577 | FX76: 38.72536577 | FY76: 20.02370133 | GA76: =IF(Feldschwächung!U76<n_MAX_FS,Feldschwächung!U76,n_MAX_FS) -> 4089.757215 | GB76: =IF(Feldschwächung!U76<n_MAX_FS,Feldschwächung!CJ76,GB75) -> 37.2840141 | HB76: 21.024 | HC76: 0.003879083699 | HD76: 1.71767045 | HE76: -53061.61338 | HF76: 3483.719563 | HG76: 29.36388619
R77: ST | S77: 0.73 | T77: 0.8544003745 | U77: 3787.143088 | V77: 396.5886967 | X77: 221.3146403 | Y77: 0.07815756296 | Z77: 30.99640603 | AA77: 0.2482332753 | AB77: 98.44651114 | AC77: 0 | AD77: 0 | AE77: 107.4048732 | AF77: 6.757384877 | AG77: 9.759638334 | AH77: 9.759638334 | AI77: 9.759638334 | AJ77: 4107.41144 | AK77: 3870.562247 | AL77: 4107.410038 | AM77: 100 | AN77: 6.757384877 | AO77: 9.759638334 | AP77: 9.759638334 | AQ77: 9.759638334 | AS77: 132.7887842 | AT77: 0.07815756296 | AU77: 30.99640603 | AV77: 0.2482332753 | AW77: 98.44651114 | AX77: 0 | AY77: 0 | AZ77: 18.87901707 | BA77: 3.00012412 | BB77: 4.261308711 | BC77: 4.261308711 | BD77: 4.261308711 | BE77: 1838.30944 | BF77: 1689.986868 | BG77: 1838.308802 | BH77: 60 | BJ77: 66.39439209 | BK77: 0.07815756296 | BL77: 30.99640603 | BM77: 0.2482332753 | BN77: 98.44651114 | BO77: 0 | BP77: 0 | BQ77: -47.51537502 | BR77: -4.992280944 | BS77: -8.097386246 | BT77: -8.097386246 | BU77: -8.097386246 | BV77: -3211.331858 | BW77: 30 | BY77: 221.3146403 | BZ77: 0.07815756296 | CA77: 30.99640603 | CB77: 0.2482332753 | CC77: 98.44651114 | CD77: 0 | CE77: 0 | CF77: 107.4048732 | CG77: 9.55638534 | CH77: 14.01333783 | CI77: 13.68694699 | CJ77: 13.68694699 | CK77: 13.68694699 | CL77: 100 | CN77: 221.3146403 | CO77: 0.07815756296 | CP77: 15.49820302 | CQ77: 0.2482332753 | CR77: 49.22325557 | CS77: 0 | CT77: 0 | CU77: 164.3597568 | CV77: 11.8216856 | CW77: 17.22135208 | CX77: 16.89496125 | CY77: 16.89496125 | CZ77: 16.89496125 | DA77: 100 | DC77: 221.3146403 | DD77: 0.07815756296 | DE77: 9.29892181 | DF77: 0.2482332753 | DG77: 29.53395334 | DH77: 0 | DI77: 0 | DJ77: 187.1417102 | DK77: 16.28513383 | DL77: 23.31745842 | DM77: 22.99106759 | DP77: 100 | DR77: 221.3146403 | DS77: 0.07815756296 | DT77: 6.199281207 | DU77: 0.2482332753 | DV77: 19.68930223 | DW77: 0 | DX77: 0 | DY77: 198.5326869 | DZ77: 20.54318014 | EA77: 28.77393865 | EB77: 28.44754781 | EE77: 100 | EG77: 211.2166806 | EH77: 6.147124799 | EI77: 38.0787433 | EJ77: 228.1140151 | EK77: -8720.847155 | EL77: 12.43173433 | EM77: 12.43173433 | EN77: 19.45181781 | EO77: 19.12542697 | EP77: 19.12542697 | EQ77: 12.43173433 | ER77: 19.45181781 | ES77: 19.12542697 | ET77: 19.12542697 | EV77: 197.3153145 | EW77: 6.147124799 | EX77: 38.40188241 | EY77: 309.4113285 | EZ77: -14400 | FA77: 15.75046384 | FB77: 15.75046384 | FC77: 22.60552544 | FD77: 22.2791346 | FE77: 22.2791346 | FF77: 15.75046384 | FG77: 22.60552544 | FH77: 22.2791346 | FI77: 22.2791346 | FK77: 197.3153145 | FL77: 6.147124799 | FM77: 38.40188241 | FN77: 309.4113285 | FO77: -31600 | FP77: -32.99592077 | FQ77: 29.2 | FR77: 38.4 | FS77: 38.72639084 | FT77: 38.72639084 | FU77: 29.2 | FV77: 38.4 | FW77: 38.72639084 | FX77: 38.72639084 | FY77: 19.12542697 | GA77: =IF(Feldschwächung!U77<n_MAX_FS,Feldschwächung!U77,n_MAX_FS) -> 4135.136197 | GB77: =IF(Feldschwächung!U77<n_MAX_FS,Feldschwächung!CJ77,GB76) -> 37.13159144 | HB77: 21.316 | HC77: 0.003911656443 | HD77: 1.741526984 | HE77: -53054.01318 | HF77: 3466.919644 | HG77: 29.71933856
R78: ST | S78: 0.74 | T78: 0.8602325267 | U78: 3812.994194 | V78: 399.2958182 | X78: 221.3146403 | Y78: 0.07815756296 | Z78: 31.20798805 | AA78: 0.2492485586 | AB78: 99.52390715 | AC78: 0 | AD78: 0 | AE78: 106.2705725 | AF78: 6.721607865 | AG78: 9.705222512 | AH78: 9.705222512 | AI78: 9.705222512 | AJ78: 4112.258636 | AK78: 3875.254764 | AL78: 4112.257232 | AM78: 100 | AN78: 6.721607865 | AO78: 9.705222512 | AP78: 9.705222512 | AQ78: 9.705222512 | AS78: 132.7887842 | AT78: 0.07815756296 | AU78: 31.20798805 | AV78: 0.2492485586 | AW78: 99.52390715 | AX78: 0 | AY78: 0 | AZ78: 17.7447164 | BA78: 2.908600432 | BB78: 4.120338158 | BC78: 4.120338158 | BD78: 4.120338158 | BE78: 1793.71103 | BF78: 1645.233796 | BG78: 1793.710408 | BH78: 60 | BJ78: 66.39439209 | BK78: 0.07815756296 | BL78: 31.20798805 | BM78: 0.2492485586 | BN78: 99.52390715 | BO78: 0 | BP78: 0 | BQ78: -48.64967569 | BR78: -5.051518079 | BS78: -8.190610183 | BT78: -8.190610183 | BU78: -8.190610183 | BV78: -3270.476395 | BW78: 30 | BY78: 221.3146403 | BZ78: 0.07815756296 | CA78: 31.20798805 | CB78: 0.2492485586 | CC78: 99.52390715 | CD78: 0 | CE78: 0 | CF78: 106.2705725 | CG78: 9.505789003 | CH78: 13.94096635 | CI78: 13.61356023 | CJ78: 13.61356023 | CK78: 13.61356023 | CL78: 100 | CN78: 221.3146403 | CO78: 0.07815756296 | CP78: 15.60399403 | CQ78: 0.2492485586 | CR78: 49.76195358 | CS78: 0 | CT78: 0 | CU78: 163.7926064 | CV78: 11.80127164 | CW78: 17.19274498 | CX78: 16.86533886 | CY78: 16.86533886 | CZ78: 16.86533886 | DA78: 100 | DC78: 221.3146403 | DD78: 0.07815756296 | DE78: 9.362396416 | DF78: 0.2492485586 | DG78: 29.85717215 | DH78: 0 | DI78: 0 | DJ78: 186.80142 | DK78: 16.27032101 | DL78: 23.29780854 | DM78: 22.97040242 | DP78: 100 | DR78: 221.3146403 | DS78: 0.07815756296 | DT78: 6.241597611 | DU78: 0.2492485586 | DV78: 19.90478143 | DW78: 0 | DX78: 0 | DY78: 198.3058268 | DZ78: 20.53143961 | EA78: 28.75946208 | EB78: 28.43205596 | EE78: 100 | EG78: 212.6584495 | EH78: 6.189085183 | EI78: 38.5963754 | EJ78: 229.6711254 | EK78: -8109.717207 | EL78: 11.82228709 | EM78: 11.82228709 | EN78: 18.53560327 | EO78: 18.20819715 | EP78: 18.20819715 | EQ78: 11.82228709 | ER78: 18.53560327 | ES78: 18.20819715 | ET78: 18.20819715 | EV78: 198.6621923 | EW78: 6.189085183 | EX78: 38.91951451 | EY78: 311.5233758 | EZ78: -13866.66667 | FA78: 15.29313661 | FB78: 15.29313661 | FC78: 21.99230962 | FD78: 21.66490349 | FE78: 21.66490349 | FF78: 15.29313661 | FG78: 21.99230962 | FH78: 21.66490349 | FI78: 21.66490349 | FK78: 198.6621923 | FL78: 6.189085183 | FM78: 38.91951451 | FN78: 311.5233758 | FO78: -31066.66667 | FP78: -32.53713994 | FQ78: 29.2 | FR78: 38.4 | FS78: 38.72740612 | FT78: 38.72740612 | FU78: 29.2 | FV78: 38.4 | FW78: 38.72740612 | FX78: 38.72740612 | FY78: 18.20819715 | GA78: =IF(Feldschwächung!U78<n_MAX_FS,Feldschwächung!U78,n_MAX_FS) -> 4180.391018 | GB78: =IF(Feldschwächung!U78<n_MAX_FS,Feldschwächung!CJ78,GB77) -> 36.97453914 | HB78: 21.608 | HC78: 0.003944678465 | HD78: 1.765383518 | HE78: -53046.30816 | HF78: 3450.144892 | HG78: 30.07262351
R79: ST | S79: 0.75 | T79: 0.8660254038 | U79: 3838.671213 | V79: 401.9847094 | X79: 221.3146403 | Y79: 0.07815756296 | Z79: 31.41814523 | AA79: 0.2502542828 | AB79: 100.5983951 | AC79: 0 | AD79: 0 | AE79: 105.1400848 | AF79: 6.685760633 | AG79: 9.65071144 | AH79: 9.65071144 | AI79: 9.65071144 | AJ79: 4116.596464 | AK79: 3879.438433 | AL79: 4116.595058 | AM79: 100 | AN79: 6.685760633 | AO79: 9.65071144 | AP79: 9.65071144 | AQ79: 9.65071144 | AS79: 132.7887842 | AT79: 0.07815756296 | AU79: 31.41814523 | AV79: 0.2502542828 | AW79: 100.5983951 | AX79: 0 | AY79: 0 | AZ79: 16.61422868 | BA79: 2.814424643 | BB79: 3.97532165 | BC79: 3.97532165 | BD79: 3.97532165 | BE79: 1746.649894 | BF79: 1598.018518 | BG79: 1746.649287 | BH79: 60 | BJ79: 66.39439209 | BK79: 0.07815756296 | BL79: 31.41814523 | BM79: 0.2502542828 | BN79: 100.5983951 | BO79: 0 | BP79: 0 | BQ79: -49.78016342 | BR79: -5.109872876 | BS79: -8.282451112 | BT79: -8.282451112 | BU79: -8.282451112 | BV79: -3329.418703 | BW79: 30 | BY79: 221.3146403 | BZ79: 0.07815756296 | CA79: 31.41814523 | CB79: 0.2502542828 | CC79: 100.5983951 | CD79: 0 | CE79: 0 | CF79: 105.1400848 | CG79: 9.455093361 | CH79: 13.86842373 | CI79: 13.54001188 | CJ79: 13.54001188 | CK79: 13.54001188 | CL79: 100 | CN79: 221.3146403 | CO79: 0.07815756296 | CP79: 15.70907261 | CQ79: 0.2502542828 | CR79: 50.29919756 | CS79: 0 | CT79: 0 | CU79: 163.2273626 | CV79: 11.78089111 | CW79: 17.16417887 | CX79: 16.83576703 | CY79: 16.83576703 | CZ79: 16.83576703 | DA79: 100 | DC79: 221.3146403 | DD79: 0.07815756296 | DE79: 9.425443569 | DF79: 0.2502542828 | DG79: 30.17951854 | DH79: 0 | DI79: 0 | DJ79: 186.4622737 | DK79: 16.25554455 | DL79: 23.27820265 | DM79: 22.9497908 | DP79: 100 | DR79: 221.3146403 | DS79: 0.07815756296 | DT79: 6.283629046 | DU79: 0.2502542828 | DV79: 20.11967902 | DW79: 0 | DX79: 0 | DY79: 198.0797292 | DZ79: 20.51973185 | EA79: 28.74502258 | EB79: 28.41661073 | EE79: 100 | EG79: 214.0905091 | EH79: 6.230762995 | EI79: 39.1140075 | EJ79: 231.2177498 | EK79: -7498.587259 | EL79: 11.20224601 | EM79: 11.20224601 | EN79: 17.59768046 | EO79: 17.26926861 | EP79: 17.26926861 | EQ79: 11.20224601 | ER79: 17.59768046 | ES79: 17.26926861 | ET79: 17.26926861 | EV79: 200 | EW79: 6.230762995 | EX79: 39.43714661 | EY79: 313.6212 | EZ79: -13333.33333 | FA79: 14.8360413 | FB79: 14.8360413 | FC79: 21.37559327 | FD79: 21.04718143 | FE79: 21.04718143 | FF79: 14.8360413 | FG79: 21.37559327 | FH79: 21.04718143 | FI79: 21.04718143 | FK79: 200 | FL79: 6.230762995 | FM79: 39.43714661 | FN79: 313.6212 | FO79: -30533.33333 | FP79: -32.08383104 | FQ79: 29.2 | FR79: 38.4 | FS79: 38.72841185 | FT79: 38.72841185 | FU79: 29.2 | FV79: 38.4 | FW79: 38.72841185 | FX79: 38.72841185 | FY79: 17.26926861 | GA79: =IF(Feldschwächung!U79<n_MAX_FS,Feldschwächung!U79,n_MAX_FS) -> 4225.52369 | GB79: =IF(Feldschwächung!U79<n_MAX_FS,Feldschwächung!CJ79,GB78) -> 36.81302819 | HB79: 21.9 | HC79: 0.003978149767 | HD79: 1.789240052 | HE79: -53038.49831 | HF79: 3433.398453 | HG79: 30.42371134
R80: ST | S80: 0.76 | T80: 0.8717797887 | U80: 3864.177614 | V80: 404.6557335 | X80: 221.3146403 | Y80: 0.07815756296 | Z80: 31.62690597 | AA80: 0.2512506635 | AB80: 101.6700215 | AC80: 0 | AD80: 0 | AE80: 104.0133441 | AF80: 6.649839939 | AG80: 9.596100062 | AH80: 9.596100062 | AI80: 9.596100062 | AJ80: 4120.428589 | AK80: 3883.116909 | AL80: 4120.427181 | AM80: 100 | AN80: 6.649839939 | AO80: 9.596100062 | AP80: 9.596100062 | AQ80: 9.596100062 | AS80: 132.7887842 | AT80: 0.07815756296 | AU80: 31.62690597 | AV80: 0.2512506635 | AW80: 101.6700215 | AX80: 0 | AY80: 0 | AZ80: 15.487488 | BA80: 2.717315239 | BB80: 3.825828491 | BC80: 3.825828491 | BD80: 3.825828491 | BE80: 1696.928439 | BF80: 1548.143434 | BG80: 1696.92785 | BH80: 60 | BJ80: 66.39439209 | BK80: 0.07815756296 | BL80: 31.62690597 | BM80: 0.2512506635 | BN80: 101.6700215 | BO80: 0 | BP80: 0 | BQ80: -50.90690409 | BR80: -5.167378572 | BS80: -8.372960984 | BT80: -8.372960984 | BU80: -8.372960984 | BV80: -3388.166669 | BW80: 30 | BY80: 221.3146403 | BZ80: 0.07815756296 | CA80: 31.62690597 | CB80: 0.2512506635 | CC80: 101.6700215 | CD80: 0 | CE80: 0 | CF80: 104.0133441 | CG80: 9.404293829 | CH80: 13.79570337 | CI80: 13.46629514 | CJ80: 13.46629514 | CK80: 13.46629514 | CL80: 100 | CN80: 221.3146403 | CO80: 0.07815756296 | CP80: 15.81345298 | CQ80: 0.2512506635 | CR80: 50.83501076 | CS80: 0 | CT80: 0 | CU80: 162.6639922 | CV80: 11.76054298 | CW80: 17.13565237 | CX80: 16.80624414 | DA80: 100 | DC80: 221.3146403 | DD80: 0.07815756296 | DE80: 9.48807179 | DF80: 0.2512506635 | DG80: 30.50100645 | DH80: 0 | DI80: 0 | DJ80: 186.1242515 | DK80: 16.24080369 | DL80: 23.25863977 | DM80: 22.92923154 | DP80: 100 | DR80: 221.3146403 | DS80: 0.07815756296 | DT80: 6.325381193 | DU80: 0.2512506635 | DV80: 20.3340043 | DW80: 0 | DX80: 0 | DY80: 197.8543811 | DZ80: 20.50805625 | EA80: 28.73061939 | EB80: 28.40121117 | EE80: 100 | EG80: 215.513053 | EH80: 6.272163869 | EI80: 39.6316396 | EJ80: 232.7540973 | EK80: -6887.457312 | EL80: 10.56944471 | EM80: 10.56944471 | EN80: 16.6347583 | EO80: 16.30535007 | EP80: 16.30535007 | EQ80: 10.56944471 | ER80: 16.6347583 | ES80: 16.30535007 | ET80: 16.30535007 | EV80: 201.3289183 | EW80: 6.272163869 | EX80: 39.95477871 | EY80: 315.7050847 | EZ80: -12800 | FA80: 14.37872739 | FB80: 14.37872739 | FC80: 20.75488275 | FD80: 20.42547452 | FE80: 20.42547452 | FF80: 14.37872739 | FG80: 20.75488275 | FH80: 20.42547452 | FI80: 20.42547452 | FK80: 201.3289183 | FL80: 6.272163869 | FM80: 39.95477871 | FN80: 315.7050847 | FO80: -30000 | FP80: -31.63574928 | FQ80: 29.2 | FR80: 38.4 | FS80: 38.72940823 | FT80: 38.72940823 | FU80: 29.2 | FV80: 38.4 | FW80: 38.72940823 | FX80: 38.72940823 | FY80: 16.30535007 | GA80: =IF(Feldschwächung!U80<n_MAX_FS,Feldschwächung!U80,n_MAX_FS) -> 4270.536164 | GB80: =IF(Feldschwächung!U80<n_MAX_FS,Feldschwächung!CJ80,GB79) -> 36.64724448 | HB80: 22.192 | HC80: 0.004012070348 | HD80: 1.813096586 | HE80: -53030.58363 | HF80: 3416.683361 | HG80: 30.77257237
R81: ST | S81: 0.77 | T81: 0.8774964387 | U81: 3889.516755 | V81: 407.3092421 | X81: 221.3146403 | Y81: 0.07815756296 | Z81: 31.83429774 | AA81: 0.2522379087 | AB81: 102.7388315 | AC81: 0 | AD81: 0 | AE81: 102.8902866 | AF81: 6.613842533 | AG81: 9.541383321 | AH81: 9.541383321 | AI81: 9.541383321 | AJ81: 4123.758435 | AK81: 3886.29361 | AL81: 4123.757025 | AM81: 100 | AN81: 6.613842533 | AO81: 9.541383321 | AP81: 9.541383321 | AQ81: 9.541383321 | AS81: 132.7887842 | AT81: 0.07815756296 | AU81: 31.83429774 | AV81: 0.2522379087 | AW81: 102.7388315 | AX81: 0 | AY81: 0 | AZ81: 14.3644305 | BA81: 2.616939841 | BB81: 3.671350207 | BC81: 3.671350207 | BD81: 3.671350207 | BE81: 1644.313001 | BF81: 1495.37487 | BG81: 1644.31243 | BH81: 60 | BJ81: 66.39439209 | BK81: 0.07815756296 | BL81: 31.83429774 | BM81: 0.2522379087 | BN81: 102.7388315 | BO81: 0 | BP81: 0 | BQ81: -52.02996159 | BR81: -5.224066414 | BS81: -8.462188648 | BT81: -8.462188648 | BU81: -8.462188648 | BV81: -3446.727645 | BW81: 30 | BY81: 221.3146403 | BZ81: 0.07815756296 | CA81: 31.83429774 | CB81: 0.2522379087 | CC81: 102.7388315 | CD81: 0 | CE81: 0 | CF81: 102.8902866 | CG81: 9.35338581 | CH81: 13.72279868 | CI81: 13.39240321 | CJ81: 13.39240321 | CK81: 13.39240321 | CL81: 100 | CN81: 221.3146403 | CO81: 0.07815756296 | CP81: 15.91714887 | CQ81: 0.2522379087 | CR81: 51.36941573 | CS81: 0 | CT81: 0 | CU81: 162.1024635 | CV81: 11.74022628 | CW81: 17.10716412 | CX81: 16.77676865 | DA81: 100 | DC81: 221.3146403 | DD81: 0.07815756296 | DE81: 9.550289321 | DF81: 0.2522379087 | DG81: 30.82164944 | DH81: 0 | DI81: 0 | DJ81: 185.7873342 | DK81: 16.22609769 | DL81: 23.23911897 | DM81: 22.90872349 | DP81: 100 | DR81: 221.3146403 | DS81: 0.07815756296 | DT81: 6.366859547 | DU81: 0.2522379087 | DV81: 20.54776629 | DW81: 0 | DX81: 0 | DY81: 197.6297696 | DZ81: 20.4964122 | EA81: 28.7162518 | EB81: 28.38585633 | EE81: 100 | EG81: 216.9262685 | EH81: 6.313293253 | EI81: 40.1492717 | EJ81: 234.28037 | EK81: -6276.327364 | EL81: 9.921281222 | EM81: 9.921281222 | EN81: 15.64283088 | EO81: 15.31243541 | EP81: 15.31243541 | EQ81: 9.921281222 | ER81: 15.64283088 | ES81: 15.31243541 | ET81: 15.31243541 | EV81: 202.649122 | EW81: 6.313293253 | EX81: 40.47241081 | EY81: 317.7753042 | EZ81: -12266.66667 | FA81: 13.9207207 | FB81: 13.9207207 | FC81: 20.12963773 | FD81: 19.79924226 | FE81: 19.79924226 | FF81: 13.9207207 | FG81: 20.12963773 | FH81: 19.79924226 | FI81: 19.79924226 | FK81: 202.649122 | FL81: 6.313293253 | FM81: 40.47241081 | FN81: 317.7753042 | FO81: -29466.66667 | FP81: -31.19265771 | FQ81: 29.2 | FR81: 38.4 | FS81: 38.73039547 | FT81: 38.73039547 | FU81: 29.2 | FV81: 38.4 | FW81: 38.73039547 | FX81: 38.73039547 | FY81: 15.31243541 | GA81: =IF(Feldschwächung!U81<n_MAX_FS,Feldschwächung!U81,n_MAX_FS) -> 4315.430337 | GB81: =IF(Feldschwächung!U81<n_MAX_FS,Feldschwächung!CJ81,GB80) -> 36.47738711 | HB81: 22.484 | HC81: 0.004046440208 | HD81: 1.83695312 | HE81: -53022.56412 | HF81: 3400.002545 | HG81: 31.11917691
R82: ST | S82: 0.78 | T82: 0.8831760866 | U82: 3914.691884 | V82: 409.9455754 | X82: 221.3146403 | Y82: 0.07815756296 | Z82: 32.04034712 | AA82: 0.2532162194 | AB82: 103.8048688 | AC82: 0 | AD82: 0 | AE82: 101.7708503 | AF82: 6.577765154 | AG82: 9.486556146 | AH82: 9.486556146 | AI82: 9.486556146 | AJ82: 4126.589195 | AK82: 3888.971718 | AL82: 4126.587784 | AM82: 100 | AN82: 6.577765154 | AO82: 9.486556146 | AP82: 9.486556146 | AQ82: 9.486556146 | AS82: 132.7887842 | AT82: 0.07815756296 | AU82: 32.04034712 | AV82: 0.2532162194 | AW82: 103.8048688 | AX82: 0 | AY82: 0 | AZ82: 13.24499419 | BA82: 2.512901231 | BB82: 3.511279183 | BC82: 3.511279183 | BD82: 3.511279183 | BE82: 1588.524127 | BF82: 1439.433365 | BG82: 1588.523575 | BH82: 60 | BJ82: 66.39439209 | BK82: 0.07815756296 | BL82: 32.04034712 | BM82: 0.2532162194 | BN82: 103.8048688 | BO82: 0 | BP82: 0 | BQ82: -53.1493979 | BR82: -5.279965823 | BS82: -8.550180101 | BT82: -8.550180101 | BU82: -8.550180101 | BV82: -3505.108501 | BW82: 30 | BY82: 221.3146403 | BZ82: 0.07815756296 | CA82: 32.04034712 | CB82: 0.2532162194 | CC82: 103.8048688 | CD82: 0 | CE82: 0 | CF82: 101.7708503 | CG82: 9.30236469 | CH82: 13.64970302 | CI82: 13.31832923 | CJ82: 13.31832923 | CK82: 13.31832923 | CL82: 100 | CN82: 221.3146403 | CO82: 0.07815756296 | CP82: 16.02017356 | CQ82: 0.2532162194 | CR82: 51.90243439 | CS82: 0 | CT82: 0 | CU82: 161.5427453 | CV82: 11.71994003 | CW82: 17.07871281 | CX82: 16.74733903 | DA82: 100 | DC82: 221.3146403 | DD82: 0.07815756296 | DE82: 9.612104136 | DF82: 0.2532162194 | DG82: 31.14146063 | DH82: 0 | DI82: 0 | DJ82: 185.4515033 | DK82: 16.21142584 | DL82: 23.21963931 | DM82: 22.88826553 | DP82: 100 | DR82: 221.3146403 | DS82: 0.07815756296 | DT82: 6.408069424 | DU82: 0.2532162194 | DV82: 20.76097376 | DW82: 0 | DX82: 0 | DY82: 197.4058823 | DZ82: 20.48479911 | EA82: 28.70191911 | EB82: 28.37054533 | EE82: 100 | EG82: 218.3303367 | EH82: 6.354156419 | EI82: 40.6669038 | EJ82: 235.7967636 | EK82: -5665.197416 | EL82: 9.254568758 | EM82: 9.254568758 | EN82: 14.61693871 | EO82: 14.28556493 | EP82: 14.28556493 | EQ82: 9.254568758 | ER82: 14.61693871 | ES82: 14.28556493 | ET82: 14.28556493 | EV82: 203.9607805 | EW82: 6.354156419 | EX82: 40.99004291 | EY82: 319.8321237 | EZ82: -11733.33333 | FA82: 13.46151846 | FB82: 13.46151846 | FC82: 19.49926467 | FD82: 19.16789089 | FE82: 19.16789089 | FF82: 13.46151846 | FG82: 19.49926467 | FH82: 19.16789089 | FI82: 19.16789089 | FK82: 203.9607805 | FL82: 6.354156419 | FM82: 40.99004291 | FN82: 319.8321237 | FO82: -28933.33333 | FP82: -30.75432653 | FQ82: 29.2 | FR82: 38.4 | FS82: 38.73137378 | FT82: 38.73137378 | FU82: 29.2 | FV82: 38.4 | FW82: 38.73137378 | FX82: 38.73137378 | FY82: 14.28556493 | GA82: =IF(Feldschwächung!U82<n_MAX_FS,Feldschwächung!U82,n_MAX_FS) -> 4360.208049 | GB82: =IF(Feldschwächung!U82<n_MAX_FS,Feldschwächung!CJ82,GB81) -> 36.30366665 | HB82: 22.776 | HC82: 0.004081259348 | HD82: 1.860809654 | HE82: -53014.43977 | HF82: 3383.358825 | HG82: 31.46349526
R83: ST | S83: 0.79 | T83: 0.8888194417 | U83: 3939.706144 | V83: 412.5650626 | X83: 221.3146403 | Y83: 0.07815756296 | Z83: 32.24507986 | AA83: 0.2541857893 | AB83: 104.8681761 | AC83: 0 | AD83: 0 | AE83: 100.6549751 | AF83: 6.541604523 | AG83: 9.431613451 | AH83: 9.431613451 | AI83: 9.431613451 | AJ83: 4128.923837 | AK83: 3891.154194 | AL83: 4128.922425 | AM83: 100 | AN83: 6.541604523 | AO83: 9.431613451 | AP83: 9.431613451 | AQ83: 9.431613451 | AS83: 132.7887842 | AT83: 0.07815756296 | AU83: 32.24507986 | AV83: 0.2541857893 | AW83: 104.8681761 | AX83: 0 | AY83: 0 | AZ83: 12.12911895 | BA83: 2.404718035 | BB83: 3.344879124 | BC83: 3.344879124 | BD83: 3.344879124 | BE83: 1529.223172 | BF83: 1379.980265 | BG83: 1529.22264 | BH83: 60 | BJ83: 66.39439209 | BK83: 0.07815756296 | BL83: 32.24507986 | BM83: 0.2541857893 | BN83: 104.8681761 | BO83: 0 | BP83: 0 | BQ83: -54.26527314 | BR83: -5.335104538 | BS83: -8.636978714 | BT83: -8.636978714 | BU83: -8.636978714 | BV83: -3563.315664 | BW83: 30 | BY83: 221.3146403 | BZ83: 0.07815756296 | CA83: 32.24507986 | CB83: 0.2541857893 | CC83: 104.8681761 | CD83: 0 | CE83: 0 | CF83: 100.6549751 | CG83: 9.251225836 | CH83: 13.5764097 | CI83: 13.24406635 | CL83: 100 | CN83: 221.3146403 | CO83: 0.07815756296 | CP83: 16.12253993 | CQ83: 0.2541857893 | CR83: 52.43408805 | CS83: 0 | CT83: 0 | CU83: 160.9848077 | CV83: 11.69968332 | CW83: 17.05029718 | CX83: 16.71795383 | DA83: 100 | DC83: 221.3146403 | DD83: 0.07815756296 | DE83: 9.673523957 | DF83: 0.2541857893 | DG83: 31.46045283 | DH83: 0 | DI83: 0 | DJ83: 185.1167407 | DK83: 16.19678743 | DL83: 23.20019992 | DM83: 22.86785656 | DP83: 100 | DR83: 221.3146403 | DS83: 0.07815756296 | DT83: 6.449015971 | DU83: 0.2541857893 | DV83: 20.97363522 | DW83: 0 | DX83: 0 | DY83: 197.1827073 | DZ83: 20.4732164 | EA83: 28.68762065 | EB83: 28.35527729 | EE83: 100 | EG83: 219.7254329 | EH83: 6.394758471 | EI83: 41.1845359 | EJ83: 237.3034675 | EK83: -5054.067469 | EL83: 8.565315689 | EM83: 8.565315689 | EN83: 13.55081643 | EO83: 13.21847307 | EP83: 13.21847307 | EQ83: 8.565315689 | ER83: 13.55081643 | ES83: 13.21847307 | ET83: 13.21847307 | EV83: 205.2640576 | EW83: 6.394758471 | EX83: 41.50767501 | EY83: 321.8758003 | EZ83: -11200 | FA83: 13.00058348 | FB83: 13.00058348 | FC83: 18.86310884 | FD83: 18.53076549 | FE83: 18.53076549 | FF83: 13.00058348 | FG83: 18.86310884 | FH83: 18.53076549 | FI83: 18.53076549 | FK83: 205.2640576 | FL83: 6.394758471 | FM83: 41.50767501 | FN83: 321.8758003 | FO83: -28400 | FP83: -30.32053254 | FQ83: 29.2 | FR83: 38.4 | FS83: 38.73234335 | FT83: 38.73234335 | FU83: 29.2 | FV83: 38.4 | FW83: 38.73234335 | FX83: 38.73234335 | FY83: 13.21847307 | GA83: =IF(Feldschwächung!U83<n_MAX_FS,Feldschwächung!U83,n_MAX_FS) -> 4404.87109 | GB83: =IF(Feldschwächung!U83<n_MAX_FS,Feldschwächung!CJ83,GB82) -> 36.12630331 | HB83: 23.068 | HC83: 0.004116527766 | HD83: 1.884666188 | HE83: -53006.2106 | HF83: 3366.754918 | HG83: 31.80549773
R84: ST | S84: 0.8 | T84: 0.894427191 | U84: 3964.562581 | V84: 415.1680226 | X84: 221.3146403 | Y84: 0.07815756296 | Z84: 32.44852086 | AA84: 0.2551468058 | AB84: 105.9287948 | AC84: 0 | AD84: 0 | AE84: 99.54260251 | AF84: 6.505357345 | AG84: 9.37655013 | AH84: 9.37655013 | AI84: 9.37655013 | AJ84: 4130.765108 | AK84: 3892.843777 | AL84: 4130.763695 | AM84: 100 | AN84: 6.505357345 | AO84: 9.37655013 | AP84: 9.37655013 | AQ84: 9.37655013 | AS84: 132.7887842 | AT84: 0.07815756296 | AU84: 32.44852086 | AV84: 0.2551468058 | AW84: 105.9287948 | AX84: 0 | AY84: 0 | AZ84: 11.01674638 | BA84: 2.291797328 | BB84: 3.17124316 | BC84: 3.17124316 | BD84: 3.17124316 | BE84: 1465.993324 | BF84: 1316.598752 | BG84: 1465.992814 | BH84: 60 | BJ84: 66.39439209 | BK84: 0.07815756296 | BL84: 32.44852086 | BM84: 0.2551468058 | BN84: 105.9287948 | BO84: 0 | BP84: 0 | BQ84: -55.37764571 | BR84: -5.389508747 | BS84: -8.722625442 | BT84: -8.722625442 | BU84: -8.722625442 | BV84: -3621.355157 | BW84: 30 | BY84: 221.3146403 | BZ84: 0.07815756296 | CA84: 32.44852086 | CB84: 0.2551468058 | CC84: 105.9287948 | CD84: 0 | CE84: 0 | CF84: 99.54260251 | CG84: 9.199964585 | CH84: 13.50291201 | CI84: 13.16960764 | CL84: 100 | CN84: 221.3146403 | CO84: 0.07815756296 | CP84: 16.22426043 | CQ84: 0.2551468058 | CR84: 52.96439741 | CS84: 0 | CT84: 0 | CU84: 160.4286214 | CV84: 11.67945522 | CW84: 17.02191598 | CX84: 16.68861161 | DA84: 100 | DC84: 221.3146403 | DD84: 0.07815756296 | DE84: 9.734556259 | DF84: 0.2551468058 | DG84: 31.77863845 | DH84: 0 | DI84: 0 | DJ84: 184.783029 | DK84: 16.18218179 | DL84: 23.18079991 | DM84: 22.84749554 | DP84: 100 | DR84: 221.3146403 | DS84: 0.07815756296 | DT84: 6.489704173 | DU84: 0.2551468058 | DV84: 21.18575896 | DW84: 0 | DX84: 0 | DY84: 196.9602327 | DZ84: 20.46166352 | EA84: 28.67335574 | EB84: 28.34005137 | EE84: 100 | EG84: 221.111727 | EH84: 6.43510435 | EI84: 41.702168 | EJ84: 238.8006651 | EK84: -4442.937521 | EL84: 7.84838879 | EM84: 7.84838879 | EN84: 12.43635341 | EO84: 12.10304904 | EP84: 12.10304904 | EQ84: 7.84838879 | ER84: 12.43635341 | ES84: 12.10304904 | ET84: 12.10304904 | EV84: 206.5591118 | EW84: 6.43510435 | EX84: 42.02530711 | EY84: 323.9065826 | EZ84: -10666.66667 | FA84: 12.53733728 | FB84: 12.53733728 | FC84: 18.22044463 | FD84: 17.88714026 | FE84: 17.88714026 | FF84: 12.53733728 | FG84: 18.22044463 | FH84: 17.88714026 | FI84: 17.88714026 | FK84: 206.5591118 | FL84: 6.43510435 | FM84: 42.02530711 | FN84: 323.9065826 | FO84: -27866.66667 | FP84: -29.89105855 | FQ84: 29.2 | FR84: 38.4 | FS84: 38.73330437 | FT84: 38.73330437 | FU84: 29.2 | FV84: 38.4 | FW84: 38.73330437 | FX84: 38.73330437 | FY84: 12.10304904 | GA84: =IF(Feldschwächung!U84<n_MAX_FS,Feldschwächung!U84,n_MAX_FS) -> 4449.4212 | GB84: =IF(Feldschwächung!U84<n_MAX_FS,Feldschwächung!CJ84,GB83) -> 35.94552503 | HB84: 23.36 | HC84: 0.004152245464 | HD84: 1.908522722 | HE84: -52997.8766 | HF84: 3350.193437 | HG84: 32.14515464
R85: ST | S85: 0.81 | T85: 0.9 | U85: 3989.264144 | V85: 417.7547643 | X85: 221.3146403 | Y85: 0.07815756296 | Z85: 32.65069429 | AA85: 0.2560994497 | AB85: 106.9867652 | AC85: 0 | AD85: 0 | AE85: 98.43367593 | AF85: 6.469020302 | AG85: 9.32136105 | AH85: 9.32136105 | AI85: 9.32136105 | AJ85: 4132.115538 | AK85: 3894.042988 | AL85: 4132.114124 | AM85: 100 | AN85: 6.469020302 | AO85: 9.32136105 | AP85: 9.32136105 | AQ85: 9.32136105 | AS85: 132.7887842 | AT85: 0.07815756296 | AU85: 32.65069429 | AV85: 0.2560994497 | AW85: 106.9867652 | AX85: 0 | AY85: 0 | AZ85: 9.907819806 | BA85: 2.173394595 | BB85: 2.989232618 | BC85: 2.989232618 | BD85: 2.989232618 | BE85: 1398.311934 | BF85: 1248.766168 | BG85: 1398.311447 | BH85: 60 | BJ85: 66.39439209 | BK85: 0.07815756296 | BL85: 32.65069429 | BM85: 0.2560994497 | BN85: 106.9867652 | BO85: 0 | BP85: 0 | BQ85: -56.48657229 | BR85: -5.443203206 | BS85: -8.807158998 | BT85: -8.807158998 | BU85: -8.807158998 | BV85: -3679.232631 | BW85: 30 | BY85: 221.3146403 | BZ85: 0.07815756296 | CA85: 32.65069429 | CB85: 0.2560994497 | CC85: 106.9867652 | CD85: 0 | CE85: 0 | CF85: 98.43367593 | CG85: 9.148576246 | CH85: 13.42920316 | CI85: 13.09494615 | CL85: 100 | CN85: 221.3146403 | CO85: 0.07815756296 | CP85: 16.32534715 | CQ85: 0.2560994497 | CR85: 53.49338262 | CS85: 0 | CT85: 0 | CU85: 159.8741581 | CV85: 11.65925485 | CW85: 16.993568 | CX85: 16.65931098 | DA85: 100 | DC85: 221.3146403 | DD85: 0.07815756296 | DE85: 9.795208287 | DF85: 0.2560994497 | DG85: 32.09602957 | DH85: 0 | DI85: 0 | DJ85: 184.450351 | DK85: 16.16760826 | DL85: 23.16143846 | DM85: 22.82718145 | DP85: 100 | DR85: 221.3146403 | DS85: 0.07815756296 | DT85: 6.530138858 | DU85: 0.2560994497 | DV85: 21.39735305 | DW85: 0 | DX85: 0 | DY85: 196.7384474 | DZ85: 20.45013994 | EA85: 28.65912376 | EB85: 28.32486675 | EE85: 100 | EG85: 222.4893835 | EH85: 6.475198846 | EI85: 42.2198001 | EJ85: 240.2885342 | EK85: -3831.807573 | EL85: 7.096973685 | EM85: 7.096973685 | EN85: 11.26272951 | EO85: 10.92847249 | EP85: 10.92847249 | EQ85: 7.096973685 | ER85: 11.26272951 | ES85: 10.92847249 | ET85: 10.92847249 | EV85: 207.8460969 | EW85: 6.475198846 | EX85: 42.54293921 | EY85: 325.9247116 | EZ85: -10133.33333 | FA85: 12.07115171 | FB85: 12.07115171 | FC85: 17.57046377 | FD85: 17.23620676 | FE85: 17.23620676 | FF85: 12.07115171 | FG85: 17.57046377 | FH85: 17.23620676 | FI85: 17.23620676 | FK85: 207.8460969 | FL85: 6.475198846 | FM85: 42.54293921 | FN85: 325.9247116 | FO85: -27333.33333 | FP85: -29.46569283 | FQ85: 29.2 | FR85: 38.4 | FS85: 38.73425701 | FT85: 38.73425701 | FU85: 29.2 | FV85: 38.4 | FW85: 38.73425701 | FX85: 38.73425701 | FY85: 10.92847249 | GA85: =IF(Feldschwächung!U85<n_MAX_FS,Feldschwächung!U85,n_MAX_FS) -> 4493.86007 | GB85: =IF(Feldschwächung!U85<n_MAX_FS,Feldschwächung!CJ85,GB84) -> 35.76156572 | HB85: 23.652 | HC85: 0.004188412441 | HD85: 1.932379256 | HE85: -52989.43776 | HF85: 3333.676895 | HG85: 32.48243629
R86: ST | S86: 0.82 | T86: 0.9055385138 | U86: 4013.813694 | V86: 420.3255871 | X86: 221.3146403 | Y86: 0.07815756296 | Z86: 32.85162354 | AA86: 0.2570438961 | AB86: 108.0421265 | AC86: 0 | AD86: 0 | AE86: 97.32814026 | AF86: 6.432590051 | AG86: 9.266041046 | AH86: 9.266041046 | AI86: 9.266041046 | AJ86: 4132.977447 | AK86: 3894.754143 | AL86: 4132.976033 | AM86: 100 | AN86: 6.432590051 | AO86: 9.266041046 | AP86: 9.266041046 | AQ86: 9.266041046 | AS86: 132.7887842 | AT86: 0.07815756296 | AU86: 32.85162354 | AV86: 0.2570438961 | AW86: 108.0421265 | AX86: 0 | AY86: 0 | AZ86: 8.802284134 | BA86: 2.048553095 | BB86: 2.797384306 | BC86: 2.797384306 | BD86: 2.797384306 | BE86: 1325.508696 | BF86: 1175.812201 | BG86: 1325.508235 | BH86: 60 | BJ86: 66.39439209 | BK86: 0.07815756296 | BL86: 32.85162354 | BM86: 0.2570438961 | BN86: 108.0421265 | BO86: 0 | BP86: 0 | BQ86: -57.59210796 | BR86: -5.496211345 | BS86: -8.890616028 | BT86: -8.890616028 | BU86: -8.890616028 | BV86: -3736.953402 | BW86: 30 | BY86: 221.3146403 | BZ86: 0.07815756296 | CA86: 32.85162354 | CB86: 0.2570438961 | CC86: 108.0421265 | CD86: 0 | CE86: 0 | CF86: 97.32814026 | CG86: 9.097056091 | CH86: 13.35527633 | CI86: 13.02007487 | CL86: 100 | CN86: 221.3146403 | CO86: 0.07815756296 | CP86: 16.42581177 | CQ86: 0.2570438961 | CR86: 54.02106326 | CS86: 0 | CT86: 0 | CU86: 159.3213903 | CV86: 11.63908135 | CW86: 16.96525206 | CX86: 16.6300506 | DA86: 100 | DC86: 221.3146403 | DD86: 0.07815756296 | DE86: 9.855487061 | DF86: 0.2570438961 | DG86: 32.41263796 | DH86: 0 | DI86: 0 | DJ86: 184.1186903 | DK86: 16.15306621 | DL86: 23.14211474 | DM86: 22.80691328 | DP86: 100 | DR86: 221.3146403 | DS86: 0.07815756296 | DT86: 6.570324707 | DU86: 0.2570438961 | DV86: 21.6084253 | DW86: 0 | DX86: 0 | DY86: 196.5173403 | DZ86: 20.43864513 | EA86: 28.64492408 | EB86: 28.30972263 | EE86: 100 | EG86: 223.8585618 | EH86: 6.5150466 | EI86: 42.7374322 | EJ86: 241.7672468 | EK86: -3220.677626 | EL86: 6.301659922 | EM86: 6.301659922 | EN86: 10.01494995 | EO86: 9.67974849 | EP86: 9.67974849 | EQ86: 6.301659922 | ER86: 10.01494995 | ES86: 9.67974849 | ET86: 9.67974849 | EV86: 209.1251619 | EW86: 6.5150466 | EX86: 43.06057131 | EY86: 327.9304211 | EZ86: -9600 | FA86: 11.60133885 | FB86: 11.60133885 | FC86: 16.91226074 | FD86: 16.57705928 | FE86: 16.57705928 | FF86: 11.60133885 | FG86: 16.91226074 | FH86: 16.57705928 | FI86: 16.57705928 | FK86: 209.1251619 | FL86: 6.5150466 | FM86: 43.06057131 | FN86: 327.9304211 | FO86: -26800 | FP86: -29.04422856 | FQ86: 29.04422856 | FR86: 38.24752458 | FS86: 38.58272604 | FT86: 38.58272604 | FU86: 29.04422856 | FV86: 38.24752458 | FW86: 38.58272604 | FX86: 38.58272604 | FY86: 9.67974849 | GA86: =IF(Feldschwächung!U86<n_MAX_FS,Feldschwächung!U86,n_MAX_FS) -> 4538.189347 | GB86: =IF(Feldschwächung!U86<n_MAX_FS,Feldschwächung!CJ86,GB85) -> 35.5746634 | HB86: 23.944 | HC86: 0.004225028698 | HD86: 1.95623579 | HE86: -52980.8941 | HF86: 3317.207704 | HG86: 32.81731299
